Workbook

Sheet 1.1 Recommended Cap Structure
A1: =Input!G28 -> Atmos Energy Corporation
A2: Recommended Capital Structure and Cost Rates
A3: for Ratemaking Purposes
B6: Type Of Capital | D6: Ratios (1) | F6: Cost Rate | H6: Weighted Cost Rate
B8: Long-Term Debt | D8: =Input!F13 -> 0.3893 | F8: =Input!F16 -> 0.0411 | G8: (1) | H8: =ROUND(F8*D8,6) -> 0.016
B9: Short-Term Debt | D9: =Input!F15 -> 0.0019 | F9: =Input!F17 -> 0.1714 | G9: (1) | H9: =ROUND(F9*D9,6) -> 0.000326
B10: Common Equity | D10: =Input!F14 -> 0.6088 | F10: ='1.2 Summary of CE Models'!E25 -> 0.1095 | G10: (2) | H10: =ROUND(F10*D10,6) -> 0.066664
B12: Total | D12: =SUM(D8:D10) -> 1 | H12: =SUM(H8:H10) -> 0.08299
A15: Notes:
A17: (1) | B17: Company-provided
A18: (2) | B18: From page 2 of this Schedule.

Sheet 1.2 Summary of CE Models
A1: =Input!G28 -> Atmos Energy Corporation
A2: Brief Summary of Common Equity Cost Rate
A5: Line No. | C5: Principal Methods | E5: Proxy Group of Six Natural Gas Distribution Companies | G5: Proxy Group of Six Natural Gas Distribution Companies (excl. PRPM)
A7: 1. | C7: Discounted Cash Flow Model (DCF)(1) | E7: ='2.1 DCF'!Y20/100 -> 0.0993 | G7: =E7 -> 0.0993
A9: 2. | C9: Risk Premium Model (RPM) (2) | E9: =IFERROR('3.1 Risk Premium Summary'!G23,"NA")/100 -> 0.108 | G9: ='3.1 Risk Premium Summary'!J23/100 -> 0.1075
A11: 3. | C11: Capital Asset Pricing Model (CAPM) (3) | E11: =IFERROR('4.1 CAPM'!V20,"NA")/100 -> 0.1136 | G11: ='4.1 CAPM'!V39/100 -> 0.1128
A13: 4. | C13: Market Models Applied to Comparable Risk, Non-Price Regulated Companies (4) | E13: =IFERROR('6.1 CEM Summary'!E19,"NA")/100 -> 0.1205 | G13: ='6.1 CEM Summary'!I19/100 -> 0.1197
A15: 5. | C15: Indicated Range of Common Equity Cost Rates before Adjustment for Company-Specific Risk | E15: =_xlfn.CONCAT(TEXT(I15,"0.00%")," - ",TEXT(J15,"0.00%")) -> 9.93% - 12.05% | G15: =_xlfn.CONCAT(TEXT(L15,"0.00%")," - ",TEXT(M15,"0.00%")) -> 9.93% - 11.97% | I15: =MIN(E7:E13) -> 0.0993 | J15: =MAX(E7:E13) -> 0.1205 | L15: =MIN(G7:G13) -> 0.0993 | M15: =MAX(G7:G13) -> 0.1197
A17: 6. | C17: Size Adjustment (5) | E17: 0.0005 | G17: =E17 -> 0.0005 | I17: =E17 -> 0.0005 | J17: =I17 -> 0.0005 | L17: =G17 -> 0.0005 | M17: =L17 -> 0.0005
A19: 7. | C19: Credit Risk Adjustment (6) | E19: =-ROUND((1/3*'3.2 Moody''s Bond Yields'!L27)/100,4) -> -0.0004 | G19: =E19 -> -0.0004 | I19: =E19 -> -0.0004 | J19: =I19 -> -0.0004 | L19: =I19 -> -0.0004 | M19: =L19 -> -0.0004
A21: 8. | C21: Flotation Cost Adjustment (7) | E21: ='9.1 Equity Contributions'!M42/100 -> 0.0005840869084 | G21: =E21 -> 0.0005840869084 | I21: =E21 -> 0.0005840869084 | J21: =I21 -> 0.0005840869084 | L21: =I21 -> 0.0005840869084 | M21: =L21 -> 0.0005840869084
A23: 9. | C23: Recommended Range of Common Equity Cost Rates after Adjustment for Company-Specific Risk | E23: =_xlfn.CONCAT(TEXT(I23,"0.00%")," - ",TEXT(J23,"0.00%")) -> 10.00% - 12.12% | G23: =_xlfn.CONCAT(TEXT(L23,"0.00%")," - ",TEXT(M23,"0.00%")) -> 10.00% - 12.04% | I23: =SUM(I15:I21) -> 0.09998408691 | J23: =SUM(J15:J21) -> 0.1211840869 | L23: =SUM(L15:L21) -> 0.09998408691 | M23: =SUM(M15:M21) -> 0.1203840869
A25: 10. | C25: Recommended Cost of Common Equity Cost Rate | E25: 0.1095
A27: Notes: | B27: (1) | C27: From page 1 of Schedule DWD-2
B28: (2) | C28: From page 1 of Schedule DWD-3
B29: (3) | C29: From page 1 of Schedule DWD-4
B30: (4) | C30: From page 1 of Schedule DWD-6
B31: (5) | C31: Adjustment to reflect the Company's greater business risk relative to the Utility Proxy Group as detailed in Mr. D'Ascendis' Direct Testimony.
B32: (6) | C32: Company-specific risk adjustment to reflect Atmos' lower risk due to a lower long-term rating relative to the proxy group as detailed in Mr. D'Ascendis' Direct Testimony.
B33: (7) | C33: From Schedule DWD-9.

Sheet 2.1 DCF
B1: =Input!G28 -> Atmos Energy Corporation
B2: Indicated Common Equity Cost Rate Using the Discounted Cash Flow Model for the
B3: =Input!I31 -> Proxy Group of Six Natural Gas Distribution Companies
D5: [1] | G5: [2] | J5: [3] | M5: [4] | P5: [5] | S5: [6] | V5: [7] | Y5: [8]
B7: =B3 -> Proxy Group of Six Natural Gas Distribution Companies | D7: Average Dividend Yield (1) | G7: Value Line Projected Five Year Growth in EPS (2) | J7: Zack's Five Year Projected Growth Rate in EPS | M7: Yahoo! Finance Projected Five Year Growth in EPS | P7: S&P Capital IQ Projected Five Year Growth in EPS | S7: Average Projected Five Year Growth in EPS (3) | V7: Adjusted Dividend Yield (4) | Y7: Indicated Common Equity Cost Rate (5)
A9: =Input!A2 -> ATO | B9: ='Proxy Data Lookup'!B3 -> Atmos Energy Corporation | D9: =HLOOKUP(A9,'Proxy Prices'!$B$4:$G$71,68,FALSE)*100 -> 2.72 | E9: % | G9: ='Proxy Data Lookup'!E3*100 -> 7 | H9: % | J9: =IFERROR('Proxy Data Lookup'!C3*100,"NA") -> 7 | K9: % | M9: ='Proxy Data Lookup'!D3*100 -> 7.4 | N9: % | P9: ='Proxy Data Lookup'!F3*100 -> 7 | Q9: % | S9: =IFERROR(ROUND(AVERAGE(G9,J9,M9,P9),2),"NA") -> 7.1 | T9: % | V9: =IFERROR(D9*(1+(0.5*(S9/100))),"NA") -> 2.81656 | W9: % | Y9: =IFERROR(V9 + S9,"NA") -> 9.91656 | Z9: % | AB9: =_xlfn.STDEV.P(Y9:Y14)*2 -> 1.828093248
A10: =Input!A3 -> NJR | B10: ='Proxy Data Lookup'!B4 -> New Jersey Resources Corporation | D10: =HLOOKUP(A10,'Proxy Prices'!$B$4:$G$71,68,FALSE)*100 -> 3.83 | G10: ='Proxy Data Lookup'!E4*100 -> 5 | J10: =IFERROR('Proxy Data Lookup'!C4*100,"NA") -> NA | M10: ='Proxy Data Lookup'!D4*100 -> 6 | P10: ='Proxy Data Lookup'!F4*100 -> 5.86667 | S10: =IFERROR(ROUND(AVERAGE(G10,J10,M10,P10),2),"NA") -> 5.62 | V10: 3.937623 | Y10: 9.557623 | AB10: =Y16+AB9 -> 11.77809325
A11: =Input!A4 -> NI | B11: ='Proxy Data Lookup'!B5 -> NiSource Inc. | D11: =HLOOKUP(A11,'Proxy Prices'!$B$4:$G$71,68,FALSE)*100 -> 3.64 | G11: ='Proxy Data Lookup'!E5*100 -> 9.5 | J11: =IFERROR('Proxy Data Lookup'!C5*100,"NA") -> 6 | M11: ='Proxy Data Lookup'!D5*100 -> 7.5 | P11: ='Proxy Data Lookup'!F5*100 -> 7.16667 | S11: 7.54 | V11: 3.777228 | Y11: 11.317228 | AB11: =Y16-AB9 -> 8.121906752
A12: =Input!A5 -> NWN | B12: ='Proxy Data Lookup'!B6 -> Northwest Natural Holding Company | D12: =HLOOKUP(A12,'Proxy Prices'!$B$4:$G$71,68,FALSE)*100 -> 5.22 | G12: ='Proxy Data Lookup'!E6*100 -> 6.5 | J12: =IFERROR('Proxy Data Lookup'!C6*100,"NA") -> NA | M12: ='Proxy Data Lookup'!D6*100 -> 2.8 | P12: ='Proxy Data Lookup'!F6*100 -> 4.4 | S12: 4.57 | V12: 5.339277 | Y12: 9.909277
A13: =Input!A6 -> OGS | B13: ='Proxy Data Lookup'!B7 -> ONE Gas, Inc. | D13: =HLOOKUP(A13,'Proxy Prices'!$B$4:$G$71,68,FALSE)*100 -> 4.14 | G13: ='Proxy Data Lookup'!E7*100 -> 3.5 | J13: =IFERROR('Proxy Data Lookup'!C7*100,"NA") -> 5 | M13: ='Proxy Data Lookup'!D7*100 -> 5 | P13: ='Proxy Data Lookup'!F7*100 -> 3 | S13: 4.13 | V13: 4.225491 | Y13: 8.355491
A14: =Input!A7 -> SR | B14: ='Proxy Data Lookup'!B8 -> Spire Inc. | D14: =HLOOKUP(A14,'Proxy Prices'!$B$4:$G$71,68,FALSE)*100 -> 4.9 | G14: ='Proxy Data Lookup'!E8*100 -> 4.5 | J14: =IFERROR('Proxy Data Lookup'!C8*100,"NA") -> 5 | M14: ='Proxy Data Lookup'!D8*100 -> 6.36 | P14: ='Proxy Data Lookup'!F8*100 -> 6.45333 | S14: 5.58 | V14: 5.03671 | Y14: 10.61671
V16: Average | Y16: =ROUND(AVERAGE(Y9:Y14),2) -> 9.95 | Z16: %
V18: Median | Y18: =ROUND(MEDIAN(Y9:Y14),2) -> 9.91 | Z18: %
V20: Average of Mean and Median | Y20: =ROUND(AVERAGE(Y16:Y18),2) -> 9.93 | Z20: %
E23: NA= Not Available
E24: NMF= Not Meaningful Figure
D26: Notes:
E27: (1) | F27: =CONCATENATE("Indicated dividend at ",TEXT(Input!E2,"mm/dd/yyyy")," divided by the average closing price of the last 60 trading days ending ",TEXT(Input!E2,"mm/dd/yyyy")," for each company.") -> Indicated dividend at 07/31/2024 divided by the average closing price of the last 60 trading days ending 07/31/2024 for each company.
E28: (2) | F28: From pages 2 through 7 of this Schedule.
E29: (3) | F29: Average of columns 2 through 5 excluding negative growth rates.
E30: (4) | F30: =CONCATENATE("This reflects a growth rate component equal to one-half the conclusion of growth rate (from column 6) x column 1 to reflect the periodic payment of dividends (Gordon Model) as opposed to the continuous payment. Thus, for ",B9,", ",TEXT(D9,"#0.00"),"% x (1+( 1/2 x ",TEXT(S9,"#0.00"),"%) ) = ",TEXT(V9,"#0.00"),"%.") -> This reflects a growth rate component equal to one-half the conclusion of growth rate (from column 6) x column 1 to reflect the periodic payment of dividends (Gordon Model) as opposed to the continuous payment. Thus, for Atmos Energy Corporation, 2.72% x (1+( 1/2 x 7.10%) ) = 2.82%.
E31: (5) | F31: Column 6 + column 7.
B33: Source of Information: | E33: Value Line Investment Survey
E34: =CONCATENATE("www.zacks.com Downloaded on ",TEXT(Input!E2,"mm/dd/yyyy")) -> www.zacks.com Downloaded on 07/31/2024
E35: =CONCATENATE("www.yahoo.com Downloaded on ",TEXT(Input!E2,"mm/dd/yyyy")) -> www.yahoo.com Downloaded on 07/31/2024
E36: S&P Capital IQ

Sheet 3.1 Risk Premium Summary
A1: =Input!G28 -> Atmos Energy Corporation
A2: Indicated Common Equity Cost Rate
A3: Through Use of a Risk Premium Model
A4: Using an Adjusted Total Market Approach
A6: Line No. | G6: =Input!I31 -> Proxy Group of Six Natural Gas Distribution Companies | J6: ='1.2 Summary of CE Models'!G5 -> Proxy Group of Six Natural Gas Distribution Companies (excl. PRPM)
A9: 1. | C9: Prospective Yield on Aaa Rated
C10: Corporate Bonds (1) | G10: ='MRP WP1'!$M$37 -> 5.09 | H10: % | J10: =G10 -> 5.09 | K10: =H10 -> %
A12: 2. | C12: Adjustment to Reflect Yield Spread
C13: Between Aaa Rated Corporate
C14: Bonds and A2 Rated Public
C15: Utility Bonds | G15: ='3.2 Moody''s Bond Yields'!L21 -> 0.5 | H15: (2) | J15: =G15 -> 0.5 | K15: =H15 -> (2)
A17: 3. | C17: Adjusted Prospective Yield on A2 Rated
C18: Public Utility Bonds | G18: =SUM(G10:G15) -> 5.59 | H18: % | J18: =SUM(J10:J15) -> 5.59 | K18: %
A20: 4. | C20: Equity Risk Premium (3) | G20: ='3.5 ERP Determination'!E25 -> 5.21 | J20: ='3.5 ERP Determination'!G25 -> 5.16
A22: 5. | C22: Risk Premium Derived Common
C23: Equity Cost Rate | G23: =SUM(G18:G20) -> 10.8 | H23: % | J23: =SUM(J18:J20) -> 10.75 | K23: %
A26: Notes: | B26: (1) | C26: Consensus forecast of Moody's Aaa Rated Corporate bonds from Blue Chip Financial Forecasts (see pages 7 and 8 of this Schedule).
B27: (2) | C27: =CONCATENATE("The average yield spread of A2 rated public utility bonds over Aaa rated corporate bonds of ",TEXT('3.2 Moody''s Bond Yields'!L21,"#0.00"),"% from page 2 of this Schedule.") -> The average yield spread of A2 rated public utility bonds over Aaa rated corporate bonds of 0.50% from page 2 of this Schedule.
B28: (3) | C28: From page 5 of this Schedule.

Sheet 3.2 Moody's Bond Yields
A1: =Input!G28 -> Atmos Energy Corporation
A2: Interest Rates and Bond Spreads for
A3: Moody's Corporate and Public Utility Bonds
A6: Selected Bond Yields - Moody's
C8: [1] | F8: [2] | I8: [3] | L8: [4]
C10: Aaa Rated Corporate Bond | F10: Aa Rated Public Utility Bond | I10: A2 Rated Public Utility Bond | L10: Baa2 Rated Public Utility Bond
A12: ='Market Data'!B1 -> 2024-07-31 | C12: ='Market Data'!B5 -> 5.04 | D12: % | F12: ='Market Data'!B2 -> 5.46 | G12: % | I12: ='Market Data'!B3 -> 5.57 | J12: % | L12: ='Market Data'!B4 -> 5.77 | M12: %
A13: ='Market Data'!C1 -> 2024-06-28 | C13: ='Market Data'!C5 -> 5.13 | F13: ='Market Data'!C2 -> 5.5 | I13: ='Market Data'!C3 -> 5.61 | L13: ='Market Data'!C4 -> 5.84
A14: ='Market Data'!D1 -> 2024-05-31 | C14: ='Market Data'!D5 -> 5.25 | F14: ='Market Data'!D2 -> 5.62 | I14: ='Market Data'!D3 -> 5.74 | L14: ='Market Data'!D4 -> 5.97
A16: Average | C16: =ROUND(AVERAGE(C12:C14),2) -> 5.14 | D16: % | F16: =ROUND(AVERAGE(F12:F14),2) -> 5.53 | G16: % | I16: =ROUND(AVERAGE(I12:I14),2) -> 5.64 | J16: % | L16: =ROUND(AVERAGE(L12:L14),2) -> 5.86 | M16: %
A18: Selected Bond Spreads
A20: A2 Rated Public Utility Bonds Over Aaa Rated Corporate Bonds:
L21: =I16-C16 -> 0.5 | M21: % (1)
A23: Baa2 Rated Public Utility Bonds Over A2 Rated Public Utility Bonds:
L24: =ROUND(L16-I16,2) -> 0.22 | M24: % (2)
A26: A2 Rated Public Utility Bonds Over Aa2 Rated Public Utility Bonds:
L27: =I16-F16 -> 0.11 | M27: % (3)
A29: Notes:
A30: (1) | B30: Column [3] - Column [1].
A31: (2) | B31: Column [4] - Column [3].
A32: (3) | B32: Column [3] - Column [2].
A34: Source of Information:
A35: Bloomberg Professional Service

Sheet 3.3 Bond Ratings
B1: =Input!G28 -> Atmos Energy Corporation
B2: Comparison of Long-Term Issuer Ratings for
B3: ='3.1 Risk Premium Summary'!G6 -> Proxy Group of Six Natural Gas Distribution Companies
E6: Moody's | I6: Standard & Poor's
E7: Long-Term Issuer Rating | I7: Long-Term Issuer Rating
E8: =TEXT(Input!E2,"mmmm yyyy") -> July 2024 | I8: =E8 -> July 2024
B11: =B3 -> Proxy Group of Six Natural Gas Distribution Companies | E11: Long-Term Issuer Rating (1) | G11: Numerical Weighting (2) | I11: =E11 -> Long-Term Issuer Rating (1) | K11: Numerical Weighting (2)
A13: =Input!A2 -> ATO | B13: ='Proxy Data Lookup'!B3 -> Atmos Energy Corporation | E13: ='Proxy Data Lookup'!Q3 -> A1 | G13: =IFERROR(INDEX('3.4 MOODY_S&P numbericl'!D$6:D$26,MATCH('3.3 Bond Ratings'!E13,'3.4 MOODY_S&P numbericl'!B$6:B$26,0)), " - -") -> 5 | I13: ='Proxy Data Lookup'!P3 -> A- | K13: =IFERROR(INDEX('3.4 MOODY_S&P numbericl'!H$6:H$26,MATCH('3.3 Bond Ratings'!I13,'3.4 MOODY_S&P numbericl'!F$6:F$26,0)), " - -") -> 7
A14: =Input!A3 -> NJR | B14: ='Proxy Data Lookup'!B4 -> New Jersey Resources Corporation | E14: ='Proxy Data Lookup'!Q4 -> A1 | G14: =IFERROR(INDEX('3.4 MOODY_S&P numbericl'!D$6:D$26,MATCH('3.3 Bond Ratings'!E14,'3.4 MOODY_S&P numbericl'!B$6:B$26,0)), " - -") -> 5 | I14: ='Proxy Data Lookup'!P4 -> NR | K14: =IFERROR(INDEX('3.4 MOODY_S&P numbericl'!H$6:H$26,MATCH('3.3 Bond Ratings'!I14,'3.4 MOODY_S&P numbericl'!F$6:F$26,0)), " - -") -> - -
A15: =Input!A4 -> NI | B15: ='Proxy Data Lookup'!B5 -> NiSource Inc. | E15: ='Proxy Data Lookup'!Q5 -> Baa1 | G15: =IFERROR(INDEX('3.4 MOODY_S&P numbericl'!D$6:D$26,MATCH('3.3 Bond Ratings'!E15,'3.4 MOODY_S&P numbericl'!B$6:B$26,0)), " - -") -> 8 | I15: ='Proxy Data Lookup'!P5 -> BBB+ | K15: =IFERROR(INDEX('3.4 MOODY_S&P numbericl'!H$6:H$26,MATCH('3.3 Bond Ratings'!I15,'3.4 MOODY_S&P numbericl'!F$6:F$26,0)), " - -") -> 8
A16: =Input!A5 -> NWN | B16: ='Proxy Data Lookup'!B6 -> Northwest Natural Holding Company | E16: ='Proxy Data Lookup'!Q6 -> Baa1 | G16: =IFERROR(INDEX('3.4 MOODY_S&P numbericl'!D$6:D$26,MATCH('3.3 Bond Ratings'!E16,'3.4 MOODY_S&P numbericl'!B$6:B$26,0)), " - -") -> 8 | I16: ='Proxy Data Lookup'!P6 -> A+ | K16: =IFERROR(INDEX('3.4 MOODY_S&P numbericl'!H$6:H$26,MATCH('3.3 Bond Ratings'!I16,'3.4 MOODY_S&P numbericl'!F$6:F$26,0)), " - -") -> 5
A17: =Input!A6 -> OGS | B17: ='Proxy Data Lookup'!B7 -> ONE Gas, Inc. | E17: ='Proxy Data Lookup'!Q7 -> A3 | G17: =IFERROR(INDEX('3.4 MOODY_S&P numbericl'!D$6:D$26,MATCH('3.3 Bond Ratings'!E17,'3.4 MOODY_S&P numbericl'!B$6:B$26,0)), " - -") -> 7 | I17: ='Proxy Data Lookup'!P7 -> A- | K17: =IFERROR(INDEX('3.4 MOODY_S&P numbericl'!H$6:H$26,MATCH('3.3 Bond Ratings'!I17,'3.4 MOODY_S&P numbericl'!F$6:F$26,0)), " - -") -> 7
A18: =Input!A7 -> SR | B18: ='Proxy Data Lookup'!B8 -> Spire Inc. | E18: ='Proxy Data Lookup'!Q8 -> A1/A2 | G18: 5.5 | I18: ='Proxy Data Lookup'!P8 -> BBB+ | K18: =IFERROR(INDEX('3.4 MOODY_S&P numbericl'!H$6:H$26,MATCH('3.3 Bond Ratings'!I18,'3.4 MOODY_S&P numbericl'!F$6:F$26,0)), " - -") -> 8
C20: Average | E20: A2 | G20: =ROUND(AVERAGE(G12:G18),1) -> 6.4 | I20: A- | K20: =ROUND(AVERAGE(K12:K18),1) -> 7
B23: Notes:
B25: (1) | C25: Ratings are that of the average of each company's utility operating subsidiaries.
B26: (2) | C26: From page 4 of this Schedule.
C28: Source Information: | E28: Moody's Investors Service
E29: Standard & Poor's Global Utilities Rating Service

Sheet 3.4 MOODY_S&P numbericl
B1: Numerical Assignment for
B2: Moody's and Standard & Poor's Bond Ratings
B4: Moody's Bond Rating | D4: Numerical Bond Weighting | F4: Standard & Poor's Bond Rating | H4: =D4 -> Numerical Bond Weighting
B6: Aaa | D6: 1 | F6: AAA | H6: =IF(D6="","",D6) -> 1
H7: =IF(D7="","",D7) -> 
B8: Aa1 | D8: 2 | F8: AA+ | H8: 2
B9: Aa2 | D9: 3 | F9: AA | H9: 3
B10: Aa3 | D10: 4 | F10: AA- | H10: 4
B12: A1 | D12: 5 | F12: A+ | H12: 5
B13: A2 | D13: 6 | F13: A | H13: 6
B14: A3 | D14: 7 | F14: A- | H14: 7
B16: Baa1 | D16: 8 | F16: BBB+ | H16: 8
B17: Baa2 | D17: 9 | F17: BBB | H17: 9
B18: Baa3 | D18: 10 | F18: BBB- | H18: 10
B20: Ba1 | D20: 11 | F20: BB+ | H20: 11
B21: Ba2 | D21: 12 | F21: BB | H21: 12
B22: Ba3 | D22: 13 | F22: BB- | H22: 13
B24: B1 | D24: 14 | F24: B+ | H24: 14
B25: B2 | D25: 15 | F25: B | H25: 15
B26: B3 | D26: 16 | F26: B- | H26: 16

Sheet 3.5 ERP Determination
A1: =Input!G28 -> Atmos Energy Corporation
A2: Judgment of Equity Risk Premium for
A3: =E6 -> Proxy Group of Six Natural Gas Distribution Companies
A6: Line No. | E6: ='3.3 Bond Ratings'!B3 -> Proxy Group of Six Natural Gas Distribution Companies | G6: ='3.1 Risk Premium Summary'!J6 -> Proxy Group of Six Natural Gas Distribution Companies (excl. PRPM)
A9: 1. | C9: Calculated equity risk
C10: premium based on the
C11: total market using
C12: the beta approach (1) | E12: ='3.6 Beta Adjusted ERP'!F23 -> 6.08 | F12: % | G12: ='3.6 Beta Adjusted ERP'!H23 -> 6 | H12: %
A14: 2. | C14: Mean equity risk premium
C15: based on a study
C16: using the holding period
C17: returns of public utilities
C18: with A rated bonds (2) | E18: ='3.9 S&P RPM Study Returns'!E15 -> 4.73 | G18: ='3.9 S&P RPM Study Returns'!G15 -> 4.65
A20: 3. | C20: Predicted Equity Risk Premium
C21: Based on Regression Analysis
C22: of 836 Fully-Litigated Natural
C23: Gas Utility Rate Cases (3) | E23: ='3.10 Past Rate Cases Gas'!AF25 -> 4.816767082 | G23: =E23 -> 4.816767082
A25: 4. | C25: Average equity risk premium | E25: =ROUND(AVERAGE(E12:E23),2) -> 5.21 | F25: % | G25: =ROUND(AVERAGE(G12:G23),2) -> 5.16 | H25: %
A28: Notes: | B28: (1) | C28: From page 6 of this Schedule.
B29: (2) | C29: From page 9 of this Schedule.
B30: (3) | C30: From page 10 of this Schedule.

Sheet 3.6 Beta Adjusted ERP
A1: =Input!G28 -> Atmos Energy Corporation
A2: Derivation of Equity Risk Premium Based on the Total Market Approach
A3: Using the Beta for the
A4: ='3.5 ERP Determination'!E6 -> Proxy Group of Six Natural Gas Distribution Companies
A7: Line No. | C7: ='6.5 CEM Beta Adjusted RP'!C7 -> Equity Risk Premium Measure | F7: =A4 -> Proxy Group of Six Natural Gas Distribution Companies | H7: ='3.5 ERP Determination'!G6 -> Proxy Group of Six Natural Gas Distribution Companies (excl. PRPM)
A9: 1. | C9: Ibbotson Equity Risk Premium (1) | F9: =('Market Data'!B11-'Market Data'!B12)*100 -> 5.956585631 | G9: % | H9: =F9 -> 5.956585631 | I9: %
A11: 2. | C11: Regression on Ibbotson Risk Premium Data (2) | F11: ='MRP ERP WP'!$AK$42*100 -> 6.979344728 | H11: =F11 -> 6.979344728
A13: 3. | C13: Ibbotson Equity Risk Premium based on PRPM (3) | F13: ='PRPM WP1'!D1199*100 -> 8.105364035 | H13: NA
A15: 4. | C15: Equity Risk Premium Based on Value Line Summary and Index (4) | F15: ='MRP WP1'!$M$22*100-'MRP WP1'!$M$37 -> 7.15 | H15: =F15 -> 7.15
A17: 5. | C17: Equity Risk Premium Based on Bloomberg, Value Line, and S&P Capital IQ S&P 500 Companies (5) | F17: =('MRP WP2 Combined'!K505*100)-'MRP WP1'!M37 -> 10.32812975 | H17: =F17 -> 10.32812975
A19: 6. | C19: Conclusion of Equity Risk Premium | F19: =ROUND(AVERAGE(F9:F17),2) -> 7.7 | G19: % | H19: =ROUND(AVERAGE(H9:H17),2) -> 7.6 | I19: %
A21: 7. | C21: Adjusted Beta (6) | F21: ='4.1 CAPM'!H20 -> 0.79 | H21: =F21 -> 0.79
A23: 8. | C23: Forecasted Equity Risk Premium | F23: =ROUND(F19*F21,2) -> 6.08 | G23: % | H23: =ROUND(H19*H21,2) -> 6 | I23: %
B26: Notes:
B27: (1) | C27: =CONCATENATE("Based on the arithmetic mean historical monthly returns on large company common stocks from Kroll 2023 SBBI® Yearbook and Bloomberg Professional Services"," minus the arithmetic mean monthly yield of Moody's average Aaa and Aa2 corporate bonds from 1928-2023.") -> Based on the arithmetic mean historical monthly returns on large company common stocks from Kroll 2023 SBBI® Yearbook and Bloomberg Professional Services minus the arithmetic mean monthly yield of Moody's average Aaa and Aa2 corporate bonds from 1928-2023.
B29: (2) | C29: =CONCATENATE("This equity risk premium is based on a regression of the monthly equity risk premiums of large company common stocks relative to Moody's average Aaa and Aa2 rated corporate bond yields from 1928-2023 referenced in Note 1 above."," Using the equation generated from the regression, an expected equity risk premium is calculated using the average consensus forecast of Aaa corporate bonds of ",TEXT('MRP WP1'!M37,"#0.00"),"% (from page 1 of this Schedule).") -> This equity risk premium is based on a regression of the monthly equity risk premiums of large company common stocks relative to Moody's average Aaa and Aa2 rated corporate bond yields from 1928-2023 referenced in Note 1 above. Using the equation generated from the regression, an expected equity risk premium is calculated using the average consensus forecast of Aaa corporate bonds of 5.09% (from page 1 of this Schedule).
B30: (3) | C30: The Predictive Risk Premium Model (PRPM) is discussed in the accompanying direct testimony. The Ibbotson equity risk premium based on the PRPM is derived by applying the PRPM to the monthly risk premiums between Ibbotson large company common stock monthly returns and average Aaa and Aa corporate monthly bond yields, from January 1928 through July 2024.
B31: (4) | C31: =CONCATENATE("The equity risk premium based on the Value Line Summary and Index is derived by subtracting the average consensus forecast of Aaa corporate bonds of ",TEXT('MRP WP1'!$M$37,"#0.00"),"% (from page 1 of this Schedule) from the projected 3-5 year total annual market return of ",TEXT('MRP WP1'!$M$22*100,"#0.00"),"% (described fully in note 1 on page 2 of Schedule DWD-4).") -> The equity risk premium based on the Value Line Summary and Index is derived by subtracting the average consensus forecast of Aaa corporate bonds of 5.09% (from page 1 of this Schedule) from the projected 3-5 year total annual market return of 12.24% (described fully in note 1 on page 2 of Schedule DWD-4).
B32: (5) | C32: =CONCATENATE("Using data from the Bloomberg Professional Services, Value Line, and S&P Capital IQ for the S&P 500 for the S&P 500, an expected total return of ",TEXT('MRP WP2 Combined'!$K$505*100,"#0.00"), "% was derived based upon expected dividend yields as a proxy for income returns and long-term earnings growth estimates as a proxy for capital appreciation. Subtracting the average consensus forecast of Aaa corporate bonds of ",TEXT('MRP WP1'!M37,"#0.00"), "% results in an expected equity risk premium of ", TEXT(F17,"#0.00"),"%.") -> Using data from the Bloomberg Professional Services, Value Line, and S&P Capital IQ for the S&P 500 for the S&P 500, an expected total return of 15.42% was derived based upon expected dividend yields as a proxy for income returns and long-term earnings growth estimates as a proxy for capital appreciation. Subtracting the average consensus forecast of Aaa corporate bonds of 5.09% results in an expected equity risk premium of 10.33%.
B33: (6) | C33: Average of mean and median beta from Schedule DWD-4.
B35: Sources of Information:
C36: Kroll 2023 SBBI® Yearbook
C37: Industrial Manual and Mergent Bond Record Monthly Update.
C38: Value Line Summary and Index
C39: =CONCATENATE("Blue Chip Financial Forecasts, ",Input!I25) -> Blue Chip Financial Forecasts, August 1, 2024 and May 31, 2024
C40: Bloomberg Professional Service
C41: S&P Capital IQ

Sheet 3.9 S&P RPM Study Returns
A1: =Input!G28 -> Atmos Energy Corporation
A2: Derivation of Mean Equity Risk Premium Based Studies
A3: Using Holding Period Returns and
A4: Projected Market Appreciation of the S&P Utility Index
A5: Line No. | C5: ='3.6 Beta Adjusted ERP'!C7 -> Equity Risk Premium Measure | E5: Implied Equity Risk Premium | G5: Implied Equity Risk Premium excl. PRPM
A7: 1. | C7: Historical Equity Risk Premium (1) | E7: =('Market Data'!B13-'Market Data'!B14)*100 -> 4.018463116 | F7: % | G7: =E7 -> 4.018463116 | H7: %
A9: 2. | C9: Regression of Historical Equity Risk Premium (2) | E9: ='MRP ERP WP'!AU42*100 -> 4.856332175 | G9: =E9 -> 4.856332175
A11: 3. | C11: Forecasted Equity Risk Premium Based on PRPM (3) | E11: =ROUND('PRPM WP1'!C1199*100,2) -> 4.98 | G11: NA
A13: 4. | C13: Forecasted Equity Risk Premium based on Projected Total Return on the S&P Utilities Index (Bloomberg, Value Line, and S&P Capital IQ Data) (4) | E13: =ROUND('ERP WP1 Combined'!K35*100-'3.1 Risk Premium Summary'!G18,2) -> 5.08 | G13: =E13 -> 5.08
A15: 5. | C15: Average Equity Risk Premium (5) | E15: =ROUND(AVERAGE(E7:E13),2) -> 4.73 | F15: % | G15: =ROUND(AVERAGE(G7:G13),2) -> 4.65 | H15: %
A18: Notes: | B18: (1) | C18: Based on S&P Public Utility Index monthly total returns and Moody's Public Utility Bond average monthly yields from 1928-2023. Holding period returns are calculated based upon income received (dividends and interest) plus the relative change in the market value of a security over a one-year holding period.
B19: (2) | C19: =CONCATENATE("This equity risk premium is based on a regression of the monthly equity risk premiums of the S&P Utility Index relative to Moody's A2 rated public utility bond yields from 1928 - 2023 referenced in note 1 above."," Using the equation generated from the regression, an expected equity risk premium is calculated using the prospective A2 rated public utility bond yield of ",TEXT('3.1 Risk Premium Summary'!G18,"#0.00"),"% (from line 3, page 1 of this Schedule).") -> This equity risk premium is based on a regression of the monthly equity risk premiums of the S&P Utility Index relative to Moody's A2 rated public utility bond yields from 1928 - 2023 referenced in note 1 above. Using the equation generated from the regression, an expected equity risk premium is calculated using the prospective A2 rated public utility bond yield of 5.59% (from line 3, page 1 of this Schedule).
B20: (3) | C20: =CONCATENATE("The Predictive Risk Premium Model (PRPM) is applied to the risk premium of the monthly total returns of the S&P Utility Index and the monthly yields on Moody's A2 rated public utility bonds from January 1928 - ",Input!$G$25,".") -> The Predictive Risk Premium Model (PRPM) is applied to the risk premium of the monthly total returns of the S&P Utility Index and the monthly yields on Moody's A2 rated public utility bonds from January 1928 - July 2024.
B21: (4) | C21: =CONCATENATE("Using data from Bloomberg, Value Line, and S&P Capital IQ for the S&P Utilities Index, an expected total return of ", TEXT('ERP WP1 Combined'!K35,"#0.00%")," was derived based on expected dividend yields as a proxy for income returns and long-term growth estimates as a proxy for market appreciation. Subtracting the expected A2 rated public utility bond yield of ",TEXT('3.1 Risk Premium Summary'!G18/100,"#0.00%"),", calculated on line 3 of page 1 of this Schedule results in an equity risk premium of ",TEXT(E13/100,"#0.00%")," (",TEXT('ERP WP1 Combined'!K35,"#0.00%")," - ",TEXT('3.1 Risk Premium Summary'!G18/100,"#0.00%")," = ",TEXT('3.9 S&P RPM Study Returns'!E13/100,"0.00%"),").") -> Using data from Bloomberg, Value Line, and S&P Capital IQ for the S&P Utilities Index, an expected total return of 10.67% was derived based on expected dividend yields as a proxy for income returns and long-term growth estimates as a proxy for market appreciation. Subtracting the expected A2 rated public utility bond yield of 5.59%, calculated on line 3 of page 1 of this Schedule results in an equity risk premium of 5.08% (10.67% - 5.59% = 5.08%).
B22: (5) | C22: Average of lines 1 through 4.

Sheet 3.10 Past Rate Cases Gas
A1: Rate Case History | O1: SUMMARY OUTPUT | Z1: =Input!G28 -> Atmos Energy Corporation
Z2: Prediction of Equity Risk Premiums Relative to
A3: Past Rate Cases | O3: Regression Statistics | Z3: Moody's A2 Rated Utility Bond Yields
F4: Increase Authorized | O4: Multiple R | P4: 0.9327240277
A5: State | B5: Company | C5: Case Identification | D5: Service | E5: Case Type | F5: Date | G5: Decision Type | H5: Return on Equity (%) | I5: Common Equity /Total Cap (%) | J5: A Rated Utility Bond (%) | K5: Equity Risk Premium (%) | O5: R Square | P5: 0.8699741119
A6: Illinois | B6: Northern Illinois Gas Co. | C6: D-79-0133 | D6: Natural Gas | E6: Distribution | F6: 1980-01-03 | G6: Fully Litigated | H6: 12.55 | I6: 51.81 | J6: 11.89 | K6: =H6-J6 -> 0.66 | O6: Adjusted R Square | P6: 0.8698182055
A7: Pennsylvania | B7: PECO Energy Co | C7: C-R-79030781 | D7: Natural Gas | E7: Distribution | F7: 1980-01-04 | G7: Fully Litigated | H7: 13.75 | I7: 35.1 | J7: 11.89 | K7: =H7-J7 -> 1.86 | O7: Standard Error | P7: 0.7716795155
A8: Maryland | B8: Washington Gas Light Co. | C8: C-7394 0-64174 | D8: Natural Gas | E8: Distribution | F8: 1980-01-14 | G8: Fully Litigated | H8: 13.2 | I8: 36.6 | J8: 11.89 | K8: 1.31 | O8: Observations | P8: 836
A9: Georgia | B9: Atlanta Gas Light Co. | C9: D-3167-U | D9: Natural Gas | E9: Distribution | F9: 1980-01-18 | G9: Fully Litigated | H9: 14 | I9: 35.09 | J9: 12.15 | K9: 1.85
A10: Massachusetts | B10: NSTAR Gas Co. | C10: DPU-20132-G | D10: Natural Gas | E10: Distribution | F10: 1980-01-31 | G10: Fully Litigated | H10: 12.61 | I10: 52 | J10: 12.15 | K10: 0.46 | O10: ANOVA
A11: Oklahoma | B11: Oklahoma Natural Gas Co | C11: Ca-26652 | D11: Natural Gas | E11: Distribution | F11: 1980-02-08 | G11: Fully Litigated | H11: 14.5 | I11: 49.31 | J11: 12.15 | K11: 2.35 | P11: df | Q11: SS | R11: MS | S11: F | T11: Significance F
A12: Wisconsin | B12: Madison Gas and Electric Co. | C12: D-3270-UR-9-G | D12: Natural Gas | E12: Distribution | F12: 1980-02-14 | G12: Fully Litigated | H12: 13 | I12: 40 | J12: 12.15 | K12: 0.85 | O12: Regression | P12: 1 | Q12: 3322.894056 | R12: 3322.894056 | S12: 5580.107314 | T12: 0
A13: Wisconsin | B13: Wisconsin Gas LLC | C13: D-6650-GR-6 | D13: Natural Gas | E13: Distribution | F13: 1980-02-15 | G13: Fully Litigated | H13: 13 | I13: 41.2 | J13: 12.21 | K13: 0.79 | O13: Residual | P13: 834 | Q13: 496.638055 | R13: 0.5954892746
A14: New York | B14: Niagara Mohawk Power Corp. | C14: C-27540 | D14: Natural Gas | E14: Distribution | F14: 1980-02-29 | G14: Fully Litigated | H14: 14 | I14: 38.5 | J14: 12.21 | K14: 1.79 | O14: Total | P14: 835 | Q14: 3819.532111
A15: Kansas | B15: Kansas Gas Service Co. | C15: D-119,314-U | D15: Natural Gas | E15: Distribution | F15: 1980-03-05 | G15: Fully Litigated | H15: 14 | I15: 33.65 | J15: 12.21 | K15: 1.79
A16: New York | B16: Consolidated Edison Company of | C16: C-27544 | D16: Natural Gas | E16: Distribution | F16: 1980-03-07 | G16: Fully Litigated | H16: 13.5 | I16: 44.69 | J16: 12.21 | K16: 1.29 | P16: Coefficients | Q16: Standard Error | R16: t Stat | S16: P-value | T16: Lower 95% | U16: Upper 95% | V16: Lower 95.0% | W16: Upper 95.0%
A17: New York | B17: Natl Fuel Gas Distribution Cor | C17: C-27503 | D17: Natural Gas | E17: Distribution | F17: 1980-03-14 | G17: Fully Litigated | H17: 14 | I17: 42.1 | J17: 12.21 | K17: 1.79 | O17: Intercept | P17: 7.515135303 | Q17: 0.06773917024 | R17: 110.9422403 | S17: 0 | T17: 7.382176013 | U17: 7.648094593 | V17: 7.382176013 | W17: 7.648094593
A18: New York | B18: Orange & Rockland Utlts Inc. | C18: C-27554 | D18: Natural Gas | E18: Distribution | F18: 1980-03-27 | G18: Fully Litigated | H18: 12.69 | I18: 39.25 | J18: 13.23 | K18: -0.54 | O18: X Variable 1 | P18: -0.4827134562 | Q18: 0.006462017501 | R18: -74.70011589 | S18: 0 | T18: -0.4953971849 | U18: -0.4700297275 | V18: -0.4953971849 | W18: -0.4700297275
A19: Iowa | B19: MidAmerican Energy Co. | C19: D-RPU-78-11 | D19: Natural Gas | E19: Distribution | F19: 1980-04-29 | G19: Fully Litigated | H19: 12.5 | I19: 36.5 | J19: 14.59 | K19: -2.09
A20: Ohio | B20: The Dayton Power & Light Co. | C20: C-79-372-GA-AIR | D20: Natural Gas | E20: Distribution | F20: 1980-05-07 | G20: Fully Litigated | H20: 14.27 | I20: 34.24 | J20: 14.59 | K20: -0.32
A21: New Jersey | B21: Public Service Electric Gas | C21: D-794-310-G | D21: Natural Gas | E21: Distribution | F21: 1980-05-08 | G21: Fully Litigated | H21: 13.75 | I21: 35.91 | J21: 14.59 | K21: -0.84
A22: Utah | B22: Dominion Energy Inc. | C22: C-80-057-01 | D22: Natural Gas | E22: Distribution | F22: 1980-05-19 | G22: Fully Litigated | H22: 15.5 | I22: 44.87 | J22: 14.59 | K22: 0.91
A23: Colorado | B23: Public Service Co. of CO | C23: D-1420-De-C80-1039 (Gas) | D23: Natural Gas | E23: Distribution | F23: 1980-05-27 | G23: Fully Litigated | H23: 14.6 | I23: 35.8 | J23: 14.29 | K23: 0.31
A24: Arizona | B24: Arizona Public Service Co. | C24: D-U-1345 De-51009-G | D24: Natural Gas | E24: Distribution | F24: 1980-05-29 | G24: Fully Litigated | H24: 16 | I24: 37.21 | J24: 14.29 | K24: 1.71 | Z24: Constant | AB24: Slope | AD24: Prospective A2 Rated Utility Bond (1) | AF24: Prospective Equity Risk Premium
A25: Maryland | B25: Baltimore Gas and Electric Co. | C25: C-7397 0-64331-G | D25: Natural Gas | E25: Distribution | F25: 1980-06-10 | G25: Fully Litigated | H25: 13.78 | I25: 38.5 | J25: 14.29 | K25: -0.51 | Z25: =P17 -> 7.515135303 | AA25: % | AB25: =P18 -> -0.4827134562 | AC25: % | AD25: ='3.1 Risk Premium Summary'!G18 -> 5.59 | AE25: % | AF25: =AB25*AD25+Z25 -> 4.816767082 | AG25: %
A26: Connecticut | B26: CT Natural Gas Corp. | C26: D-79-12-02 | D26: Natural Gas | E26: Distribution | F26: 1980-06-25 | G26: Fully Litigated | H26: 14.25 | I26: 41.76 | J26: 12.74 | K26: 1.51
A27: Ohio | B27: The East Ohio Gas Co. | C27: C-79-535-GA-AIR | D27: Natural Gas | E27: Distribution | F27: 1980-07-09 | G27: Fully Litigated | H27: 14.51 | I27: 53.69 | J27: 12.74 | K27: 1.77
A28: West Virginia | B28: Mountaineer Gas Co. | C28: C-79-088-G-42T | D28: Natural Gas | E28: Distribution | F28: 1980-07-17 | G28: Fully Litigated | H28: 12.9 | I28: 42 | J28: 12.4 | K28: 0.5 | Z28: Notes:
A29: New York | B29: Rochester Gas & Electric Corp. | C29: C-27608 | D29: Natural Gas | E29: Distribution | F29: 1980-07-18 | G29: Fully Litigated | H29: 13.8 | I29: 39.9 | J29: 12.4 | K29: 1.4 | Z29: (1) | AA29: From line 3 of page 1 of this Schedule.
A30: New York | B30: NY State Electric & Gas Corp. | C30: C-27610 | D30: Natural Gas | E30: Distribution | F30: 1980-07-22 | G30: Fully Litigated | H30: 14.1 | I30: 39.9 | J30: 12.4 | K30: 1.7
A31: Kansas | B31: Kansas Gas Service Co. | C31: D-120,950-U | D31: Natural Gas | E31: Distribution | F31: 1980-07-23 | G31: Fully Litigated | H31: 14.19 | I31: 32.51 | J31: 12.4 | K31: 1.79 | Z31: Source of Information: Regulatory Research Associates
A32: Iowa | B32: MidAmerican Energy Co. | C32: D-RPU-78-25 | D32: Natural Gas | E32: Distribution | F32: 1980-08-01 | G32: Fully Litigated | H32: 12.5 | I32: 36.44 | J32: 12.4 | K32: 0.1
A33: Idaho | B33: Avista Corp. | C33: C-U-1008-145 | D33: Natural Gas | E33: Distribution | F33: 1980-08-11 | G33: Fully Litigated | H33: 14.85 | I33: 36.62 | J33: 12.4 | K33: 2.45
A34: Pennsylvania | B34: Natl Fuel Gas Distribution Cor | C34: C-R-79090956 | D34: Natural Gas | E34: Distribution | F34: 1980-08-28 | G34: Fully Litigated | H34: 14 | I34: 44.5 | J34: 12.15 | K34: 1.85
A35: New York | B35: The Brooklyn Union Gas Co. | C35: C-27631 | D35: Natural Gas | E35: Distribution | F35: 1980-09-04 | G35: Fully Litigated | H35: 14 | I35: 41.14 | J35: 12.15 | K35: 1.85
A36: Kentucky | B36: Louisville Gas & Electric Co. | C36: C-7799 (gas) | D36: Natural Gas | E36: Distribution | F36: 1980-09-24 | G36: Fully Litigated | H36: 15 | I36: 36.43 | J36: 12.66 | K36: 2.34
A37: Connecticut | B37: The CT Light & Power Co | C37: D-80-04-03-G | D37: Natural Gas | E37: Distribution | F37: 1980-10-09 | G37: Fully Litigated | H37: 14.5 | I37: 35.12 | J37: 12.66 | K37: 1.84
A38: Connecticut | B38: The CT Light & Power Co | C38: D-80-04-04-G | D38: Natural Gas | E38: Distribution | F38: 1980-10-09 | G38: Fully Litigated | H38: 14.5 | I38: 37.1 | J38: 12.66 | K38: 1.84
A39: Nevada | B39: Southwest Gas Corp. | C39: D-2868 (Southern) | D39: Natural Gas | E39: Distribution | F39: 1980-10-27 | G39: Fully Litigated | H39: 15.2 | I39: 34.68 | J39: 13.29 | K39: 1.91
A40: Nevada | B40: Southwest Gas Corp. | C40: D-2867 (Northern) | D40: Natural Gas | E40: Distribution | F40: 1980-10-27 | G40: Fully Litigated | H40: 15.2 | I40: 34.68 | J40: 13.29 | K40: 1.91
A41: West Virginia | B41: Hope Gas Inc. | C41: C-80-003-G-42T | D41: Natural Gas | E41: Distribution | F41: 1980-10-28 | G41: Fully Litigated | H41: 13 | I41: 52 | J41: 13.29 | K41: -0.29
A42: Louisiana | B42: Atmos Energy Corp. | C42: D-U-14665 (LGS) | D42: Natural Gas | E42: Distribution | F42: 1980-10-28 | G42: Fully Litigated | H42: 12 | I42: 50.96 | J42: 13.29 | K42: -1.29
A43: Idaho | B43: Intermountain Gas Co. | C43: C-U-1034-88 | D43: Natural Gas | E43: Distribution | F43: 1980-10-31 | G43: Fully Litigated | H43: 14.5 | I43: 31.7 | J43: 13.29 | K43: 1.21
A44: Nevada | B44: Sierra Pacific Power Co. | C44: D-2857 | D44: Natural Gas | E44: Distribution | F44: 1980-11-04 | G44: Fully Litigated | H44: 15 | I44: 37.35 | J44: 13.29 | K44: 1.71
A45: Connecticut | B45: The Sthrn CT Gas Co | C45: D-80-04-17 | D45: Natural Gas | E45: Distribution | F45: 1980-11-06 | G45: Fully Litigated | H45: 14.35 | I45: 42.2 | J45: 13.29 | K45: 1.06
A46: District of Columbia | B46: Washington Gas Light Co. | C46: C-722 0-7209 | D46: Natural Gas | E46: Distribution | F46: 1980-11-10 | G46: Fully Litigated | H46: 13.25 | I46: 40.1 | J46: 13.29 | K46: -0.04
A47: Louisiana | B47: Entergy Gulf States LA LLC | C47: D-U-14444 | D47: Natural Gas | E47: Distribution | F47: 1980-11-17 | G47: Fully Litigated | H47: 15.5 | I47: 38.66 | J47: 13.54 | K47: 1.96
A48: Washington | B48: Puget Sound Energy Inc. | C48: Ca-U-80-25 | D48: Natural Gas | E48: Distribution | F48: 1980-11-19 | G48: Fully Litigated | H48: 13.5 | I48: 34.27 | J48: 13.54 | K48: -0.04
A49: California | B49: Southern California Gas Co. | C49: AP-59316 De-92497 | D49: Natural Gas | E49: Distribution | F49: 1980-12-05 | G49: Fully Litigated | H49: 14.6 | I49: 39.65 | J49: 13.54 | K49: 1.06
A50: Indiana | B50: Indiana Gas Co. | C50: Ca-36117 | D50: Natural Gas | E50: Distribution | F50: 1980-12-08 | G50: Fully Litigated | H50: 16.4 | I50: 49.1 | J50: 13.54 | K50: 2.86
A51: Colorado | B51: Public Service Co. of CO | C51: D-1425-De-C80-2346 (Gas) | D51: Natural Gas | E51: Distribution | F51: 1980-12-12 | G51: Fully Litigated | H51: 15.45 | I51: 34.62 | J51: 13.54 | K51: 1.91
A52: Illinois | B52: North Shore Gas Co. | C52: D-80-0089 | D52: Natural Gas | E52: Distribution | F52: 1980-12-17 | G52: Fully Litigated | H52: 14.4 | I52: 39.5 | J52: 14.01 | K52: 0.39
A53: Illinois | B53: The Peoples Gas Light & Coke C | C53: D-80-0090 | D53: Natural Gas | E53: Distribution | F53: 1980-12-17 | G53: Fully Litigated | H53: 14.2 | I53: 40.02 | J53: 14.01 | K53: 0.19
A54: Wisconsin | B54: Wisconsin Gas LLC | C54: D-6650-GR-13 | D54: Natural Gas | E54: Distribution | F54: 1980-12-18 | G54: Fully Litigated | H54: 14 | I54: 42.2 | J54: 14.01 | K54: -0.01
A55: Montana | B55: NorthWestern Energy Group | C55: D-80.4.2.4714A (gas) | D55: Natural Gas | E55: Distribution | F55: 1980-12-22 | G55: Fully Litigated | H55: 13.45 | I55: 39.46 | J55: 14.01 | K55: -0.56
A56: New York | B56: Natl Fuel Gas Distribution Cor | C56: C-27776 | D56: Natural Gas | E56: Distribution | F56: 1980-12-26 | G56: Fully Litigated | H56: 14 | I56: 42.6 | J56: 14.01 | K56: -0.01
A57: California | B57: San Diego Gas & Electric Co. | C57: AP-59788 De-92557-G | D57: Natural Gas | E57: Distribution | F57: 1980-12-30 | G57: Fully Litigated | H57: 14.5 | I57: 36.25 | J57: 14.01 | K57: 0.49
A58: Illinois | B58: Ameren Illinois | C58: D-80-0157 (CILCO-G) | D58: Natural Gas | E58: Distribution | F58: 1981-01-07 | G58: Fully Litigated | H58: 14.3 | I58: 35.56 | J58: 14.01 | K58: 0.29
A59: North Carolina | B59: Public Service Co. of NC | C59: D-G-5, SUB 157 | D59: Natural Gas | E59: Distribution | F59: 1981-01-12 | G59: Fully Litigated | H59: 14.95 | I59: 37.59 | J59: 14.01 | K59: 0.94
A60: Washington | B60: Avista Corp. | C60: Ca-U-80-14 | D60: Natural Gas | E60: Distribution | F60: 1981-01-26 | G60: Fully Litigated | H60: 15.25 | I60: 36.02 | J60: 14.66 | K60: 0.59
A61: Michigan | B61: DTE Gas Co. | C61: C-U-6372 | D61: Natural Gas | E61: Distribution | F61: 1981-01-30 | G61: Fully Litigated | H61: 13.25 | I61: 34.4 | J61: 14.66 | K61: -1.41
A62: Oklahoma | B62: Oklahoma Natural Gas Co | C62: Ca-26981 | D62: Natural Gas | E62: Distribution | F62: 1981-02-11 | G62: Fully Litigated | H62: 14.5 | I62: 48.94 | J62: 14.66 | K62: -0.16
A63: Oklahoma | B63: CenterPoint Energy Resources | C63: Ca-26975 | D63: Natural Gas | E63: Distribution | F63: 1981-02-20 | G63: Fully Litigated | H63: 14.5 | I63: 55.03 | J63: 14.27 | K63: 0.23
A64: New York | B64: Niagara Mohawk Power Corp. | C64: C-27743 | D64: Natural Gas | E64: Distribution | F64: 1981-03-12 | G64: Fully Litigated | H64: 15.65 | I64: 39.5 | J64: 14.27 | K64: 1.38
A65: Illinois | B65: Ameren Illinois | C65: D-80-0318 (CIPS-G) | D65: Natural Gas | E65: Distribution | F65: 1981-03-25 | G65: Fully Litigated | H65: 15.3 | I65: 37.6 | J65: 14.68 | K65: 0.62
A66: Louisiana | B66: Entergy New Orleans LLC | C66: C-R-81-73 (gas) | D66: Natural Gas | E66: Distribution | F66: 1981-04-09 | G66: Fully Litigated | H66: 15 | I66: 30.16 | J66: 14.68 | K66: 0.32
A67: Washington | B67: Cascade Natural Gas Corp. | C67: Ca-U-80-101 | D67: Natural Gas | E67: Distribution | F67: 1981-04-29 | G67: Fully Litigated | H67: 14.25 | I67: 37.17 | J67: 15.13 | K67: -0.88
A68: Montana | B68: MDU Resources Group | C68: D-80.7.52 | D68: Natural Gas | E68: Distribution | F68: 1981-04-29 | G68: Fully Litigated | H68: 13.5 | I68: 46.11 | J68: 15.13 | K68: -1.63
A69: Arizona | B69: Southwest Gas Corp. | C69: D-U-1551 De-52099 | D69: Natural Gas | E69: Distribution | F69: 1981-04-30 | G69: Fully Litigated | H69: 15 | I69: NA | J69: 15.13 | K69: -0.13
A70: Iowa | B70: Interstate Power & Light Co. | C70: D-RPU-80-42 | D70: Natural Gas | E70: Distribution | F70: 1981-04-30 | G70: Fully Litigated | H70: 13.6 | I70: 34.56 | J70: 15.13 | K70: -1.53
A71: Wisconsin | B71: Wisconsin Public Service Corp. | C71: D-6690-UR-17-G | D71: Natural Gas | E71: Distribution | F71: 1981-05-21 | G71: Fully Litigated | H71: 14 | I71: 38.2 | J71: 15.25 | K71: =H71-J71 -> -1.25
A72: Illinois | B72: MidAmerican Energy Co. | C72: D-80-0511 (gas) | D72: Natural Gas | E72: Distribution | F72: 1981-06-03 | G72: Fully Litigated | H72: 14.67 | I72: 35.8 | J72: 15.25 | K72: -0.58
A73: Utah | B73: Dominion Energy Inc. | C73: C-81-057-01 | D73: Natural Gas | E73: Distribution | F73: 1981-06-22 | G73: Fully Litigated | H73: 16 | I73: 35.52 | J73: 16.12 | K73: -0.12
A74: Wisconsin | B74: Wisconsin Power and Light Co | C74: D-6680-UR-11-G | D74: Natural Gas | E74: Distribution | F74: 1981-06-25 | G74: Fully Litigated | H74: 14.75 | I74: 39.4 | J74: 16.12 | K74: -1.37
A75: Alabama | B75: Spire Alabama Inc. | C75: D-18046 | D75: Natural Gas | E75: Distribution | F75: 1981-07-02 | G75: Fully Litigated | H75: 14 | I75: 37.19 | J75: 16.12 | K75: -2.12
A76: New York | B76: Rochester Gas & Electric Corp. | C76: C-27833 | D76: Natural Gas | E76: Distribution | F76: 1981-07-10 | G76: Fully Litigated | H76: 16 | I76: 40.15 | J76: 16.12 | K76: -0.12
A77: New York | B77: Central Hudson Gas & Electric | C77: C-27827 | D77: Natural Gas | E77: Distribution | F77: 1981-07-14 | G77: Fully Litigated | H77: 16.9 | I77: 38.04 | J77: 16.12 | K77: 0.78
A78: Arkansas | B78: Black Hills Energy Arkansas | C78: D-U-3144 | D78: Natural Gas | E78: Distribution | F78: 1981-07-21 | G78: Fully Litigated | H78: 15.78 | I78: 54 | J78: 15.79 | K78: -0.01
A79: New Mexico | B79: Public Service Co. of NM | C79: C-1568 | D79: Natural Gas | E79: Distribution | F79: 1981-07-27 | G79: Fully Litigated | H79: 15.5 | I79: 47.5 | J79: 15.79 | K79: -0.29
A80: Minnesota | B80: Northern States Power Co. | C80: D-E-002-GR-80-556 | D80: Natural Gas | E80: Distribution | F80: 1981-07-27 | G80: Fully Litigated | H80: 13.77 | I80: 41.46 | J80: 15.79 | K80: -2.02
A81: Iowa | B81: MidAmerican Energy Co. | C81: D-RPU-80-36 (gas) | D81: Natural Gas | E81: Distribution | F81: 1981-07-31 | G81: Fully Litigated | H81: 14.2 | I81: 40.01 | J81: 15.79 | K81: -1.59
A82: Iowa | B82: MidAmerican Energy Co. | C82: D-RPU-78-30 | D82: Natural Gas | E82: Distribution | F82: 1981-07-31 | G82: Fully Litigated | H82: 13.5 | I82: 39.4 | J82: 15.79 | K82: -2.29
A83: Ohio | B83: The East Ohio Gas Co. | C83: C-80-769-GA-AIR | D83: Natural Gas | E83: Distribution | F83: 1981-08-12 | G83: Fully Litigated | H83: 14.41 | I83: 57.6 | J83: 15.79 | K83: -1.38
A84: Ohio | B84: Columbia Gas Ohio Inc. | C84: C-80-777-GA-AIR | D84: Natural Gas | E84: Distribution | F84: 1981-08-12 | G84: Fully Litigated | H84: 13.72 | I84: 48.32 | J84: 15.79 | K84: -2.07
A85: Ohio | B85: Columbia Gas Ohio Inc. | C85: C-80-715-GA-AIR | D85: Natural Gas | E85: Distribution | F85: 1981-08-12 | G85: Fully Litigated | H85: 13.72 | I85: 48.32 | J85: 15.79 | K85: -2.07
A86: Connecticut | B86: The Sthrn CT Gas Co | C86: D-81-04-09 | D86: Natural Gas | E86: Distribution | F86: 1981-08-25 | G86: Fully Litigated | H86: 15.45 | I86: 39.9 | J86: 16.07 | K86: -0.62
A87: Minnesota | B87: CenterPoint Energy Resources | C87: D-G-008-GR-80-630 | D87: Natural Gas | E87: Distribution | F87: 1981-08-27 | G87: Fully Litigated | H87: 14.43 | I87: 52.87 | J87: 16.07 | K87: -1.64
A88: Nevada | B88: Sierra Pacific Power Co. | C88: D-81-106 | D88: Natural Gas | E88: Distribution | F88: 1981-08-28 | G88: Fully Litigated | H88: 15 | I88: 35.1 | J88: 16.07 | K88: -1.07
A89: Washington | B89: Puget Sound Energy Inc. | C89: Ca-U-80-111 | D89: Natural Gas | E89: Distribution | F89: 1981-09-24 | G89: Fully Litigated | H89: 16.25 | I89: 35 | J89: 16.45 | K89: -0.2
A90: Wisconsin | B90: Wisconsin Natural Gas Company | C90: D-6670-GR-7 | D90: Natural Gas | E90: Distribution | F90: 1981-09-29 | G90: Fully Litigated | H90: 14.5 | I90: 38 | J90: 16.45 | K90: -1.95
A91: Ohio | B91: The Dayton Power & Light Co. | C91: C-80-1087-GA-AIR | D91: Natural Gas | E91: Distribution | F91: 1981-09-30 | G91: Fully Litigated | H91: 15.94 | I91: 36.74 | J91: 16.45 | K91: -0.51
A92: Missouri | B92: Missouri Gas Energy | C92: C-GR-81-155 | D92: Natural Gas | E92: Distribution | F92: 1981-10-02 | G92: Fully Litigated | H92: 14.8 | I92: 38.58 | J92: 16.45 | K92: -1.65
A93: South Carolina | B93: Piedmont Natural Gas Co. | C93: D-81-252-G | D93: Natural Gas | E93: Distribution | F93: 1981-10-12 | G93: Fully Litigated | H93: 16.25 | I93: 50.14 | J93: 16.45 | K93: -0.2
A94: New York | B94: NY State Electric & Gas Corp. | C94: C-27884 | D94: Natural Gas | E94: Distribution | F94: 1981-10-20 | G94: Fully Litigated | H94: 17 | I94: 39.66 | J94: 17.03 | K94: -0.03
A95: New York | B95: The Brooklyn Union Gas Co. | C95: C-27885 | D95: Natural Gas | E95: Distribution | F95: 1981-10-20 | G95: Fully Litigated | H95: 16.5 | I95: 39.22 | J95: 17.03 | K95: -0.53
A96: Idaho | B96: Avista Corp. | C96: C-U-1008-155 | D96: Natural Gas | E96: Distribution | F96: 1981-10-20 | G96: Fully Litigated | H96: 15.25 | I96: 40 | J96: 17.03 | K96: -1.78
A97: Louisiana | B97: CenterPoint Energy Resources | C97: D-U-15097 (ARKLA) | D97: Natural Gas | E97: Distribution | F97: 1981-10-26 | G97: Fully Litigated | H97: 13.5 | I97: 55.33 | J97: 17.03 | K97: -3.53
A98: Arizona | B98: Arizona Public Service Co. | C98: D-U-1345 De-52558-G | D98: Natural Gas | E98: Distribution | F98: 1981-10-29 | G98: Fully Litigated | H98: 16.5 | I98: 40.35 | J98: 17.03 | K98: -0.53
A99: Kansas | B99: Kansas Gas Service Co. | C99: D-126,922-U | D99: Natural Gas | E99: Distribution | F99: 1981-11-04 | G99: Fully Litigated | H99: 15.33 | I99: 32.63 | J99: 17.03 | K99: -1.7
A100: Iowa | B100: MidAmerican Energy Co. | C100: D-RPU-80-19 | D100: Natural Gas | E100: Distribution | F100: 1981-11-06 | G100: Fully Litigated | H100: 15.17 | I100: 37.1 | J100: 17.03 | K100: -1.86
A101: Connecticut | B101: The CT Light & Power Co | C101: D-81-06-02-G | D101: Natural Gas | E101: Distribution | F101: 1981-11-25 | G101: Fully Litigated | H101: 16.1 | I101: 33.52 | J101: 17.26 | K101: -1.16
A102: Connecticut | B102: The CT Light & Power Co | C102: D-81-06-04-G | D102: Natural Gas | E102: Distribution | F102: 1981-11-25 | G102: Fully Litigated | H102: 16.1 | I102: 36.74 | J102: 17.26 | K102: -1.16
A103: Washington | B103: Avista Corp. | C103: Ca-U-81-16 | D103: Natural Gas | E103: Distribution | F103: 1981-11-25 | G103: Fully Litigated | H103: 15.25 | I103: 38 | J103: 17.26 | K103: -2.01
A104: Arizona | B104: Southwest Gas Corp. | C104: D-U-1551 De-52631 | D104: Natural Gas | E104: Distribution | F104: 1981-11-30 | G104: Fully Litigated | H104: 16.75 | I104: 35.6 | J104: 17.26 | K104: -0.51
A105: New York | B105: Orange & Rockland Utlts Inc. | C105: C-27910 | D105: Natural Gas | E105: Distribution | F105: 1981-12-01 | G105: Fully Litigated | H105: 16 | I105: 43.11 | J105: 17.26 | K105: -1.26
A106: Colorado | B106: Public Service Co. of CO | C106: D-1525-De-C81-1999 (Gas) | D106: Natural Gas | E106: Distribution | F106: 1981-12-01 | G106: Fully Litigated | H106: 15.7 | I106: 39.09 | J106: 17.26 | K106: -1.56
A107: Delaware | B107: Delmarva Power & Light Co. | C107: D-81-13 | D107: Natural Gas | E107: Distribution | F107: 1981-12-15 | G107: Fully Litigated | H107: 15.81 | I107: 36.06 | J107: 16.42 | K107: -0.61
A108: Georgia | B108: Atlanta Gas Light Co. | C108: D-3288-U | D108: Natural Gas | E108: Distribution | F108: 1981-12-22 | G108: Fully Litigated | H108: 16 | I108: 38.37 | J108: 16.42 | K108: -0.42
A109: New York | B109: Natl Fuel Gas Distribution Cor | C109: C-27934 | D109: Natural Gas | E109: Distribution | F109: 1981-12-22 | G109: Fully Litigated | H109: 15.7 | I109: 43 | J109: 16.42 | K109: -0.72
A110: California | B110: San Diego Gas & Electric Co. | C110: AP-59788 De-93892-G | D110: Natural Gas | E110: Distribution | F110: 1981-12-30 | G110: Fully Litigated | H110: 16.25 | I110: 37.25 | J110: 16.42 | K110: -0.17
A111: California | B111: Pacific Gas and Electric Co. | C111: AP-60153 De-93887-G | D111: Natural Gas | E111: Distribution | F111: 1981-12-30 | G111: Fully Litigated | H111: 16 | I111: 41 | J111: 16.42 | K111: -0.42
A112: Kentucky | B112: Louisville Gas & Electric Co. | C112: C-8284 (gas) | D112: Natural Gas | E112: Distribution | F112: 1982-01-04 | G112: Fully Litigated | H112: 15.5 | I112: 38.6 | J112: 16.42 | K112: -0.92
A113: Kansas | B113: Kansas Gas Service Co. | C113: D-128,361-U | D113: Natural Gas | E113: Distribution | F113: 1982-01-25 | G113: Fully Litigated | H113: 16.25 | I113: 33.8 | J113: 16.16 | K113: 0.09
A114: Ohio | B114: Duke Energy Ohio Inc. | C114: C-81-67-GA-AIR | D114: Natural Gas | E114: Distribution | F114: 1982-01-27 | G114: Fully Litigated | H114: 16.84 | I114: 34.5 | J114: 16.16 | K114: 0.68
A115: Massachusetts | B115: Eversource Gas Co MA | C115: DPU-777 | D115: Natural Gas | E115: Distribution | F115: 1982-01-31 | G115: Fully Litigated | H115: 14 | I115: 38.29 | J115: 16.16 | K115: -2.16
A116: North Carolina | B116: Piedmont Natural Gas Co. | C116: D-G-9, SUB 212 | D116: Natural Gas | E116: Distribution | F116: 1982-02-02 | G116: Fully Litigated | H116: 16.24 | I116: 50.81 | J116: 16.16 | K116: 0.08
A117: Maryland | B117: Baltimore Gas and Electric Co. | C117: C-7574 0-65648-G | D117: Natural Gas | E117: Distribution | F117: 1982-02-08 | G117: Fully Litigated | H117: 15.5 | I117: 38.61 | J117: 16.16 | K117: -0.66
A118: Idaho | B118: Intermountain Gas Co. | C118: C-U-1034-95 | D118: Natural Gas | E118: Distribution | F118: 1982-02-09 | G118: Fully Litigated | H118: 15.75 | I118: 33.34 | J118: 16.16 | K118: -0.41
A119: District of Columbia | B119: Washington Gas Light Co. | C119: C-768 0-7469 | D119: Natural Gas | E119: Distribution | F119: 1982-02-09 | G119: Fully Litigated | H119: 14.95 | I119: 44 | J119: 16.16 | K119: -1.21
A120: New Jersey | B120: Public Service Electric Gas | C120: D-812-76-G | D120: Natural Gas | E120: Distribution | F120: 1982-02-11 | G120: Fully Litigated | H120: 16 | I120: NA | J120: 16.16 | K120: -0.16
A121: Maryland | B121: Washington Gas Light Co. | C121: C-7585 0-65676 | D121: Natural Gas | E121: Distribution | F121: 1982-03-01 | G121: Fully Litigated | H121: 15.96 | I121: 38.4 | J121: 16.8 | K121: -0.84
A122: Iowa | B122: MidAmerican Energy Co. | C122: D-RPU-80-65 | D122: Natural Gas | E122: Distribution | F122: 1982-03-03 | G122: Fully Litigated | H122: 15 | I122: 36.75 | J122: 16.8 | K122: -1.8
A123: New York | B123: Niagara Mohawk Power Corp. | C123: C-27986 | D123: Natural Gas | E123: Distribution | F123: 1982-03-08 | G123: Fully Litigated | H123: 17.1 | I123: 41.48 | J123: 16.8 | K123: 0.3
A124: Pennsylvania | B124: Natl Fuel Gas Distribution Cor | C124: C-R-811600 | D124: Natural Gas | E124: Distribution | F124: 1982-03-26 | G124: Fully Litigated | H124: 16 | I124: 48 | J124: 16.92 | K124: -0.92
A125: Oklahoma | B125: Oklahoma Natural Gas Co | C125: Ca-27347 | D125: Natural Gas | E125: Distribution | F125: 1982-03-31 | G125: Fully Litigated | H125: 16.25 | I125: 48.67 | J125: 16.92 | K125: -0.67
A126: Wisconsin | B126: Wisconsin Gas LLC | C126: D-6650-GR-15 | D126: Natural Gas | E126: Distribution | F126: 1982-04-06 | G126: Fully Litigated | H126: 15 | I126: 41.11 | J126: 16.92 | K126: -1.92
A127: Washington | B127: Cascade Natural Gas Corp. | C127: Ca-U-81-64 | D127: Natural Gas | E127: Distribution | F127: 1982-04-09 | G127: Fully Litigated | H127: 16.5 | I127: 38.98 | J127: 16.92 | K127: -0.42
A128: Nevada | B128: Southwest Gas Corp. | C128: D-81-614 (Southern) | D128: Natural Gas | E128: Distribution | F128: 1982-04-12 | G128: Fully Litigated | H128: 16.7 | I128: 31.84 | J128: 16.92 | K128: -0.22
A129: North Dakota | B129: MDU Resources Group | C129: C-10, 280 | D129: Natural Gas | E129: Distribution | F129: 1982-04-12 | G129: Fully Litigated | H129: 15.1 | I129: 38.48 | J129: 16.92 | K129: -1.82
A130: Montana | B130: MDU Resources Group | C130: D-81.7.62 | D130: Natural Gas | E130: Distribution | F130: 1982-04-18 | G130: Fully Litigated | H130: 14.7 | I130: 38.79 | J130: 16.49 | K130: -1.79
A131: Wisconsin | B131: Wisconsin Public Service Corp. | C131: D-6690-UR-18-G | D131: Natural Gas | E131: Distribution | F131: 1982-04-27 | G131: Fully Litigated | H131: 15 | I131: 39.09 | J131: 16.49 | K131: -1.49
A132: Montana | B132: NorthWestern Energy Group | C132: D-81.6.57 | D132: Natural Gas | E132: Distribution | F132: 1982-05-10 | G132: Fully Litigated | H132: 14.57 | I132: 38.09 | J132: 16.49 | K132: -1.92
A133: North Carolina | B133: Public Service Co. of NC | C133: D-G-5, SUB 168 | D133: Natural Gas | E133: Distribution | F133: 1982-05-14 | G133: Fully Litigated | H133: 15.8 | I133: 44.26 | J133: 16.49 | K133: -0.69
A134: Louisiana | B134: Atmos Energy Corp. | C134: D-U-15276 (LGS) | D134: Natural Gas | E134: Distribution | F134: 1982-05-20 | G134: Fully Litigated | H134: 15.82 | I134: 47.15 | J134: 16.4 | K134: -0.58
A135: Connecticut | B135: CT Natural Gas Corp. | C135: D-81-12-12 | D135: Natural Gas | E135: Distribution | F135: 1982-05-25 | G135: Fully Litigated | H135: 16.25 | I135: 39.63 | J135: 16.4 | K135: =H135-J135 -> -0.15
A136: West Virginia | B136: Mountaineer Gas Co. | C136: C-81-340-G-42T | D136: Natural Gas | E136: Distribution | F136: 1982-06-02 | G136: Fully Litigated | H136: 14.5 | I136: NA | J136: 16.4 | K136: -1.9
A137: New York | B137: Consolidated Edison Company of | C137: C-28036 | D137: Natural Gas | E137: Distribution | F137: 1982-06-07 | G137: Fully Litigated | H137: 16 | I137: 48.03 | J137: 16.4 | K137: -0.4
A138: Rhode Island | B138: The Narragansett Electric Co. | C138: D-1612 | D138: Natural Gas | E138: Distribution | F138: 1982-06-23 | G138: Fully Litigated | H138: 15.5 | I138: 42.2 | J138: 16.08 | K138: -0.58
A139: Pennsylvania | B139: PECO Energy Co | C139: C-R-811719 | D139: Natural Gas | E139: Distribution | F139: 1982-06-25 | G139: Fully Litigated | H139: 16.5 | I139: 37.4 | J139: 16.08 | K139: 0.42
A140: Illinois | B140: Ameren Illinois | C140: D-81-0600 (CILCO-G) | D140: Natural Gas | E140: Distribution | F140: 1982-07-01 | G140: Fully Litigated | H140: 16 | I140: 41.29 | J140: 16.08 | K140: -0.08
A141: Illinois | B141: Northern Illinois Gas Co. | C141: D-81-0609 | D141: Natural Gas | E141: Distribution | F141: 1982-07-01 | G141: Fully Litigated | H141: 15.55 | I141: 55.59 | J141: 16.08 | K141: -0.53
A142: Iowa | B142: Interstate Power & Light Co. | C142: D-RPU-81-44 | D142: Natural Gas | E142: Distribution | F142: 1982-07-02 | G142: Fully Litigated | H142: 15.1 | I142: 36.08 | J142: 16.08 | K142: -0.98
A143: New York | B143: Rochester Gas & Electric Corp. | C143: C-28055 | D143: Natural Gas | E143: Distribution | F143: 1982-07-13 | G143: Fully Litigated | H143: 16.8 | I143: 41.7 | J143: 16.08 | K143: 0.72
A144: Wisconsin | B144: Madison Gas and Electric Co. | C144: D-3270-UR-10-G | D144: Natural Gas | E144: Distribution | F144: 1982-07-22 | G144: Fully Litigated | H144: 14.5 | I144: 41.2 | J144: 16.34 | K144: -1.84
A145: Michigan | B145: DTE Gas Co. | C145: C-U-6839 | D145: Natural Gas | E145: Distribution | F145: 1982-07-30 | G145: Fully Litigated | H145: 14.82 | I145: 30.27 | J145: 16.34 | K145: -1.52
A146: Ohio | B146: The East Ohio Gas Co. | C146: C-81-970-GA-AIR | D146: Natural Gas | E146: Distribution | F146: 1982-08-04 | G146: Fully Litigated | H146: 15.58 | I146: 59.46 | J146: 16.34 | K146: -0.76
A147: Washington | B147: Cascade Natural Gas Corp. | C147: Ca-U-82-20,33 | D147: Natural Gas | E147: Distribution | F147: 1982-08-06 | G147: Fully Litigated | H147: 16.5 | I147: 38.98 | J147: 16.34 | K147: 0.16
A148: Indiana | B148: Northern IN Public Svc Co. LLC | C148: Ca-36690 | D148: Natural Gas | E148: Distribution | F148: 1982-08-11 | G148: Fully Litigated | H148: 17.11 | I148: 32.74 | J148: 16.34 | K148: 0.77
A149: Illinois | B149: MidAmerican Energy Co. | C149: D-81-0747 (gas) | D149: Natural Gas | E149: Distribution | F149: 1982-08-25 | G149: Fully Litigated | H149: 16 | I149: 37.08 | J149: 16.46 | K149: -0.46
A150: New Mexico | B150: Public Service Co. of NM | C150: C-1710 | D150: Natural Gas | E150: Distribution | F150: 1982-08-30 | G150: Fully Litigated | H150: 16.25 | I150: 44 | J150: 16.46 | K150: -0.21
A151: Hawaii | B151: The Gas Co. LLC | C151: D-4286 | D151: Natural Gas | E151: Distribution | F151: 1982-09-03 | G151: Fully Litigated | H151: 15.5 | I151: 37.9 | J151: 16.46 | K151: -0.96
A152: Ohio | B152: Columbia Gas Ohio Inc. | C152: C-81-1024-GA-AIR | D152: Natural Gas | E152: Distribution | F152: 1982-09-09 | G152: Fully Litigated | H152: 16.04 | I152: 49.07 | J152: 16.46 | K152: -0.42
A153: Ohio | B153: Columbia Gas Ohio Inc. | C153: C-81-1025-GA-AIR | D153: Natural Gas | E153: Distribution | F153: 1982-09-15 | G153: Fully Litigated | H153: 16.04 | I153: 49.07 | J153: 15.92 | K153: 0.12
A154: Idaho | B154: Avista Corp. | C154: C-U-1008-171 | D154: Natural Gas | E154: Distribution | F154: 1982-09-17 | G154: Fully Litigated | H154: 15.25 | I154: 40 | J154: 15.92 | K154: -0.67
A155: South Carolina | B155: Dominion Energy South Carolina | C155: D-82-239-G O-82-676 | D155: Natural Gas | E155: Distribution | F155: 1982-09-29 | G155: Fully Litigated | H155: 14.5 | I155: 38.25 | J155: 15.92 | K155: -1.42
A156: Georgia | B156: Atlanta Gas Light Co. | C156: D-3333-U | D156: Natural Gas | E156: Distribution | F156: 1982-09-30 | G156: Fully Litigated | H156: 16.7 | I156: 33.8 | J156: 15.92 | K156: 0.78
A157: Arizona | B157: Southwest Gas Corp. | C157: D-U-1551 De-53237 | D157: Natural Gas | E157: Distribution | F157: 1982-09-30 | G157: Fully Litigated | H157: 16.5 | I157: 33.14 | J157: 15.92 | K157: 0.58
A158: Massachusetts | B158: Boston Gas Co. | C158: DPU-1100 | D158: Natural Gas | E158: Distribution | F158: 1982-09-30 | G158: Fully Litigated | H158: 15.5 | I158: 52 | J158: 15.92 | K158: -0.42
A159: Minnesota | B159: Northern States Power Co. | C159: D-E-002-GR-81-508 | D159: Natural Gas | E159: Distribution | F159: 1982-09-30 | G159: Fully Litigated | H159: 14.74 | I159: 41.75 | J159: 15.92 | K159: -1.18
A160: New Jersey | B160: South Jersey Gas Co. | C160: D-818-754 | D160: Natural Gas | E160: Distribution | F160: 1982-10-08 | G160: Fully Litigated | H160: 15 | I160: 38 | J160: 15.92 | K160: -0.92
A161: New York | B161: Central Hudson Gas & Electric | C161: C-28106 | D161: Natural Gas | E161: Distribution | F161: 1982-10-15 | G161: Fully Litigated | H161: 15.9 | I161: 40.46 | J161: 15.45 | K161: 0.45
A162: New York | B162: The Brooklyn Union Gas Co. | C162: C-28107 | D162: Natural Gas | E162: Distribution | F162: 1982-10-19 | G162: Fully Litigated | H162: 15.9 | I162: 40.3 | J162: 15.45 | K162: 0.45
A163: Indiana | B163: Indiana Gas Co. | C163: Ca-36817 | D163: Natural Gas | E163: Distribution | F163: 1982-10-27 | G163: Fully Litigated | H163: 17 | I163: 36.6 | J163: 15.45 | K163: 1.55
A164: Wisconsin | B164: Wisconsin Natural Gas Company | C164: D-6670-GR-9 | D164: Natural Gas | E164: Distribution | F164: 1982-10-28 | G164: Fully Litigated | H164: 14.75 | I164: 44.73 | J164: 15.45 | K164: -0.7
A165: Connecticut | B165: The Sthrn CT Gas Co | C165: D-82-06-12 | D165: Natural Gas | E165: Distribution | F165: 1982-11-02 | G165: Fully Litigated | H165: 16.25 | I165: 36.64 | J165: 15.45 | K165: 0.8
A166: Idaho | B166: Intermountain Gas Co. | C166: C-U-1034-99 | D166: Natural Gas | E166: Distribution | F166: 1982-11-04 | G166: Fully Litigated | H166: 15.75 | I166: 41.09 | J166: 15.45 | K166: 0.3
A167: California | B167: Southwest Gas Corp. | C167: AP-82-0705 De-8211061 | D167: Natural Gas | E167: Distribution | F167: 1982-11-17 | G167: Fully Litigated | H167: 16 | I167: 40.5 | J167: 14.98 | K167: 1.02
A168: Illinois | B168: Ameren Illinois | C168: D-82-0039 (CIPS-G) | D168: Natural Gas | E168: Distribution | F168: 1982-11-23 | G168: Fully Litigated | H168: 15.5 | I168: 40.68 | J168: 14.98 | K168: 0.52
A169: Maryland | B169: Washington Gas Light Co. | C169: C-7639 0-66016 | D169: Natural Gas | E169: Distribution | F169: 1982-11-24 | G169: Fully Litigated | H169: 16.02 | I169: 39.5 | J169: 14.98 | K169: 1.04
A170: Virginia | B170: Washington Gas Light Co. | C170: C-PUE-820029 | D170: Natural Gas | E170: Distribution | F170: 1982-11-24 | G170: Fully Litigated | H170: 14.5 | I170: 36.82 | J170: 14.98 | K170: -0.48
A171: Massachusetts | B171: Colonial Gas Co. | C171: DPU-1125 | D171: Natural Gas | E171: Distribution | F171: 1982-11-30 | G171: Fully Litigated | H171: 16.1 | I171: 32.92 | J171: 14.98 | K171: 1.12
A172: Nevada | B172: Southwest Gas Corp. | C172: D-82-399 (Northern) | D172: Natural Gas | E172: Distribution | F172: 1982-11-30 | G172: Fully Litigated | H172: 16 | I172: NA | J172: 14.98 | K172: 1.02
A173: North Carolina | B173: Piedmont Natural Gas Co. | C173: D-G-9, SUB 219 | D173: Natural Gas | E173: Distribution | F173: 1982-11-30 | G173: Fully Litigated | H173: 15.65 | I173: 53.17 | J173: 14.98 | K173: 0.67
A174: Massachusetts | B174: Eversource Gas Co MA | C174: DPU-1122 | D174: Natural Gas | E174: Distribution | F174: 1982-11-30 | G174: Fully Litigated | H174: 15.5 | I174: 33.2 | J174: 14.98 | K174: 0.52
A175: Massachusetts | B175: NSTAR Gas Co. | C175: DPU-1120 | D175: Natural Gas | E175: Distribution | F175: 1982-11-30 | G175: Fully Litigated | H175: 15.5 | I175: 51.72 | J175: 14.98 | K175: 0.52
A176: Mississippi | B176: Atmos Energy Corp. | C176: C-U-4242 | D176: Natural Gas | E176: Distribution | F176: 1982-11-30 | G176: Fully Litigated | H176: 12.98 | I176: NA | J176: 14.98 | K176: -2
A177: Kansas | B177: Kansas Gas Service Co. | C177: D-132,996-U | D177: Natural Gas | E177: Distribution | F177: 1982-12-03 | G177: Fully Litigated | H177: 15.33 | I177: 32.78 | J177: 14.98 | K177: 0.35
A178: California | B178: Southern California Gas Co. | C178: AP-61081 De-82-12054 | D178: Natural Gas | E178: Distribution | F178: 1982-12-08 | G178: Fully Litigated | H178: 15.75 | I178: 42 | J178: 14.98 | K178: 0.77
A179: Tennessee | B179: Chattanooga Gas Co. | C179: D-U-82-7175 | D179: Natural Gas | E179: Distribution | F179: 1982-12-13 | G179: Fully Litigated | H179: 16 | I179: 49.72 | J179: 14.98 | K179: 1.02
A180: Connecticut | B180: The CT Light & Power Co | C180: D-82-07-01-G | D180: Natural Gas | E180: Distribution | F180: 1982-12-14 | G180: Fully Litigated | H180: 16.4 | I180: 37.37 | J180: 14.98 | K180: 1.42
A181: Pennsylvania | B181: UGI Utilities Inc. | C181: C-R-821899 | D181: Natural Gas | E181: Distribution | F181: 1982-12-17 | G181: Fully Litigated | H181: 16.25 | I181: 43.7 | J181: 14.46 | K181: 1.79
A182: Virginia | B182: Virginia Natural Gas Inc. | C182: C-PUE-820047 | D182: Natural Gas | E182: Distribution | F182: 1982-12-20 | G182: Fully Litigated | H182: 15 | I182: 35.6 | J182: 14.46 | K182: 0.54
A183: New York | B183: Natl Fuel Gas Distribution Cor | C183: C-28158 | D183: Natural Gas | E183: Distribution | F183: 1982-12-21 | G183: Fully Litigated | H183: 15.7 | I183: 46 | J183: 14.46 | K183: 1.24
A184: Illinois | B184: North Shore Gas Co. | C184: D-82-0189 | D184: Natural Gas | E184: Distribution | F184: 1982-12-28 | G184: Fully Litigated | H184: 15.25 | I184: 42.41 | J184: 14.46 | K184: 0.79
A185: Illinois | B185: The Peoples Gas Light & Coke C | C185: D-82-0082 | D185: Natural Gas | E185: Distribution | F185: 1982-12-28 | G185: Fully Litigated | H185: 15.25 | I185: 42.75 | J185: 14.46 | K185: 0.79
A186: Washington | B186: Avista Corp. | C186: Ca-U-82-11 | D186: Natural Gas | E186: Distribution | F186: 1982-12-29 | G186: Fully Litigated | H186: 16.25 | I186: 38 | J186: 14.46 | K186: 1.79
A187: Washington | B187: Puget Sound Energy Inc. | C187: Ca-U-82-22, 37 | D187: Natural Gas | E187: Distribution | F187: 1982-12-29 | G187: Fully Litigated | H187: 16.25 | I187: 35 | J187: 14.46 | K187: 1.79
A188: New York | B188: NY State Electric & Gas Corp. | C188: C-28169 | D188: Natural Gas | E188: Distribution | F188: 1983-01-11 | G188: Fully Litigated | H188: 15.9 | I188: 40.69 | J188: 14.46 | K188: 1.44
A189: Illinois | B189: Ameren Illinois | C189: D-82-0152 (IP-G) | D189: Natural Gas | E189: Distribution | F189: 1983-01-12 | G189: Fully Litigated | H189: 15.5 | I189: 42.82 | J189: 14.46 | K189: 1.04
A190: Wisconsin | B190: Wisconsin Gas LLC | C190: D-6650-GR-17 | D190: Natural Gas | E190: Distribution | F190: 1983-01-18 | G190: Fully Litigated | H190: 15 | I190: 43.07 | J190: 14.43 | K190: 0.57
A191: Nevada | B191: Southwest Gas Corp. | C191: D-82-399 (Southern) | D191: Natural Gas | E191: Distribution | F191: 1983-01-24 | G191: Fully Litigated | H191: 16 | I191: 34.23 | J191: 14.43 | K191: 1.57
A192: New York | B192: Long Island Lighting Co. | C192: C-28177 | D192: Natural Gas | E192: Distribution | F192: 1983-01-24 | G192: Fully Litigated | H192: 15.5 | I192: 44.59 | J192: 14.43 | K192: 1.07
A193: Minnesota | B193: Minnesota Energy Resources | C193: D-G-011-GR-82-65 | D193: Natural Gas | E193: Distribution | F193: 1983-01-28 | G193: Fully Litigated | H193: 14.9 | I193: 49.9 | J193: 14.43 | K193: 0.47
A194: Iowa | B194: MidAmerican Energy Co. | C194: D-RPU-82-40 | D194: Natural Gas | E194: Distribution | F194: 1983-02-10 | G194: Fully Litigated | H194: 15 | I194: 40.29 | J194: 14.43 | K194: 0.57
A195: District of Columbia | B195: Washington Gas Light Co. | C195: C-787 0-7749 | D195: Natural Gas | E195: Distribution | F195: 1983-02-25 | G195: Fully Litigated | H195: 15.7 | I195: 41.9 | J195: 14.24 | K195: 1.46
A196: Kentucky | B196: Louisville Gas & Electric Co. | C196: C-8616 (gas) | D196: Natural Gas | E196: Distribution | F196: 1983-03-02 | G196: Fully Litigated | H196: 15.25 | I196: 39.46 | J196: 14.24 | K196: 1.01
A197: Tennessee | B197: Piedmont Natural Gas Co. | C197: D-U-82-7190 | D197: Natural Gas | E197: Distribution | F197: 1983-03-16 | G197: Fully Litigated | H197: 16 | I197: 57.44 | J197: 14.28 | K197: 1.72
A198: Minnesota | B198: CenterPoint Energy Resources | C198: D-G-008-GR-82-249 | D198: Natural Gas | E198: Distribution | F198: 1983-03-21 | G198: Fully Litigated | H198: 14.96 | I198: 55.07 | J198: 14.28 | K198: 0.68
A199: New York | B199: Niagara Mohawk Power Corp. | C199: C-28227 | D199: Natural Gas | E199: Distribution | F199: 1983-03-23 | G199: Fully Litigated | H199: 15.4 | I199: 41.97 | J199: 14.28 | K199: =H199-J199 -> 1.12
A200: Wisconsin | B200: Wisconsin Public Service Corp. | C200: D-6690-UR-19-G | D200: Natural Gas | E200: Distribution | F200: 1983-03-24 | G200: Fully Litigated | H200: 15 | I200: 42.5 | J200: 14.28 | K200: 0.72
... 642 more rows

Sheet 4.1 CAPM
B1: =Input!G28 -> Atmos Energy Corporation
B2: Indicated Common Equity Cost Rate Through Use
B3: of the Traditional Capital Asset Pricing Model (CAPM) and Empirical Capital Asset Pricing Model (ECAPM)
D5: [1] | F5: [2] | H5: [3] | J5: [4] | M5: [5] | P5: [6] | S5: [7] | V5: [8]
B7: ='3.6 Beta Adjusted ERP'!F7 -> Proxy Group of Six Natural Gas Distribution Companies | D7: Value Line Adjusted Beta | F7: Bloomberg Adjusted Beta | H7: Average Beta | J7: Market Risk Premium (1) | M7: Risk-Free Rate (2) | P7: Traditional CAPM Cost Rate | S7: ECAPM Cost Rate | V7: Indicated Common Equity Cost Rate (4)
A9: =IFERROR(Input!A2, "NA") -> ATO | B9: ='Proxy Data Lookup'!B3 -> Atmos Energy Corporation | D9: ='Proxy Data Lookup'!G3 -> 0.85 | F9: ='Proxy Data Lookup'!H3 -> 0.6933606863 | H9: =IFERROR(ROUND(AVERAGE(D9:F9),2),"NA") -> 0.77 | J9: ='MRP WP1'!$H$60 -> 8.627346222 | K9: % | M9: ='MRP WP1'!$F$37 -> 4.36 | N9: % | P9: =IFERROR((H9*J9) + M9,"NA") -> 11.00305659 | Q9: % | S9: =IFERROR((0.75*(H9*J9))+(0.25*J9)+M9,"NA") -> 11.499129 | T9: % | V9: =IFERROR(ROUND(AVERAGE(P9:S9),2),"NA") -> 11.25 | W9: %
A10: =IFERROR(Input!A3, "NA") -> NJR | B10: ='Proxy Data Lookup'!B4 -> New Jersey Resources Corporation | D10: ='Proxy Data Lookup'!G4 -> 1 | F10: ='Proxy Data Lookup'!H4 -> 0.6729026437 | H10: =IFERROR(ROUND(AVERAGE(D10:F10),2),"NA") -> 0.84 | J10: ='MRP WP1'!$H$60 -> 8.627346222 | M10: ='MRP WP1'!$F$37 -> 4.36 | P10: 11.60697083 | S10: 11.95206468 | V10: 11.78
A11: =IFERROR(Input!A4, "NA") -> NI | B11: ='Proxy Data Lookup'!B5 -> NiSource Inc. | D11: ='Proxy Data Lookup'!G5 -> 0.95 | F11: ='Proxy Data Lookup'!H5 -> 0.6621930003 | H11: 0.81 | J11: ='MRP WP1'!$H$60 -> 8.627346222 | M11: ='MRP WP1'!$F$37 -> 4.36 | P11: 11.34815044 | S11: 11.75794939 | V11: 11.55
A12: =IFERROR(Input!A5, "NA") -> NWN | B12: ='Proxy Data Lookup'!B6 -> Northwest Natural Holding Company | D12: ='Proxy Data Lookup'!G6 -> 0.85 | F12: ='Proxy Data Lookup'!H6 -> 0.6404913664 | H12: 0.75 | J12: ='MRP WP1'!$H$60 -> 8.627346222 | M12: ='MRP WP1'!$F$37 -> 4.36 | P12: 10.83050967 | S12: 11.36971881 | V12: 11.1
A13: =IFERROR(Input!A6, "NA") -> OGS | B13: ='Proxy Data Lookup'!B7 -> ONE Gas, Inc. | D13: ='Proxy Data Lookup'!G7 -> 0.85 | F13: ='Proxy Data Lookup'!H7 -> 0.6023144126 | H13: 0.73 | J13: ='MRP WP1'!$H$60 -> 8.627346222 | M13: ='MRP WP1'!$F$37 -> 4.36 | P13: 10.65796274 | S13: 11.24030861 | V13: 10.95
A14: =IFERROR(Input!A7, "NA") -> SR | B14: ='Proxy Data Lookup'!B8 -> Spire Inc. | D14: ='Proxy Data Lookup'!G8 -> 0.85 | F14: ='Proxy Data Lookup'!H8 -> 0.7546305656 | H14: 0.8 | J14: ='MRP WP1'!$H$60 -> 8.627346222 | M14: ='MRP WP1'!$F$37 -> 4.36 | P14: 11.26187698 | S14: 11.69324429 | V14: 11.48
B16: Mean | H16: =IFERROR(ROUND(AVERAGE(H8:H15),2),"NA") -> 0.78 | P16: =IFERROR(ROUND(AVERAGE(P8:P15),2),"NA") -> 11.12 | Q16: % | S16: =IFERROR(ROUND(AVERAGE(S8:S15),2),"NA") -> 11.59 | T16: % | V16: =IFERROR(ROUND(AVERAGE(V8:V15),2),"NA") -> 11.35 | W16: %
B18: Median | H18: =IFERROR(ROUND(MEDIAN(H8:H15),2),"NA") -> 0.79 | P18: =IFERROR(ROUND(MEDIAN(P8:P15),2),"NA") -> 11.13 | Q18: % | S18: =IFERROR(ROUND(MEDIAN(S8:S15),2),"NA") -> 11.6 | T18: % | V18: =IFERROR(ROUND(MEDIAN(V8:V15),2),"NA") -> 11.37 | W18: %
B20: Average of Mean and Median | H20: =IFERROR(ROUND(AVERAGE(H16:H18),2),"NA") -> 0.79 | P20: =IFERROR(ROUND(AVERAGE(P16:P18),2),"NA") -> 11.13 | Q20: % | S20: =IFERROR(ROUND(AVERAGE(S16:S18),2),"NA") -> 11.6 | T20: % | V20: =IFERROR(ROUND(AVERAGE(V16:V18),2),"NA") -> 11.36 | W20: %
B22: Results Excluding the PRPM MRP
D24: [1] | F24: [2] | H24: [3] | J24: [4] | M24: [5] | P24: [6] | S24: [7] | V24: [8]
B26: =B7 -> Proxy Group of Six Natural Gas Distribution Companies | D26: Value Line Adjusted Beta | F26: Bloomberg Adjusted Beta | H26: Average Beta | J26: Market Risk Premium (1) | M26: Risk-Free Rate (2) | P26: Traditional CAPM Cost Rate | S26: ECAPM Cost Rate | V26: Indicated Common Equity Cost Rate (4)
B28: =B9 -> Atmos Energy Corporation | D28: =D9 -> 0.85 | F28: =F9 -> 0.6933606863 | H28: =IFERROR(ROUND(AVERAGE(D28:F28),2),"NA") -> 0.77 | J28: ='4.2 CAPM Notes'!$N$36 -> 8.523385556 | M28: =M9 -> 4.36 | P28: =IFERROR((H28*J28) + M28,"NA") -> 10.92300688 | Q28: % | S28: =IFERROR((0.75*(H28*J28))+(0.25*J28)+M28,"NA") -> 11.41310155 | T28: % | V28: =IFERROR(ROUND(AVERAGE(P28:S28),2),"NA") -> 11.17 | W28: %
B29: =B10 -> New Jersey Resources Corporation | D29: =D10 -> 1 | F29: 0.6729026437 | H29: =IFERROR(ROUND(AVERAGE(D29:F29),2),"NA") -> 0.84 | J29: ='4.2 CAPM Notes'!$N$36 -> 8.523385556 | M29: =M10 -> 4.36 | P29: 11.51964387 | S29: 11.86057929 | V29: 11.69
B30: NiSource Inc. | D30: 0.95 | F30: 0.6621930003 | H30: 0.81 | J30: ='4.2 CAPM Notes'!$N$36 -> 8.523385556 | M30: =M11 -> 4.36 | P30: 11.2639423 | S30: 11.66880311 | V30: 11.47
B31: =B12 -> Northwest Natural Holding Company | D31: 0.85 | F31: 0.6404913664 | H31: 0.75 | J31: ='4.2 CAPM Notes'!$N$36 -> 8.523385556 | M31: =M12 -> 4.36 | P31: 10.75253917 | S31: 11.28525076 | V31: 11.02
B32: ONE Gas, Inc. | D32: 0.85 | F32: 0.6023144126 | H32: 0.73 | J32: ='4.2 CAPM Notes'!$N$36 -> 8.523385556 | M32: =M13 -> 4.36 | P32: 10.58207146 | S32: 11.15739998 | V32: 10.87
B33: Spire Inc. | D33: 0.85 | F33: 0.7546305656 | H33: 0.8 | J33: ='4.2 CAPM Notes'!$N$36 -> 8.523385556 | M33: =M14 -> 4.36 | P33: 11.17870845 | S33: 11.60487772 | V33: 11.39
H35: =IFERROR(ROUND(AVERAGE(H27:H34),2),"NA") -> 0.78 | P35: =IFERROR(ROUND(AVERAGE(P27:P34),2),"NA") -> 11.04 | Q35: % | S35: =IFERROR(ROUND(AVERAGE(S27:S34),2),"NA") -> 11.5 | T35: % | V35: =IFERROR(ROUND(AVERAGE(V27:V34),2),"NA") -> 11.27 | W35: %
H37: =IFERROR(ROUND(MEDIAN(H27:H34),2),"NA") -> 0.79 | P37: =IFERROR(ROUND(MEDIAN(P27:P34),2),"NA") -> 11.05 | Q37: % | S37: =IFERROR(ROUND(MEDIAN(S27:S34),2),"NA") -> 11.51 | T37: % | V37: =IFERROR(ROUND(MEDIAN(V27:V34),2),"NA") -> 11.28 | W37: %
H39: =IFERROR(ROUND(AVERAGE(H35:H37),2),"NA") -> 0.79 | P39: =IFERROR(ROUND(AVERAGE(P35:P37),2),"NA") -> 11.05 | Q39: % | S39: =IFERROR(ROUND(AVERAGE(S35:S37),2),"NA") -> 11.51 | T39: % | V39: =IFERROR(ROUND(AVERAGE(V35:V37),2),"NA") -> 11.28 | W39: %
B41: Notes on page 2 of this Schedule.

Sheet 4.2 CAPM Notes
A1: =Input!G28 -> Atmos Energy Corporation
A2: Notes to Accompany the Application of the CAPM and ECAPM
A4: Notes:
A5: (1) | B5: The market risk premium (MRP) is derived by using six different measures from three sources: Ibbotson, Value Line, and Bloomberg as illustrated below:
B7: =CONCATENATE("Measure 1: Ibbotson Arithmetic Mean MRP ",MID(Input!E20,FIND("(",Input!E20),11)) -> Measure 1: Ibbotson Arithmetic Mean MRP (1926-2023)
B9: =CONCATENATE("Arithmetic Mean Monthly Returns for Large Stocks ",MID(Input!E20,FIND("1",Input!E20),9),":") -> Arithmetic Mean Monthly Returns for Large Stocks 1926-2023: | N9: ='MRP WP1'!H47 -> 12.15937903 | O9: %
B10: Arithmetic Mean Income Returns on Long-Term Government Bonds: | N10: ='MRP WP1'!H49 -> 4.991940723
B11: MRP based on Ibbotson Historical Data: | N11: =N9-N10 -> 7.167438311 | O11: %
B13: Measure 2: Application of a Regression Analysis to Ibbotson Historical Data
B14: (1926-2023) | N14: ='MRP ERP WP'!AA42*100 -> 7.987974165 | O14: %
B16: Measure 3: Application of the PRPM to Ibbotson Historical Data:
B17: =CONCATENATE("(January 1926 - ",Input!G25,")") -> (January 1926 - July 2024) | N17: ='MRP WP1'!H44 -> 9.043188886 | O17: %
B19: =CONCATENATE("Measure 4: Value Line Projected MRP (Thirteen weeks ending ",TEXT('MRP WP1'!B7,"mmmm dd, yyyy)")) -> Measure 4: Value Line Projected MRP (Thirteen weeks ending August 02, 2024)
B21: Total projected return on the market 3-5 years hence*: | N21: ='MRP WP1'!M22*100 -> 12.24 | O21: %
B22: Projected Risk-Free Rate (see note 2): | N22: ='MRP WP1'!F37 -> 4.36
B23: MRP based on Value Line Summary & Index: | N23: =N21-N22 -> 7.88 | O23: %
C24: *Forcasted 3-5 year capital appreciation plus expected dividend yield
B26: Measure 5: Bloomberg, Value Line, and S&P Capital IQ Projected Return on the Market based on the S&P 500
B29: Total return on the Market based on the S&P 500: | N29: ='MRP WP2 Combined'!K505*100 -> 15.41812975 | O29: %
B30: Projected Risk-Free Rate (see note 2): | N30: =N49 -> 4.36
B31: MRP based on Value Line data | N31: =IFERROR(N29-N30,"NA") -> 11.05812975 | O31: %
L34: Average MRP: | N34: =AVERAGE(N11,N14,N17,N23,N31) -> 8.627346222 | O34: %
L36: Average MRP Excluding the PRPM MRP: | N36: =AVERAGE(N31,N23,N14,N11) -> 8.523385556 | O36: %
A39: (2) | B39: For reasons explained in the direct testimony, the appropriate risk-free rate for cost of capital purposes is the average forecast of 30 year Treasury Bonds per the consensus of nearly 50 economists reported in Blue Chip Financial Forecasts. (See pages 7 and 8 of Schedule DWD-3.) The projection of the risk-free rate is illustrated below:
J41: ='MRP WP1'!B28 -> Third Quarter 2024 | N41: ='MRP WP1'!F28 -> 4.5 | O41: %
J42: ='MRP WP1'!B29 -> Fourth Quarter 2024 | N42: ='MRP WP1'!F29 -> 4.4
J43: ='MRP WP1'!B30 -> First Quarter 2025 | N43: ='MRP WP1'!F30 -> 4.4
J44: ='MRP WP1'!B31 -> Second Quarter 2025 | N44: ='MRP WP1'!F31 -> 4.3
J45: ='MRP WP1'!B32 -> Third Quarter 2025 | N45: ='MRP WP1'!F32 -> 4.3
J46: ='MRP WP1'!B33 -> Fourth Quarter 2025 | N46: ='MRP WP1'!F33 -> 4.3
J47: ='MRP WP1'!B34 -> 2026-2030 | N47: ='MRP WP1'!F34 -> 4.3
J48: ='MRP WP1'!B35 -> 2031-2035 | N48: ='MRP WP1'!F35 -> 4.4
N49: =ROUND(AVERAGE(N41:N48),2) -> 4.36 | O49: %
A52: (3) | B52: Average of Column 6 and Column 7.
A54: Sources of Information:
B55: Value Line Summary and Index
B56: ='3.6 Beta Adjusted ERP'!C39 -> Blue Chip Financial Forecasts, August 1, 2024 and May 31, 2024
B57: ='3.6 Beta Adjusted ERP'!C36 -> Kroll 2023 SBBI® Yearbook
B58: Bloomberg Professional Services
B59: S&P Capital IQ

Sheet 5.1 CEM Notes
A1: ='4.2 CAPM Notes'!A1 -> Atmos Energy Corporation
A2: Basis of Selection of the Group of Non-Price Regulated Companies
A3: =CONCATENATE("Comparable in Total Risk to the ",Input!I31) -> Comparable in Total Risk to the Proxy Group of Six Natural Gas Distribution Companies
A6: =CONCATENATE("The criteria for selection of the proxy group of non-price regulated companies comparable in total risk to the ",(LOWER(Input!I31))," was that the non-price regulated companies be domestic and reported in Value Line Investment Survey (Standard Edition).") -> The criteria for selection of the proxy group of non-price regulated companies comparable in total risk to the proxy group of six natural gas distribution companies was that the non-price regulated companies be domestic and reported in Value Line Investment Survey (Standard Edition).
A8: ="The proxy group of non‑price regulated companies was selected based on the unadjusted beta range of "&TEXT('5.2 Comp Earnings Criteria'!E19,"0.00")&" - "&TEXT('5.2 Comp Earnings Criteria'!G19,"0.00")&" and residual standard error of the regression range of "&TEXT('5.2 Comp Earnings Criteria'!E23,"0.0000")&" - "&TEXT('5.2 Comp Earnings Criteria'!G23,"0.0000")&" of the "&LOWER(Input!I31)&"." -> The proxy group of non‑price regulated companies was selected based on the unadjusted beta range of 0.65 - 0.93 and residual standard error of the regression range of 2.8139 - 3.3559 of the proxy group of six natural gas distribution companies.
A10: These ranges are based upon plus or minus two standard deviations of the unadjusted beta and standard error of the regression. Plus or minus three standard deviations captures 95.50% of the distribution of unadjusted betas and residual standard errors of the regression.
A12: ="The standard deviation of the Utility Proxy Group’s residual standard error of the regression is "&TEXT('5.2 Comp Earnings Criteria'!E25,"0.0000")&". The standard deviation of the standard error of the regression is calculated as follows:" -> The standard deviation of the Utility Proxy Group’s residual standard error of the regression is 0.1355. The standard deviation of the standard error of the regression is calculated as follows:
A14: Standard Deviation of the Std. Err. of the Regr. = Standard Error of the Regression
A17: where: N = number of observations. Since Value Line betas are derived from weekly price change observations over a period of five years, N = 259
A19: Thus, | B19: ='5.2 Comp Earnings Criteria'!E25 -> 0.1355 | C19: = | D19: ='5.2 Comp Earnings Criteria'!I16 -> 3.084866667 | E19: = | F19: =D19 -> 3.084866667
F20: 22.7596
A23: ="Source of Information: "&'5.2 Comp Earnings Criteria'!E31 -> Source of Information: Valueline Proprietary Database, June 2024
A24: Source of Information: Value Line Investment Survey (Standard Edition).

Sheet 5.2 Comp Earnings Criteria
C1: =Input!G28 -> Atmos Energy Corporation
C2: Basis of Selection of Comparable Risk
C3: Domestic Non-Price Regulated Companies
A4: TICKER
E5: [1] | G5: [2] | I5: [3] | K5: [4]
A6: SYMBOL
C7: ='4.1 CAPM'!B7 -> Proxy Group of Six Natural Gas Distribution Companies | E7: Value Line Adjusted Beta | G7: Unadjusted Beta | I7: Residual Standard Error of the Regression | K7: Standard Deviation of Beta
A9: =Input!A2 -> ATO | C9: ='Proxy Data Lookup'!B3 -> Atmos Energy Corporation | E9: ='Proxy Data Lookup'!G3 -> 0.85 | G9: ='Proxy Data Lookup'!K3 -> 0.76 | I9: ='Proxy Data Lookup'!M3 -> 2.9065 | K9: ='Proxy Data Lookup'!O3 -> 0.065
A10: =Input!A3 -> NJR | C10: ='Proxy Data Lookup'!B4 -> New Jersey Resources Corporation | E10: ='Proxy Data Lookup'!G4 -> 1 | G10: ='Proxy Data Lookup'!K4 -> 0.93 | I10: ='Proxy Data Lookup'!M4 -> 3.0807 | K10: ='Proxy Data Lookup'!O4 -> 0.0689
A11: =Input!A4 -> NI | C11: ='Proxy Data Lookup'!B5 -> NiSource Inc. | E11: ='Proxy Data Lookup'!G5 -> 0.95 | G11: ='Proxy Data Lookup'!K5 -> 0.85 | I11: ='Proxy Data Lookup'!M5 -> 2.6368 | K11: ='Proxy Data Lookup'!O5 -> 0.059
A12: =Input!A5 -> NWN | C12: ='Proxy Data Lookup'!B6 -> Northwest Natural Holding Company | E12: ='Proxy Data Lookup'!G6 -> 0.85 | G12: ='Proxy Data Lookup'!K6 -> 0.73 | I12: ='Proxy Data Lookup'!M6 -> 3.4283 | K12: ='Proxy Data Lookup'!O6 -> 0.0767
A13: =Input!A6 -> OGS | C13: ='Proxy Data Lookup'!B7 -> ONE Gas, Inc. | E13: ='Proxy Data Lookup'!G7 -> 0.85 | G13: ='Proxy Data Lookup'!K7 -> 0.73 | I13: ='Proxy Data Lookup'!M7 -> 3.3343 | K13: ='Proxy Data Lookup'!O7 -> 0.0746
A14: =Input!A7 -> SR | C14: ='Proxy Data Lookup'!B8 -> Spire Inc. | E14: ='Proxy Data Lookup'!G8 -> 0.85 | G14: ='Proxy Data Lookup'!K8 -> 0.76 | I14: ='Proxy Data Lookup'!M8 -> 3.1226 | K14: ='Proxy Data Lookup'!O8 -> 0.0698
C16: Average | E16: =AVERAGE(E8:E14) -> 0.8916666667 | G16: =AVERAGE(G8:G14) -> 0.7933333333 | I16: =AVERAGE(I8:I14) -> 3.084866667 | K16: =AVERAGE(K8:K14) -> 0.069
C19: Beta Range (+/- 2 std. Devs. of Beta) | E19: =G16-E20 -> 0.6533333333 | G19: =G16+E20 -> 0.9333333333
C20: 2 std. Devs. of Beta | E20: =ROUND((K16*2),2) -> 0.14
C22: Residual Std. Err. Range (+/- 2 std.
C23: Devs. of the Residual Std. Err.) | E23: =I16-E27 -> 2.813866667 | G23: =I16+E27 -> 3.355866667
C25: Std. dev. of the Res. Std. Err. | E25: =ROUND((I16/22.7596),4) -> 0.1355
C27: 2 std. devs. of the Res. Std. Err. | E27: =ROUND((2*E25),4) -> 0.271
C31: Source of Information: | E31: Valueline Proprietary Database, June 2024

Sheet 5.3 Proxy Group Equivalent
C1: =Input!G28 -> Atmos Energy Corporation
C2: Proxy Group of Non-Price Regulated Companies
C3: Comparable in Total Risk to the
C4: ='5.2 Comp Earnings Criteria'!C7 -> Proxy Group of Six Natural Gas Distribution Companies
E6: [1] | G6: [2] | I6: [3] | K6: [4]
A8: Ticker | C8: =Input!I32 -> Proxy Group of Fifty-Three Non-Price Regulated Companies | E8: Value Line Adjusted Beta | G8: Unadjusted Beta | I8: Residual Standard Error of the Regression | K8: Standard Deviation of Beta
A10: =Input!C2 -> ABT | C10: =VLOOKUP($A10,'CEM Data Lookup'!$A$4:$Q$56,2,FALSE) -> Abbott Laboratories | E10: =VLOOKUP($A10,'CEM Data Lookup'!$A$4:$Q$56,12,FALSE) -> 0.9 | G10: =VLOOKUP($A10,'CEM Data Lookup'!$A$4:$Q$56,13,FALSE) -> 0.78 | I10: =VLOOKUP($A10,'CEM Data Lookup'!$A$4:$Q$56,14,FALSE) -> 0.5882 | K10: =VLOOKUP($A10,'CEM Data Lookup'!$A$4:$Q$56,16,FALSE) -> 3.6744
A11: =Input!C3 -> A | C11: =VLOOKUP($A11,'CEM Data Lookup'!$A$4:$Q$56,2,FALSE) -> Agilent Technologies, Inc. | E11: =VLOOKUP($A11,'CEM Data Lookup'!$A$4:$Q$56,12,FALSE) -> 0.95 | G11: =VLOOKUP($A11,'CEM Data Lookup'!$A$4:$Q$56,13,FALSE) -> 0.87 | I11: =VLOOKUP($A11,'CEM Data Lookup'!$A$4:$Q$56,14,FALSE) -> 0.6366 | K11: =VLOOKUP($A11,'CEM Data Lookup'!$A$4:$Q$56,16,FALSE) -> 3.7888
A12: =Input!C4 -> APD | C12: =VLOOKUP($A12,'CEM Data Lookup'!$A$4:$Q$56,2,FALSE) -> Air Products and Chemicals, Inc. | E12: =VLOOKUP($A12,'CEM Data Lookup'!$A$4:$Q$56,12,FALSE) -> 0.9 | G12: =VLOOKUP($A12,'CEM Data Lookup'!$A$4:$Q$56,13,FALSE) -> 0.84 | I12: =VLOOKUP($A12,'CEM Data Lookup'!$A$4:$Q$56,14,FALSE) -> 0.5858 | K12: =VLOOKUP($A12,'CEM Data Lookup'!$A$4:$Q$56,16,FALSE) -> 3.9912
A13: =Input!C5 -> ALL | C13: =VLOOKUP($A13,'CEM Data Lookup'!$A$4:$Q$56,2,FALSE) -> Allstate Corporation (The) | E13: =VLOOKUP($A13,'CEM Data Lookup'!$A$4:$Q$56,12,FALSE) -> 1 | G13: =VLOOKUP($A13,'CEM Data Lookup'!$A$4:$Q$56,13,FALSE) -> 0.93 | I13: =VLOOKUP($A13,'CEM Data Lookup'!$A$4:$Q$56,14,FALSE) -> 0.6726 | K13: =VLOOKUP($A13,'CEM Data Lookup'!$A$4:$Q$56,16,FALSE) -> 3.8517
A14: =Input!C6 -> GOOG | C14: =VLOOKUP($A14,'CEM Data Lookup'!$A$4:$Q$56,2,FALSE) -> Alphabet Inc. | E14: =VLOOKUP($A14,'CEM Data Lookup'!$A$4:$Q$56,12,FALSE) -> 0.9 | G14: =VLOOKUP($A14,'CEM Data Lookup'!$A$4:$Q$56,13,FALSE) -> 0.8 | I14: =VLOOKUP($A14,'CEM Data Lookup'!$A$4:$Q$56,14,FALSE) -> 0.5747 | K14: =VLOOKUP($A14,'CEM Data Lookup'!$A$4:$Q$56,16,FALSE) -> 3.8945
A15: =Input!C7 -> MO | C15: =VLOOKUP($A15,'CEM Data Lookup'!$A$4:$Q$56,2,FALSE) -> Altria Group, Inc. | E15: =VLOOKUP($A15,'CEM Data Lookup'!$A$4:$Q$56,12,FALSE) -> 0.85 | G15: =VLOOKUP($A15,'CEM Data Lookup'!$A$4:$Q$56,13,FALSE) -> 0.76 | I15: =VLOOKUP($A15,'CEM Data Lookup'!$A$4:$Q$56,14,FALSE) -> 0.5978 | K15: =VLOOKUP($A15,'CEM Data Lookup'!$A$4:$Q$56,16,FALSE) -> 3.5291
A16: =Input!C8 -> ADI | C16: =VLOOKUP($A16,'CEM Data Lookup'!$A$4:$Q$56,2,FALSE) -> Analog Devices, Inc. | E16: =VLOOKUP($A16,'CEM Data Lookup'!$A$4:$Q$56,12,FALSE) -> 1 | G16: =VLOOKUP($A16,'CEM Data Lookup'!$A$4:$Q$56,13,FALSE) -> 0.93 | I16: =VLOOKUP($A16,'CEM Data Lookup'!$A$4:$Q$56,14,FALSE) -> 0.6654 | K16: =VLOOKUP($A16,'CEM Data Lookup'!$A$4:$Q$56,16,FALSE) -> 3.8922
A17: =Input!C9 -> AAPL | C17: =VLOOKUP($A17,'CEM Data Lookup'!$A$4:$Q$56,2,FALSE) -> Apple Inc. | E17: =VLOOKUP($A17,'CEM Data Lookup'!$A$4:$Q$56,12,FALSE) -> 0.95 | G17: =VLOOKUP($A17,'CEM Data Lookup'!$A$4:$Q$56,13,FALSE) -> 0.87 | I17: =VLOOKUP($A17,'CEM Data Lookup'!$A$4:$Q$56,14,FALSE) -> 0.6071 | K17: =VLOOKUP($A17,'CEM Data Lookup'!$A$4:$Q$56,16,FALSE) -> 3.9937
A18: =Input!C10 -> ADM | C18: =VLOOKUP($A18,'CEM Data Lookup'!$A$4:$Q$56,2,FALSE) -> Archer Daniels-Midlan Company | E18: =VLOOKUP($A18,'CEM Data Lookup'!$A$4:$Q$56,12,FALSE) -> 0.95 | G18: =VLOOKUP($A18,'CEM Data Lookup'!$A$4:$Q$56,13,FALSE) -> 0.9 | I18: =VLOOKUP($A18,'CEM Data Lookup'!$A$4:$Q$56,14,FALSE) -> 0.6011 | K18: =VLOOKUP($A18,'CEM Data Lookup'!$A$4:$Q$56,16,FALSE) -> 4.1641
A19: =Input!C11 -> AIZ | C19: =VLOOKUP($A19,'CEM Data Lookup'!$A$4:$Q$56,2,FALSE) -> Assurant Inc. | E19: =VLOOKUP($A19,'CEM Data Lookup'!$A$4:$Q$56,12,FALSE) -> 0.9 | G19: =VLOOKUP($A19,'CEM Data Lookup'!$A$4:$Q$56,13,FALSE) -> 0.8 | I19: =VLOOKUP($A19,'CEM Data Lookup'!$A$4:$Q$56,14,FALSE) -> 0.5958 | K19: =VLOOKUP($A19,'CEM Data Lookup'!$A$4:$Q$56,16,FALSE) -> 3.7407
A20: =Input!C12 -> AZO | C20: =VLOOKUP($A20,'CEM Data Lookup'!$A$4:$Q$56,2,FALSE) -> AutoZone Inc. | E20: =VLOOKUP($A20,'CEM Data Lookup'!$A$4:$Q$56,12,FALSE) -> 0.95 | G20: =VLOOKUP($A20,'CEM Data Lookup'!$A$4:$Q$56,13,FALSE) -> 0.88 | I20: =VLOOKUP($A20,'CEM Data Lookup'!$A$4:$Q$56,14,FALSE) -> 0.5941 | K20: =VLOOKUP($A20,'CEM Data Lookup'!$A$4:$Q$56,16,FALSE) -> 4.1112
A21: =Input!C13 -> BAH | C21: =VLOOKUP($A21,'CEM Data Lookup'!$A$4:$Q$56,2,FALSE) -> Booz Allen Hamilton Corporation | E21: =VLOOKUP($A21,'CEM Data Lookup'!$A$4:$Q$56,12,FALSE) -> 0.85 | G21: =VLOOKUP($A21,'CEM Data Lookup'!$A$4:$Q$56,13,FALSE) -> 0.75 | I21: =VLOOKUP($A21,'CEM Data Lookup'!$A$4:$Q$56,14,FALSE) -> 0.5344 | K21: =VLOOKUP($A21,'CEM Data Lookup'!$A$4:$Q$56,16,FALSE) -> 3.9167
A22: =Input!C14 -> BRC | C22: =VLOOKUP($A22,'CEM Data Lookup'!$A$4:$Q$56,2,FALSE) -> Brady Corporation | E22: =VLOOKUP($A22,'CEM Data Lookup'!$A$4:$Q$56,12,FALSE) -> 0.95 | G22: =VLOOKUP($A22,'CEM Data Lookup'!$A$4:$Q$56,13,FALSE) -> 0.89 | I22: =VLOOKUP($A22,'CEM Data Lookup'!$A$4:$Q$56,14,FALSE) -> 0.6317 | K22: =VLOOKUP($A22,'CEM Data Lookup'!$A$4:$Q$56,16,FALSE) -> 3.9155
A23: =Input!C15 -> BFB | C23: =VLOOKUP($A23,'CEM Data Lookup'!$A$4:$Q$56,2,FALSE) -> Brown-Forman Corporation 'B' | E23: =VLOOKUP($A23,'CEM Data Lookup'!$A$4:$Q$56,12,FALSE) -> 0.9 | G23: =VLOOKUP($A23,'CEM Data Lookup'!$A$4:$Q$56,13,FALSE) -> 0.79 | I23: =VLOOKUP($A23,'CEM Data Lookup'!$A$4:$Q$56,14,FALSE) -> 0.6153 | K23: =VLOOKUP($A23,'CEM Data Lookup'!$A$4:$Q$56,16,FALSE) -> 3.5693
A24: =Input!C16 -> CACI | C24: =VLOOKUP($A24,'CEM Data Lookup'!$A$4:$Q$56,2,FALSE) -> CACI International | E24: =VLOOKUP($A24,'CEM Data Lookup'!$A$4:$Q$56,12,FALSE) -> 0.9 | G24: =VLOOKUP($A24,'CEM Data Lookup'!$A$4:$Q$56,13,FALSE) -> 0.8 | I24: =VLOOKUP($A24,'CEM Data Lookup'!$A$4:$Q$56,14,FALSE) -> 0.5937 | K24: =VLOOKUP($A24,'CEM Data Lookup'!$A$4:$Q$56,16,FALSE) -> 3.7448
A25: =Input!C17 -> CWST | C25: =VLOOKUP($A25,'CEM Data Lookup'!$A$4:$Q$56,2,FALSE) -> Casella Waste Systems, Inc. | E25: =VLOOKUP($A25,'CEM Data Lookup'!$A$4:$Q$56,12,FALSE) -> 0.85 | G25: =VLOOKUP($A25,'CEM Data Lookup'!$A$4:$Q$56,13,FALSE) -> 0.74 | I25: =VLOOKUP($A25,'CEM Data Lookup'!$A$4:$Q$56,14,FALSE) -> 0.5261 | K25: =VLOOKUP($A25,'CEM Data Lookup'!$A$4:$Q$56,16,FALSE) -> 3.8968
A26: =Input!C18 -> CASY | C26: =VLOOKUP($A26,'CEM Data Lookup'!$A$4:$Q$56,2,FALSE) -> Casey's General Stores, Inc. | E26: =VLOOKUP($A26,'CEM Data Lookup'!$A$4:$Q$56,12,FALSE) -> 0.9 | G26: =VLOOKUP($A26,'CEM Data Lookup'!$A$4:$Q$56,13,FALSE) -> 0.78 | I26: =VLOOKUP($A26,'CEM Data Lookup'!$A$4:$Q$56,14,FALSE) -> 0.5637 | K26: =VLOOKUP($A26,'CEM Data Lookup'!$A$4:$Q$56,16,FALSE) -> 3.8404
A27: =Input!C19 -> CTVA | C27: =VLOOKUP($A27,'CEM Data Lookup'!$A$4:$Q$56,2,FALSE) -> Corteva, Inc. | E27: =VLOOKUP($A27,'CEM Data Lookup'!$A$4:$Q$56,12,FALSE) -> 0.95 | G27: =VLOOKUP($A27,'CEM Data Lookup'!$A$4:$Q$56,13,FALSE) -> 0.89 | I27: =VLOOKUP($A27,'CEM Data Lookup'!$A$4:$Q$56,14,FALSE) -> 0.6016 | K27: =VLOOKUP($A27,'CEM Data Lookup'!$A$4:$Q$56,16,FALSE) -> 4.1335
A28: =Input!C20 -> CSWI | C28: =VLOOKUP($A28,'CEM Data Lookup'!$A$4:$Q$56,2,FALSE) -> CSW Industrials | E28: =VLOOKUP($A28,'CEM Data Lookup'!$A$4:$Q$56,12,FALSE) -> 0.85 | G28: =VLOOKUP($A28,'CEM Data Lookup'!$A$4:$Q$56,13,FALSE) -> 0.77 | I28: =VLOOKUP($A28,'CEM Data Lookup'!$A$4:$Q$56,14,FALSE) -> 0.5478 | K28: =VLOOKUP($A28,'CEM Data Lookup'!$A$4:$Q$56,16,FALSE) -> 3.9117
A29: =Input!C21 -> DHR | C29: =VLOOKUP($A29,'CEM Data Lookup'!$A$4:$Q$56,2,FALSE) -> Danaher Corporation | E29: =VLOOKUP($A29,'CEM Data Lookup'!$A$4:$Q$56,12,FALSE) -> 0.9 | G29: =VLOOKUP($A29,'CEM Data Lookup'!$A$4:$Q$56,13,FALSE) -> 0.81 | I29: =VLOOKUP($A29,'CEM Data Lookup'!$A$4:$Q$56,14,FALSE) -> 0.6019 | K29: =VLOOKUP($A29,'CEM Data Lookup'!$A$4:$Q$56,16,FALSE) -> 3.7531
A30: =Input!C22 -> DLB | C30: =VLOOKUP($A30,'CEM Data Lookup'!$A$4:$Q$56,2,FALSE) -> Dolby Laboratories | E30: =VLOOKUP($A30,'CEM Data Lookup'!$A$4:$Q$56,12,FALSE) -> 0.95 | G30: =VLOOKUP($A30,'CEM Data Lookup'!$A$4:$Q$56,13,FALSE) -> 0.88 | I30: =VLOOKUP($A30,'CEM Data Lookup'!$A$4:$Q$56,14,FALSE) -> 0.6356 | K30: =VLOOKUP($A30,'CEM Data Lookup'!$A$4:$Q$56,16,FALSE) -> 3.8441
A31: =Input!C23 -> FAST | C31: =VLOOKUP($A31,'CEM Data Lookup'!$A$4:$Q$56,2,FALSE) -> Fastenal Company | E31: =VLOOKUP($A31,'CEM Data Lookup'!$A$4:$Q$56,12,FALSE) -> 0.9 | G31: =VLOOKUP($A31,'CEM Data Lookup'!$A$4:$Q$56,13,FALSE) -> 0.78 | I31: =VLOOKUP($A31,'CEM Data Lookup'!$A$4:$Q$56,14,FALSE) -> 0.5955 | K31: =VLOOKUP($A31,'CEM Data Lookup'!$A$4:$Q$56,16,FALSE) -> 3.6551
A32: =Input!C24 -> GATX | C32: =VLOOKUP($A32,'CEM Data Lookup'!$A$4:$Q$56,2,FALSE) -> GATX Corporation | E32: =VLOOKUP($A32,'CEM Data Lookup'!$A$4:$Q$56,12,FALSE) -> 0.95 | G32: =VLOOKUP($A32,'CEM Data Lookup'!$A$4:$Q$56,13,FALSE) -> 0.9 | I32: =VLOOKUP($A32,'CEM Data Lookup'!$A$4:$Q$56,14,FALSE) -> 0.6418 | K32: =VLOOKUP($A32,'CEM Data Lookup'!$A$4:$Q$56,16,FALSE) -> 3.9176
A33: =Input!C25 -> IOSP | C33: =VLOOKUP($A33,'CEM Data Lookup'!$A$4:$Q$56,2,FALSE) -> Innospec Inc. | E33: =VLOOKUP($A33,'CEM Data Lookup'!$A$4:$Q$56,12,FALSE) -> 1 | G33: =VLOOKUP($A33,'CEM Data Lookup'!$A$4:$Q$56,13,FALSE) -> 0.93 | I33: =VLOOKUP($A33,'CEM Data Lookup'!$A$4:$Q$56,14,FALSE) -> 0.6612 | K33: =VLOOKUP($A33,'CEM Data Lookup'!$A$4:$Q$56,16,FALSE) -> 3.9309
A34: =Input!C26 -> JBHT | C34: =VLOOKUP($A34,'CEM Data Lookup'!$A$4:$Q$56,2,FALSE) -> J. B. Hunt Transport Services | E34: =VLOOKUP($A34,'CEM Data Lookup'!$A$4:$Q$56,12,FALSE) -> 0.95 | G34: =VLOOKUP($A34,'CEM Data Lookup'!$A$4:$Q$56,13,FALSE) -> 0.9 | I34: =VLOOKUP($A34,'CEM Data Lookup'!$A$4:$Q$56,14,FALSE) -> 0.6066 | K34: =VLOOKUP($A34,'CEM Data Lookup'!$A$4:$Q$56,16,FALSE) -> 4.122
A35: =Input!C27 -> JKHY | C35: =VLOOKUP($A35,'CEM Data Lookup'!$A$4:$Q$56,2,FALSE) -> Jack Henry & Associates, Inc. | E35: =VLOOKUP($A35,'CEM Data Lookup'!$A$4:$Q$56,12,FALSE) -> 0.85 | G35: =VLOOKUP($A35,'CEM Data Lookup'!$A$4:$Q$56,13,FALSE) -> 0.73 | I35: =VLOOKUP($A35,'CEM Data Lookup'!$A$4:$Q$56,14,FALSE) -> 0.5397 | K35: =VLOOKUP($A35,'CEM Data Lookup'!$A$4:$Q$56,16,FALSE) -> 3.7838
A36: =Input!C28 -> JNPR | C36: =VLOOKUP($A36,'CEM Data Lookup'!$A$4:$Q$56,2,FALSE) -> Juniper Networks, Inc. | E36: =VLOOKUP($A36,'CEM Data Lookup'!$A$4:$Q$56,12,FALSE) -> 0.95 | G36: =VLOOKUP($A36,'CEM Data Lookup'!$A$4:$Q$56,13,FALSE) -> 0.91 | I36: =VLOOKUP($A36,'CEM Data Lookup'!$A$4:$Q$56,14,FALSE) -> 0.6361 | K36: =VLOOKUP($A36,'CEM Data Lookup'!$A$4:$Q$56,16,FALSE) -> 3.9835
A37: =Input!C29 -> LHX | C37: =VLOOKUP($A37,'CEM Data Lookup'!$A$4:$Q$56,2,FALSE) -> L3Harris Technologies, Inc. | E37: =VLOOKUP($A37,'CEM Data Lookup'!$A$4:$Q$56,12,FALSE) -> 0.9 | G37: =VLOOKUP($A37,'CEM Data Lookup'!$A$4:$Q$56,13,FALSE) -> 0.83 | I37: =VLOOKUP($A37,'CEM Data Lookup'!$A$4:$Q$56,14,FALSE) -> 0.6055 | K37: =VLOOKUP($A37,'CEM Data Lookup'!$A$4:$Q$56,16,FALSE) -> 3.8016
A38: =Input!C30 -> LMT | C38: =VLOOKUP($A38,'CEM Data Lookup'!$A$4:$Q$56,2,FALSE) -> Lockheed Martin Corporation | E38: =VLOOKUP($A38,'CEM Data Lookup'!$A$4:$Q$56,12,FALSE) -> 0.85 | G38: =VLOOKUP($A38,'CEM Data Lookup'!$A$4:$Q$56,13,FALSE) -> 0.74 | I38: =VLOOKUP($A38,'CEM Data Lookup'!$A$4:$Q$56,14,FALSE) -> 0.5837 | K38: =VLOOKUP($A38,'CEM Data Lookup'!$A$4:$Q$56,16,FALSE) -> 3.5162
A39: =Input!C31 -> MCK | C39: =VLOOKUP($A39,'CEM Data Lookup'!$A$4:$Q$56,2,FALSE) -> McKesson Corporation | E39: =VLOOKUP($A39,'CEM Data Lookup'!$A$4:$Q$56,12,FALSE) -> 0.85 | G39: =VLOOKUP($A39,'CEM Data Lookup'!$A$4:$Q$56,13,FALSE) -> 0.7 | I39: =VLOOKUP($A39,'CEM Data Lookup'!$A$4:$Q$56,14,FALSE) -> 0.5402 | K39: =VLOOKUP($A39,'CEM Data Lookup'!$A$4:$Q$56,16,FALSE) -> 3.5897
A40: =Input!C32 -> MSFT | C40: =VLOOKUP($A40,'CEM Data Lookup'!$A$4:$Q$56,2,FALSE) -> Microsoft Corporation | E40: =VLOOKUP($A40,'CEM Data Lookup'!$A$4:$Q$56,12,FALSE) -> 0.9 | G40: =VLOOKUP($A40,'CEM Data Lookup'!$A$4:$Q$56,13,FALSE) -> 0.77 | I40: =VLOOKUP($A40,'CEM Data Lookup'!$A$4:$Q$56,14,FALSE) -> 0.603 | K40: =VLOOKUP($A40,'CEM Data Lookup'!$A$4:$Q$56,16,FALSE) -> 3.5663
A41: =Input!C33 -> MSA | C41: =VLOOKUP($A41,'CEM Data Lookup'!$A$4:$Q$56,2,FALSE) -> MSA Safety Incorporated | E41: =VLOOKUP($A41,'CEM Data Lookup'!$A$4:$Q$56,12,FALSE) -> 1 | G41: =VLOOKUP($A41,'CEM Data Lookup'!$A$4:$Q$56,13,FALSE) -> 0.92 | I41: =VLOOKUP($A41,'CEM Data Lookup'!$A$4:$Q$56,14,FALSE) -> 0.6398 | K41: =VLOOKUP($A41,'CEM Data Lookup'!$A$4:$Q$56,16,FALSE) -> 4.0233
A42: =Input!C34 -> MSM | C42: =VLOOKUP($A42,'CEM Data Lookup'!$A$4:$Q$56,2,FALSE) -> MSC Industrial Direct Co., Inc. | E42: =VLOOKUP($A42,'CEM Data Lookup'!$A$4:$Q$56,12,FALSE) -> 0.9 | G42: =VLOOKUP($A42,'CEM Data Lookup'!$A$4:$Q$56,13,FALSE) -> 0.83 | I42: =VLOOKUP($A42,'CEM Data Lookup'!$A$4:$Q$56,14,FALSE) -> 0.6116 | K42: =VLOOKUP($A42,'CEM Data Lookup'!$A$4:$Q$56,16,FALSE) -> 3.7607
A43: =Input!C35 -> ORCL | C43: =VLOOKUP($A43,'CEM Data Lookup'!$A$4:$Q$56,2,FALSE) -> Oracle Corporation | E43: =VLOOKUP($A43,'CEM Data Lookup'!$A$4:$Q$56,12,FALSE) -> 0.8 | G43: =VLOOKUP($A43,'CEM Data Lookup'!$A$4:$Q$56,13,FALSE) -> 0.69 | I43: =VLOOKUP($A43,'CEM Data Lookup'!$A$4:$Q$56,14,FALSE) -> 0.5145 | K43: =VLOOKUP($A43,'CEM Data Lookup'!$A$4:$Q$56,16,FALSE) -> 3.7587
A44: =Input!C36 -> ORLY | C44: =VLOOKUP($A44,'CEM Data Lookup'!$A$4:$Q$56,2,FALSE) -> O'Reilly Automotive, Inc. | E44: =VLOOKUP($A44,'CEM Data Lookup'!$A$4:$Q$56,12,FALSE) -> 0.9 | G44: =VLOOKUP($A44,'CEM Data Lookup'!$A$4:$Q$56,13,FALSE) -> 0.83 | I44: =VLOOKUP($A44,'CEM Data Lookup'!$A$4:$Q$56,14,FALSE) -> 0.6035 | K44: =VLOOKUP($A44,'CEM Data Lookup'!$A$4:$Q$56,16,FALSE) -> 3.8306
A45: =Input!C37 -> OSIS | C45: =VLOOKUP($A45,'CEM Data Lookup'!$A$4:$Q$56,2,FALSE) -> OSI Systems, Inc. | E45: =VLOOKUP($A45,'CEM Data Lookup'!$A$4:$Q$56,12,FALSE) -> 0.9 | G45: =VLOOKUP($A45,'CEM Data Lookup'!$A$4:$Q$56,13,FALSE) -> 0.83 | I45: =VLOOKUP($A45,'CEM Data Lookup'!$A$4:$Q$56,14,FALSE) -> 0.6157 | K45: =VLOOKUP($A45,'CEM Data Lookup'!$A$4:$Q$56,16,FALSE) -> 3.7364
A46: =Input!C38 -> PKG | C46: =VLOOKUP($A46,'CEM Data Lookup'!$A$4:$Q$56,2,FALSE) -> Packaging Corporation of America | E46: =VLOOKUP($A46,'CEM Data Lookup'!$A$4:$Q$56,12,FALSE) -> 0.95 | G46: =VLOOKUP($A46,'CEM Data Lookup'!$A$4:$Q$56,13,FALSE) -> 0.85 | I46: =VLOOKUP($A46,'CEM Data Lookup'!$A$4:$Q$56,14,FALSE) -> 0.6382 | K46: =VLOOKUP($A46,'CEM Data Lookup'!$A$4:$Q$56,16,FALSE) -> 3.7242
A47: =Input!C39 -> PFE | C47: =VLOOKUP($A47,'CEM Data Lookup'!$A$4:$Q$56,2,FALSE) -> Pfizer, Inc. | E47: =VLOOKUP($A47,'CEM Data Lookup'!$A$4:$Q$56,12,FALSE) -> 0.8 | G47: =VLOOKUP($A47,'CEM Data Lookup'!$A$4:$Q$56,13,FALSE) -> 0.68 | I47: =VLOOKUP($A47,'CEM Data Lookup'!$A$4:$Q$56,14,FALSE) -> 0.4975 | K47: =VLOOKUP($A47,'CEM Data Lookup'!$A$4:$Q$56,16,FALSE) -> 3.7901
A48: =Input!C40 -> PM | C48: =VLOOKUP($A48,'CEM Data Lookup'!$A$4:$Q$56,2,FALSE) -> Philip Morris International Inc. | E48: =VLOOKUP($A48,'CEM Data Lookup'!$A$4:$Q$56,12,FALSE) -> 0.95 | G48: =VLOOKUP($A48,'CEM Data Lookup'!$A$4:$Q$56,13,FALSE) -> 0.86 | I48: =VLOOKUP($A48,'CEM Data Lookup'!$A$4:$Q$56,14,FALSE) -> 0.6415 | K48: =VLOOKUP($A48,'CEM Data Lookup'!$A$4:$Q$56,16,FALSE) -> 3.7276
A49: =Input!C41 -> PBH | C49: =VLOOKUP($A49,'CEM Data Lookup'!$A$4:$Q$56,2,FALSE) -> Prestige Consumer Healthcare Inc. | E49: =VLOOKUP($A49,'CEM Data Lookup'!$A$4:$Q$56,12,FALSE) -> 0.85 | G49: =VLOOKUP($A49,'CEM Data Lookup'!$A$4:$Q$56,13,FALSE) -> 0.76 | I49: =VLOOKUP($A49,'CEM Data Lookup'!$A$4:$Q$56,14,FALSE) -> 0.5396 | K49: =VLOOKUP($A49,'CEM Data Lookup'!$A$4:$Q$56,16,FALSE) -> 3.9247
A50: =Input!C42 -> SIGI | C50: =VLOOKUP($A50,'CEM Data Lookup'!$A$4:$Q$56,2,FALSE) -> Selective Insurance Group, Inc. | E50: =VLOOKUP($A50,'CEM Data Lookup'!$A$4:$Q$56,12,FALSE) -> 0.85 | G50: =VLOOKUP($A50,'CEM Data Lookup'!$A$4:$Q$56,13,FALSE) -> 0.74 | I50: =VLOOKUP($A50,'CEM Data Lookup'!$A$4:$Q$56,14,FALSE) -> 0.5652 | K50: =VLOOKUP($A50,'CEM Data Lookup'!$A$4:$Q$56,16,FALSE) -> 3.6386
A51: =Input!C43 -> SXT | C51: =VLOOKUP($A51,'CEM Data Lookup'!$A$4:$Q$56,2,FALSE) -> Sensient Technologies Corporation | E51: =VLOOKUP($A51,'CEM Data Lookup'!$A$4:$Q$56,12,FALSE) -> 0.95 | G51: =VLOOKUP($A51,'CEM Data Lookup'!$A$4:$Q$56,13,FALSE) -> 0.85 | I51: =VLOOKUP($A51,'CEM Data Lookup'!$A$4:$Q$56,14,FALSE) -> 0.6415 | K51: =VLOOKUP($A51,'CEM Data Lookup'!$A$4:$Q$56,16,FALSE) -> 3.6843
A52: =Input!C44 -> SCI | C52: =VLOOKUP($A52,'CEM Data Lookup'!$A$4:$Q$56,2,FALSE) -> Service Corporation International | E52: =VLOOKUP($A52,'CEM Data Lookup'!$A$4:$Q$56,12,FALSE) -> 0.95 | G52: =VLOOKUP($A52,'CEM Data Lookup'!$A$4:$Q$56,13,FALSE) -> 0.85 | I52: =VLOOKUP($A52,'CEM Data Lookup'!$A$4:$Q$56,14,FALSE) -> 0.5927 | K52: =VLOOKUP($A52,'CEM Data Lookup'!$A$4:$Q$56,16,FALSE) -> 3.9885
A53: =Input!C45 -> SHW | C53: =VLOOKUP($A53,'CEM Data Lookup'!$A$4:$Q$56,2,FALSE) -> Sherwin-Williams Company | E53: =VLOOKUP($A53,'CEM Data Lookup'!$A$4:$Q$56,12,FALSE) -> 0.95 | G53: =VLOOKUP($A53,'CEM Data Lookup'!$A$4:$Q$56,13,FALSE) -> 0.89 | I53: =VLOOKUP($A53,'CEM Data Lookup'!$A$4:$Q$56,14,FALSE) -> 0.6502 | K53: =VLOOKUP($A53,'CEM Data Lookup'!$A$4:$Q$56,16,FALSE) -> 3.8205
A54: =Input!C46 -> AOS | C54: =VLOOKUP($A54,'CEM Data Lookup'!$A$4:$Q$56,2,FALSE) -> Smith (A.O.) Corporation | E54: =VLOOKUP($A54,'CEM Data Lookup'!$A$4:$Q$56,12,FALSE) -> 0.9 | G54: =VLOOKUP($A54,'CEM Data Lookup'!$A$4:$Q$56,13,FALSE) -> 0.78 | I54: =VLOOKUP($A54,'CEM Data Lookup'!$A$4:$Q$56,14,FALSE) -> 0.5843 | K54: =VLOOKUP($A54,'CEM Data Lookup'!$A$4:$Q$56,16,FALSE) -> 3.7307
A55: =Input!C47 -> TXN | C55: =VLOOKUP($A55,'CEM Data Lookup'!$A$4:$Q$56,2,FALSE) -> Texas Instruments Incorporated | E55: =VLOOKUP($A55,'CEM Data Lookup'!$A$4:$Q$56,12,FALSE) -> 0.85 | G55: =VLOOKUP($A55,'CEM Data Lookup'!$A$4:$Q$56,13,FALSE) -> 0.76 | I55: =VLOOKUP($A55,'CEM Data Lookup'!$A$4:$Q$56,14,FALSE) -> 0.5984 | K55: =VLOOKUP($A55,'CEM Data Lookup'!$A$4:$Q$56,16,FALSE) -> 3.5502
A56: =Input!C48 -> TMO | C56: =VLOOKUP($A56,'CEM Data Lookup'!$A$4:$Q$56,2,FALSE) -> Thermo Fisher Scientific Inc. | E56: =VLOOKUP($A56,'CEM Data Lookup'!$A$4:$Q$56,12,FALSE) -> 0.85 | G56: =VLOOKUP($A56,'CEM Data Lookup'!$A$4:$Q$56,13,FALSE) -> 0.76 | I56: =VLOOKUP($A56,'CEM Data Lookup'!$A$4:$Q$56,14,FALSE) -> 0.5997 | K56: =VLOOKUP($A56,'CEM Data Lookup'!$A$4:$Q$56,16,FALSE) -> 3.5461
A57: =Input!C49 -> UNF | C57: =VLOOKUP($A57,'CEM Data Lookup'!$A$4:$Q$56,2,FALSE) -> UniFirst Corporation | E57: =VLOOKUP($A57,'CEM Data Lookup'!$A$4:$Q$56,12,FALSE) -> 0.9 | G57: =VLOOKUP($A57,'CEM Data Lookup'!$A$4:$Q$56,13,FALSE) -> 0.8 | I57: =VLOOKUP($A57,'CEM Data Lookup'!$A$4:$Q$56,14,FALSE) -> 0.6063 | K57: =VLOOKUP($A57,'CEM Data Lookup'!$A$4:$Q$56,16,FALSE) -> 3.6647
A58: =Input!C50 -> UNH | C58: =VLOOKUP($A58,'CEM Data Lookup'!$A$4:$Q$56,2,FALSE) -> UnitedHealth Group Incorporated | E58: =VLOOKUP($A58,'CEM Data Lookup'!$A$4:$Q$56,12,FALSE) -> 0.95 | G58: =VLOOKUP($A58,'CEM Data Lookup'!$A$4:$Q$56,13,FALSE) -> 0.9 | I58: =VLOOKUP($A58,'CEM Data Lookup'!$A$4:$Q$56,14,FALSE) -> 0.6347 | K58: =VLOOKUP($A58,'CEM Data Lookup'!$A$4:$Q$56,16,FALSE) -> 3.9659
A59: =Input!C51 -> VRSN | C59: =VLOOKUP($A59,'CEM Data Lookup'!$A$4:$Q$56,2,FALSE) -> VeriSign Inc. | E59: =VLOOKUP($A59,'CEM Data Lookup'!$A$4:$Q$56,12,FALSE) -> 0.9 | G59: =VLOOKUP($A59,'CEM Data Lookup'!$A$4:$Q$56,13,FALSE) -> 0.78 | I59: =VLOOKUP($A59,'CEM Data Lookup'!$A$4:$Q$56,14,FALSE) -> 0.5963 | K59: =VLOOKUP($A59,'CEM Data Lookup'!$A$4:$Q$56,16,FALSE) -> 3.636
A60: =Input!C52 -> VRSK | C60: =VLOOKUP($A60,'CEM Data Lookup'!$A$4:$Q$56,2,FALSE) -> Verisk Analytics, Inc. | E60: =VLOOKUP($A60,'CEM Data Lookup'!$A$4:$Q$56,12,FALSE) -> 0.9 | G60: =VLOOKUP($A60,'CEM Data Lookup'!$A$4:$Q$56,13,FALSE) -> 0.78 | I60: =VLOOKUP($A60,'CEM Data Lookup'!$A$4:$Q$56,14,FALSE) -> 0.6088 | K60: =VLOOKUP($A60,'CEM Data Lookup'!$A$4:$Q$56,16,FALSE) -> 3.5474
A61: =Input!C53 -> WAT | C61: =VLOOKUP($A61,'CEM Data Lookup'!$A$4:$Q$56,2,FALSE) -> Waters Corporation | E61: =VLOOKUP($A61,'CEM Data Lookup'!$A$4:$Q$56,12,FALSE) -> 0.95 | G61: =VLOOKUP($A61,'CEM Data Lookup'!$A$4:$Q$56,13,FALSE) -> 0.88 | I61: =VLOOKUP($A61,'CEM Data Lookup'!$A$4:$Q$56,14,FALSE) -> 0.607 | K61: =VLOOKUP($A61,'CEM Data Lookup'!$A$4:$Q$56,16,FALSE) -> 4.0149
A62: =Input!C54 -> WSO | C62: =VLOOKUP($A62,'CEM Data Lookup'!$A$4:$Q$56,2,FALSE) -> Watsco, Inc. | E62: =VLOOKUP($A62,'CEM Data Lookup'!$A$4:$Q$56,12,FALSE) -> 0.9 | G62: =VLOOKUP($A62,'CEM Data Lookup'!$A$4:$Q$56,13,FALSE) -> 0.78 | I62: =VLOOKUP($A62,'CEM Data Lookup'!$A$4:$Q$56,14,FALSE) -> 0.5601 | K62: =VLOOKUP($A62,'CEM Data Lookup'!$A$4:$Q$56,16,FALSE) -> 3.8861
A64: =COUNTA(A9:A63) -> 53 | C64: Average | E64: =ROUND(AVERAGE(E9:E63),2) -> 0.91 | G64: =ROUND(AVERAGE(G9:G63),2) -> 0.82 | I64: =ROUND(AVERAGE(I9:I63),4) -> 0.5987 | K64: =ROUND(AVERAGE(K9:K63),4) -> 3.8108
C66: =C4 -> Proxy Group of Six Natural Gas Distribution Companies | E66: ='5.2 Comp Earnings Criteria'!E16 -> 0.8916666667 | G66: ='5.2 Comp Earnings Criteria'!G16 -> 0.7933333333 | I66: ='5.2 Comp Earnings Criteria'!I16 -> 3.084866667 | K66: ='5.2 Comp Earnings Criteria'!K16 -> 0.069
C70: ='5.2 Comp Earnings Criteria'!C31 -> Source of Information: | E70: ='5.2 Comp Earnings Criteria'!E31 -> Valueline Proprietary Database, June 2024

Sheet 6.1 CEM Summary
A1: =Input!G28 -> Atmos Energy Corporation
A2: Summary of Cost of Equity Models Applied to
A3: ='5.3 Proxy Group Equivalent'!C8 -> Proxy Group of Fifty-Three Non-Price Regulated Companies
A4: Comparable in Total Risk to the
A5: ='5.3 Proxy Group Equivalent'!C4 -> Proxy Group of Six Natural Gas Distribution Companies
B7: Principal Methods | E7: =A3 -> Proxy Group of Fifty-Three Non-Price Regulated Companies | I7: Proxy Group of Fifty-Three Non-Price Regulated Companies (excl. PRPM)
B9: Discounted Cash Flow Model (DCF) (1) | E9: ='6.2 CEM DCF'!Y67 -> 11.29 | F9: % | I9: ='6.2 CEM DCF'!Y67 -> 11.29 | J9: %
B11: Risk Premium Model (RPM) (2) | E11: ='6.3 CEM RPM Summary'!H20 -> 12.52666667 | I11: ='6.3 CEM RPM Summary'!K20 -> 12.43666667
B13: Capital Asset Pricing Model (CAPM) | E13: ='6.6 CEM CAPM Backup'!V67 -> 12.11 | G13: (3) | I13: ='6.7 CEM CAPM Backup NO PRPM'!V67 -> 12.02 | K13: (4)
D15: Mean | E15: =ROUND(AVERAGE(E9:E13),2) -> 11.98 | F15: % | I15: =ROUND(AVERAGE(I9:I13),2) -> 11.92 | J15: %
D17: Median | E17: =ROUND(MEDIAN(E9:E13),2) -> 12.11 | F17: % | I17: =ROUND(MEDIAN(I9:I13),2) -> 12.02 | J17: %
D19: Average of Mean and Median | E19: =ROUND(AVERAGE(E15:E17),2) -> 12.05 | F19: % | I19: =ROUND(AVERAGE(I15:I17),2) -> 11.97 | J19: %
A22: Notes:
A23: (1) | B23: From page 2 of this Schedule.
A24: (2) | B24: From page 3 of this Schedule.
A25: (3) | B25: From page 6 of this Schedule.
A26: (4) | B26: From page 7 of this Schedule.

Sheet 6.2 CEM DCF
B1: =Input!G28 -> Atmos Energy Corporation
B2: DCF Results for the Proxy Group of Non-Price-Regulated Companies Comparable in Total Risk to the
B3: ='6.1 CEM Summary'!A5 -> Proxy Group of Six Natural Gas Distribution Companies
D5: [1] | G5: [2] | J5: [3] | M5: [4] | P5: [5] | S5: [6] | V5: [7] | Y5: [8]
B7: ='6.1 CEM Summary'!A3 -> Proxy Group of Fifty-Three Non-Price Regulated Companies | D7: Average Dividend Yield | G7: Value Line Projected Five Year Growth in EPS | J7: Zack's Five Year Projected Growth Rate in EPS | M7: Yahoo! Finance Projected Five Year Growth in EPS | P7: S&P Capital IQ Projected Five Year Growth in EPS | S7: Average Projected Five Year Growth Rate in EPS (1) | V7: Adjusted Dividend Yield | Y7: Indicated Common Equity Cost Rate (2)
A9: =Input!C2 -> ABT | B9: =VLOOKUP($A9,'CEM Data Lookup'!$A$4:$Q$56,2,FALSE) -> Abbott Laboratories | D9: =HLOOKUP(A9,'CEM PricesDivs'!$B$2:$BB$69,68,FALSE) -> 2.11 | E9: % | G9: ='CEM Data Lookup'!E4*100 -> 4 | H9: % | J9: =IFERROR('CEM Data Lookup'!C4*100, "NA") -> 8.6 | K9: % | M9: ='CEM Data Lookup'!D4*100 -> 8.2 | N9: % | P9: =IFERROR('CEM Data Lookup'!F4*100,"NA") -> 8.44737 | Q9: % | S9: =IFERROR(ROUND(AVERAGE(G9,J9,M9,P9),2),"NA") -> 7.31 | T9: % | V9: =IFERROR(ROUND((D9*(1+(0.5*(S9/100)))),2),"NA") -> 2.19 | W9: % | Y9: =IFERROR(IF(OR(VALUE(V9)=0,VALUE(S9)=0),"NA",V9+S9),"NA") -> 9.5 | Z9: % | AA9: =IF(OR(Y9<$AC$12,Y9>$AC$11),1,0) -> 0 | AC9: =_xlfn.STDEV.P(Y9:Y61)*2 -> 6.096351534
A10: =Input!C3 -> A | B10: =VLOOKUP($A10,'CEM Data Lookup'!$A$4:$Q$56,2,FALSE) -> Agilent Technologies, Inc. | D10: =HLOOKUP(A10,'CEM PricesDivs'!$B$2:$BB$69,68,FALSE) -> 0.69 | G10: ='CEM Data Lookup'!E5*100 -> 8 | J10: =IFERROR('CEM Data Lookup'!C5*100, "NA") -> 5.6 | M10: ='CEM Data Lookup'!D5*100 -> 4.95 | P10: =IFERROR('CEM Data Lookup'!F5*100,"NA") -> 5.00888 | S10: =IFERROR(ROUND(AVERAGE(G10,J10,M10,P10),2),"NA") -> 5.89 | V10: =IFERROR(ROUND((D10*(1+(0.5*(S10/100)))),2),"NA") -> 0.71 | Y10: =IFERROR(IF(OR(VALUE(V10)=0,VALUE(S10)=0),"NA",V10+S10),"NA") -> 6.6 | AA10: =IF(OR(Y10<$AC$12,Y10>$AC$11),1,0) -> 0 | AC10: =AVERAGE(Y9:Y61) -> 11.68577778
A11: =Input!C4 -> APD | B11: =VLOOKUP($A11,'CEM Data Lookup'!$A$4:$Q$56,2,FALSE) -> Air Products and Chemicals, Inc. | D11: =HLOOKUP(A11,'CEM PricesDivs'!$B$2:$BB$69,68,FALSE) -> 2.69 | G11: ='CEM Data Lookup'!E6*100 -> 10.5 | J11: =IFERROR('CEM Data Lookup'!C6*100, "NA") -> 7.4 | M11: ='CEM Data Lookup'!D6*100 -> 6.58 | P11: =IFERROR('CEM Data Lookup'!F6*100,"NA") -> 10.43275 | S11: 8.73 | V11: 2.81 | Y11: 11.54 | AA11: 0 | AC11: =AC10+AC9 -> 17.78212931
A12: =Input!C5 -> ALL | B12: =VLOOKUP($A12,'CEM Data Lookup'!$A$4:$Q$56,2,FALSE) -> Allstate Corporation (The) | D12: =HLOOKUP(A12,'CEM PricesDivs'!$B$2:$BB$69,68,FALSE) -> 2.23 | G12: ='CEM Data Lookup'!E7*100 -> 30 | J12: =IFERROR('CEM Data Lookup'!C7*100, "NA") -> 7 | M12: ='CEM Data Lookup'!D7*100 -> 107.6 | P12: =IFERROR('CEM Data Lookup'!F7*100,"NA") -> 163 | S12: =IFERROR(ROUND(AVERAGE(G12,J12),2),"NA") -> 18.5 | V12: 2.44 | Y12: 20.94 | Z12: (3) | AA12: 1 | AC12: =AC10-AC9 -> 5.589426244
A13: =Input!C6 -> GOOG | B13: =VLOOKUP($A13,'CEM Data Lookup'!$A$4:$Q$56,2,FALSE) -> Alphabet Inc. | D13: =HLOOKUP(A13,'CEM PricesDivs'!$B$2:$BB$69,68,FALSE) -> 0.45 | G13: ='CEM Data Lookup'!E8*100 -> 13 | J13: =IFERROR('CEM Data Lookup'!C8*100, "NA") -> 17.7 | M13: ='CEM Data Lookup'!D8*100 -> 20.5 | P13: =IFERROR('CEM Data Lookup'!F8*100,"NA") -> 17.42151 | S13: 17.16 | V13: 0.49 | Y13: 17.65 | AA13: 0
A14: =Input!C7 -> MO | B14: =VLOOKUP($A14,'CEM Data Lookup'!$A$4:$Q$56,2,FALSE) -> Altria Group, Inc. | D14: =HLOOKUP(A14,'CEM PricesDivs'!$B$2:$BB$69,68,FALSE) -> 8.41 | G14: ='CEM Data Lookup'!E9*100 -> 6 | J14: =IFERROR('CEM Data Lookup'!C9*100, "NA") -> 3.2 | M14: ='CEM Data Lookup'!D9*100 -> 3.73 | P14: =IFERROR('CEM Data Lookup'!F9*100,"NA") -> 3.94966 | S14: 4.22 | V14: 8.59 | Y14: 12.81 | AA14: 0
A15: =Input!C8 -> ADI | B15: =VLOOKUP($A15,'CEM Data Lookup'!$A$4:$Q$56,2,FALSE) -> Analog Devices, Inc. | D15: =HLOOKUP(A15,'CEM PricesDivs'!$B$2:$BB$69,68,FALSE) -> 1.61 | G15: ='CEM Data Lookup'!E10*100 -> 7.5 | J15: =IFERROR('CEM Data Lookup'!C10*100, "NA") -> 9.5 | M15: ='CEM Data Lookup'!D10*100 -> -1.41 | P15: =IFERROR('CEM Data Lookup'!F10*100,"NA") -> 4.19731 | S15: =IFERROR(ROUND(AVERAGE(G15,J15,P15),2),"NA") -> 7.07 | V15: 1.67 | Y15: 8.74 | AA15: 0
A16: =Input!C9 -> AAPL | B16: =VLOOKUP($A16,'CEM Data Lookup'!$A$4:$Q$56,2,FALSE) -> Apple Inc. | D16: =HLOOKUP(A16,'CEM PricesDivs'!$B$2:$BB$69,68,FALSE) -> 0.48 | G16: ='CEM Data Lookup'!E11*100 -> 8 | J16: =IFERROR('CEM Data Lookup'!C11*100, "NA") -> 12.7 | M16: ='CEM Data Lookup'!D11*100 -> 11.1 | P16: =IFERROR('CEM Data Lookup'!F11*100,"NA") -> 11.15412 | S16: 10.74 | V16: 0.51 | Y16: 11.25 | AA16: 0
A17: =Input!C10 -> ADM | B17: =VLOOKUP($A17,'CEM Data Lookup'!$A$4:$Q$56,2,FALSE) -> Archer Daniels-Midlan Company | D17: =HLOOKUP(A17,'CEM PricesDivs'!$B$2:$BB$69,68,FALSE) -> 3.23 | G17: ='CEM Data Lookup'!E12*100 -> 3 | J17: =IFERROR('CEM Data Lookup'!C12*100, "NA") -> NA | M17: ='CEM Data Lookup'!D12*100 -> -4.2 | P17: =IFERROR('CEM Data Lookup'!F12*100,"NA") -> -3.61528 | S17: =IFERROR(ROUND(AVERAGE(G17,J17),2),"NA") -> 3 | V17: 3.28 | Y17: 6.28 | AA17: 0
A18: =Input!C11 -> AIZ | B18: =VLOOKUP($A18,'CEM Data Lookup'!$A$4:$Q$56,2,FALSE) -> Assurant Inc. | D18: =HLOOKUP(A18,'CEM PricesDivs'!$B$2:$BB$69,68,FALSE) -> 1.69 | G18: ='CEM Data Lookup'!E13*100 -> 9.5 | J18: =IFERROR('CEM Data Lookup'!C13*100, "NA") -> 6.3 | M18: ='CEM Data Lookup'!D13*100 -> 6.3 | P18: =IFERROR('CEM Data Lookup'!F13*100,"NA") -> 6.28872 | S18: 7.1 | V18: 1.75 | Y18: 8.85 | AA18: 0
A19: =Input!C12 -> AZO | B19: =VLOOKUP($A19,'CEM Data Lookup'!$A$4:$Q$56,2,FALSE) -> AutoZone Inc. | D19: =HLOOKUP(A19,'CEM PricesDivs'!$B$2:$BB$69,68,FALSE) -> 0 | G19: ='CEM Data Lookup'!E14*100 -> 12.5 | J19: =IFERROR('CEM Data Lookup'!C14*100, "NA") -> 13.2 | M19: ='CEM Data Lookup'!D14*100 -> 11.65 | P19: =IFERROR('CEM Data Lookup'!F14*100,"NA") -> 14.83031 | S19: 13.05 | V19: 0 | Y19: NA | AA19: 1
A20: =Input!C13 -> BAH | B20: =VLOOKUP($A20,'CEM Data Lookup'!$A$4:$Q$56,2,FALSE) -> Booz Allen Hamilton Corporation | D20: =HLOOKUP(A20,'CEM PricesDivs'!$B$2:$BB$69,68,FALSE) -> 1.33 | G20: ='CEM Data Lookup'!E15*100 -> 8.5 | J20: =IFERROR('CEM Data Lookup'!C15*100, "NA") -> 11.6 | M20: ='CEM Data Lookup'!D15*100 -> 11.6 | P20: =IFERROR('CEM Data Lookup'!F15*100,"NA") -> 11.31312 | S20: 10.75 | V20: 1.4 | Y20: 12.15 | AA20: 0
A21: =Input!C14 -> BRC | B21: =VLOOKUP($A21,'CEM Data Lookup'!$A$4:$Q$56,2,FALSE) -> Brady Corporation | D21: =HLOOKUP(A21,'CEM PricesDivs'!$B$2:$BB$69,68,FALSE) -> 1.42 | G21: ='CEM Data Lookup'!E16*100 -> 13 | J21: =IFERROR('CEM Data Lookup'!C16*100, "NA") -> 7.7 | M21: ='CEM Data Lookup'!D16*100 -> 7.7 | P21: =IFERROR('CEM Data Lookup'!F16*100,"NA") -> 9.36086 | S21: 9.44 | V21: 1.49 | Y21: 10.93 | AA21: 0
A22: =Input!C15 -> BFB | B22: =VLOOKUP($A22,'CEM Data Lookup'!$A$4:$Q$56,2,FALSE) -> Brown-Forman Corporation 'B' | D22: =HLOOKUP(A22,'CEM PricesDivs'!$B$2:$BB$69,68,FALSE) -> 1.95 | G22: ='CEM Data Lookup'!E17*100 -> 15 | J22: =IFERROR('CEM Data Lookup'!C17*100, "NA") -> NA | M22: ='CEM Data Lookup'!D17*100 -> -1.2 | P22: =IFERROR('CEM Data Lookup'!F17*100,"NA") -> -1.25602 | S22: =IFERROR(ROUND(AVERAGE(G22,J22),2),"NA") -> 15 | V22: 2.1 | Y22: 17.1 | AA22: 0
A23: =Input!C16 -> CACI | B23: =VLOOKUP($A23,'CEM Data Lookup'!$A$4:$Q$56,2,FALSE) -> CACI International | D23: =HLOOKUP(A23,'CEM PricesDivs'!$B$2:$BB$69,68,FALSE) -> 0 | G23: ='CEM Data Lookup'!E18*100 -> 7 | J23: =IFERROR('CEM Data Lookup'!C18*100, "NA") -> 10.4 | M23: ='CEM Data Lookup'!D18*100 -> 6.7 | P23: =IFERROR('CEM Data Lookup'!F18*100,"NA") -> 10.34604 | S23: 8.61 | V23: 0 | Y23: NA | AA23: 1
A24: =Input!C17 -> CWST | B24: =VLOOKUP($A24,'CEM Data Lookup'!$A$4:$Q$56,2,FALSE) -> Casella Waste Systems, Inc. | D24: =HLOOKUP(A24,'CEM PricesDivs'!$B$2:$BB$69,68,FALSE) -> 0 | G24: ='CEM Data Lookup'!E19*100 -> 4.5 | J24: =IFERROR('CEM Data Lookup'!C19*100, "NA") -> 20.1 | M24: ='CEM Data Lookup'!D19*100 -> 14.9 | P24: =IFERROR('CEM Data Lookup'!F19*100,"NA") -> 20.13971 | S24: 14.91 | V24: 0 | Y24: NA | AA24: 1
A25: =Input!C18 -> CASY | B25: =VLOOKUP($A25,'CEM Data Lookup'!$A$4:$Q$56,2,FALSE) -> Casey's General Stores, Inc. | D25: =HLOOKUP(A25,'CEM PricesDivs'!$B$2:$BB$69,68,FALSE) -> 0.56 | G25: ='CEM Data Lookup'!E20*100 -> 11 | J25: =IFERROR('CEM Data Lookup'!C20*100, "NA") -> 9.8 | M25: ='CEM Data Lookup'!D20*100 -> 10.95 | P25: =IFERROR('CEM Data Lookup'!F20*100,"NA") -> 14.71667 | S25: 11.62 | V25: 0.59 | Y25: 12.21 | AA25: 0
A26: =Input!C19 -> CTVA | B26: =VLOOKUP($A26,'CEM Data Lookup'!$A$4:$Q$56,2,FALSE) -> Corteva, Inc. | D26: =HLOOKUP(A26,'CEM PricesDivs'!$B$2:$BB$69,68,FALSE) -> 1.25 | G26: ='CEM Data Lookup'!E21*100 -> 9 | J26: =IFERROR('CEM Data Lookup'!C21*100, "NA") -> 13.3 | M26: ='CEM Data Lookup'!D21*100 -> 13.5 | P26: =IFERROR('CEM Data Lookup'!F21*100,"NA") -> 12.154 | S26: 11.99 | V26: 1.32 | Y26: 13.31 | AA26: 0
A27: =Input!C20 -> CSWI | B27: =VLOOKUP($A27,'CEM Data Lookup'!$A$4:$Q$56,2,FALSE) -> CSW Industrials | D27: =HLOOKUP(A27,'CEM PricesDivs'!$B$2:$BB$69,68,FALSE) -> 0.31 | G27: ='CEM Data Lookup'!E22*100 -> 10 | J27: =IFERROR('CEM Data Lookup'!C22*100, "NA") -> 15 | M27: ='CEM Data Lookup'!D22*100 -> 12 | P27: =IFERROR('CEM Data Lookup'!F22*100,"NA") -> 15 | S27: 13 | V27: 0.33 | Y27: 13.33 | AA27: 0
A28: =Input!C21 -> DHR | B28: =VLOOKUP($A28,'CEM Data Lookup'!$A$4:$Q$56,2,FALSE) -> Danaher Corporation | D28: =HLOOKUP(A28,'CEM PricesDivs'!$B$2:$BB$69,68,FALSE) -> 0.42 | G28: ='CEM Data Lookup'!E23*100 -> 6.5 | J28: =IFERROR('CEM Data Lookup'!C23*100, "NA") -> 8 | M28: ='CEM Data Lookup'!D23*100 -> 6.98 | P28: =IFERROR('CEM Data Lookup'!F23*100,"NA") -> 7.33343 | S28: 7.2 | V28: 0.44 | Y28: 7.64 | AA28: 0
A29: =Input!C22 -> DLB | B29: =VLOOKUP($A29,'CEM Data Lookup'!$A$4:$Q$56,2,FALSE) -> Dolby Laboratories | D29: =HLOOKUP(A29,'CEM PricesDivs'!$B$2:$BB$69,68,FALSE) -> 1.5 | G29: ='CEM Data Lookup'!E24*100 -> 9.5 | J29: =IFERROR('CEM Data Lookup'!C24*100, "NA") -> NA | M29: ='CEM Data Lookup'!D24*100 -> 16 | P29: =IFERROR('CEM Data Lookup'!F24*100,"NA") -> NA | S29: 12.75 | V29: 1.6 | Y29: 14.35 | AA29: 0
A30: =Input!C23 -> FAST | B30: =VLOOKUP($A30,'CEM Data Lookup'!$A$4:$Q$56,2,FALSE) -> Fastenal Company | D30: =HLOOKUP(A30,'CEM PricesDivs'!$B$2:$BB$69,68,FALSE) -> 2.37 | G30: ='CEM Data Lookup'!E25*100 -> 9 | J30: =IFERROR('CEM Data Lookup'!C25*100, "NA") -> 9 | M30: ='CEM Data Lookup'!D25*100 -> 6.33 | P30: =IFERROR('CEM Data Lookup'!F25*100,"NA") -> NA | S30: 8.11 | V30: 2.47 | Y30: 10.58 | AA30: 0
A31: =Input!C24 -> GATX | B31: =VLOOKUP($A31,'CEM Data Lookup'!$A$4:$Q$56,2,FALSE) -> GATX Corporation | D31: =HLOOKUP(A31,'CEM PricesDivs'!$B$2:$BB$69,68,FALSE) -> 1.71 | G31: ='CEM Data Lookup'!E26*100 -> 11.5 | J31: =IFERROR('CEM Data Lookup'!C26*100, "NA") -> NA | M31: ='CEM Data Lookup'!D26*100 -> 12 | P31: =IFERROR('CEM Data Lookup'!F26*100,"NA") -> NA | S31: 11.75 | V31: 1.81 | Y31: 13.56 | AA31: 0
A32: =Input!C25 -> IOSP | B32: =VLOOKUP($A32,'CEM Data Lookup'!$A$4:$Q$56,2,FALSE) -> Innospec Inc. | D32: =HLOOKUP(A32,'CEM PricesDivs'!$B$2:$BB$69,68,FALSE) -> 1.2 | G32: ='CEM Data Lookup'!E27*100 -> 13 | J32: =IFERROR('CEM Data Lookup'!C27*100, "NA") -> NA | M32: ='CEM Data Lookup'!D27*100 -> 7.5 | P32: =IFERROR('CEM Data Lookup'!F27*100,"NA") -> 7.5 | S32: 9.33 | V32: 1.26 | Y32: 10.59 | AA32: 0
A33: =Input!C26 -> JBHT | B33: =VLOOKUP($A33,'CEM Data Lookup'!$A$4:$Q$56,2,FALSE) -> J. B. Hunt Transport Services | D33: =HLOOKUP(A33,'CEM PricesDivs'!$B$2:$BB$69,68,FALSE) -> 1.06 | G33: ='CEM Data Lookup'!E28*100 -> 7.5 | J33: =IFERROR('CEM Data Lookup'!C28*100, "NA") -> 10.4 | M33: ='CEM Data Lookup'!D28*100 -> 7.6 | P33: =IFERROR('CEM Data Lookup'!F28*100,"NA") -> 11.14836 | S33: 9.16 | V33: 1.11 | Y33: 10.27 | AA33: 0
A34: =Input!C27 -> JKHY | B34: =VLOOKUP($A34,'CEM Data Lookup'!$A$4:$Q$56,2,FALSE) -> Jack Henry & Associates, Inc. | D34: =HLOOKUP(A34,'CEM PricesDivs'!$B$2:$BB$69,68,FALSE) -> 1.33 | G34: ='CEM Data Lookup'!E29*100 -> 6.5 | J34: =IFERROR('CEM Data Lookup'!C29*100, "NA") -> 7.5 | M34: ='CEM Data Lookup'!D29*100 -> 7.5 | P34: =IFERROR('CEM Data Lookup'!F29*100,"NA") -> 8.2318 | S34: 7.43 | V34: 1.38 | Y34: 8.81 | AA34: 0
A35: =Input!C28 -> JNPR | B35: =VLOOKUP($A35,'CEM Data Lookup'!$A$4:$Q$56,2,FALSE) -> Juniper Networks, Inc. | D35: =HLOOKUP(A35,'CEM PricesDivs'!$B$2:$BB$69,68,FALSE) -> 2.45 | G35: ='CEM Data Lookup'!E30*100 -> 7.5 | J35: =IFERROR('CEM Data Lookup'!C30*100, "NA") -> 3.6 | M35: ='CEM Data Lookup'!D30*100 -> 11 | P35: =IFERROR('CEM Data Lookup'!F30*100,"NA") -> 13.18638 | S35: 8.82 | V35: 2.56 | Y35: 11.38 | AA35: 0
A36: =Input!C29 -> LHX | B36: =VLOOKUP($A36,'CEM Data Lookup'!$A$4:$Q$56,2,FALSE) -> L3Harris Technologies, Inc. | D36: =HLOOKUP(A36,'CEM PricesDivs'!$B$2:$BB$69,68,FALSE) -> 2.06 | G36: ='CEM Data Lookup'!E31*100 -> 9.5 | J36: =IFERROR('CEM Data Lookup'!C31*100, "NA") -> 9.3 | M36: ='CEM Data Lookup'!D31*100 -> 9.24 | P36: =IFERROR('CEM Data Lookup'!F31*100,"NA") -> 9.16903 | S36: 9.3 | V36: 2.16 | Y36: 11.46 | AA36: 0
A37: =Input!C30 -> LMT | B37: =VLOOKUP($A37,'CEM Data Lookup'!$A$4:$Q$56,2,FALSE) -> Lockheed Martin Corporation | D37: =HLOOKUP(A37,'CEM PricesDivs'!$B$2:$BB$69,68,FALSE) -> 2.67 | G37: ='CEM Data Lookup'!E32*100 -> 9.5 | J37: =IFERROR('CEM Data Lookup'!C32*100, "NA") -> 4.4 | M37: ='CEM Data Lookup'!D32*100 -> 4.8 | P37: =IFERROR('CEM Data Lookup'!F32*100,"NA") -> 3.00678 | S37: 5.43 | V37: 2.74 | Y37: 8.17 | AA37: 0
A38: =Input!C31 -> MCK | B38: =VLOOKUP($A38,'CEM Data Lookup'!$A$4:$Q$56,2,FALSE) -> McKesson Corporation | D38: =HLOOKUP(A38,'CEM PricesDivs'!$B$2:$BB$69,68,FALSE) -> 0.43 | G38: ='CEM Data Lookup'!E33*100 -> 8 | J38: =IFERROR('CEM Data Lookup'!C33*100, "NA") -> 13.6 | M38: ='CEM Data Lookup'!D33*100 -> 11.76 | P38: =IFERROR('CEM Data Lookup'!F33*100,"NA") -> 12.40491 | S38: 11.44 | V38: 0.45 | Y38: 11.89 | AA38: 0
A39: =Input!C32 -> MSFT | B39: =VLOOKUP($A39,'CEM Data Lookup'!$A$4:$Q$56,2,FALSE) -> Microsoft Corporation | D39: =HLOOKUP(A39,'CEM PricesDivs'!$B$2:$BB$69,68,FALSE) -> 0.69 | G39: ='CEM Data Lookup'!E34*100 -> 14 | J39: =IFERROR('CEM Data Lookup'!C34*100, "NA") -> 16 | M39: ='CEM Data Lookup'!D34*100 -> 16.19 | P39: =IFERROR('CEM Data Lookup'!F34*100,"NA") -> 13.4825 | S39: 14.92 | V39: 0.74 | Y39: 15.66 | AA39: 0
A40: =Input!C33 -> MSA | B40: =VLOOKUP($A40,'CEM Data Lookup'!$A$4:$Q$56,2,FALSE) -> MSA Safety Incorporated | D40: =HLOOKUP(A40,'CEM PricesDivs'!$B$2:$BB$69,68,FALSE) -> 1.1 | G40: ='CEM Data Lookup'!E35*100 -> 8.5 | J40: =IFERROR('CEM Data Lookup'!C35*100, "NA") -> NA | M40: ='CEM Data Lookup'!D35*100 -> 18 | P40: =IFERROR('CEM Data Lookup'!F35*100,"NA") -> NA | S40: 13.25 | V40: 1.17 | Y40: 14.42 | AA40: 0
A41: =Input!C34 -> MSM | B41: =VLOOKUP($A41,'CEM Data Lookup'!$A$4:$Q$56,2,FALSE) -> MSC Industrial Direct Co., Inc. | D41: =HLOOKUP(A41,'CEM PricesDivs'!$B$2:$BB$69,68,FALSE) -> 3.92 | G41: ='CEM Data Lookup'!E36*100 -> 5 | J41: =IFERROR('CEM Data Lookup'!C36*100, "NA") -> NA | M41: ='CEM Data Lookup'!D36*100 -> 9.12 | P41: =IFERROR('CEM Data Lookup'!F36*100,"NA") -> NA | S41: 7.06 | V41: 4.06 | Y41: 11.12 | AA41: 0
A42: =Input!C35 -> ORCL | B42: =VLOOKUP($A42,'CEM Data Lookup'!$A$4:$Q$56,2,FALSE) -> Oracle Corporation | D42: =HLOOKUP(A42,'CEM PricesDivs'!$B$2:$BB$69,68,FALSE) -> 1.21 | G42: ='CEM Data Lookup'!E37*100 -> 10 | J42: =IFERROR('CEM Data Lookup'!C37*100, "NA") -> 11 | M42: ='CEM Data Lookup'!D37*100 -> 10.61 | P42: =IFERROR('CEM Data Lookup'!F37*100,"NA") -> 11.81683 | S42: 10.86 | V42: 1.28 | Y42: 12.14 | AA42: 0
A43: =Input!C36 -> ORLY | B43: =VLOOKUP($A43,'CEM Data Lookup'!$A$4:$Q$56,2,FALSE) -> O'Reilly Automotive, Inc. | D43: =HLOOKUP(A43,'CEM PricesDivs'!$B$2:$BB$69,68,FALSE) -> 0 | G43: ='CEM Data Lookup'!E38*100 -> 10.5 | J43: =IFERROR('CEM Data Lookup'!C38*100, "NA") -> 12.8 | M43: ='CEM Data Lookup'!D38*100 -> 11.1 | P43: =IFERROR('CEM Data Lookup'!F38*100,"NA") -> 12.8022 | S43: 11.8 | V43: 0 | Y43: NA | AA43: 1
A44: =Input!C37 -> OSIS | B44: =VLOOKUP($A44,'CEM Data Lookup'!$A$4:$Q$56,2,FALSE) -> OSI Systems, Inc. | D44: =HLOOKUP(A44,'CEM PricesDivs'!$B$2:$BB$69,68,FALSE) -> 0 | G44: ='CEM Data Lookup'!E39*100 -> 10.5 | J44: =IFERROR('CEM Data Lookup'!C39*100, "NA") -> 11 | M44: ='CEM Data Lookup'!D39*100 -> 8 | P44: =IFERROR('CEM Data Lookup'!F39*100,"NA") -> 12.25 | S44: 10.44 | V44: 0 | Y44: NA | AA44: 1
A45: =Input!C38 -> PKG | B45: =VLOOKUP($A45,'CEM Data Lookup'!$A$4:$Q$56,2,FALSE) -> Packaging Corporation of America | D45: =HLOOKUP(A45,'CEM PricesDivs'!$B$2:$BB$69,68,FALSE) -> 2.71 | G45: ='CEM Data Lookup'!E40*100 -> 9 | J45: =IFERROR('CEM Data Lookup'!C40*100, "NA") -> 4.4 | M45: ='CEM Data Lookup'!D40*100 -> -14.29 | P45: =IFERROR('CEM Data Lookup'!F40*100,"NA") -> 8.41464 | S45: =IFERROR(ROUND(AVERAGE(G45,J45,P45),2),"NA") -> 7.27 | V45: 2.81 | Y45: 10.08 | AA45: 0
A46: =Input!C39 -> PFE | B46: =VLOOKUP($A46,'CEM Data Lookup'!$A$4:$Q$56,2,FALSE) -> Pfizer, Inc. | D46: =HLOOKUP(A46,'CEM PricesDivs'!$B$2:$BB$69,68,FALSE) -> 5.86 | G46: ='CEM Data Lookup'!E41*100 -> 2.5 | J46: =IFERROR('CEM Data Lookup'!C41*100, "NA") -> 10.7 | M46: ='CEM Data Lookup'!D41*100 -> 15.02 | P46: =IFERROR('CEM Data Lookup'!F41*100,"NA") -> 8.99301 | S46: 9.3 | V46: 6.13 | Y46: 15.43 | AA46: 0
A47: =Input!C40 -> PM | B47: =VLOOKUP($A47,'CEM Data Lookup'!$A$4:$Q$56,2,FALSE) -> Philip Morris International Inc. | D47: =HLOOKUP(A47,'CEM PricesDivs'!$B$2:$BB$69,68,FALSE) -> 5.03 | G47: ='CEM Data Lookup'!E42*100 -> 5 | J47: =IFERROR('CEM Data Lookup'!C42*100, "NA") -> 7.8 | M47: ='CEM Data Lookup'!D42*100 -> 9.36 | P47: =IFERROR('CEM Data Lookup'!F42*100,"NA") -> 9.39135 | S47: 7.89 | V47: 5.23 | Y47: 13.12 | AA47: 0
A48: =Input!C41 -> PBH | B48: =VLOOKUP($A48,'CEM Data Lookup'!$A$4:$Q$56,2,FALSE) -> Prestige Consumer Healthcare Inc. | D48: =HLOOKUP(A48,'CEM PricesDivs'!$B$2:$BB$69,68,FALSE) -> 0 | G48: ='CEM Data Lookup'!E43*100 -> 7 | J48: =IFERROR('CEM Data Lookup'!C43*100, "NA") -> 8 | M48: ='CEM Data Lookup'!D43*100 -> 8 | P48: =IFERROR('CEM Data Lookup'!F43*100,"NA") -> 8.5 | S48: 7.88 | V48: 0 | Y48: NA | AA48: 1
A49: =Input!C42 -> SIGI | B49: =VLOOKUP($A49,'CEM Data Lookup'!$A$4:$Q$56,2,FALSE) -> Selective Insurance Group, Inc. | D49: =HLOOKUP(A49,'CEM PricesDivs'!$B$2:$BB$69,68,FALSE) -> 1.49 | G49: ='CEM Data Lookup'!E44*100 -> 16.5 | J49: =IFERROR('CEM Data Lookup'!C44*100, "NA") -> 16 | M49: ='CEM Data Lookup'!D44*100 -> 16.55 | P49: =IFERROR('CEM Data Lookup'!F44*100,"NA") -> 16.5633 | S49: 16.4 | V49: 1.61 | Y49: 18.01 | Z49: (3) | AA49: 1
A50: =Input!C43 -> SXT | B50: =VLOOKUP($A50,'CEM Data Lookup'!$A$4:$Q$56,2,FALSE) -> Sensient Technologies Corporation | D50: =HLOOKUP(A50,'CEM PricesDivs'!$B$2:$BB$69,68,FALSE) -> 2.15 | G50: ='CEM Data Lookup'!E45*100 -> 2.5 | J50: =IFERROR('CEM Data Lookup'!C45*100, "NA") -> NA | M50: ='CEM Data Lookup'!D45*100 -> 3.8 | P50: =IFERROR('CEM Data Lookup'!F45*100,"NA") -> 15 | S50: 7.1 | V50: 2.23 | Y50: 9.33 | AA50: 0
A51: =Input!C44 -> SCI | B51: =VLOOKUP($A51,'CEM Data Lookup'!$A$4:$Q$56,2,FALSE) -> Service Corporation International | D51: =HLOOKUP(A51,'CEM PricesDivs'!$B$2:$BB$69,68,FALSE) -> 1.67 | G51: ='CEM Data Lookup'!E46*100 -> 5.5 | J51: =IFERROR('CEM Data Lookup'!C46*100, "NA") -> 10.1 | M51: ='CEM Data Lookup'!D46*100 -> 12 | P51: =IFERROR('CEM Data Lookup'!F46*100,"NA") -> 10.11833 | S51: 9.43 | V51: 1.75 | Y51: 11.18 | AA51: 0
A52: =Input!C45 -> SHW | B52: =VLOOKUP($A52,'CEM Data Lookup'!$A$4:$Q$56,2,FALSE) -> Sherwin-Williams Company | D52: =HLOOKUP(A52,'CEM PricesDivs'!$B$2:$BB$69,68,FALSE) -> 0.92 | G52: ='CEM Data Lookup'!E47*100 -> 11 | J52: =IFERROR('CEM Data Lookup'!C47*100, "NA") -> 11.1 | M52: ='CEM Data Lookup'!D47*100 -> 11.32 | P52: =IFERROR('CEM Data Lookup'!F47*100,"NA") -> 10.3234 | S52: 10.94 | V52: 0.97 | Y52: 11.91 | AA52: 0
A53: =Input!C46 -> AOS | B53: =VLOOKUP($A53,'CEM Data Lookup'!$A$4:$Q$56,2,FALSE) -> Smith (A.O.) Corporation | D53: =HLOOKUP(A53,'CEM PricesDivs'!$B$2:$BB$69,68,FALSE) -> 1.52 | G53: ='CEM Data Lookup'!E48*100 -> 9 | J53: =IFERROR('CEM Data Lookup'!C48*100, "NA") -> 9 | M53: ='CEM Data Lookup'!D48*100 -> 10 | P53: =IFERROR('CEM Data Lookup'!F48*100,"NA") -> 10 | S53: 9.5 | V53: 1.59 | Y53: 11.09 | AA53: 0
A54: =Input!C47 -> TXN | B54: =VLOOKUP($A54,'CEM Data Lookup'!$A$4:$Q$56,2,FALSE) -> Texas Instruments Incorporated | D54: =HLOOKUP(A54,'CEM PricesDivs'!$B$2:$BB$69,68,FALSE) -> 2.64 | G54: ='CEM Data Lookup'!E49*100 -> 3 | J54: =IFERROR('CEM Data Lookup'!C49*100, "NA") -> 9 | M54: ='CEM Data Lookup'!D49*100 -> -2.8 | P54: =IFERROR('CEM Data Lookup'!F49*100,"NA") -> 3.63437 | S54: =IFERROR(ROUND(AVERAGE(G54,J54,P54),2),"NA") -> 5.21 | V54: 2.71 | Y54: 7.92 | AA54: 0
A55: =Input!C48 -> TMO | B55: =VLOOKUP($A55,'CEM Data Lookup'!$A$4:$Q$56,2,FALSE) -> Thermo Fisher Scientific Inc. | D55: =HLOOKUP(A55,'CEM PricesDivs'!$B$2:$BB$69,68,FALSE) -> 0.27 | G55: ='CEM Data Lookup'!E50*100 -> 6 | J55: =IFERROR('CEM Data Lookup'!C50*100, "NA") -> 9.9 | M55: ='CEM Data Lookup'!D50*100 -> 6.77 | P55: =IFERROR('CEM Data Lookup'!F50*100,"NA") -> 9.32144 | S55: 8 | V55: 0.28 | Y55: 8.28 | AA55: 0
A56: =Input!C49 -> UNF | B56: =VLOOKUP($A56,'CEM Data Lookup'!$A$4:$Q$56,2,FALSE) -> UniFirst Corporation | D56: =HLOOKUP(A56,'CEM PricesDivs'!$B$2:$BB$69,68,FALSE) -> 0.79 | G56: ='CEM Data Lookup'!E51*100 -> 9.5 | J56: =IFERROR('CEM Data Lookup'!C51*100, "NA") -> NA | M56: ='CEM Data Lookup'!D51*100 -> 7.8 | P56: =IFERROR('CEM Data Lookup'!F51*100,"NA") -> NA | S56: 8.65 | V56: 0.82 | Y56: 9.47 | AA56: 0
A57: =Input!C50 -> UNH | B57: =VLOOKUP($A57,'CEM Data Lookup'!$A$4:$Q$56,2,FALSE) -> UnitedHealth Group Incorporated | D57: =HLOOKUP(A57,'CEM PricesDivs'!$B$2:$BB$69,68,FALSE) -> 1.64 | G57: ='CEM Data Lookup'!E52*100 -> 12 | J57: =IFERROR('CEM Data Lookup'!C52*100, "NA") -> 13 | M57: ='CEM Data Lookup'!D52*100 -> 12.38 | P57: =IFERROR('CEM Data Lookup'!F52*100,"NA") -> 10.84438 | S57: 12.06 | V57: 1.74 | Y57: 13.8 | AA57: 0
A58: =Input!C51 -> VRSN | B58: =VLOOKUP($A58,'CEM Data Lookup'!$A$4:$Q$56,2,FALSE) -> VeriSign Inc. | D58: =HLOOKUP(A58,'CEM PricesDivs'!$B$2:$BB$69,68,FALSE) -> 0 | G58: ='CEM Data Lookup'!E53*100 -> 12 | J58: =IFERROR('CEM Data Lookup'!C53*100, "NA") -> NA | M58: ='CEM Data Lookup'!D53*100 -> 8 | P58: =IFERROR('CEM Data Lookup'!F53*100,"NA") -> NA | S58: 10 | V58: 0 | Y58: NA | AA58: 1
A59: =Input!C52 -> VRSK | B59: =VLOOKUP($A59,'CEM Data Lookup'!$A$4:$Q$56,2,FALSE) -> Verisk Analytics, Inc. | D59: =HLOOKUP(A59,'CEM PricesDivs'!$B$2:$BB$69,68,FALSE) -> 0.59 | G59: ='CEM Data Lookup'!E54*100 -> 8.5 | J59: =IFERROR('CEM Data Lookup'!C54*100, "NA") -> 12.3 | M59: ='CEM Data Lookup'!D54*100 -> 12.58 | P59: =IFERROR('CEM Data Lookup'!F54*100,"NA") -> 12.02403 | S59: 11.35 | V59: 0.62 | Y59: 11.97 | AA59: 0
A60: =Input!C53 -> WAT | B60: =VLOOKUP($A60,'CEM Data Lookup'!$A$4:$Q$56,2,FALSE) -> Waters Corporation | D60: =HLOOKUP(A60,'CEM PricesDivs'!$B$2:$BB$69,68,FALSE) -> 0 | G60: ='CEM Data Lookup'!E55*100 -> 6.5 | J60: =IFERROR('CEM Data Lookup'!C55*100, "NA") -> 5.3 | M60: ='CEM Data Lookup'!D55*100 -> 5.54 | P60: =IFERROR('CEM Data Lookup'!F55*100,"NA") -> 5.7597 | S60: 5.77 | V60: 0 | Y60: NA | AA60: 1
A61: =Input!C54 -> WSO | B61: =VLOOKUP($A61,'CEM Data Lookup'!$A$4:$Q$56,2,FALSE) -> Watsco, Inc. | D61: =HLOOKUP(A61,'CEM PricesDivs'!$B$2:$BB$69,68,FALSE) -> 2.25 | G61: ='CEM Data Lookup'!E56*100 -> 9 | J61: =IFERROR('CEM Data Lookup'!C56*100, "NA") -> NA | M61: ='CEM Data Lookup'!D56*100 -> 4.42 | P61: =IFERROR('CEM Data Lookup'!F56*100,"NA") -> NA | S61: 6.71 | V61: 2.33 | Y61: 9.04 | AA61: 0
V63: Mean | Y63: =ROUND(AVERAGE(Y8:Y11,Y13:Y48,Y50:Y61),2) -> 11.32 | Z63: %
V65: Median | Y65: =ROUND(MEDIAN(Y8:Y11,Y13:Y48,Y50:Y61),2) -> 11.25 | Z65: %
V67: Average of Mean and Median | Y67: =ROUND(AVERAGE(Y63:Y65),2) -> 11.29 | Z67: %
C69: NA= Not Available
C70: NMF= Not Meaningful Figure
C72: (1) | D72: Average of columns 2 through 5 excluding negative growth rates.
C73: (2) | D73: The application of the DCF model to the domestic, non-price regulated comparable risk companies is identical to the application of the DCF to the Utility Proxy Group. The dividend yield is derived by using the 60 day average price and the spot indicated dividend as of July 31, 2024. The dividend yield is then adjusted by 1/2 the average projected growth rate in EPS, which is calculated by averaging the 5 year projected growth in EPS provided by Value Line, www.zacks.com, www.yahoo.com and S&P Capital IQ (excluding any negative growth rates) and then adding that growth rate to the adjusted dividend yield.
C74: (3) | D74: Results were excluded from the final average and median as they were more than two standard deviations from the proxy group's mean.
B76: Source of Information: | C76: Value Line Investment Survey
C77: =CONCATENATE("www.zacks.com Downloaded on ",TEXT(Input!E2,"mm/dd/yyyy")) -> www.zacks.com Downloaded on 07/31/2024
C78: =CONCATENATE("www.yahoo.com Downloaded on ",TEXT(Input!E2,"mm/dd/yyyy")) -> www.yahoo.com Downloaded on 07/31/2024
C79: S&P Capital IQ

Sheet 6.3 CEM RPM Summary
A1: =Input!G28 -> Atmos Energy Corporation
A2: Indicated Common Equity Cost Rate
A3: Through Use of a Risk Premium Model
A4: Using an Adjusted Total Market Approach
A6: Line No. | H6: ='6.2 CEM DCF'!B7 -> Proxy Group of Fifty-Three Non-Price Regulated Companies | K6: ='6.1 CEM Summary'!I7 -> Proxy Group of Fifty-Three Non-Price Regulated Companies (excl. PRPM)
A9: 1. | C9: Prospective Yield on Baa2 Rated
C10: Corporate Bonds (1) | H10: =$H$34 -> 5.96 | I10: % | K10: =H10 -> 5.96 | L10: %
A12: 2. | C12: Adjustment to Reflect Bond rating Difference
C13: of Non-Price Regulated Companies (2) | H13: =-H47 -> -0.2133333333 | K13: =H13 -> -0.2133333333
A15: 3. | C15: Adjusted Prospective Bond Yield | H15: =SUM(H10,H13) -> 5.746666667 | I15: % | K15: =SUM(K10,K13) -> 5.746666667 | L15: %
A17: 4. | C17: Equity Risk Premium (3) | H17: ='6.5 CEM Beta Adjusted RP'!F23 -> 6.78 | K17: ='6.5 CEM Beta Adjusted RP'!H23 -> 6.69
A19: 5. | C19: Risk Premium Derived Common
C20: Equity Cost Rate | H20: =SUM(H15,H17) -> 12.52666667 | I20: % | K20: =SUM(K15,K17) -> 12.43666667 | L20: %
A23: Notes: | B23: (1) | C23: Average forecast of Baa2 corporate bonds based upon the consensus of nearly 50 economists reported in Blue Chip Financial Forecasts dated August 1, 2024 and May 31, 2024 (see pages 7 and 8 of Schedule DWD-3). The estimates are detailed below.
D25: ='MRP WP1'!B28 -> Third Quarter 2024 | H25: ='MRP WP1'!O28 -> 5.9 | I25: %
D26: ='MRP WP1'!B29 -> Fourth Quarter 2024 | H26: ='MRP WP1'!O29 -> 5.9
D27: ='MRP WP1'!B30 -> First Quarter 2025 | H27: ='MRP WP1'!O30 -> 5.9
D28: ='MRP WP1'!B31 -> Second Quarter 2025 | H28: ='MRP WP1'!O31 -> 5.9
D29: ='MRP WP1'!B32 -> Third Quarter 2025 | H29: ='MRP WP1'!O32 -> 5.9
D30: ='MRP WP1'!B33 -> Fourth Quarter 2025 | H30: ='MRP WP1'!O33 -> 5.9
D31: ='MRP WP1'!B34 -> 2026-2030 | H31: ='MRP WP1'!O34 -> 6.1
D32: ='MRP WP1'!B35 -> 2031-2035 | H32: ='MRP WP1'!O35 -> 6.2
D34: Average | H34: =ROUND(AVERAGE(H25:H32),2) -> 5.96 | I34: %
B36: (2) | C36: The average yield spread of Baa rated corporate bonds over A corporate bonds for the three months ending July 2024 . To reflect the A3 average rating of the non-utility proxy group, the prosepctive yield on Baa corporate bonds must be adjusted by 2/3 of the spread between A and Baa corporate bond yields as shown below:
D41: A Corp. Bond Yield | F41: Baa Corp. Bond Yield
H42: Spread
C43: ='Market Data'!B1 -> 2024-07-31 | D43: ='Market Data'!B7 -> 5.46 | E43: % | F43: ='Market Data'!B8 -> 5.77 | G43: % | H43: =F43-D43 -> 0.31 | I43: %
C44: ='Market Data'!C1 -> 2024-06-28 | D44: ='Market Data'!C7 -> 5.5 | F44: ='Market Data'!C8 -> 5.82 | H44: =F44-D44 -> 0.32
C45: ='Market Data'!D1 -> 2024-05-31 | D45: ='Market Data'!D7 -> 5.62 | F45: ='Market Data'!D8 -> 5.95 | H45: =F45-D45 -> 0.33
F46: Average yield spread | H46: =AVERAGE(H43:H45) -> 0.32 | I46: %
F47: 2/3 of spread | H47: =H46*(2/3) -> 0.2133333333 | I47: %
B49: (3) | C49: From page 5 of this Schedule.

Sheet 6.4 CEM RPM Bond Ratings
B1: =Input!G28 -> Atmos Energy Corporation
B2: Comparison of Long-Term Issuer Ratings for the
B3: =CONCATENATE('6.3 CEM RPM Summary'!H6," of Comparable risk to the") -> Proxy Group of Fifty-Three Non-Price Regulated Companies of Comparable risk to the
B4: ='6.2 CEM DCF'!B3 -> Proxy Group of Six Natural Gas Distribution Companies
D7: Moody's | H7: Standard & Poor's
D8: Long-Term Issuer Rating | H8: =D8 -> Long-Term Issuer Rating
D9: =TEXT(Input!E2, "mmmm yyyy") -> July 2024 | H9: =D9 -> July 2024
B12: ='6.3 CEM RPM Summary'!H6 -> Proxy Group of Fifty-Three Non-Price Regulated Companies | D12: Long-Term Issuer Rating | F12: Numerical Weighting (1) | H12: =D12 -> Long-Term Issuer Rating | J12: Numerical Weighting (1)
A14: =Input!C2 -> ABT | B14: =VLOOKUP($A14,'CEM Data Lookup'!$A$4:$Q$56,2,FALSE) -> Abbott Laboratories | D14: ='CEM Data Lookup'!J4 -> Aa3 | F14: =IFERROR(VLOOKUP('6.4 CEM RPM Bond Ratings'!D14,'3.4 MOODY_S&P numbericl'!B:D,3,FALSE),"--") -> 4 | H14: ='CEM Data Lookup'!K4 -> AA- | J14: =IFERROR(VLOOKUP(H14,'3.4 MOODY_S&P numbericl'!F:H,3,FALSE),"--") -> 4
A15: =Input!C3 -> A | B15: =VLOOKUP($A15,'CEM Data Lookup'!$A$4:$Q$56,2,FALSE) -> Agilent Technologies, Inc. | D15: ='CEM Data Lookup'!J5 -> Baa1 | F15: =IFERROR(VLOOKUP('6.4 CEM RPM Bond Ratings'!D15,'3.4 MOODY_S&P numbericl'!B:D,3,FALSE),"--") -> 8 | H15: ='CEM Data Lookup'!K5 -> BBB+ | J15: =IFERROR(VLOOKUP(H15,'3.4 MOODY_S&P numbericl'!F:H,3,FALSE),"--") -> 8
A16: =Input!C4 -> APD | B16: =VLOOKUP($A16,'CEM Data Lookup'!$A$4:$Q$56,2,FALSE) -> Air Products and Chemicals, Inc. | D16: ='CEM Data Lookup'!J6 -> A2 | F16: =IFERROR(VLOOKUP('6.4 CEM RPM Bond Ratings'!D16,'3.4 MOODY_S&P numbericl'!B:D,3,FALSE),"--") -> 6 | H16: ='CEM Data Lookup'!K6 -> A | J16: =IFERROR(VLOOKUP(H16,'3.4 MOODY_S&P numbericl'!F:H,3,FALSE),"--") -> 6
A17: =Input!C5 -> ALL | B17: =VLOOKUP($A17,'CEM Data Lookup'!$A$4:$Q$56,2,FALSE) -> Allstate Corporation (The) | D17: ='CEM Data Lookup'!J7 -> A3 | F17: =IFERROR(VLOOKUP('6.4 CEM RPM Bond Ratings'!D17,'3.4 MOODY_S&P numbericl'!B:D,3,FALSE),"--") -> 7 | H17: ='CEM Data Lookup'!K7 -> BBB+ | J17: =IFERROR(VLOOKUP(H17,'3.4 MOODY_S&P numbericl'!F:H,3,FALSE),"--") -> 8
A18: =Input!C6 -> GOOG | B18: =VLOOKUP($A18,'CEM Data Lookup'!$A$4:$Q$56,2,FALSE) -> Alphabet Inc. | D18: ='CEM Data Lookup'!J8 -> Aa2 | F18: =IFERROR(VLOOKUP('6.4 CEM RPM Bond Ratings'!D18,'3.4 MOODY_S&P numbericl'!B:D,3,FALSE),"--") -> 3 | H18: ='CEM Data Lookup'!K8 -> AA+ | J18: =IFERROR(VLOOKUP(H18,'3.4 MOODY_S&P numbericl'!F:H,3,FALSE),"--") -> 2
A19: =Input!C7 -> MO | B19: =VLOOKUP($A19,'CEM Data Lookup'!$A$4:$Q$56,2,FALSE) -> Altria Group, Inc. | D19: ='CEM Data Lookup'!J9 -> A3 | F19: =IFERROR(VLOOKUP('6.4 CEM RPM Bond Ratings'!D19,'3.4 MOODY_S&P numbericl'!B:D,3,FALSE),"--") -> 7 | H19: ='CEM Data Lookup'!K9 -> BBB | J19: =IFERROR(VLOOKUP(H19,'3.4 MOODY_S&P numbericl'!F:H,3,FALSE),"--") -> 9
A20: =Input!C8 -> ADI | B20: =VLOOKUP($A20,'CEM Data Lookup'!$A$4:$Q$56,2,FALSE) -> Analog Devices, Inc. | D20: ='CEM Data Lookup'!J10 -> A2 | F20: =IFERROR(VLOOKUP('6.4 CEM RPM Bond Ratings'!D20,'3.4 MOODY_S&P numbericl'!B:D,3,FALSE),"--") -> 6 | H20: ='CEM Data Lookup'!K10 -> A- | J20: =IFERROR(VLOOKUP(H20,'3.4 MOODY_S&P numbericl'!F:H,3,FALSE),"--") -> 7
A21: =Input!C9 -> AAPL | B21: =VLOOKUP($A21,'CEM Data Lookup'!$A$4:$Q$56,2,FALSE) -> Apple Inc. | D21: ='CEM Data Lookup'!J11 -> Aaa | F21: =IFERROR(VLOOKUP('6.4 CEM RPM Bond Ratings'!D21,'3.4 MOODY_S&P numbericl'!B:D,3,FALSE),"--") -> 1 | H21: ='CEM Data Lookup'!K11 -> AA+ | J21: =IFERROR(VLOOKUP(H21,'3.4 MOODY_S&P numbericl'!F:H,3,FALSE),"--") -> 2
A22: =Input!C10 -> ADM | B22: =VLOOKUP($A22,'CEM Data Lookup'!$A$4:$Q$56,2,FALSE) -> Archer Daniels-Midlan Company | D22: ='CEM Data Lookup'!J12 -> A2 | F22: =IFERROR(VLOOKUP('6.4 CEM RPM Bond Ratings'!D22,'3.4 MOODY_S&P numbericl'!B:D,3,FALSE),"--") -> 6 | H22: ='CEM Data Lookup'!K12 -> A | J22: =IFERROR(VLOOKUP(H22,'3.4 MOODY_S&P numbericl'!F:H,3,FALSE),"--") -> 6
A23: =Input!C11 -> AIZ | B23: =VLOOKUP($A23,'CEM Data Lookup'!$A$4:$Q$56,2,FALSE) -> Assurant Inc. | D23: ='CEM Data Lookup'!J13 -> Baa2 | F23: =IFERROR(VLOOKUP('6.4 CEM RPM Bond Ratings'!D23,'3.4 MOODY_S&P numbericl'!B:D,3,FALSE),"--") -> 9 | H23: ='CEM Data Lookup'!K13 -> BBB | J23: =IFERROR(VLOOKUP(H23,'3.4 MOODY_S&P numbericl'!F:H,3,FALSE),"--") -> 9
A24: =Input!C12 -> AZO | B24: =VLOOKUP($A24,'CEM Data Lookup'!$A$4:$Q$56,2,FALSE) -> AutoZone Inc. | D24: ='CEM Data Lookup'!J14 -> Baa1 | F24: =IFERROR(VLOOKUP('6.4 CEM RPM Bond Ratings'!D24,'3.4 MOODY_S&P numbericl'!B:D,3,FALSE),"--") -> 8 | H24: ='CEM Data Lookup'!K14 -> BBB | J24: =IFERROR(VLOOKUP(H24,'3.4 MOODY_S&P numbericl'!F:H,3,FALSE),"--") -> 9
A25: =Input!C13 -> BAH | B25: =VLOOKUP($A25,'CEM Data Lookup'!$A$4:$Q$56,2,FALSE) -> Booz Allen Hamilton Corporation | D25: ='CEM Data Lookup'!J15 -> NA | F25: =IFERROR(VLOOKUP('6.4 CEM RPM Bond Ratings'!D25,'3.4 MOODY_S&P numbericl'!B:D,3,FALSE),"--") -> -- | H25: ='CEM Data Lookup'!K15 -> NA | J25: =IFERROR(VLOOKUP(H25,'3.4 MOODY_S&P numbericl'!F:H,3,FALSE),"--") -> --
A26: =Input!C14 -> BRC | B26: =VLOOKUP($A26,'CEM Data Lookup'!$A$4:$Q$56,2,FALSE) -> Brady Corporation | D26: ='CEM Data Lookup'!J16 -> NA | F26: =IFERROR(VLOOKUP('6.4 CEM RPM Bond Ratings'!D26,'3.4 MOODY_S&P numbericl'!B:D,3,FALSE),"--") -> -- | H26: ='CEM Data Lookup'!K16 -> NA | J26: =IFERROR(VLOOKUP(H26,'3.4 MOODY_S&P numbericl'!F:H,3,FALSE),"--") -> --
A27: =Input!C15 -> BFB | B27: =VLOOKUP($A27,'CEM Data Lookup'!$A$4:$Q$56,2,FALSE) -> Brown-Forman Corporation 'B' | D27: ='CEM Data Lookup'!J17 -> A1 | F27: =IFERROR(VLOOKUP('6.4 CEM RPM Bond Ratings'!D27,'3.4 MOODY_S&P numbericl'!B:D,3,FALSE),"--") -> 5 | H27: ='CEM Data Lookup'!K17 -> A- | J27: =IFERROR(VLOOKUP(H27,'3.4 MOODY_S&P numbericl'!F:H,3,FALSE),"--") -> 7
A28: =Input!C16 -> CACI | B28: =VLOOKUP($A28,'CEM Data Lookup'!$A$4:$Q$56,2,FALSE) -> CACI International | D28: ='CEM Data Lookup'!J18 -> NA | F28: =IFERROR(VLOOKUP('6.4 CEM RPM Bond Ratings'!D28,'3.4 MOODY_S&P numbericl'!B:D,3,FALSE),"--") -> -- | H28: ='CEM Data Lookup'!K18 -> BB+ | J28: =IFERROR(VLOOKUP(H28,'3.4 MOODY_S&P numbericl'!F:H,3,FALSE),"--") -> 11
A29: =Input!C17 -> CWST | B29: =VLOOKUP($A29,'CEM Data Lookup'!$A$4:$Q$56,2,FALSE) -> Casella Waste Systems, Inc. | D29: ='CEM Data Lookup'!J19 -> NA | F29: =IFERROR(VLOOKUP('6.4 CEM RPM Bond Ratings'!D29,'3.4 MOODY_S&P numbericl'!B:D,3,FALSE),"--") -> -- | H29: ='CEM Data Lookup'!K19 -> BB | J29: =IFERROR(VLOOKUP(H29,'3.4 MOODY_S&P numbericl'!F:H,3,FALSE),"--") -> 12
A30: =Input!C18 -> CASY | B30: =VLOOKUP($A30,'CEM Data Lookup'!$A$4:$Q$56,2,FALSE) -> Casey's General Stores, Inc. | D30: ='CEM Data Lookup'!J20 -> NA | F30: =IFERROR(VLOOKUP('6.4 CEM RPM Bond Ratings'!D30,'3.4 MOODY_S&P numbericl'!B:D,3,FALSE),"--") -> -- | H30: ='CEM Data Lookup'!K20 -> NA | J30: =IFERROR(VLOOKUP(H30,'3.4 MOODY_S&P numbericl'!F:H,3,FALSE),"--") -> --
A31: =Input!C19 -> CTVA | B31: =VLOOKUP($A31,'CEM Data Lookup'!$A$4:$Q$56,2,FALSE) -> Corteva, Inc. | D31: ='CEM Data Lookup'!J21 -> NA | F31: =IFERROR(VLOOKUP('6.4 CEM RPM Bond Ratings'!D31,'3.4 MOODY_S&P numbericl'!B:D,3,FALSE),"--") -> -- | H31: ='CEM Data Lookup'!K21 -> A- | J31: =IFERROR(VLOOKUP(H31,'3.4 MOODY_S&P numbericl'!F:H,3,FALSE),"--") -> 7
A32: =Input!C20 -> CSWI | B32: =VLOOKUP($A32,'CEM Data Lookup'!$A$4:$Q$56,2,FALSE) -> CSW Industrials | D32: ='CEM Data Lookup'!J22 -> NA | F32: =IFERROR(VLOOKUP('6.4 CEM RPM Bond Ratings'!D32,'3.4 MOODY_S&P numbericl'!B:D,3,FALSE),"--") -> -- | H32: ='CEM Data Lookup'!K22 -> NA | J32: =IFERROR(VLOOKUP(H32,'3.4 MOODY_S&P numbericl'!F:H,3,FALSE),"--") -> --
A33: =Input!C21 -> DHR | B33: =VLOOKUP($A33,'CEM Data Lookup'!$A$4:$Q$56,2,FALSE) -> Danaher Corporation | D33: ='CEM Data Lookup'!J23 -> A3 | F33: =IFERROR(VLOOKUP('6.4 CEM RPM Bond Ratings'!D33,'3.4 MOODY_S&P numbericl'!B:D,3,FALSE),"--") -> 7 | H33: ='CEM Data Lookup'!K23 -> A- | J33: =IFERROR(VLOOKUP(H33,'3.4 MOODY_S&P numbericl'!F:H,3,FALSE),"--") -> 7
A34: =Input!C22 -> DLB | B34: =VLOOKUP($A34,'CEM Data Lookup'!$A$4:$Q$56,2,FALSE) -> Dolby Laboratories | D34: ='CEM Data Lookup'!J24 -> NA | F34: =IFERROR(VLOOKUP('6.4 CEM RPM Bond Ratings'!D34,'3.4 MOODY_S&P numbericl'!B:D,3,FALSE),"--") -> -- | H34: ='CEM Data Lookup'!K24 -> NA | J34: =IFERROR(VLOOKUP(H34,'3.4 MOODY_S&P numbericl'!F:H,3,FALSE),"--") -> --
A35: =Input!C23 -> FAST | B35: =VLOOKUP($A35,'CEM Data Lookup'!$A$4:$Q$56,2,FALSE) -> Fastenal Company | D35: ='CEM Data Lookup'!J25 -> NA | F35: =IFERROR(VLOOKUP('6.4 CEM RPM Bond Ratings'!D35,'3.4 MOODY_S&P numbericl'!B:D,3,FALSE),"--") -> -- | H35: ='CEM Data Lookup'!K25 -> NA | J35: =IFERROR(VLOOKUP(H35,'3.4 MOODY_S&P numbericl'!F:H,3,FALSE),"--") -> --
A36: =Input!C24 -> GATX | B36: =VLOOKUP($A36,'CEM Data Lookup'!$A$4:$Q$56,2,FALSE) -> GATX Corporation | D36: ='CEM Data Lookup'!J26 -> Baa2 | F36: =IFERROR(VLOOKUP('6.4 CEM RPM Bond Ratings'!D36,'3.4 MOODY_S&P numbericl'!B:D,3,FALSE),"--") -> 9 | H36: ='CEM Data Lookup'!K26 -> BBB | J36: =IFERROR(VLOOKUP(H36,'3.4 MOODY_S&P numbericl'!F:H,3,FALSE),"--") -> 9
A37: =Input!C25 -> IOSP | B37: =VLOOKUP($A37,'CEM Data Lookup'!$A$4:$Q$56,2,FALSE) -> Innospec Inc. | D37: ='CEM Data Lookup'!J27 -> NA | F37: =IFERROR(VLOOKUP('6.4 CEM RPM Bond Ratings'!D37,'3.4 MOODY_S&P numbericl'!B:D,3,FALSE),"--") -> -- | H37: ='CEM Data Lookup'!K27 -> NR | J37: =IFERROR(VLOOKUP(H37,'3.4 MOODY_S&P numbericl'!F:H,3,FALSE),"--") -> --
A38: =Input!C26 -> JBHT | B38: =VLOOKUP($A38,'CEM Data Lookup'!$A$4:$Q$56,2,FALSE) -> J. B. Hunt Transport Services | D38: ='CEM Data Lookup'!J28 -> Baa1 | F38: =IFERROR(VLOOKUP('6.4 CEM RPM Bond Ratings'!D38,'3.4 MOODY_S&P numbericl'!B:D,3,FALSE),"--") -> 8 | H38: ='CEM Data Lookup'!K28 -> BBB+ | J38: =IFERROR(VLOOKUP(H38,'3.4 MOODY_S&P numbericl'!F:H,3,FALSE),"--") -> 8
A39: =Input!C27 -> JKHY | B39: =VLOOKUP($A39,'CEM Data Lookup'!$A$4:$Q$56,2,FALSE) -> Jack Henry & Associates, Inc. | D39: ='CEM Data Lookup'!J29 -> NA | F39: =IFERROR(VLOOKUP('6.4 CEM RPM Bond Ratings'!D39,'3.4 MOODY_S&P numbericl'!B:D,3,FALSE),"--") -> -- | H39: ='CEM Data Lookup'!K29 -> NA | J39: =IFERROR(VLOOKUP(H39,'3.4 MOODY_S&P numbericl'!F:H,3,FALSE),"--") -> --
A40: =Input!C28 -> JNPR | B40: =VLOOKUP($A40,'CEM Data Lookup'!$A$4:$Q$56,2,FALSE) -> Juniper Networks, Inc. | D40: ='CEM Data Lookup'!J30 -> Baa2 | F40: =IFERROR(VLOOKUP('6.4 CEM RPM Bond Ratings'!D40,'3.4 MOODY_S&P numbericl'!B:D,3,FALSE),"--") -> 9 | H40: ='CEM Data Lookup'!K30 -> BBB | J40: =IFERROR(VLOOKUP(H40,'3.4 MOODY_S&P numbericl'!F:H,3,FALSE),"--") -> 9
A41: =Input!C29 -> LHX | B41: =VLOOKUP($A41,'CEM Data Lookup'!$A$4:$Q$56,2,FALSE) -> L3Harris Technologies, Inc. | D41: ='CEM Data Lookup'!J31 -> Baa2 | F41: =IFERROR(VLOOKUP('6.4 CEM RPM Bond Ratings'!D41,'3.4 MOODY_S&P numbericl'!B:D,3,FALSE),"--") -> 9 | H41: ='CEM Data Lookup'!K31 -> BBB | J41: =IFERROR(VLOOKUP(H41,'3.4 MOODY_S&P numbericl'!F:H,3,FALSE),"--") -> 9
A42: =Input!C30 -> LMT | B42: =VLOOKUP($A42,'CEM Data Lookup'!$A$4:$Q$56,2,FALSE) -> Lockheed Martin Corporation | D42: ='CEM Data Lookup'!J32 -> A2 | F42: =IFERROR(VLOOKUP('6.4 CEM RPM Bond Ratings'!D42,'3.4 MOODY_S&P numbericl'!B:D,3,FALSE),"--") -> 6 | H42: ='CEM Data Lookup'!K32 -> A- | J42: =IFERROR(VLOOKUP(H42,'3.4 MOODY_S&P numbericl'!F:H,3,FALSE),"--") -> 7
A43: =Input!C31 -> MCK | B43: =VLOOKUP($A43,'CEM Data Lookup'!$A$4:$Q$56,2,FALSE) -> McKesson Corporation | D43: ='CEM Data Lookup'!J33 -> A3 | F43: =IFERROR(VLOOKUP('6.4 CEM RPM Bond Ratings'!D43,'3.4 MOODY_S&P numbericl'!B:D,3,FALSE),"--") -> 7 | H43: ='CEM Data Lookup'!K33 -> BBB+ | J43: =IFERROR(VLOOKUP(H43,'3.4 MOODY_S&P numbericl'!F:H,3,FALSE),"--") -> 8
A44: =Input!C32 -> MSFT | B44: =VLOOKUP($A44,'CEM Data Lookup'!$A$4:$Q$56,2,FALSE) -> Microsoft Corporation | D44: ='CEM Data Lookup'!J34 -> Aaa | F44: =IFERROR(VLOOKUP('6.4 CEM RPM Bond Ratings'!D44,'3.4 MOODY_S&P numbericl'!B:D,3,FALSE),"--") -> 1 | H44: ='CEM Data Lookup'!K34 -> AAA | J44: =IFERROR(VLOOKUP(H44,'3.4 MOODY_S&P numbericl'!F:H,3,FALSE),"--") -> 1
A45: =Input!C33 -> MSA | B45: =VLOOKUP($A45,'CEM Data Lookup'!$A$4:$Q$56,2,FALSE) -> MSA Safety Incorporated | D45: ='CEM Data Lookup'!J35 -> NA | F45: =IFERROR(VLOOKUP('6.4 CEM RPM Bond Ratings'!D45,'3.4 MOODY_S&P numbericl'!B:D,3,FALSE),"--") -> -- | H45: ='CEM Data Lookup'!K35 -> NA | J45: =IFERROR(VLOOKUP(H45,'3.4 MOODY_S&P numbericl'!F:H,3,FALSE),"--") -> --
A46: =Input!C34 -> MSM | B46: =VLOOKUP($A46,'CEM Data Lookup'!$A$4:$Q$56,2,FALSE) -> MSC Industrial Direct Co., Inc. | D46: ='CEM Data Lookup'!J36 -> NA | F46: =IFERROR(VLOOKUP('6.4 CEM RPM Bond Ratings'!D46,'3.4 MOODY_S&P numbericl'!B:D,3,FALSE),"--") -> -- | H46: ='CEM Data Lookup'!K36 -> NA | J46: =IFERROR(VLOOKUP(H46,'3.4 MOODY_S&P numbericl'!F:H,3,FALSE),"--") -> --
A47: =Input!C35 -> ORCL | B47: =VLOOKUP($A47,'CEM Data Lookup'!$A$4:$Q$56,2,FALSE) -> Oracle Corporation | D47: ='CEM Data Lookup'!J37 -> Baa2 | F47: =IFERROR(VLOOKUP('6.4 CEM RPM Bond Ratings'!D47,'3.4 MOODY_S&P numbericl'!B:D,3,FALSE),"--") -> 9 | H47: ='CEM Data Lookup'!K37 -> BBB | J47: =IFERROR(VLOOKUP(H47,'3.4 MOODY_S&P numbericl'!F:H,3,FALSE),"--") -> 9
A48: =Input!C36 -> ORLY | B48: =VLOOKUP($A48,'CEM Data Lookup'!$A$4:$Q$56,2,FALSE) -> O'Reilly Automotive, Inc. | D48: ='CEM Data Lookup'!J38 -> Baa1 | F48: =IFERROR(VLOOKUP('6.4 CEM RPM Bond Ratings'!D48,'3.4 MOODY_S&P numbericl'!B:D,3,FALSE),"--") -> 8 | H48: ='CEM Data Lookup'!K38 -> BBB | J48: =IFERROR(VLOOKUP(H48,'3.4 MOODY_S&P numbericl'!F:H,3,FALSE),"--") -> 9
A49: =Input!C37 -> OSIS | B49: =VLOOKUP($A49,'CEM Data Lookup'!$A$4:$Q$56,2,FALSE) -> OSI Systems, Inc. | D49: ='CEM Data Lookup'!J39 -> NA | F49: =IFERROR(VLOOKUP('6.4 CEM RPM Bond Ratings'!D49,'3.4 MOODY_S&P numbericl'!B:D,3,FALSE),"--") -> -- | H49: ='CEM Data Lookup'!K39 -> NA | J49: =IFERROR(VLOOKUP(H49,'3.4 MOODY_S&P numbericl'!F:H,3,FALSE),"--") -> --
A50: =Input!C38 -> PKG | B50: =VLOOKUP($A50,'CEM Data Lookup'!$A$4:$Q$56,2,FALSE) -> Packaging Corporation of America | D50: ='CEM Data Lookup'!J40 -> Baa2 | F50: =IFERROR(VLOOKUP('6.4 CEM RPM Bond Ratings'!D50,'3.4 MOODY_S&P numbericl'!B:D,3,FALSE),"--") -> 9 | H50: ='CEM Data Lookup'!K40 -> BBB | J50: =IFERROR(VLOOKUP(H50,'3.4 MOODY_S&P numbericl'!F:H,3,FALSE),"--") -> 9
A51: =Input!C39 -> PFE | B51: =VLOOKUP($A51,'CEM Data Lookup'!$A$4:$Q$56,2,FALSE) -> Pfizer, Inc. | D51: ='CEM Data Lookup'!J41 -> A2 | F51: =IFERROR(VLOOKUP('6.4 CEM RPM Bond Ratings'!D51,'3.4 MOODY_S&P numbericl'!B:D,3,FALSE),"--") -> 6 | H51: ='CEM Data Lookup'!K41 -> A | J51: =IFERROR(VLOOKUP(H51,'3.4 MOODY_S&P numbericl'!F:H,3,FALSE),"--") -> 6
A52: =Input!C40 -> PM | B52: =VLOOKUP($A52,'CEM Data Lookup'!$A$4:$Q$56,2,FALSE) -> Philip Morris International Inc. | D52: ='CEM Data Lookup'!J42 -> A2 | F52: =IFERROR(VLOOKUP('6.4 CEM RPM Bond Ratings'!D52,'3.4 MOODY_S&P numbericl'!B:D,3,FALSE),"--") -> 6 | H52: ='CEM Data Lookup'!K42 -> A- | J52: =IFERROR(VLOOKUP(H52,'3.4 MOODY_S&P numbericl'!F:H,3,FALSE),"--") -> 7
A53: =Input!C41 -> PBH | B53: =VLOOKUP($A53,'CEM Data Lookup'!$A$4:$Q$56,2,FALSE) -> Prestige Consumer Healthcare Inc. | D53: ='CEM Data Lookup'!J43 -> NA | F53: =IFERROR(VLOOKUP('6.4 CEM RPM Bond Ratings'!D53,'3.4 MOODY_S&P numbericl'!B:D,3,FALSE),"--") -> -- | H53: ='CEM Data Lookup'!K43 -> BB | J53: =IFERROR(VLOOKUP(H53,'3.4 MOODY_S&P numbericl'!F:H,3,FALSE),"--") -> 12
A54: =Input!C42 -> SIGI | B54: =VLOOKUP($A54,'CEM Data Lookup'!$A$4:$Q$56,2,FALSE) -> Selective Insurance Group, Inc. | D54: ='CEM Data Lookup'!J44 -> Baa2 | F54: =IFERROR(VLOOKUP('6.4 CEM RPM Bond Ratings'!D54,'3.4 MOODY_S&P numbericl'!B:D,3,FALSE),"--") -> 9 | H54: ='CEM Data Lookup'!K44 -> BBB | J54: =IFERROR(VLOOKUP(H54,'3.4 MOODY_S&P numbericl'!F:H,3,FALSE),"--") -> 9
A55: =Input!C43 -> SXT | B55: =VLOOKUP($A55,'CEM Data Lookup'!$A$4:$Q$56,2,FALSE) -> Sensient Technologies Corporation | D55: ='CEM Data Lookup'!J45 -> WR | F55: =IFERROR(VLOOKUP('6.4 CEM RPM Bond Ratings'!D55,'3.4 MOODY_S&P numbericl'!B:D,3,FALSE),"--") -> -- | H55: ='CEM Data Lookup'!K45 -> NR | J55: =IFERROR(VLOOKUP(H55,'3.4 MOODY_S&P numbericl'!F:H,3,FALSE),"--") -> --
A56: =Input!C44 -> SCI | B56: =VLOOKUP($A56,'CEM Data Lookup'!$A$4:$Q$56,2,FALSE) -> Service Corporation International | D56: ='CEM Data Lookup'!J46 -> Ba3 | F56: =IFERROR(VLOOKUP('6.4 CEM RPM Bond Ratings'!D56,'3.4 MOODY_S&P numbericl'!B:D,3,FALSE),"--") -> 13 | H56: ='CEM Data Lookup'!K46 -> BB+ | J56: =IFERROR(VLOOKUP(H56,'3.4 MOODY_S&P numbericl'!F:H,3,FALSE),"--") -> 11
A57: =Input!C45 -> SHW | B57: =VLOOKUP($A57,'CEM Data Lookup'!$A$4:$Q$56,2,FALSE) -> Sherwin-Williams Company | D57: ='CEM Data Lookup'!J47 -> Baa2 | F57: =IFERROR(VLOOKUP('6.4 CEM RPM Bond Ratings'!D57,'3.4 MOODY_S&P numbericl'!B:D,3,FALSE),"--") -> 9 | H57: ='CEM Data Lookup'!K47 -> BBB | J57: =IFERROR(VLOOKUP(H57,'3.4 MOODY_S&P numbericl'!F:H,3,FALSE),"--") -> 9
A58: =Input!C46 -> AOS | B58: =VLOOKUP($A58,'CEM Data Lookup'!$A$4:$Q$56,2,FALSE) -> Smith (A.O.) Corporation | D58: ='CEM Data Lookup'!J48 -> NA | F58: =IFERROR(VLOOKUP('6.4 CEM RPM Bond Ratings'!D58,'3.4 MOODY_S&P numbericl'!B:D,3,FALSE),"--") -> -- | H58: ='CEM Data Lookup'!K48 -> NA | J58: =IFERROR(VLOOKUP(H58,'3.4 MOODY_S&P numbericl'!F:H,3,FALSE),"--") -> --
A59: =Input!C47 -> TXN | B59: =VLOOKUP($A59,'CEM Data Lookup'!$A$4:$Q$56,2,FALSE) -> Texas Instruments Incorporated | D59: ='CEM Data Lookup'!J49 -> Aa3 | F59: =IFERROR(VLOOKUP('6.4 CEM RPM Bond Ratings'!D59,'3.4 MOODY_S&P numbericl'!B:D,3,FALSE),"--") -> 4 | H59: ='CEM Data Lookup'!K49 -> A+ | J59: =IFERROR(VLOOKUP(H59,'3.4 MOODY_S&P numbericl'!F:H,3,FALSE),"--") -> 5
A60: =Input!C48 -> TMO | B60: =VLOOKUP($A60,'CEM Data Lookup'!$A$4:$Q$56,2,FALSE) -> Thermo Fisher Scientific Inc. | D60: ='CEM Data Lookup'!J50 -> A3 | F60: =IFERROR(VLOOKUP('6.4 CEM RPM Bond Ratings'!D60,'3.4 MOODY_S&P numbericl'!B:D,3,FALSE),"--") -> 7 | H60: ='CEM Data Lookup'!K50 -> A- | J60: =IFERROR(VLOOKUP(H60,'3.4 MOODY_S&P numbericl'!F:H,3,FALSE),"--") -> 7
A61: =Input!C49 -> UNF | B61: =VLOOKUP($A61,'CEM Data Lookup'!$A$4:$Q$56,2,FALSE) -> UniFirst Corporation | D61: ='CEM Data Lookup'!J51 -> NA | F61: =IFERROR(VLOOKUP('6.4 CEM RPM Bond Ratings'!D61,'3.4 MOODY_S&P numbericl'!B:D,3,FALSE),"--") -> -- | H61: ='CEM Data Lookup'!K51 -> NA | J61: =IFERROR(VLOOKUP(H61,'3.4 MOODY_S&P numbericl'!F:H,3,FALSE),"--") -> --
A62: =Input!C50 -> UNH | B62: =VLOOKUP($A62,'CEM Data Lookup'!$A$4:$Q$56,2,FALSE) -> UnitedHealth Group Incorporated | D62: ='CEM Data Lookup'!J52 -> A2 | F62: =IFERROR(VLOOKUP('6.4 CEM RPM Bond Ratings'!D62,'3.4 MOODY_S&P numbericl'!B:D,3,FALSE),"--") -> 6 | H62: ='CEM Data Lookup'!K52 -> A+ | J62: =IFERROR(VLOOKUP(H62,'3.4 MOODY_S&P numbericl'!F:H,3,FALSE),"--") -> 5
A63: =Input!C51 -> VRSN | B63: =VLOOKUP($A63,'CEM Data Lookup'!$A$4:$Q$56,2,FALSE) -> VeriSign Inc. | D63: ='CEM Data Lookup'!J53 -> Baa3 | F63: =IFERROR(VLOOKUP('6.4 CEM RPM Bond Ratings'!D63,'3.4 MOODY_S&P numbericl'!B:D,3,FALSE),"--") -> 10 | H63: ='CEM Data Lookup'!K53 -> BBB | J63: =IFERROR(VLOOKUP(H63,'3.4 MOODY_S&P numbericl'!F:H,3,FALSE),"--") -> 9
A64: =Input!C52 -> VRSK | B64: =VLOOKUP($A64,'CEM Data Lookup'!$A$4:$Q$56,2,FALSE) -> Verisk Analytics, Inc. | D64: ='CEM Data Lookup'!J54 -> Baa2 | F64: =IFERROR(VLOOKUP('6.4 CEM RPM Bond Ratings'!D64,'3.4 MOODY_S&P numbericl'!B:D,3,FALSE),"--") -> 9 | H64: ='CEM Data Lookup'!K54 -> BBB | J64: =IFERROR(VLOOKUP(H64,'3.4 MOODY_S&P numbericl'!F:H,3,FALSE),"--") -> 9
A65: =Input!C53 -> WAT | B65: =VLOOKUP($A65,'CEM Data Lookup'!$A$4:$Q$56,2,FALSE) -> Waters Corporation | D65: ='CEM Data Lookup'!J55 -> NA | F65: =IFERROR(VLOOKUP('6.4 CEM RPM Bond Ratings'!D65,'3.4 MOODY_S&P numbericl'!B:D,3,FALSE),"--") -> -- | H65: ='CEM Data Lookup'!K55 -> NA | J65: =IFERROR(VLOOKUP(H65,'3.4 MOODY_S&P numbericl'!F:H,3,FALSE),"--") -> --
A66: =Input!C54 -> WSO | B66: =VLOOKUP($A66,'CEM Data Lookup'!$A$4:$Q$56,2,FALSE) -> Watsco, Inc. | D66: ='CEM Data Lookup'!J56 -> NA | F66: =IFERROR(VLOOKUP('6.4 CEM RPM Bond Ratings'!D66,'3.4 MOODY_S&P numbericl'!B:D,3,FALSE),"--") -> -- | H66: ='CEM Data Lookup'!K56 -> NA | J66: =IFERROR(VLOOKUP(H66,'3.4 MOODY_S&P numbericl'!F:H,3,FALSE),"--") -> --
B68: Average | D68: A3 | F68: =ROUND(AVERAGE(F13:F66),1) -> 7 | H68: BBB+ | J68: =ROUND(AVERAGE(J13:J66),1) -> 7.6
B70: Notes:
B71: (1) | C71: From page 4 of Schedule DWD-3.
B73: Source of Information:
B74: Bloomberg Professional Services

Sheet 6.5 CEM Beta Adjusted RP
A1: =Input!G28 -> Atmos Energy Corporation
A2: Derivation of Equity Risk Premium Based on the Total Market Approach
A3: Using the Beta for
A4: ='6.4 CEM RPM Bond Ratings'!B3 -> Proxy Group of Fifty-Three Non-Price Regulated Companies of Comparable risk to the
A5: ='6.4 CEM RPM Bond Ratings'!B4 -> Proxy Group of Six Natural Gas Distribution Companies
A7: Line No. | C7: Equity Risk Premium Measure | F7: ='6.4 CEM RPM Bond Ratings'!B12 -> Proxy Group of Fifty-Three Non-Price Regulated Companies | H7: ='6.1 CEM Summary'!I7 -> Proxy Group of Fifty-Three Non-Price Regulated Companies (excl. PRPM)
A9: 1. | C9: Ibbotson Equity Risk Premium (1) | F9: ='3.6 Beta Adjusted ERP'!F9 -> 5.956585631 | G9: % | H9: =F9 -> 5.956585631 | I9: %
A11: 2. | C11: Regression on Ibbotson Risk Premium Data (2) | F11: ='MRP ERP WP'!$AK$42*100 -> 6.979344728 | H11: =F11 -> 6.979344728
A13: 3. | C13: Ibbotson Equity Risk Premium based on PRPM (3) | F13: ='PRPM WP1'!D1199*100 -> 8.105364035 | H13: NA
A15: 4. | C15: Equity Risk Premium Based on Value Line Summary and Index (4) | F15: ='MRP WP1'!$M$22*100-'MRP WP1'!$M$37 -> 7.15 | H15: =F15 -> 7.15
A17: 5 | C17: Equity Risk Premium Based on Bloomberg, Value Line, and S&P Capital IQ S&P 500 Companies (5) | F17: ='3.6 Beta Adjusted ERP'!F17 -> 10.32812975 | H17: =F17 -> 10.32812975
A19: 6. | C19: Conclusion of Equity Risk Premium | F19: =ROUND(AVERAGE(F9,F11,F13,F15,F17),2) -> 7.7 | G19: % | H19: =ROUND(AVERAGE(H9,H11,H13,H15,H17),2) -> 7.6 | I19: %
A21: 7. | C21: Adjusted Beta (6) | F21: ='6.6 CEM CAPM Backup'!H67 -> 0.88 | H21: =F21 -> 0.88
A23: 8. | C23: Forecasted Equity Risk Premium | F23: =ROUND(F19*F21,2) -> 6.78 | G23: % | H23: =ROUND(H19*H21,2) -> 6.69 | I23: %
A25: Notes:
B26: (1) | C26: From note 1 of page 6 of Schedule DWD-3.
B27: (2) | C27: From note 2 of page 6 of Schedule DWD-3.
B28: (3) | C28: From note 3 of page 6 of Schedule DWD-3.
B29: (4) | C29: From note 4 of page 6 of Schedule DWD-3.
B30: (5) | C30: From note 5 of page 6 of Schedule DWD-3.
B31: (6) | C31: Average of mean and median beta from page 6 of this Schedule.
B33: Sources of Information:
C34: ='4.2 CAPM Notes'!B57 -> Kroll 2023 SBBI® Yearbook
C35: Value Line Summary and Index
C36: ='4.2 CAPM Notes'!B56 -> Blue Chip Financial Forecasts, August 1, 2024 and May 31, 2024
C37: Bloomberg Professional Services

Sheet 6.6 CEM CAPM Backup
B1: =Input!G28 -> Atmos Energy Corporation
B2: Traditional CAPM and ECAPM Results for the Proxy Group of Non-Price-Regulated Companies Comparable in Total Risk to the
B3: ='6.5 CEM Beta Adjusted RP'!A5 -> Proxy Group of Six Natural Gas Distribution Companies
D5: [1] | F5: [2] | H5: [3] | J5: [4] | M5: [5] | P5: [6] | S5: [7] | V5: [8]
B7: ='6.5 CEM Beta Adjusted RP'!F7 -> Proxy Group of Fifty-Three Non-Price Regulated Companies | D7: Value Line Adjusted Beta | F7: Bloomberg Beta | H7: Average Beta | J7: Market Risk Premium (1) | M7: Risk-Free Rate (2) | P7: Traditional CAPM Cost Rate | S7: ECAPM Cost Rate | V7: Indicated Common Equity Cost Rate (3)
A9: ='CEM Data Lookup'!A4 -> ABT | B9: =VLOOKUP($A9,'CEM Data Lookup'!$A$4:$Q$56,2,FALSE) -> Abbott Laboratories | D9: ='CEM Data Lookup'!G4 -> 0.9 | F9: ='CEM Data Lookup'!H4 -> 0.7949305773 | H9: =ROUND(AVERAGE(D9:F9),2) -> 0.85 | J9: ='MRP WP1'!H$60 -> 8.627346222 | K9: % | M9: ='MRP WP1'!F$37 -> 4.36 | N9: % | P9: =H9*(J9)+M9 -> 11.69324429 | Q9: % | S9: =ROUND(0.75*(H9*J9)+(0.25*J9)+M9,4) -> 12.0168 | T9: % | V9: =ROUND(AVERAGE(P9,S9),2) -> 11.86 | W9: % | X9: =IF(OR(V9<$Z$12,V9>$Z$11),1,0) -> 0 | Z9: =_xlfn.STDEV.P(V9:V61)*2 -> 1.635008511
A10: ='CEM Data Lookup'!A5 -> A | B10: =VLOOKUP($A10,'CEM Data Lookup'!$A$4:$Q$56,2,FALSE) -> Agilent Technologies, Inc. | D10: ='CEM Data Lookup'!G5 -> 0.95 | F10: ='CEM Data Lookup'!H5 -> 1.109119534 | H10: 1.03 | J10: ='MRP WP1'!H$60 -> 8.627346222 | M10: ='MRP WP1'!F$37 -> 4.36 | P10: =H10*(J10)+M10 -> 13.24616661 | S10: 13.1815 | V10: =ROUND(AVERAGE(P10,S10),2) -> 13.21 | X10: =IF(OR(V10<$Z$12,V10>$Z$11),1,0) -> 0 | Z10: =AVERAGE(V9:V61) -> 12.07
A11: ='CEM Data Lookup'!A6 -> APD | B11: =VLOOKUP($A11,'CEM Data Lookup'!$A$4:$Q$56,2,FALSE) -> Air Products and Chemicals, Inc. | D11: ='CEM Data Lookup'!G6 -> 0.9 | F11: ='CEM Data Lookup'!H6 -> 0.7995934486 | H11: 0.85 | J11: ='MRP WP1'!H$60 -> 8.627346222 | M11: ='MRP WP1'!F$37 -> 4.36 | P11: =H11*(J11)+M11 -> 11.69324429 | S11: 12.0168 | V11: =ROUND(AVERAGE(P11,S11),2) -> 11.86 | X11: 0 | Z11: =Z10+Z9 -> 13.70500851
A12: ='CEM Data Lookup'!A7 -> ALL | B12: =VLOOKUP($A12,'CEM Data Lookup'!$A$4:$Q$56,2,FALSE) -> Allstate Corporation (The) | D12: ='CEM Data Lookup'!G7 -> 1 | F12: ='CEM Data Lookup'!H7 -> 0.5221353173 | H12: 0.76 | J12: ='MRP WP1'!H$60 -> 8.627346222 | M12: ='MRP WP1'!F$37 -> 4.36 | P12: 10.91678313 | S12: 11.4344 | V12: 11.18 | X12: 0 | Z12: =Z10-Z9 -> 10.43499149
A13: ='CEM Data Lookup'!A8 -> GOOG | B13: =VLOOKUP($A13,'CEM Data Lookup'!$A$4:$Q$56,2,FALSE) -> Alphabet Inc. | D13: ='CEM Data Lookup'!G8 -> 0.9 | F13: ='CEM Data Lookup'!H8 -> 1.173546076 | H13: 1.04 | J13: ='MRP WP1'!H$60 -> 8.627346222 | M13: ='MRP WP1'!F$37 -> 4.36 | P13: 13.33244007 | S13: 13.2462 | V13: 13.29 | X13: 0
A14: ='CEM Data Lookup'!A9 -> MO | B14: =VLOOKUP($A14,'CEM Data Lookup'!$A$4:$Q$56,2,FALSE) -> Altria Group, Inc. | D14: ='CEM Data Lookup'!G9 -> 0.85 | F14: ='CEM Data Lookup'!H9 -> 0.559874773 | H14: 0.7 | J14: ='MRP WP1'!H$60 -> 8.627346222 | M14: ='MRP WP1'!F$37 -> 4.36 | P14: 10.39914236 | S14: 11.0462 | V14: 10.72 | X14: 0
A15: ='CEM Data Lookup'!A10 -> ADI | B15: =VLOOKUP($A15,'CEM Data Lookup'!$A$4:$Q$56,2,FALSE) -> Analog Devices, Inc. | D15: ='CEM Data Lookup'!G10 -> 1 | F15: ='CEM Data Lookup'!H10 -> 1.155067563 | H15: 1.08 | J15: ='MRP WP1'!H$60 -> 8.627346222 | M15: ='MRP WP1'!F$37 -> 4.36 | P15: 13.67753392 | S15: 13.505 | V15: 13.59 | X15: 0
A16: ='CEM Data Lookup'!A11 -> AAPL | B16: =VLOOKUP($A16,'CEM Data Lookup'!$A$4:$Q$56,2,FALSE) -> Apple Inc. | D16: ='CEM Data Lookup'!G11 -> 0.95 | F16: ='CEM Data Lookup'!H11 -> 1.137511253 | H16: 1.04 | J16: ='MRP WP1'!H$60 -> 8.627346222 | M16: ='MRP WP1'!F$37 -> 4.36 | P16: 13.33244007 | S16: 13.2462 | V16: 13.29 | X16: 0
A17: ='CEM Data Lookup'!A12 -> ADM | B17: =VLOOKUP($A17,'CEM Data Lookup'!$A$4:$Q$56,2,FALSE) -> Archer Daniels-Midlan Company | D17: ='CEM Data Lookup'!G12 -> 0.95 | F17: ='CEM Data Lookup'!H12 -> 0.6751753688 | H17: 0.81 | J17: ='MRP WP1'!H$60 -> 8.627346222 | M17: ='MRP WP1'!F$37 -> 4.36 | P17: 11.34815044 | S17: 11.7579 | V17: 11.55 | X17: 0
A18: ='CEM Data Lookup'!A13 -> AIZ | B18: =VLOOKUP($A18,'CEM Data Lookup'!$A$4:$Q$56,2,FALSE) -> Assurant Inc. | D18: ='CEM Data Lookup'!G13 -> 0.9 | F18: ='CEM Data Lookup'!H13 -> 0.7801808715 | H18: 0.84 | J18: ='MRP WP1'!H$60 -> 8.627346222 | M18: ='MRP WP1'!F$37 -> 4.36 | P18: 11.60697083 | S18: 11.9521 | V18: 11.78 | X18: 0
A19: ='CEM Data Lookup'!A14 -> AZO | B19: =VLOOKUP($A19,'CEM Data Lookup'!$A$4:$Q$56,2,FALSE) -> AutoZone Inc. | D19: ='CEM Data Lookup'!G14 -> 0.95 | F19: ='CEM Data Lookup'!H14 -> 0.6867181659 | H19: 0.82 | J19: ='MRP WP1'!H$60 -> 8.627346222 | M19: ='MRP WP1'!F$37 -> 4.36 | P19: 11.4344239 | S19: 11.8227 | V19: 11.63 | X19: 0
A20: ='CEM Data Lookup'!A15 -> BAH | B20: =VLOOKUP($A20,'CEM Data Lookup'!$A$4:$Q$56,2,FALSE) -> Booz Allen Hamilton Corporation | D20: ='CEM Data Lookup'!G15 -> 0.85 | F20: ='CEM Data Lookup'!H15 -> 0.8280857801 | H20: 0.84 | J20: ='MRP WP1'!H$60 -> 8.627346222 | M20: ='MRP WP1'!F$37 -> 4.36 | P20: 11.60697083 | S20: 11.9521 | V20: 11.78 | X20: 0
A21: ='CEM Data Lookup'!A16 -> BRC | B21: =VLOOKUP($A21,'CEM Data Lookup'!$A$4:$Q$56,2,FALSE) -> Brady Corporation | D21: ='CEM Data Lookup'!G16 -> 0.95 | F21: ='CEM Data Lookup'!H16 -> 0.7024881244 | H21: 0.83 | J21: ='MRP WP1'!H$60 -> 8.627346222 | M21: ='MRP WP1'!F$37 -> 4.36 | P21: 11.52069736 | S21: 11.8874 | V21: 11.7 | X21: 0
A22: ='CEM Data Lookup'!A17 -> BFB | B22: =VLOOKUP($A22,'CEM Data Lookup'!$A$4:$Q$56,2,FALSE) -> Brown-Forman Corporation 'B' | D22: ='CEM Data Lookup'!G17 -> 0.9 | F22: ='CEM Data Lookup'!H17 -> 0.8686777949 | H22: 0.88 | J22: ='MRP WP1'!H$60 -> 8.627346222 | M22: ='MRP WP1'!F$37 -> 4.36 | P22: 11.95206468 | S22: 12.2109 | V22: 12.08 | X22: 0
A23: ='CEM Data Lookup'!A18 -> CACI | B23: =VLOOKUP($A23,'CEM Data Lookup'!$A$4:$Q$56,2,FALSE) -> CACI International | D23: ='CEM Data Lookup'!G18 -> 0.9 | F23: ='CEM Data Lookup'!H18 -> 0.7897487879 | H23: 0.84 | J23: ='MRP WP1'!H$60 -> 8.627346222 | M23: ='MRP WP1'!F$37 -> 4.36 | P23: 11.60697083 | S23: 11.9521 | V23: 11.78 | X23: 0
A24: ='CEM Data Lookup'!A19 -> CWST | B24: =VLOOKUP($A24,'CEM Data Lookup'!$A$4:$Q$56,2,FALSE) -> Casella Waste Systems, Inc. | D24: ='CEM Data Lookup'!G19 -> 0.85 | F24: ='CEM Data Lookup'!H19 -> 0.7079681158 | H24: 0.78 | J24: ='MRP WP1'!H$60 -> 8.627346222 | M24: ='MRP WP1'!F$37 -> 4.36 | P24: 11.08933005 | S24: 11.5638 | V24: 11.33 | X24: 0
A25: ='CEM Data Lookup'!A20 -> CASY | B25: =VLOOKUP($A25,'CEM Data Lookup'!$A$4:$Q$56,2,FALSE) -> Casey's General Stores, Inc. | D25: ='CEM Data Lookup'!G20 -> 0.85 | F25: ='CEM Data Lookup'!H20 -> 0.6584035754 | H25: 0.75 | J25: ='MRP WP1'!H$60 -> 8.627346222 | M25: ='MRP WP1'!F$37 -> 4.36 | P25: 10.83050967 | S25: 11.3697 | V25: 11.1 | X25: 0
A26: ='CEM Data Lookup'!A21 -> CTVA | B26: =VLOOKUP($A26,'CEM Data Lookup'!$A$4:$Q$56,2,FALSE) -> Corteva, Inc. | D26: ='CEM Data Lookup'!G21 -> 0.95 | F26: ='CEM Data Lookup'!H21 -> 0.7852247357 | H26: 0.87 | J26: ='MRP WP1'!H$60 -> 8.627346222 | M26: ='MRP WP1'!F$37 -> 4.36 | P26: 11.86579121 | S26: 12.1462 | V26: 12.01 | X26: 0
A27: ='CEM Data Lookup'!A22 -> CSWI | B27: =VLOOKUP($A27,'CEM Data Lookup'!$A$4:$Q$56,2,FALSE) -> CSW Industrials | D27: ='CEM Data Lookup'!G22 -> 0.85 | F27: ='CEM Data Lookup'!H22 -> 0.8410357237 | H27: 0.85 | J27: ='MRP WP1'!H$60 -> 8.627346222 | M27: ='MRP WP1'!F$37 -> 4.36 | P27: 11.69324429 | S27: 12.0168 | V27: 11.86 | X27: 0
A28: ='CEM Data Lookup'!A23 -> DHR | B28: =VLOOKUP($A28,'CEM Data Lookup'!$A$4:$Q$56,2,FALSE) -> Danaher Corporation | D28: ='CEM Data Lookup'!G23 -> 0.9 | F28: ='CEM Data Lookup'!H23 -> 0.9941122532 | H28: 0.95 | J28: ='MRP WP1'!H$60 -> 8.627346222 | M28: ='MRP WP1'!F$37 -> 4.36 | P28: 12.55597891 | S28: 12.6638 | V28: 12.61 | X28: 0
A29: ='CEM Data Lookup'!A24 -> DLB | B29: =VLOOKUP($A29,'CEM Data Lookup'!$A$4:$Q$56,2,FALSE) -> Dolby Laboratories | D29: ='CEM Data Lookup'!G24 -> 0.95 | F29: ='CEM Data Lookup'!H24 -> 0.8785974383 | H29: 0.91 | J29: ='MRP WP1'!H$60 -> 8.627346222 | M29: ='MRP WP1'!F$37 -> 4.36 | P29: 12.21088506 | S29: 12.405 | V29: 12.31 | X29: 0
A30: ='CEM Data Lookup'!A25 -> FAST | B30: =VLOOKUP($A30,'CEM Data Lookup'!$A$4:$Q$56,2,FALSE) -> Fastenal Company | D30: ='CEM Data Lookup'!G25 -> 0.9 | F30: ='CEM Data Lookup'!H25 -> 0.9218179584 | H30: 0.91 | J30: ='MRP WP1'!H$60 -> 8.627346222 | M30: ='MRP WP1'!F$37 -> 4.36 | P30: 12.21088506 | S30: 12.405 | V30: 12.31 | X30: 0
A31: ='CEM Data Lookup'!A26 -> GATX | B31: =VLOOKUP($A31,'CEM Data Lookup'!$A$4:$Q$56,2,FALSE) -> GATX Corporation | D31: ='CEM Data Lookup'!G26 -> 0.95 | F31: ='CEM Data Lookup'!H26 -> 0.9301026464 | H31: 0.94 | J31: ='MRP WP1'!H$60 -> 8.627346222 | M31: ='MRP WP1'!F$37 -> 4.36 | P31: 12.46970545 | S31: 12.5991 | V31: 12.53 | X31: 0
A32: ='CEM Data Lookup'!A27 -> IOSP | B32: =VLOOKUP($A32,'CEM Data Lookup'!$A$4:$Q$56,2,FALSE) -> Innospec Inc. | D32: ='CEM Data Lookup'!G27 -> 1 | F32: ='CEM Data Lookup'!H27 -> 0.8875972629 | H32: 0.94 | J32: ='MRP WP1'!H$60 -> 8.627346222 | M32: ='MRP WP1'!F$37 -> 4.36 | P32: 12.46970545 | S32: 12.5991 | V32: 12.53 | X32: 0
A33: ='CEM Data Lookup'!A28 -> JBHT | B33: =VLOOKUP($A33,'CEM Data Lookup'!$A$4:$Q$56,2,FALSE) -> J. B. Hunt Transport Services | D33: ='CEM Data Lookup'!G28 -> 0.95 | F33: ='CEM Data Lookup'!H28 -> 0.9957460165 | H33: 0.97 | J33: ='MRP WP1'!H$60 -> 8.627346222 | M33: ='MRP WP1'!F$37 -> 4.36 | P33: 12.72852584 | S33: 12.7932 | V33: 12.76 | X33: 0
A34: ='CEM Data Lookup'!A29 -> JKHY | B34: =VLOOKUP($A34,'CEM Data Lookup'!$A$4:$Q$56,2,FALSE) -> Jack Henry & Associates, Inc. | D34: ='CEM Data Lookup'!G29 -> 0.85 | F34: ='CEM Data Lookup'!H29 -> 0.8471081257 | H34: 0.85 | J34: ='MRP WP1'!H$60 -> 8.627346222 | M34: ='MRP WP1'!F$37 -> 4.36 | P34: 11.69324429 | S34: 12.0168 | V34: 11.86 | X34: 0
A35: ='CEM Data Lookup'!A30 -> JNPR | B35: =VLOOKUP($A35,'CEM Data Lookup'!$A$4:$Q$56,2,FALSE) -> Juniper Networks, Inc. | D35: ='CEM Data Lookup'!G30 -> 0.95 | F35: ='CEM Data Lookup'!H30 -> 0.7947871089 | H35: 0.87 | J35: ='MRP WP1'!H$60 -> 8.627346222 | M35: ='MRP WP1'!F$37 -> 4.36 | P35: 11.86579121 | S35: 12.1462 | V35: 12.01 | X35: 0
A36: ='CEM Data Lookup'!A31 -> LHX | B36: =VLOOKUP($A36,'CEM Data Lookup'!$A$4:$Q$56,2,FALSE) -> L3Harris Technologies, Inc. | D36: ='CEM Data Lookup'!G31 -> 0.9 | F36: ='CEM Data Lookup'!H31 -> 0.9033795595 | H36: 0.9 | J36: ='MRP WP1'!H$60 -> 8.627346222 | M36: ='MRP WP1'!F$37 -> 4.36 | P36: 12.1246116 | S36: 12.3403 | V36: 12.23 | X36: 0
A37: ='CEM Data Lookup'!A32 -> LMT | B37: =VLOOKUP($A37,'CEM Data Lookup'!$A$4:$Q$56,2,FALSE) -> Lockheed Martin Corporation | D37: ='CEM Data Lookup'!G32 -> 0.85 | F37: ='CEM Data Lookup'!H32 -> 0.5478506684 | H37: 0.7 | J37: ='MRP WP1'!H$60 -> 8.627346222 | M37: ='MRP WP1'!F$37 -> 4.36 | P37: 10.39914236 | S37: 11.0462 | V37: 10.72 | X37: 0
A38: ='CEM Data Lookup'!A33 -> MCK | B38: =VLOOKUP($A38,'CEM Data Lookup'!$A$4:$Q$56,2,FALSE) -> McKesson Corporation | D38: ='CEM Data Lookup'!G33 -> 0.8 | F38: ='CEM Data Lookup'!H33 -> 0.4659645557 | H38: 0.63 | J38: ='MRP WP1'!H$60 -> 8.627346222 | M38: ='MRP WP1'!F$37 -> 4.36 | P38: 9.79522812 | S38: 10.5933 | V38: 10.19 | W38: (4) | X38: 1
A39: ='CEM Data Lookup'!A34 -> MSFT | B39: =VLOOKUP($A39,'CEM Data Lookup'!$A$4:$Q$56,2,FALSE) -> Microsoft Corporation | D39: ='CEM Data Lookup'!G34 -> 0.85 | F39: ='CEM Data Lookup'!H34 -> 1.08978641 | H39: 0.97 | J39: ='MRP WP1'!H$60 -> 8.627346222 | M39: ='MRP WP1'!F$37 -> 4.36 | P39: 12.72852584 | S39: 12.7932 | V39: 12.76 | X39: 0
A40: ='CEM Data Lookup'!A35 -> MSA | B40: =VLOOKUP($A40,'CEM Data Lookup'!$A$4:$Q$56,2,FALSE) -> MSA Safety Incorporated | D40: ='CEM Data Lookup'!G35 -> 0.95 | F40: ='CEM Data Lookup'!H35 -> 0.9358501434 | H40: 0.94 | J40: ='MRP WP1'!H$60 -> 8.627346222 | M40: ='MRP WP1'!F$37 -> 4.36 | P40: 12.46970545 | S40: 12.5991 | V40: 12.53 | X40: 0
A41: ='CEM Data Lookup'!A36 -> MSM | B41: =VLOOKUP($A41,'CEM Data Lookup'!$A$4:$Q$56,2,FALSE) -> MSC Industrial Direct Co., Inc. | D41: ='CEM Data Lookup'!G36 -> 0.9 | F41: ='CEM Data Lookup'!H36 -> 0.8211763501 | H41: 0.86 | J41: ='MRP WP1'!H$60 -> 8.627346222 | M41: ='MRP WP1'!F$37 -> 4.36 | P41: 11.77951775 | S41: 12.0815 | V41: 11.93 | X41: 0
A42: ='CEM Data Lookup'!A37 -> ORCL | B42: =VLOOKUP($A42,'CEM Data Lookup'!$A$4:$Q$56,2,FALSE) -> Oracle Corporation | D42: ='CEM Data Lookup'!G37 -> 0.8 | F42: ='CEM Data Lookup'!H37 -> 1.142013907 | H42: 0.97 | J42: ='MRP WP1'!H$60 -> 8.627346222 | M42: ='MRP WP1'!F$37 -> 4.36 | P42: 12.72852584 | S42: 12.7932 | V42: 12.76 | X42: 0
A43: ='CEM Data Lookup'!A38 -> ORLY | B43: =VLOOKUP($A43,'CEM Data Lookup'!$A$4:$Q$56,2,FALSE) -> O'Reilly Automotive, Inc. | D43: ='CEM Data Lookup'!G38 -> 0.9 | F43: ='CEM Data Lookup'!H38 -> 0.6279187202 | H43: 0.76 | J43: ='MRP WP1'!H$60 -> 8.627346222 | M43: ='MRP WP1'!F$37 -> 4.36 | P43: 10.91678313 | S43: 11.4344 | V43: 11.18 | X43: 0
A44: ='CEM Data Lookup'!A39 -> OSIS | B44: =VLOOKUP($A44,'CEM Data Lookup'!$A$4:$Q$56,2,FALSE) -> OSI Systems, Inc. | D44: ='CEM Data Lookup'!G39 -> 0.9 | F44: ='CEM Data Lookup'!H39 -> 0.998925209 | H44: 0.95 | J44: ='MRP WP1'!H$60 -> 8.627346222 | M44: ='MRP WP1'!F$37 -> 4.36 | P44: 12.55597891 | S44: 12.6638 | V44: 12.61 | X44: 0
A45: ='CEM Data Lookup'!A40 -> PKG | B45: =VLOOKUP($A45,'CEM Data Lookup'!$A$4:$Q$56,2,FALSE) -> Packaging Corporation of America | D45: ='CEM Data Lookup'!G40 -> 0.95 | F45: ='CEM Data Lookup'!H40 -> 0.8645604253 | H45: 0.91 | J45: ='MRP WP1'!H$60 -> 8.627346222 | M45: ='MRP WP1'!F$37 -> 4.36 | P45: 12.21088506 | S45: 12.405 | V45: 12.31 | X45: 0
A46: ='CEM Data Lookup'!A41 -> PFE | B46: =VLOOKUP($A46,'CEM Data Lookup'!$A$4:$Q$56,2,FALSE) -> Pfizer, Inc. | D46: ='CEM Data Lookup'!G41 -> 0.8 | F46: ='CEM Data Lookup'!H41 -> 0.6042047739 | H46: 0.7 | J46: ='MRP WP1'!H$60 -> 8.627346222 | M46: ='MRP WP1'!F$37 -> 4.36 | P46: 10.39914236 | S46: 11.0462 | V46: 10.72 | X46: 0
A47: ='CEM Data Lookup'!A42 -> PM | B47: =VLOOKUP($A47,'CEM Data Lookup'!$A$4:$Q$56,2,FALSE) -> Philip Morris International Inc. | D47: ='CEM Data Lookup'!G42 -> 0.95 | F47: ='CEM Data Lookup'!H42 -> 0.7340859175 | H47: 0.84 | J47: ='MRP WP1'!H$60 -> 8.627346222 | M47: ='MRP WP1'!F$37 -> 4.36 | P47: 11.60697083 | S47: 11.9521 | V47: 11.78 | X47: 0
A48: ='CEM Data Lookup'!A43 -> PBH | B48: =VLOOKUP($A48,'CEM Data Lookup'!$A$4:$Q$56,2,FALSE) -> Prestige Consumer Healthcare Inc. | D48: ='CEM Data Lookup'!G43 -> 0.85 | F48: ='CEM Data Lookup'!H43 -> 0.6508042812 | H48: 0.75 | J48: ='MRP WP1'!H$60 -> 8.627346222 | M48: ='MRP WP1'!F$37 -> 4.36 | P48: 10.83050967 | S48: =ROUND(0.75*(H48*J48)+(0.25*J48)+M48,4) -> 11.3697 | V48: 11.1 | X48: 0
A49: ='CEM Data Lookup'!A44 -> SIGI | B49: =VLOOKUP($A49,'CEM Data Lookup'!$A$4:$Q$56,2,FALSE) -> Selective Insurance Group, Inc. | D49: ='CEM Data Lookup'!G44 -> 0.85 | F49: ='CEM Data Lookup'!H44 -> 0.5991579294 | H49: 0.72 | J49: ='MRP WP1'!H$60 -> 8.627346222 | M49: ='MRP WP1'!F$37 -> 4.36 | P49: 10.57168928 | S49: 11.1756 | V49: 10.87 | X49: 0
A50: ='CEM Data Lookup'!A45 -> SXT | B50: =VLOOKUP($A50,'CEM Data Lookup'!$A$4:$Q$56,2,FALSE) -> Sensient Technologies Corporation | D50: ='CEM Data Lookup'!G45 -> 0.95 | F50: ='CEM Data Lookup'!H45 -> 0.9290005565 | H50: 0.94 | J50: ='MRP WP1'!H$60 -> 8.627346222 | M50: ='MRP WP1'!F$37 -> 4.36 | P50: 12.46970545 | S50: 12.5991 | V50: 12.53 | X50: 0
A51: ='CEM Data Lookup'!A46 -> SCI | B51: =VLOOKUP($A51,'CEM Data Lookup'!$A$4:$Q$56,2,FALSE) -> Service Corporation International | D51: ='CEM Data Lookup'!G46 -> 0.95 | F51: ='CEM Data Lookup'!H46 -> 0.7724724412 | H51: 0.86 | J51: ='MRP WP1'!H$60 -> 8.627346222 | M51: ='MRP WP1'!F$37 -> 4.36 | P51: 11.77951775 | S51: 12.0815 | V51: 11.93 | X51: 0
A52: ='CEM Data Lookup'!A47 -> SHW | B52: =VLOOKUP($A52,'CEM Data Lookup'!$A$4:$Q$56,2,FALSE) -> Sherwin-Williams Company | D52: ='CEM Data Lookup'!G47 -> 0.95 | F52: ='CEM Data Lookup'!H47 -> 1.152613878 | H52: 1.05 | J52: ='MRP WP1'!H$60 -> 8.627346222 | M52: ='MRP WP1'!F$37 -> 4.36 | P52: 13.41871353 | S52: 13.3109 | V52: 13.36 | X52: 0
A53: ='CEM Data Lookup'!A48 -> AOS | B53: =VLOOKUP($A53,'CEM Data Lookup'!$A$4:$Q$56,2,FALSE) -> Smith (A.O.) Corporation | D53: ='CEM Data Lookup'!G48 -> 0.9 | F53: ='CEM Data Lookup'!H48 -> 1.033479333 | H53: 0.97 | J53: ='MRP WP1'!H$60 -> 8.627346222 | M53: ='MRP WP1'!F$37 -> 4.36 | P53: 12.72852584 | S53: 12.7932 | V53: 12.76 | X53: 0
A54: ='CEM Data Lookup'!A49 -> TXN | B54: =VLOOKUP($A54,'CEM Data Lookup'!$A$4:$Q$56,2,FALSE) -> Texas Instruments Incorporated | D54: ='CEM Data Lookup'!G49 -> 0.85 | F54: ='CEM Data Lookup'!H49 -> 1.100414753 | H54: 0.98 | J54: ='MRP WP1'!H$60 -> 8.627346222 | M54: ='MRP WP1'!F$37 -> 4.36 | P54: 12.8147993 | S54: 12.8579 | V54: 12.84 | X54: 0
A55: ='CEM Data Lookup'!A50 -> TMO | B55: =VLOOKUP($A55,'CEM Data Lookup'!$A$4:$Q$56,2,FALSE) -> Thermo Fisher Scientific Inc. | D55: ='CEM Data Lookup'!G50 -> 0.85 | F55: ='CEM Data Lookup'!H50 -> 0.9714167714 | H55: 0.91 | J55: ='MRP WP1'!H$60 -> 8.627346222 | M55: ='MRP WP1'!F$37 -> 4.36 | P55: 12.21088506 | S55: 12.405 | V55: 12.31 | X55: 0
A56: ='CEM Data Lookup'!A51 -> UNF | B56: =VLOOKUP($A56,'CEM Data Lookup'!$A$4:$Q$56,2,FALSE) -> UniFirst Corporation | D56: ='CEM Data Lookup'!G51 -> 0.9 | F56: ='CEM Data Lookup'!H51 -> 0.785345912 | H56: 0.84 | J56: ='MRP WP1'!H$60 -> 8.627346222 | M56: ='MRP WP1'!F$37 -> 4.36 | P56: 11.60697083 | S56: 11.9521 | V56: 11.78 | X56: 0
A57: ='CEM Data Lookup'!A52 -> UNH | B57: =VLOOKUP($A57,'CEM Data Lookup'!$A$4:$Q$56,2,FALSE) -> UnitedHealth Group Incorporated | D57: ='CEM Data Lookup'!G52 -> 0.95 | F57: ='CEM Data Lookup'!H52 -> 0.3351097405 | H57: 0.64 | J57: ='MRP WP1'!H$60 -> 8.627346222 | M57: ='MRP WP1'!F$37 -> 4.36 | P57: 9.881501582 | S57: 10.658 | V57: 10.27 | W57: (4) | X57: 1
A58: ='CEM Data Lookup'!A53 -> VRSN | B58: =VLOOKUP($A58,'CEM Data Lookup'!$A$4:$Q$56,2,FALSE) -> VeriSign Inc. | D58: ='CEM Data Lookup'!G53 -> 0.9 | F58: ='CEM Data Lookup'!H53 -> 0.9674180746 | H58: 0.93 | J58: ='MRP WP1'!H$60 -> 8.627346222 | M58: ='MRP WP1'!F$37 -> 4.36 | P58: 12.38343199 | S58: 12.5344 | V58: 12.46 | X58: 0
A59: ='CEM Data Lookup'!A54 -> VRSK | B59: =VLOOKUP($A59,'CEM Data Lookup'!$A$4:$Q$56,2,FALSE) -> Verisk Analytics, Inc. | D59: ='CEM Data Lookup'!G54 -> 0.9 | F59: ='CEM Data Lookup'!H54 -> 0.9424043298 | H59: 0.92 | J59: ='MRP WP1'!H$60 -> 8.627346222 | M59: ='MRP WP1'!F$37 -> 4.36 | P59: 12.29715852 | S59: 12.4697 | V59: 12.38 | X59: 0
A60: ='CEM Data Lookup'!A55 -> WAT | B60: =VLOOKUP($A60,'CEM Data Lookup'!$A$4:$Q$56,2,FALSE) -> Waters Corporation | D60: ='CEM Data Lookup'!G55 -> 0.95 | F60: ='CEM Data Lookup'!H55 -> 1.133283615 | H60: =ROUND(AVERAGE(D60:F60),2) -> 1.04 | J60: ='MRP WP1'!H$60 -> 8.627346222 | M60: ='MRP WP1'!F$37 -> 4.36 | P60: 13.33244007 | S60: 13.2462 | V60: 13.29 | X60: 0
A61: ='CEM Data Lookup'!A56 -> WSO | B61: =VLOOKUP($A61,'CEM Data Lookup'!$A$4:$Q$56,2,FALSE) -> Watsco, Inc. | D61: ='CEM Data Lookup'!G56 -> 0.9 | F61: ='CEM Data Lookup'!H56 -> 1.253461242 | H61: 1.08 | J61: ='MRP WP1'!H$60 -> 8.627346222 | M61: ='MRP WP1'!F$37 -> 4.36 | P61: 13.67753392 | S61: 13.505 | V61: 13.59 | X61: 0
F63: Mean | H63: =ROUND(AVERAGE(H9:H61),2) -> 0.88 | P63: =ROUND(AVERAGE(P9:P61),2) -> 11.94 | Q63: % | S63: =ROUND(AVERAGE(S9:S61),2) -> 12.2 | T63: % | V63: =ROUND(AVERAGE(V9:V37,V39:V56,V58:V61),2) -> 12.14 | W63: %
F65: Median | H65: =ROUND(MEDIAN(H9:H61),2) -> 0.87 | P65: =ROUND(MEDIAN(P9:P61),2) -> 11.87 | Q65: % | S65: =ROUND(MEDIAN(S9:S61),2) -> 12.15 | T65: % | V65: =ROUND(MEDIAN(V9:V37,V39:V56,V58:V61),2) -> 12.08 | W65: %
F67: Average of Mean and Median | H67: =ROUND(AVERAGE(H63:H65),2) -> 0.88 | P67: =ROUND(AVERAGE(P63:P65),2) -> 11.91 | Q67: % | S67: =ROUND(AVERAGE(S63:S65),2) -> 12.18 | T67: % | V67: =ROUND(AVERAGE(V63:V65),2) -> 12.11 | W67: %
C70: Notes:
C71: (1) | D71: From note 1 of page 2 of Schedule DWD-4.
C72: (2) | D72: From note 2 of page 2 of Schedule DWD-4.
C73: (3) | D73: Average of CAPM and ECAPM cost rates.
C74: (4) | D74: Results were excluded from the final average and median as they were more than two standard deviations from the proxy group's mean.

Sheet 6.7 CEM CAPM Backup NO PRPM
B1: =Input!G28 -> Atmos Energy Corporation
B2: Traditional CAPM and ECAPM Results (excluding the PRPM MRP) for the Proxy Group of Non-Price-Regulated Companies Comparable in Total Risk to the
B3: ='6.5 CEM Beta Adjusted RP'!A5 -> Proxy Group of Six Natural Gas Distribution Companies
D5: [1] | F5: [2] | H5: [3] | J5: [4] | M5: [5] | P5: [6] | S5: [7] | V5: [8]
B7: ='6.5 CEM Beta Adjusted RP'!F7 -> Proxy Group of Fifty-Three Non-Price Regulated Companies | D7: Value Line Adjusted Beta | F7: Bloomberg Beta | H7: Average Beta | J7: Market Risk Premium (1) | M7: Risk-Free Rate (2) | P7: Traditional CAPM Cost Rate | S7: ECAPM Cost Rate | V7: Indicated Common Equity Cost Rate (3)
A9: =Input!C2 -> ABT | B9: =VLOOKUP($A9,'CEM Data Lookup'!$A$4:$Q$56,2,FALSE) -> Abbott Laboratories | D9: ='6.6 CEM CAPM Backup'!D9 -> 0.9 | F9: ='6.6 CEM CAPM Backup'!F9 -> 0.7949305773 | H9: =ROUND(AVERAGE(D9:F9),2) -> 0.85 | J9: ='4.2 CAPM Notes'!$N$36 -> 8.523385556 | K9: % | M9: ='MRP WP1'!F$37 -> 4.36 | N9: % | P9: =H9*(J9)+M9 -> 11.60487772 | Q9: % | S9: =ROUND(0.75*(H9*J9)+(0.25*J9)+M9,4) -> 11.9245 | T9: % | V9: =ROUND(AVERAGE(P9,S9),2) -> 11.76 | W9: % | X9: =IF(OR(V9<$Z$12,V9>$Z$11),1,0) -> 0 | Z9: =_xlfn.STDEV.P(V9:V61)*2 -> 1.615525511
A10: =Input!C3 -> A | B10: =VLOOKUP($A10,'CEM Data Lookup'!$A$4:$Q$56,2,FALSE) -> Agilent Technologies, Inc. | D10: ='6.6 CEM CAPM Backup'!D10 -> 0.95 | F10: ='6.6 CEM CAPM Backup'!F10 -> 1.109119534 | H10: =ROUND(AVERAGE(D10:F10),2) -> 1.03 | J10: ='4.2 CAPM Notes'!$N$36 -> 8.523385556 | M10: ='MRP WP1'!F$37 -> 4.36 | P10: =H10*(J10)+M10 -> 13.13908712 | S10: =ROUND(0.75*(H10*J10)+(0.25*J10)+M10,4) -> 13.0752 | V10: =ROUND(AVERAGE(P10,S10),2) -> 13.11 | X10: =IF(OR(V10<$Z$12,V10>$Z$11),1,0) -> 0 | Z10: =AVERAGE(V9:V61) -> 11.97716981
A11: =Input!C4 -> APD | B11: =VLOOKUP($A11,'CEM Data Lookup'!$A$4:$Q$56,2,FALSE) -> Air Products and Chemicals, Inc. | D11: ='6.6 CEM CAPM Backup'!D11 -> 0.9 | F11: ='6.6 CEM CAPM Backup'!F11 -> 0.7995934486 | H11: 0.85 | J11: ='4.2 CAPM Notes'!$N$36 -> 8.523385556 | M11: ='MRP WP1'!F$37 -> 4.36 | P11: 11.60487772 | S11: 11.9245 | V11: 11.76 | X11: 0 | Z11: =Z10+Z9 -> 13.59269532
A12: =Input!C5 -> ALL | B12: =VLOOKUP($A12,'CEM Data Lookup'!$A$4:$Q$56,2,FALSE) -> Allstate Corporation (The) | D12: ='6.6 CEM CAPM Backup'!D12 -> 1 | F12: ='6.6 CEM CAPM Backup'!F12 -> 0.5221353173 | H12: 0.76 | J12: ='4.2 CAPM Notes'!$N$36 -> 8.523385556 | M12: ='MRP WP1'!F$37 -> 4.36 | P12: 10.83777302 | S12: 11.3492 | V12: 11.09 | X12: 0 | Z12: =Z10-Z9 -> 10.3616443
A13: =Input!C6 -> GOOG | B13: =VLOOKUP($A13,'CEM Data Lookup'!$A$4:$Q$56,2,FALSE) -> Alphabet Inc. | D13: ='6.6 CEM CAPM Backup'!D13 -> 0.9 | F13: ='6.6 CEM CAPM Backup'!F13 -> 1.173546076 | H13: 1.04 | J13: ='4.2 CAPM Notes'!$N$36 -> 8.523385556 | M13: ='MRP WP1'!F$37 -> 4.36 | P13: 13.22432098 | S13: 13.1391 | V13: 13.18 | X13: 0
A14: =Input!C7 -> MO | B14: =VLOOKUP($A14,'CEM Data Lookup'!$A$4:$Q$56,2,FALSE) -> Altria Group, Inc. | D14: ='6.6 CEM CAPM Backup'!D14 -> 0.85 | F14: ='6.6 CEM CAPM Backup'!F14 -> 0.559874773 | H14: 0.7 | J14: ='4.2 CAPM Notes'!$N$36 -> 8.523385556 | M14: ='MRP WP1'!F$37 -> 4.36 | P14: 10.32636989 | S14: 10.9656 | V14: 10.65 | X14: 0
A15: =Input!C8 -> ADI | B15: =VLOOKUP($A15,'CEM Data Lookup'!$A$4:$Q$56,2,FALSE) -> Analog Devices, Inc. | D15: ='6.6 CEM CAPM Backup'!D15 -> 1 | F15: ='6.6 CEM CAPM Backup'!F15 -> 1.155067563 | H15: 1.08 | J15: ='4.2 CAPM Notes'!$N$36 -> 8.523385556 | M15: ='MRP WP1'!F$37 -> 4.36 | P15: 13.5652564 | S15: 13.3948 | V15: 13.48 | X15: 0
A16: =Input!C9 -> AAPL | B16: =VLOOKUP($A16,'CEM Data Lookup'!$A$4:$Q$56,2,FALSE) -> Apple Inc. | D16: ='6.6 CEM CAPM Backup'!D16 -> 0.95 | F16: ='6.6 CEM CAPM Backup'!F16 -> 1.137511253 | H16: 1.04 | J16: ='4.2 CAPM Notes'!$N$36 -> 8.523385556 | M16: ='MRP WP1'!F$37 -> 4.36 | P16: 13.22432098 | S16: 13.1391 | V16: 13.18 | X16: 0
A17: =Input!C10 -> ADM | B17: =VLOOKUP($A17,'CEM Data Lookup'!$A$4:$Q$56,2,FALSE) -> Archer Daniels-Midlan Company | D17: ='6.6 CEM CAPM Backup'!D17 -> 0.95 | F17: ='6.6 CEM CAPM Backup'!F17 -> 0.6751753688 | H17: 0.81 | J17: ='4.2 CAPM Notes'!$N$36 -> 8.523385556 | M17: ='MRP WP1'!F$37 -> 4.36 | P17: 11.2639423 | S17: 11.6688 | V17: 11.47 | X17: 0
A18: =Input!C11 -> AIZ | B18: =VLOOKUP($A18,'CEM Data Lookup'!$A$4:$Q$56,2,FALSE) -> Assurant Inc. | D18: ='6.6 CEM CAPM Backup'!D18 -> 0.9 | F18: ='6.6 CEM CAPM Backup'!F18 -> 0.7801808715 | H18: 0.84 | J18: ='4.2 CAPM Notes'!$N$36 -> 8.523385556 | M18: ='MRP WP1'!F$37 -> 4.36 | P18: 11.51964387 | S18: 11.8606 | V18: 11.69 | X18: 0
A19: =Input!C12 -> AZO | B19: =VLOOKUP($A19,'CEM Data Lookup'!$A$4:$Q$56,2,FALSE) -> AutoZone Inc. | D19: ='6.6 CEM CAPM Backup'!D19 -> 0.95 | F19: ='6.6 CEM CAPM Backup'!F19 -> 0.6867181659 | H19: 0.82 | J19: ='4.2 CAPM Notes'!$N$36 -> 8.523385556 | M19: ='MRP WP1'!F$37 -> 4.36 | P19: 11.34917616 | S19: 11.7327 | V19: 11.54 | X19: 0
A20: =Input!C13 -> BAH | B20: =VLOOKUP($A20,'CEM Data Lookup'!$A$4:$Q$56,2,FALSE) -> Booz Allen Hamilton Corporation | D20: ='6.6 CEM CAPM Backup'!D20 -> 0.85 | F20: ='6.6 CEM CAPM Backup'!F20 -> 0.8280857801 | H20: 0.84 | J20: ='4.2 CAPM Notes'!$N$36 -> 8.523385556 | M20: ='MRP WP1'!F$37 -> 4.36 | P20: 11.51964387 | S20: 11.8606 | V20: 11.69 | X20: 0
A21: =Input!C14 -> BRC | B21: =VLOOKUP($A21,'CEM Data Lookup'!$A$4:$Q$56,2,FALSE) -> Brady Corporation | D21: ='6.6 CEM CAPM Backup'!D21 -> 0.95 | F21: ='6.6 CEM CAPM Backup'!F21 -> 0.7024881244 | H21: 0.83 | J21: ='4.2 CAPM Notes'!$N$36 -> 8.523385556 | M21: ='MRP WP1'!F$37 -> 4.36 | P21: 11.43441001 | S21: 11.7967 | V21: 11.62 | X21: 0
A22: =Input!C15 -> BFB | B22: =VLOOKUP($A22,'CEM Data Lookup'!$A$4:$Q$56,2,FALSE) -> Brown-Forman Corporation 'B' | D22: ='6.6 CEM CAPM Backup'!D22 -> 0.9 | F22: ='6.6 CEM CAPM Backup'!F22 -> 0.8686777949 | H22: 0.88 | J22: ='4.2 CAPM Notes'!$N$36 -> 8.523385556 | M22: ='MRP WP1'!F$37 -> 4.36 | P22: 11.86057929 | S22: 12.1163 | V22: 11.99 | X22: 0
A23: =Input!C16 -> CACI | B23: =VLOOKUP($A23,'CEM Data Lookup'!$A$4:$Q$56,2,FALSE) -> CACI International | D23: ='6.6 CEM CAPM Backup'!D23 -> 0.9 | F23: ='6.6 CEM CAPM Backup'!F23 -> 0.7897487879 | H23: 0.84 | J23: ='4.2 CAPM Notes'!$N$36 -> 8.523385556 | M23: ='MRP WP1'!F$37 -> 4.36 | P23: 11.51964387 | S23: 11.8606 | V23: 11.69 | X23: 0
A24: =Input!C17 -> CWST | B24: =VLOOKUP($A24,'CEM Data Lookup'!$A$4:$Q$56,2,FALSE) -> Casella Waste Systems, Inc. | D24: ='6.6 CEM CAPM Backup'!D24 -> 0.85 | F24: ='6.6 CEM CAPM Backup'!F24 -> 0.7079681158 | H24: 0.78 | J24: ='4.2 CAPM Notes'!$N$36 -> 8.523385556 | M24: ='MRP WP1'!F$37 -> 4.36 | P24: 11.00824073 | S24: 11.477 | V24: 11.24 | X24: 0
A25: =Input!C18 -> CASY | B25: =VLOOKUP($A25,'CEM Data Lookup'!$A$4:$Q$56,2,FALSE) -> Casey's General Stores, Inc. | D25: ='6.6 CEM CAPM Backup'!D25 -> 0.85 | F25: ='6.6 CEM CAPM Backup'!F25 -> 0.6584035754 | H25: 0.75 | J25: ='4.2 CAPM Notes'!$N$36 -> 8.523385556 | M25: ='MRP WP1'!F$37 -> 4.36 | P25: 10.75253917 | S25: 11.2853 | V25: 11.02 | X25: 0
A26: =Input!C19 -> CTVA | B26: =VLOOKUP($A26,'CEM Data Lookup'!$A$4:$Q$56,2,FALSE) -> Corteva, Inc. | D26: ='6.6 CEM CAPM Backup'!D26 -> 0.95 | F26: ='6.6 CEM CAPM Backup'!F26 -> 0.7852247357 | H26: 0.87 | J26: ='4.2 CAPM Notes'!$N$36 -> 8.523385556 | M26: ='MRP WP1'!F$37 -> 4.36 | P26: 11.77534543 | S26: 12.0524 | V26: 11.91 | X26: 0
A27: =Input!C20 -> CSWI | B27: =VLOOKUP($A27,'CEM Data Lookup'!$A$4:$Q$56,2,FALSE) -> CSW Industrials | D27: ='6.6 CEM CAPM Backup'!D27 -> 0.85 | F27: ='6.6 CEM CAPM Backup'!F27 -> 0.8410357237 | H27: 0.85 | J27: ='4.2 CAPM Notes'!$N$36 -> 8.523385556 | M27: ='MRP WP1'!F$37 -> 4.36 | P27: 11.60487772 | S27: 11.9245 | V27: 11.76 | X27: 0
A28: =Input!C21 -> DHR | B28: =VLOOKUP($A28,'CEM Data Lookup'!$A$4:$Q$56,2,FALSE) -> Danaher Corporation | D28: ='6.6 CEM CAPM Backup'!D28 -> 0.9 | F28: ='6.6 CEM CAPM Backup'!F28 -> 0.9941122532 | H28: 0.95 | J28: ='4.2 CAPM Notes'!$N$36 -> 8.523385556 | M28: ='MRP WP1'!F$37 -> 4.36 | P28: 12.45721628 | S28: 12.5638 | V28: 12.51 | X28: 0
A29: =Input!C22 -> DLB | B29: =VLOOKUP($A29,'CEM Data Lookup'!$A$4:$Q$56,2,FALSE) -> Dolby Laboratories | D29: ='6.6 CEM CAPM Backup'!D29 -> 0.95 | F29: ='6.6 CEM CAPM Backup'!F29 -> 0.8785974383 | H29: 0.91 | J29: ='4.2 CAPM Notes'!$N$36 -> 8.523385556 | M29: ='MRP WP1'!F$37 -> 4.36 | P29: 12.11628086 | S29: 12.3081 | V29: 12.21 | X29: 0
A30: =Input!C23 -> FAST | B30: =VLOOKUP($A30,'CEM Data Lookup'!$A$4:$Q$56,2,FALSE) -> Fastenal Company | D30: ='6.6 CEM CAPM Backup'!D30 -> 0.9 | F30: ='6.6 CEM CAPM Backup'!F30 -> 0.9218179584 | H30: 0.91 | J30: ='4.2 CAPM Notes'!$N$36 -> 8.523385556 | M30: ='MRP WP1'!F$37 -> 4.36 | P30: 12.11628086 | S30: 12.3081 | V30: 12.21 | X30: 0
A31: =Input!C24 -> GATX | B31: =VLOOKUP($A31,'CEM Data Lookup'!$A$4:$Q$56,2,FALSE) -> GATX Corporation | D31: ='6.6 CEM CAPM Backup'!D31 -> 0.95 | F31: ='6.6 CEM CAPM Backup'!F31 -> 0.9301026464 | H31: 0.94 | J31: ='4.2 CAPM Notes'!$N$36 -> 8.523385556 | M31: ='MRP WP1'!F$37 -> 4.36 | P31: 12.37198242 | S31: 12.4998 | V31: 12.44 | X31: 0
A32: =Input!C25 -> IOSP | B32: =VLOOKUP($A32,'CEM Data Lookup'!$A$4:$Q$56,2,FALSE) -> Innospec Inc. | D32: ='6.6 CEM CAPM Backup'!D32 -> 1 | F32: ='6.6 CEM CAPM Backup'!F32 -> 0.8875972629 | H32: 0.94 | J32: ='4.2 CAPM Notes'!$N$36 -> 8.523385556 | M32: ='MRP WP1'!F$37 -> 4.36 | P32: 12.37198242 | S32: 12.4998 | V32: 12.44 | X32: 0
A33: =Input!C26 -> JBHT | B33: =VLOOKUP($A33,'CEM Data Lookup'!$A$4:$Q$56,2,FALSE) -> J. B. Hunt Transport Services | D33: ='6.6 CEM CAPM Backup'!D33 -> 0.95 | F33: ='6.6 CEM CAPM Backup'!F33 -> 0.9957460165 | H33: 0.97 | J33: ='4.2 CAPM Notes'!$N$36 -> 8.523385556 | M33: ='MRP WP1'!F$37 -> 4.36 | P33: 12.62768399 | S33: 12.6916 | V33: 12.66 | X33: 0
A34: =Input!C27 -> JKHY | B34: =VLOOKUP($A34,'CEM Data Lookup'!$A$4:$Q$56,2,FALSE) -> Jack Henry & Associates, Inc. | D34: ='6.6 CEM CAPM Backup'!D34 -> 0.85 | F34: ='6.6 CEM CAPM Backup'!F34 -> 0.8471081257 | H34: 0.85 | J34: ='4.2 CAPM Notes'!$N$36 -> 8.523385556 | M34: ='MRP WP1'!F$37 -> 4.36 | P34: 11.60487772 | S34: 11.9245 | V34: 11.76 | X34: 0
A35: =Input!C28 -> JNPR | B35: =VLOOKUP($A35,'CEM Data Lookup'!$A$4:$Q$56,2,FALSE) -> Juniper Networks, Inc. | D35: ='6.6 CEM CAPM Backup'!D35 -> 0.95 | F35: ='6.6 CEM CAPM Backup'!F35 -> 0.7947871089 | H35: 0.87 | J35: ='4.2 CAPM Notes'!$N$36 -> 8.523385556 | M35: ='MRP WP1'!F$37 -> 4.36 | P35: 11.77534543 | S35: 12.0524 | V35: 11.91 | X35: 0
A36: =Input!C29 -> LHX | B36: =VLOOKUP($A36,'CEM Data Lookup'!$A$4:$Q$56,2,FALSE) -> L3Harris Technologies, Inc. | D36: ='6.6 CEM CAPM Backup'!D36 -> 0.9 | F36: ='6.6 CEM CAPM Backup'!F36 -> 0.9033795595 | H36: 0.9 | J36: ='4.2 CAPM Notes'!$N$36 -> 8.523385556 | M36: ='MRP WP1'!F$37 -> 4.36 | P36: 12.031047 | S36: 12.2441 | V36: 12.14 | X36: 0
A37: =Input!C30 -> LMT | B37: =VLOOKUP($A37,'CEM Data Lookup'!$A$4:$Q$56,2,FALSE) -> Lockheed Martin Corporation | D37: ='6.6 CEM CAPM Backup'!D37 -> 0.85 | F37: ='6.6 CEM CAPM Backup'!F37 -> 0.5478506684 | H37: 0.7 | J37: ='4.2 CAPM Notes'!$N$36 -> 8.523385556 | M37: ='MRP WP1'!F$37 -> 4.36 | P37: 10.32636989 | S37: 10.9656 | V37: 10.65 | X37: 0
A38: =Input!C31 -> MCK | B38: =VLOOKUP($A38,'CEM Data Lookup'!$A$4:$Q$56,2,FALSE) -> McKesson Corporation | D38: ='6.6 CEM CAPM Backup'!D38 -> 0.8 | F38: ='6.6 CEM CAPM Backup'!F38 -> 0.4659645557 | H38: 0.63 | J38: ='4.2 CAPM Notes'!$N$36 -> 8.523385556 | M38: ='MRP WP1'!F$37 -> 4.36 | P38: 9.729732901 | S38: 10.5181 | V38: 10.12 | W38: (4) | X38: 1
A39: =Input!C32 -> MSFT | B39: =VLOOKUP($A39,'CEM Data Lookup'!$A$4:$Q$56,2,FALSE) -> Microsoft Corporation | D39: ='6.6 CEM CAPM Backup'!D39 -> 0.85 | F39: ='6.6 CEM CAPM Backup'!F39 -> 1.08978641 | H39: 0.97 | J39: ='4.2 CAPM Notes'!$N$36 -> 8.523385556 | M39: ='MRP WP1'!F$37 -> 4.36 | P39: 12.62768399 | S39: 12.6916 | V39: 12.66 | X39: 0
A40: =Input!C33 -> MSA | B40: =VLOOKUP($A40,'CEM Data Lookup'!$A$4:$Q$56,2,FALSE) -> MSA Safety Incorporated | D40: ='6.6 CEM CAPM Backup'!D40 -> 0.95 | F40: ='6.6 CEM CAPM Backup'!F40 -> 0.9358501434 | H40: 0.94 | J40: ='4.2 CAPM Notes'!$N$36 -> 8.523385556 | M40: ='MRP WP1'!F$37 -> 4.36 | P40: 12.37198242 | S40: 12.4998 | V40: 12.44 | X40: 0
A41: =Input!C34 -> MSM | B41: =VLOOKUP($A41,'CEM Data Lookup'!$A$4:$Q$56,2,FALSE) -> MSC Industrial Direct Co., Inc. | D41: ='6.6 CEM CAPM Backup'!D41 -> 0.9 | F41: ='6.6 CEM CAPM Backup'!F41 -> 0.8211763501 | H41: 0.86 | J41: ='4.2 CAPM Notes'!$N$36 -> 8.523385556 | M41: ='MRP WP1'!F$37 -> 4.36 | P41: 11.69011158 | S41: 11.9884 | V41: 11.84 | X41: 0
A42: =Input!C35 -> ORCL | B42: =VLOOKUP($A42,'CEM Data Lookup'!$A$4:$Q$56,2,FALSE) -> Oracle Corporation | D42: ='6.6 CEM CAPM Backup'!D42 -> 0.8 | F42: ='6.6 CEM CAPM Backup'!F42 -> 1.142013907 | H42: 0.97 | J42: ='4.2 CAPM Notes'!$N$36 -> 8.523385556 | M42: ='MRP WP1'!F$37 -> 4.36 | P42: 12.62768399 | S42: 12.6916 | V42: 12.66 | X42: 0
A43: =Input!C36 -> ORLY | B43: =VLOOKUP($A43,'CEM Data Lookup'!$A$4:$Q$56,2,FALSE) -> O'Reilly Automotive, Inc. | D43: ='6.6 CEM CAPM Backup'!D43 -> 0.9 | F43: ='6.6 CEM CAPM Backup'!F43 -> 0.6279187202 | H43: 0.76 | J43: ='4.2 CAPM Notes'!$N$36 -> 8.523385556 | M43: ='MRP WP1'!F$37 -> 4.36 | P43: 10.83777302 | S43: 11.3492 | V43: 11.09 | X43: 0
A44: =Input!C37 -> OSIS | B44: =VLOOKUP($A44,'CEM Data Lookup'!$A$4:$Q$56,2,FALSE) -> OSI Systems, Inc. | D44: ='6.6 CEM CAPM Backup'!D44 -> 0.9 | F44: ='6.6 CEM CAPM Backup'!F44 -> 0.998925209 | H44: 0.95 | J44: ='4.2 CAPM Notes'!$N$36 -> 8.523385556 | M44: ='MRP WP1'!F$37 -> 4.36 | P44: 12.45721628 | S44: 12.5638 | V44: 12.51 | X44: 0
A45: =Input!C38 -> PKG | B45: =VLOOKUP($A45,'CEM Data Lookup'!$A$4:$Q$56,2,FALSE) -> Packaging Corporation of America | D45: ='6.6 CEM CAPM Backup'!D45 -> 0.95 | F45: ='6.6 CEM CAPM Backup'!F45 -> 0.8645604253 | H45: 0.91 | J45: ='4.2 CAPM Notes'!$N$36 -> 8.523385556 | M45: ='MRP WP1'!F$37 -> 4.36 | P45: 12.11628086 | S45: 12.3081 | V45: 12.21 | X45: 0
A46: =Input!C39 -> PFE | B46: =VLOOKUP($A46,'CEM Data Lookup'!$A$4:$Q$56,2,FALSE) -> Pfizer, Inc. | D46: ='6.6 CEM CAPM Backup'!D46 -> 0.8 | F46: ='6.6 CEM CAPM Backup'!F46 -> 0.6042047739 | H46: 0.7 | J46: ='4.2 CAPM Notes'!$N$36 -> 8.523385556 | M46: ='MRP WP1'!F$37 -> 4.36 | P46: 10.32636989 | S46: 10.9656 | V46: 10.65 | X46: 0
A47: =Input!C40 -> PM | B47: =VLOOKUP($A47,'CEM Data Lookup'!$A$4:$Q$56,2,FALSE) -> Philip Morris International Inc. | D47: ='6.6 CEM CAPM Backup'!D47 -> 0.95 | F47: ='6.6 CEM CAPM Backup'!F47 -> 0.7340859175 | H47: 0.84 | J47: ='4.2 CAPM Notes'!$N$36 -> 8.523385556 | M47: ='MRP WP1'!F$37 -> 4.36 | P47: 11.51964387 | S47: 11.8606 | V47: 11.69 | X47: 0
A48: =Input!C41 -> PBH | B48: =VLOOKUP($A48,'CEM Data Lookup'!$A$4:$Q$56,2,FALSE) -> Prestige Consumer Healthcare Inc. | D48: ='6.6 CEM CAPM Backup'!D48 -> 0.85 | F48: ='6.6 CEM CAPM Backup'!F48 -> 0.6508042812 | H48: 0.75 | J48: ='4.2 CAPM Notes'!$N$36 -> 8.523385556 | M48: ='MRP WP1'!F$37 -> 4.36 | P48: 10.75253917 | S48: 11.2853 | V48: 11.02 | X48: 0
A49: =Input!C42 -> SIGI | B49: =VLOOKUP($A49,'CEM Data Lookup'!$A$4:$Q$56,2,FALSE) -> Selective Insurance Group, Inc. | D49: ='6.6 CEM CAPM Backup'!D49 -> 0.85 | F49: ='6.6 CEM CAPM Backup'!F49 -> 0.5991579294 | H49: 0.72 | J49: ='4.2 CAPM Notes'!$N$36 -> 8.523385556 | M49: ='MRP WP1'!F$37 -> 4.36 | P49: 10.4968376 | S49: 11.0935 | V49: 10.8 | X49: 0
A50: =Input!C43 -> SXT | B50: =VLOOKUP($A50,'CEM Data Lookup'!$A$4:$Q$56,2,FALSE) -> Sensient Technologies Corporation | D50: ='6.6 CEM CAPM Backup'!D50 -> 0.95 | F50: ='6.6 CEM CAPM Backup'!F50 -> 0.9290005565 | H50: 0.94 | J50: ='4.2 CAPM Notes'!$N$36 -> 8.523385556 | M50: ='MRP WP1'!F$37 -> 4.36 | P50: 12.37198242 | S50: 12.4998 | V50: 12.44 | X50: 0
A51: =Input!C44 -> SCI | B51: =VLOOKUP($A51,'CEM Data Lookup'!$A$4:$Q$56,2,FALSE) -> Service Corporation International | D51: ='6.6 CEM CAPM Backup'!D51 -> 0.95 | F51: ='6.6 CEM CAPM Backup'!F51 -> 0.7724724412 | H51: 0.86 | J51: ='4.2 CAPM Notes'!$N$36 -> 8.523385556 | M51: ='MRP WP1'!F$37 -> 4.36 | P51: 11.69011158 | S51: 11.9884 | V51: 11.84 | X51: 0
A52: =Input!C45 -> SHW | B52: =VLOOKUP($A52,'CEM Data Lookup'!$A$4:$Q$56,2,FALSE) -> Sherwin-Williams Company | D52: ='6.6 CEM CAPM Backup'!D52 -> 0.95 | F52: ='6.6 CEM CAPM Backup'!F52 -> 1.152613878 | H52: 1.05 | J52: ='4.2 CAPM Notes'!$N$36 -> 8.523385556 | M52: ='MRP WP1'!F$37 -> 4.36 | P52: 13.30955483 | S52: 13.203 | V52: 13.26 | X52: 0
A53: =Input!C46 -> AOS | B53: =VLOOKUP($A53,'CEM Data Lookup'!$A$4:$Q$56,2,FALSE) -> Smith (A.O.) Corporation | D53: ='6.6 CEM CAPM Backup'!D53 -> 0.9 | F53: ='6.6 CEM CAPM Backup'!F53 -> 1.033479333 | H53: 0.97 | J53: ='4.2 CAPM Notes'!$N$36 -> 8.523385556 | M53: ='MRP WP1'!F$37 -> 4.36 | P53: 12.62768399 | S53: 12.6916 | V53: 12.66 | X53: 0
A54: =Input!C47 -> TXN | B54: =VLOOKUP($A54,'CEM Data Lookup'!$A$4:$Q$56,2,FALSE) -> Texas Instruments Incorporated | D54: ='6.6 CEM CAPM Backup'!D54 -> 0.85 | F54: ='6.6 CEM CAPM Backup'!F54 -> 1.100414753 | H54: 0.98 | J54: ='4.2 CAPM Notes'!$N$36 -> 8.523385556 | M54: ='MRP WP1'!F$37 -> 4.36 | P54: 12.71291785 | S54: 12.7555 | V54: 12.73 | X54: 0
A55: =Input!C48 -> TMO | B55: =VLOOKUP($A55,'CEM Data Lookup'!$A$4:$Q$56,2,FALSE) -> Thermo Fisher Scientific Inc. | D55: ='6.6 CEM CAPM Backup'!D55 -> 0.85 | F55: ='6.6 CEM CAPM Backup'!F55 -> 0.9714167714 | H55: 0.91 | J55: ='4.2 CAPM Notes'!$N$36 -> 8.523385556 | M55: ='MRP WP1'!F$37 -> 4.36 | P55: 12.11628086 | S55: 12.3081 | V55: 12.21 | X55: 0
A56: =Input!C49 -> UNF | B56: =VLOOKUP($A56,'CEM Data Lookup'!$A$4:$Q$56,2,FALSE) -> UniFirst Corporation | D56: ='6.6 CEM CAPM Backup'!D56 -> 0.9 | F56: ='6.6 CEM CAPM Backup'!F56 -> 0.785345912 | H56: 0.84 | J56: ='4.2 CAPM Notes'!$N$36 -> 8.523385556 | M56: ='MRP WP1'!F$37 -> 4.36 | P56: 11.51964387 | S56: 11.8606 | V56: 11.69 | X56: 0
A57: =Input!C50 -> UNH | B57: =VLOOKUP($A57,'CEM Data Lookup'!$A$4:$Q$56,2,FALSE) -> UnitedHealth Group Incorporated | D57: ='6.6 CEM CAPM Backup'!D57 -> 0.95 | F57: ='6.6 CEM CAPM Backup'!F57 -> 0.3351097405 | H57: 0.64 | J57: ='4.2 CAPM Notes'!$N$36 -> 8.523385556 | M57: ='MRP WP1'!F$37 -> 4.36 | P57: 9.814966756 | S57: 10.5821 | V57: 10.2 | W57: (4) | X57: 1
A58: =Input!C51 -> VRSN | B58: =VLOOKUP($A58,'CEM Data Lookup'!$A$4:$Q$56,2,FALSE) -> VeriSign Inc. | D58: ='6.6 CEM CAPM Backup'!D58 -> 0.9 | F58: ='6.6 CEM CAPM Backup'!F58 -> 0.9674180746 | H58: 0.93 | J58: ='4.2 CAPM Notes'!$N$36 -> 8.523385556 | M58: ='MRP WP1'!F$37 -> 4.36 | P58: 12.28674857 | S58: 12.4359 | V58: 12.36 | X58: 0
A59: =Input!C52 -> VRSK | B59: =VLOOKUP($A59,'CEM Data Lookup'!$A$4:$Q$56,2,FALSE) -> Verisk Analytics, Inc. | D59: ='6.6 CEM CAPM Backup'!D59 -> 0.9 | F59: ='6.6 CEM CAPM Backup'!F59 -> 0.9424043298 | H59: 0.92 | J59: ='4.2 CAPM Notes'!$N$36 -> 8.523385556 | M59: ='MRP WP1'!F$37 -> 4.36 | P59: 12.20151471 | S59: 12.372 | V59: 12.29 | X59: 0
A60: =Input!C53 -> WAT | B60: =VLOOKUP($A60,'CEM Data Lookup'!$A$4:$Q$56,2,FALSE) -> Waters Corporation | D60: ='6.6 CEM CAPM Backup'!D60 -> 0.95 | F60: ='6.6 CEM CAPM Backup'!F60 -> 1.133283615 | H60: 1.04 | J60: ='4.2 CAPM Notes'!$N$36 -> 8.523385556 | M60: ='MRP WP1'!F$37 -> 4.36 | P60: 13.22432098 | S60: 13.1391 | V60: 13.18 | X60: 0
A61: =Input!C54 -> WSO | B61: =VLOOKUP($A61,'CEM Data Lookup'!$A$4:$Q$56,2,FALSE) -> Watsco, Inc. | D61: ='6.6 CEM CAPM Backup'!D61 -> 0.9 | F61: ='6.6 CEM CAPM Backup'!F61 -> 1.253461242 | H61: 1.08 | J61: ='4.2 CAPM Notes'!$N$36 -> 8.523385556 | M61: ='MRP WP1'!F$37 -> 4.36 | P61: 13.5652564 | S61: 13.3948 | V61: 13.48 | X61: 0
F63: Mean | H63: =ROUND(AVERAGE(H9:H61),2) -> 0.88 | P63: =ROUND(AVERAGE(P9:P61),2) -> 11.85 | Q63: % | S63: =ROUND(AVERAGE(S9:S61),2) -> 12.11 | T63: % | V63: =ROUND(AVERAGE(V9:V37,V39:V56,V58:V61),2) -> 12.05 | W63: %
F65: Median | H65: =ROUND(MEDIAN(H9:H61),2) -> 0.87 | P65: =ROUND(MEDIAN(P9:P61),2) -> 11.78 | Q65: % | S65: =ROUND(MEDIAN(S9:S61),2) -> 12.05 | T65: % | V65: =ROUND(MEDIAN(V9:V37,V39:V56,V58:V61),2) -> 11.99 | W65: %
F67: Average of Mean and Median | H67: =ROUND(AVERAGE(H63:H65),2) -> 0.88 | P67: =ROUND(AVERAGE(P63:P65),2) -> 11.82 | Q67: % | S67: =ROUND(AVERAGE(S63:S65),2) -> 12.08 | T67: % | V67: =ROUND(AVERAGE(V63:V65),2) -> 12.02 | W67: %
C70: Notes:
C71: (1) | D71: From note 1 of page 2 of Schedule DWD-4.
C72: (2) | D72: From note 2 of page 2 of Schedule DWD-4.
C73: (3) | D73: Average of CAPM and ECAPM cost rates.
C74: ='6.6 CEM CAPM Backup'!C74 -> (4) | D74: ='6.6 CEM CAPM Backup'!D74 -> Results were excluded from the final average and median as they were more than two standard deviations from the proxy group's mean.

Sheet 7.1 Risk Adjustment
C1: =Input!G28 -> Atmos Energy Corporation
C2: Derivation of Investment Risk Adjustment Based upon
C3: Ibbotson Associates' Size Premia for the Decile Portfolios of the NYSE/AMEX/NASDAQ
E6: [1] | I6: [2] | K6: [3] | M6: [4]
M7: Spread from Applicable Size Premium (4)
E8: ="Market Capitalization on "&TEXT(Input!E2,"mmmm dd, yyyy")&" (1)" -> Market Capitalization on July 31, 2024 (1) | I8: Applicable Decile of the NYSE/AMEX/ NASDAQ (2)
K9: Applicable Size Premium (3)
A11: Line No.
E12: ( millions ) | G12: (times larger)
A14: 1. | C14: ='7.2 Market Cap'!B11 -> Atmos Energy Corporation | E14: ='7.2 Market Cap'!P13 -> 606.4038847 | I14: 8 | K14: =VLOOKUP(I14,$G$23:$M$32,7,FALSE) -> 0.0114
A16: 2. | C16: =Input!I31 -> Proxy Group of Six Natural Gas Distribution Companies | E16: ='7.2 Market Cap'!P23 -> 4249.683 | G16: =ROUND(E16/E14,1) -> 7 | H16: x | I16: =G27 -> 5 | K16: =VLOOKUP(I16,$G$23:$M$32,7,FALSE) -> 0.0095 | M16: =K14-K16 -> 0.0019
G18: [A] | I18: [B] | K18: [C] | M18: [D]
G20: Decile | I20: Market Capitalization of Smallest Company | K20: Market Capitalization of Largest Company | M20: Size Premium (Return in Excess of CAPM)*
I21: ( millions ) | K21: ( millions )
E23: Largest | G23: 1 | I23: 36942.976 | K23: 2662326.048 | M23: -0.0006
G24: 2 | I24: 14910.719 | K24: 36391.113 | M24: 0.0046
G25: 3 | I25: 7493.607 | K25: 14820.048 | M25: 0.0061
G26: 4 | I26: 4622.261 | K26: 7461.284 | M26: 0.0064
G27: 5 | I27: 3011.224 | K27: 4621.785 | M27: 0.0095
G28: 6 | I28: 1864.293 | K28: 3010.806 | M28: 0.0121
G29: 7 | I29: 1050.083 | K29: 1862.491 | M29: 0.0139
G30: 8 | I30: 555.88 | K30: 1046.037 | M30: 0.0114
G31: 9 | I31: 213.039 | K31: 554.523 | M31: 0.0199
E32: Smallest | G32: 10 | I32: 1.576 | K32: 212.644 | M32: 0.047
H33: *From 2024 Kroll Cost of Capital Navigator
C34: Notes:
D35: (1) | E35: From page 2 of this Schedule.
D36: (2) | E36: Gleaned from Columns [B] and [C] on the bottom of this page. The appropriate decile (Column [A]) corresponds to the market capitalization of the proxy group, which is found in Column [1].
D37: (3) | E37: Corresponding risk premium to the decile is provided in Column [D] on the bottom of this page.
D38: (4) | E38: =CONCATENATE("Line No. 1 Column [3] – Line No. 2 Column [3]. For example, the ",TEXT((M16*100),"#0.00"),"% in Column [4], Line No. 2 is derived as follows ",TEXT((M16*100),"#0.00"),"% = ",K14*100,"% - ",TEXT((K16*100),"#0.00"),"%.") -> Line No. 1 Column [3] – Line No. 2 Column [3]. For example, the 0.19% in Column [4], Line No. 2 is derived as follows 0.19% = 1.14% - 0.95%.

Sheet 7.2 Market Cap
B1: =Input!G28 -> Atmos Energy Corporation
B2: =CONCATENATE("Market Capitalization of ",B1," and the") -> Market Capitalization of Atmos Energy Corporation and the
B3: =Input!I31 -> Proxy Group of Six Natural Gas Distribution Companies
F6: [1] | H6: [2] | J6: [3] | L6: [4] | N6: [5] | P6: [6]
B8: Company | D8: Exchange | F8: =CONCATENATE("Common Stock Shares Outstanding at Fiscal Year End ",YEAR(Input!G49)) -> Common Stock Shares Outstanding at Fiscal Year End 2023 | H8: Book Value per Share at Fiscal Year End 2021 (1) | J8: =CONCATENATE("Total Common Equity at Fiscal Year End ",YEAR(Input!G49)) -> Total Common Equity at Fiscal Year End 2023 | L8: =CONCATENATE("Closing Stock Market Price on ",TEXT(Input!E2,"mmmm dd, yyyy")) -> Closing Stock Market Price on July 31, 2024 | N8: =CONCATENATE("Market-to-Book Ratio on ",TEXT(Input!E2,"mmmm dd, yyyy")," (2)") -> Market-to-Book Ratio on July 31, 2024 (2) | P8: =CONCATENATE("Market Capitalization on ",TEXT(Input!E2,"mmmm dd, yyyy")," (3)") -> Market Capitalization on July 31, 2024 (3)
F9: ( millions ) | J9: ( millions ) | P9: ( millions )
B11: =Input!G28 -> Atmos Energy Corporation | F11: NA | H11: NA | J11: =(Input!G43)/1000000*Input!F14 -> 382.4685492 | K11: (4) | L11: NA
B13: =CONCATENATE("Based upon ",B15) -> Based upon Proxy Group of Six Natural Gas Distribution Companies | N13: =N23 -> 158.55 | O13: (5) | P13: =IFERROR(N13*J11/100,"NA") -> 606.4038847 | Q13: (6)
B15: =Input!I31 -> Proxy Group of Six Natural Gas Distribution Companies
A16: =IFERROR(Input!A2,"NA") -> ATO | B16: ='Proxy Data Lookup'!B3 -> Atmos Energy Corporation | D16: =Input!B2 -> NYSE | F16: ='3. ATO'!C15/1000000 -> 148.492783 | H16: =IFERROR(ROUND(J16/F16,3),"NA") -> 73.203 | J16: ='3. ATO'!C16/1000000 -> 10870.064 | L16: ='Proxy Prices'!B$6 -> 127.88 | N16: =IFERROR(ROUND(L16/H16*100,1),"NA") -> 174.7 | O16: % | P16: =IFERROR(ROUND(F16*L16,3),"NA") -> 18989.257
A17: =IFERROR(Input!A3,"NA") -> NJR | B17: ='Proxy Data Lookup'!B4 -> New Jersey Resources Corporation | D17: =Input!B3 -> NYSE | F17: ='3. NJR'!C15/1000000 -> 97.584455 | H17: 20.4 | J17: ='3. NJR'!C16/1000000 -> 1990.735 | L17: ='Proxy Prices'!C$6 -> 46.75 | N17: 229.2 | P17: 4562.073
A18: =IFERROR(Input!A4,"NA") -> NI | B18: ='Proxy Data Lookup'!B5 -> NiSource Inc. | D18: =Input!B4 -> NYSE | F18: ='3. NI'!C15/1000000 -> 447.381671 | H18: 17.398 | J18: ='3. NI'!C16/1000000 -> 7783.5 | L18: ='Proxy Prices'!D$6 -> 31.25 | N18: 179.6 | P18: 13980.677
A19: =IFERROR(Input!A5,"NA") -> NWN | B19: ='Proxy Data Lookup'!B6 -> Northwest Natural Holding Company | D19: =Input!B5 -> NYSE | F19: ='3. NWN'!C15/1000000 -> 37.631 | H19: 34.116 | J19: ='3. NWN'!C16/1000000 -> 1283.838 | L19: ='Proxy Prices'!E$6 -> 39.98 | N19: 117.2 | P19: 1504.487
A20: =IFERROR(Input!A6,"NA") -> OGS | B20: ='Proxy Data Lookup'!B7 -> ONE Gas, Inc. | D20: =Input!B6 -> NYSE | F20: ='3. OGS'!C15/1000000 -> 56.545924 | H20: 48.914 | J20: ='3. OGS'!C16/1000000 -> 2765.877 | L20: ='Proxy Prices'!F$6 -> 69.63 | N20: 142.4 | P20: 3937.293
A21: =IFERROR(Input!A7,"NA") -> SR | B21: ='Proxy Data Lookup'!B8 -> Spire Inc. | D21: =Input!B7 -> NYSE | F21: ='3. SR'!C15/1000000 -> 53.170224 | H21: 54.867 | J21: ='3. SR'!C16/1000000 -> 2917.3 | L21: ='Proxy Prices'!G$6 -> 66.59 | N21: 121.4 | P21: 3540.605
B23: Median | F23: =ROUND(MEDIAN(F15:F22),3) -> 77.065 | H23: =ROUND(MEDIAN(H15:H22),3) -> 41.515 | J23: =ROUND(MEDIAN(J15:J22),3) -> 2841.589 | L23: =ROUND(MEDIAN(L15:L22),3) -> 56.67 | N23: =ROUND(MEDIAN(N15:N22),3) -> 158.55 | O23: % | P23: =ROUND(MEDIAN(P15:P22),3) -> 4249.683
C25: NA= Not Available
D27: Notes: | E27: (1) | F27: Column 3 / Column 1.
E28: (2) | F28: Column 4 / Column 2.
E29: (3) | F29: Column 1 * Column 4.
E30: (4) | F30: Requested rate base multiplied by the requested common equity ratio.
E31: (5) | F31: =CONCATENATE("The market-to-book ratio of ",Input!G28," on ",TEXT(Input!E2,"mmmm dd, yyyy")," is assumed to be equal to the market-to-book ratio of the",'7.2 Market Cap'!B3," on ",TEXT(Input!E2,"mmmm dd, yyyy")," as appropriate.") -> The market-to-book ratio of Atmos Energy Corporation on July 31, 2024 is assumed to be equal to the market-to-book ratio of theProxy Group of Six Natural Gas Distribution Companies on July 31, 2024 as appropriate.
E32: (6) | F32: Column [3] multiplied by Column [5].
B35: Source of Information: | C35: =CONCATENATE(YEAR(Input!G49)," Annual Forms 10K") -> 2023 Annual Forms 10K
C36: yahoo.finance.com
C37: Bloomberg Professional

Sheet 8.1 Flotation Cost Example
A1: ='7.2 Market Cap'!B1 -> Atmos Energy Corporation
A2: Hypothetical Example: Flotation Cost Recovery
B5: Return on Equity | C5: =SUM(C8:C9) -> 0.1075
B6: Flotation Costs | C6: 0.02749
B7: Market Value | C7: 25
B8: Dividend Yield | C8: 0.035
B9: Growth Rate | C9: 0.0725
B10: Adjusted ROE | C10: =C8/(1-C6)+C9 -> 0.1084893472
B11: Flotation Cost Recovery: | C11: No
B12: DCF Estimate | C12: =C8+H25 -> 0.1065106528
C14: Common Stock | D14: Retained Earnings | E14: Book Value | F14: Market Price | G14: Market/ Book Value | H14: Earnings Per Share | I14: Dividends Per Share | J14: Payout Ratio
B15: 1 | C15: =C7*(1-C6) -> 24.31275 | E15: =C15+D15 -> 24.31275 | F15: =C7 -> 25 | G15: =F15/C15 -> 1.028267062 | H15: =IF(C$11="yes",E15*C$10,E15*C$5) -> 2.613620625 | I15: =F15*C$8 -> 0.875 | J15: =I15/H15 -> 0.3347846247
B16: =B15+1 -> 2 | C16: =C15 -> 24.31275 | D16: =H15-I15 -> 1.738620625 | E16: 26.05137063 | F16: =E16*G15 -> 26.78776632 | G16: =F16/E16 -> 1.028267062 | H16: 2.800522342 | I16: 0.9375718212 | J16: 0.3347846247
B17: 3 | C17: 24.31275 | D17: =D16+H16-I16 -> 3.601571146 | E17: 27.91432115 | F17: 28.70337698 | G17: 1.028267062 | H17: 3.000789523 | I17: 1.004618194 | J17: 0.3347846247
B18: 4 | C18: 24.31275 | D18: 5.597742475 | E18: 29.91049247 | F18: 30.75597421 | G18: 1.028267062 | H18: 3.215377941 | I18: 1.076459097 | J18: 0.3347846247
B19: 5 | C19: 24.31275 | D19: 7.736661319 | E19: 32.04941132 | F19: 32.955354 | G19: 1.028267062 | H19: 3.445311717 | I19: 1.15343739 | J19: 0.3347846247
B20: 6 | C20: 24.31275 | D20: 10.02853565 | E20: 34.34128565 | F20: 35.31201288 | G20: 1.028267062 | H20: 3.691688207 | I20: 1.235920451 | J20: 0.3347846247
B21: 7 | C21: 24.31275 | D21: 12.4843034 | E21: 36.7970534 | F21: 37.83719797 | G21: 1.028267062 | H21: 3.955683241 | I21: 1.324301929 | J21: 0.3347846247
B22: 8 | C22: 24.31275 | D22: 15.11568471 | E22: 39.42843471 | F22: 40.5429607 | G22: 1.028267062 | H22: 4.238556732 | I22: 1.419003625 | J22: 0.3347846247
B23: 9 | C23: 24.31275 | D23: 17.93523782 | E23: 42.24798782 | F23: 43.44221429 | G23: 1.028267062 | H23: 4.541658691 | I23: 1.5204775 | J23: 0.3347846247
B24: 10 | C24: 24.31275 | D24: 20.95641901 | E24: 45.26916901 | F24: 46.5487954 | G24: 1.028267062 | H24: 4.866435669 | I24: 1.629207839 | J24: 0.3347846247
C25: Growth Rate | E25: =((E24/E15)^(1/9))-1 -> 0.07151065285 | F25: =((F24/F15)^(1/9))-1 -> 0.07151065285 | H25: =((H24/H15)^(1/9))-1 -> 0.07151065285 | I25: =((I24/I15)^(1/9))-1 -> 0.07151065285
B29: Return on Equity | C29: =C5 -> 0.1075
B30: Flotation Costs | C30: =C6 -> 0.02749
B31: Market Value | C31: =C7 -> 25
B32: Dividend Yield | C32: =C8 -> 0.035
B33: Growth Rate | C33: =C9 -> 0.0725
B34: Adjusted ROE | C34: =C32/(1-C30)+C33 -> 0.1084893472
B35: Flotation Cost Recovery: | C35: Yes
B36: DCF Estimate | C36: =C32+H49 -> 0.1075
C38: Common Stock | D38: Retained Earnings | E38: Book Value | F38: Market Price | G38: Market/ Book Value | H38: Earnings Per Share | I38: Dividends Per Share | J38: Payout Ratio
B39: 1 | C39: =C31*(1-C30) -> 24.31275 | E39: =C39+D39 -> 24.31275 | F39: =C31 -> 25 | G39: =F39/C39 -> 1.028267062 | H39: =IF(C$35="yes",E39*C$34,E39*C$29) -> 2.637674375 | I39: =F39*C$32 -> 0.875 | J39: =I39/H39 -> 0.3317316225
B40: =B39+1 -> 2 | C40: =C39 -> 24.31275 | D40: =H39-I39 -> 1.762674375 | E40: 26.07542438 | F40: =E40*G39 -> 26.8125 | G40: =F40/E40 -> 1.028267062 | H40: 2.828905767 | I40: 0.9384375 | J40: 0.3317316225
B41: 3 | C41: 24.31275 | D41: =D40+H40-I40 -> 3.653142642 | E41: 27.96589264 | F41: 28.75640625 | G41: 1.028267062 | H41: 3.034001435 | I41: 1.006474219 | J41: 0.3317316225
B42: 4 | C42: 24.31275 | D42: 5.680669859 | E42: 29.99341986 | F42: 30.8412457 | G42: 1.028267062 | H42: 3.253966539 | I42: 1.0794436 | J42: 0.3317316225
B43: 5 | C43: 24.31275 | D43: 7.855192799 | E43: 32.1679428 | F43: 33.07723602 | G43: 1.028267062 | H43: 3.489879113 | I43: 1.157703261 | J43: 0.3317316225
B44: 6 | C44: 24.31275 | D44: 10.18736865 | E44: 34.50011865 | F44: 35.47533563 | G44: 1.028267062 | H44: 3.742895349 | I44: 1.241636747 | J44: 0.3317316225
B45: 7 | C45: 24.31275 | D45: 12.68862725 | E45: 37.00137725 | F45: 38.04729746 | G45: 1.028267062 | H45: 4.014255262 | I45: 1.331655411 | J45: 0.3317316225
B46: 8 | C46: 24.31275 | D46: 15.3712271 | E46: 39.6839771 | F46: 40.80572653 | G46: 1.028267062 | H46: 4.305288769 | I46: 1.428200428 | J46: 0.3317316225
B47: 9 | C47: 24.31275 | D47: 18.24831544 | E47: 42.56106544 | F47: 43.7641417 | G47: 1.028267062 | H47: 4.617422204 | I47: 1.531744959 | J47: 0.3317316225
B48: 10 | C48: 24.31275 | D48: 21.33399269 | E48: 45.64674269 | F48: 46.93704197 | G48: 1.028267062 | H48: 4.952185314 | I48: 1.642796469 | J48: 0.3317316225
C49: Growth Rate | E49: =((E48/E39)^(1/9))-1 -> 0.0725 | F49: =((F48/F39)^(1/9))-1 -> 0.0725 | H49: =((H48/H39)^(1/9))-1 -> 0.0725 | I49: =((I48/I39)^(1/9))-1 -> 0.0725

Sheet 9.1 Equity Contributions
A1: =Input!G28 -> Atmos Energy Corporation
A2: Derivation of the Flotation Cost Adjustment to the Cost of Common Equity
A5: Equity Issuances and Flotation Costs for FY 2016 - 2024
E8: [Column 1] | G8: [Column 2] | I8: [Column 3] | K8: [Column 4] | M8: [Column 5] | O8: [Column 6] | Q8: [Column 7]
A10: Fiscal Year | C10: Transaction (1) | E10: Shares Issued | G10: Average Offering Price per Share | I10: Net Proceeds per Share (2) | K10: Gross Equity Issue before Costs | M10: Total Net Proceeds | O10: Total Flotation Costs (3) | Q10: Flotation Cost Percentage (4)
A12: 2024 | C12: At the Market Equity Offering | E12: 6401469 | G12: =K12/E12 -> 117.2233114 | I12: =M12/E12 -> 116.63727 | K12: 750401394 | M12: 746649868.2 | O12: =K12-M12 -> 3751525.759 | Q12: =(K12-M12)/K12 -> 0.004999358729
A14: 2023 | C14: At the Market Equity Offering | E14: 7272261 | G14: =K14/E14 -> 112.7132999 | I14: =M14/E14 -> 111.094599 | K14: 819680535.2 | M14: 807908919.6 | O14: =K14-M14 -> 11771615.58 | Q14: =(K14-M14)/K14 -> 0.01436122376
A16: 2022 | C16: At the Market Equity Offering | E16: 7907883 | G16: =K16/E16 -> 100.0634464 | I16: =M16/E16 -> 98.38426906 | K16: 791290026.5 | M16: 778011288.8 | O16: =K16-M16 -> 13278737.74 | Q16: =(K16-M16)/K16 -> 0.01678112614
A18: 2021 | C18: At the Market Equity Offering | E18: 6130875 | G18: =K18/E18 -> 101.5774705 | I18: =M18/E18 -> 99.00721079 | K18: 622758774.7 | M18: 607000833.5 | O18: =K18-M18 -> 15757941.27 | Q18: =(K18-M18)/K18 -> 0.02530344317
A20: 2020 | C20: At the Market Equity Offering | E20: =5616727+485189 -> 6101916 | G20: NA | I20: NA | K20: =SUM(K53:K55) -> 632630268.6 | M20: =SUM(M53:M55) -> 625894599.4 | O20: =K20-M20 -> 6735669.201 | Q20: =(K20-M20)/K20 -> 0.01064708651
A22: 2019 | C22: At the Market Equity Offering | E22: 5390836 | G22: =K22/E22 -> 92.74999277 | I22: =M22/E22 -> 91.65554285 | K22: 500000000 | M22: 494100000 | O22: =K22-M22 -> 5900000 | Q22: =(K22-M22)/K22 -> 0.0118
A24: 2018 | C24: At the Market Equity Offering | E24: 4558404 | G24: =K24/E24 -> 87.75001075 | I24: =M24/E24 -> 86.67507312 | K24: 400000000 | M24: 395100000 | O24: =K24-M24 -> 4900000 | Q24: =(K24-M24)/K24 -> 0.01225
A26: 2017 | C26: At the Market Equity Offering | E26: 1303494 | G26: =K26/E26 -> 76.71688554 | I26: =M26/E26 -> 75.79628291 | K26: 100000000 | M26: 98800000 | O26: =K26-M26 -> 1200000 | Q26: =(K26-M26)/K26 -> 0.012
A28: 2016 | C28: At the Market Equity Offering | E28: 1360756 | G28: =K28/E28 -> 73.48856077 | I28: =M28/E28 -> 72.45972092 | K28: 100000000 | M28: 98600000 | O28: =K28-M28 -> 1400000 | Q28: =(K28-M28)/K28 -> 0.014
K31: =SUM(K12:K29) -> 4716760999 | M31: =SUM(M12:M29) -> 4652065510 | O31: =SUM(O12:O29) -> 64695489.55 | Q31: =(K31-M31)/K31 -> 0.01371608389
A37: Flotation Cost Adjustment
C41: Average Dividend Yield | E41: Average Projected EPS Growth Rate | G41: Adjusted Dividend Yield | I41: Average DCF Cost Rate Unadjusted for Flotation (5) | K41: DCF Cost Rate Adjusted for Flotation (6) | M41: Flotation Cost Adjustment (7)
A42: =Input!I31 -> Proxy Group of Six Natural Gas Distribution Companies | C42: =ROUND(AVERAGE('2.1 DCF'!D9:D14),2) -> 4.08 | D42: % | E42: =ROUND(AVERAGE('2.1 DCF'!S9:S14),2) -> 5.76 | F42: % | G42: =ROUND(C42*(1+(0.5*(E42/100))),2) -> 4.2 | H42: % | I42: =G42+E42 -> 9.96 | J42: % | K42: =(G42/(1-$Q$31))+E42 -> 10.01840869 | L42: % | M42: =K42-I42 -> 0.05840869084 | N42: %
A46: Source of Information: Atmos Energy Corporation SEC Form 10-Ks, Company-Provided Data
A48: Notes provided on page 2 of this Schedule
A53: November 2018 ATM | E53: 485189 | K53: 45001279.75 | M53: 44394599.42
A54: February 2020 ATM | K54: =M54/0.99 -> 452525252.5 | M54: 448000000
A55: November 2018 ATM | K55: =M55/(1-Q57) -> 135103736.3 | M55: =581500000-(1000000000-552000000) -> 133500000
A57: November 2018 Prospectus | C57: At the Market Equity Offering | E57: =1051213+7008087 -> 8059300 | G57: 92.75 | I57: =91.7731-1000000/E57 -> 91.64901974 | K57: =E57*G57 -> 747500075 | M57: =E57*I57 -> 738626944.8 | O57: =K57-M57 -> 8873130.17 | Q57: =(K57-M57)/K57 -> 0.01187040706

Sheet 10.1 Rate Mechanisms
A1: =Input!G28 -> Atmos Energy Corporation
A2: Summary of Investment Riders for Alternative Regulation/Incentive Plans
A3: Proxy Group of Six Natural Gas Distribution Companies
A6: Company | B6: Parent | C6: State | D6: Capital Investment (1)
A7: Atmos Energy | B7: ATO | C7: Colorado | D7: ü
A8: Atmos Energy | B8: ATO | C8: Kansas | D8: ü
A9: Atmos Energy | B9: ATO | C9: Kentucky | D9: ü
A10: Atmos Energy | B10: ATO | C10: Louisiana | D10: ü
A11: Atmos Energy | B11: ATO | C11: Mississippi | D11: ü
A12: Atmos Energy | B12: ATO | C12: Tennessee | D12: ü
A13: Atmos Energy | B13: ATO | C13: Texas | D13: ü
A14: Atmos Energy | B14: ATO | C14: Virginia | D14: ü
A15: New Jersey Natural Gas | B15: NJR | C15: New Jersey | D15: ü
A16: Northern Indiana Public Service Company, LLC | B16: NI | C16: Indiana | D16: ü
A17: Columbia Gas of Kentucky, Inc. | B17: NI | C17: Ohio | D17: ü
A18: Columbia Gas of Ohio, Inc. | B18: NI | C18: Ohio | D18: ü
A19: Columbia Gas of Pennsylvania, Inc. | B19: NI | C19: Pennsylvania | D19: ü
A20: Columbia Gas of Maryland, Inc. | B20: NI | C20: Pennsylvania | D20: ü
A21: Columbia Gas of Virginia, Inc. | B21: NI | C21: Virginia | D21: ü
A22: Northwest Natural Gas | B22: NWN | C22: Oregon
A23: Northwest Natural Gas | B23: NWN | C23: Washington
A24: Kansas Gas Service | B24: OGS | C24: Kansas | D24: ü
A25: Oklahoma Natural Gas | B25: OGS | C25: Oklahoma
A26: Texas Gas Service | B26: OGS | C26: Texas | D26: ü
A27: Spire Alabama Inc. | B27: SR | C27: Alabama
A28: Spire Mississippi Inc. | B28: SR | C28: Mississippi
A29: Spire Missouri Inc. | B29: SR | C29: Missouri | D29: ü
A31: Notes:
A32: (1) Includes recovery of costs related to infrastructure replacement, system integrity/hardening, and other capital expenditures.
A33: Source: Company SEC Form 10-Ks; Operating company tariffs; Regulatory Research Associates.

Sheet Input
A1: Utility Proxy Group | B1: Proxy Company - Exchange | C1: CEM Proxy Group | E1: Growth Rate Input Date
A2: ATO | B2: NYSE | C2: ABT | E2: 2024-07-31
A3: NJR | B3: NYSE | C3: A
A4: NI | B4: NYSE | C4: APD | E4: User Computer Title
A5: NWN | B5: NYSE | C5: ALL
A6: OGS | B6: NYSE | C6: GOOG
A7: SR | B7: NYSE | C7: MO | E7: Recommended Common Equity Cost Rate
C8: ADI
C9: AAPL
C10: ADM | E10: DATA INPUTS
C11: AIZ
C12: AZO | E12: Capital Structure | G12: Source:
C13: BAH | E13: Long-Term Debt % | F13: 0.3893 | G13: Company
C14: BRC | E14: Equity % | F14: 0.6088 | G14: Company
C15: BFB | E15: Short-Term Debt % | F15: 0.0019 | G15: Company
C16: CACI | E16: Long-Term Debt Cost (%) | F16: 0.0411 | G16: Company
C17: CWST | E17: Short-Term Debt Cost (%) | F17: 0.1714 | G17: Company
C18: CASY
C19: CTVA
C20: CSWI | E20: SBBI (1926-2023) | G20: Notes:
C21: DHR | E21: SBBI Common Stocks Total Return (%) | F21: 12.15937903 | G21: Update annually from Stocks, Bonds, Bills, and Inflation - Ibbotson® SBBI® Market Report
C22: DLB | E22: SBBI Long-Term Gov't Bonds Income (%) | F22: 4.991940723 | G22: Update annually from Stocks, Bonds, Bills, and Inflation - Ibbotson® SBBI® Market Report
C23: FAST
C24: GATX | E24: VL Appr Potential Week Ending: | G24: PRPM Date ("Month Year") | I24: Blue Chip Update Date ("Month Day, Year")
C25: IOSP | E25: 2024-08-02 | G25: July 2024 | I25: August 1, 2024 and May 31, 2024
C26: JBHT
C27: JKHY | E27: S&P Utilties Index Companies | G27: Company Name | I27: Abbreviated
C28: JNPR | E28: AEE | G28: Atmos Energy Corporation
C29: LHX | E29: AEP
C30: LMT | E30: AES | G30: Regulatory Jurisdiction
C31: MCK | E31: ATO | G31: Kentucky Public Service Commission | I31: Proxy Group of Six Natural Gas Distribution Companies
C32: MSFT | E32: AWK | I32: Proxy Group of Fifty-Three Non-Price Regulated Companies
C33: MSA | E33: CEG | G33: Industry ("Natural Gas", "Water", "Electric")
C34: MSM | E34: CMS | G34: Natural Gas
C35: ORCL | E35: CNP
C36: ORLY | E36: D | G36: Common Stock Shares Outstanding at Fiscal Year End
C37: OSIS | E37: DTE | G37: NA | H37: - If Data not available, input NA
C38: PKG | E38: DUK
C39: PFE | E39: ED | G39: Book Value per Share at Fiscal Year End
C40: PM | E40: EIX | G40: NA
C41: PBH | E41: ES
C42: SIGI | E42: ETR | G42: Rate Base
C43: SXT | E43: EVRG | G43: 628233490.8 | H43: Company Provided
C44: SCI | E44: EXC
C45: SHW | E45: FE | G45: Closing Stock Market Price
C46: AOS | E46: LNT | G46: NA
C47: TXN | E47: NEE
C48: TMO | E48: NI | G48: Date of Annual Report Filing ("'Month Day, Year")
C49: UNF | E49: NRG | G49: December 31, 2023
C50: UNH | E50: PCG
C51: VRSN | E51: PEG | G51: Business Risk Adjustment
C52: VRSK | E52: PNW | G52: NA
C53: WAT | E53: PPL
C54: WSO | E54: SO
E55: SRE
E56: WEC
A57: =COUNTA(A2:A26) -> 6 | C57: =COUNTA(C2:C54) -> 53 | E57: VST
E58: XEL

Sheet Market Data
A1: Bond Index - Date | B1: 2024-07-31 | C1: 2024-06-28 | D1: 2024-05-31
A2: MOODUAA Index | B2: 5.46 | C2: 5.5 | D2: 5.62
A3: MOODUA Index | B3: 5.57 | C3: 5.61 | D3: 5.74
A4: MOODUBAA Index | B4: 5.77 | C4: 5.84 | D4: 5.97
A5: MOODCAAA Index | B5: 5.04 | C5: 5.13 | D5: 5.25
A6: MOODCAA Index | B6: 5.3 | C6: 5.35 | D6: 5.45
A7: MOODCA Index | B7: 5.46 | C7: 5.5 | D7: 5.62
A8: MOODCBAA Index | B8: 5.77 | C8: 5.82 | D8: 5.95
A10: Historical Risk Premium Data
A11: Arithmetic Mean of Monthly Returns on Large Company Common Stocks (1928 - 2023) | B11: 0.1190898694
A12: Arithmetic Mean of Moody's Aaa and Aa Corporate Bond Yields (1928 - 2023) | B12: 0.05952401305
A13: Arithmetic Mean Holding Period Returns on the S&P Utility Index (1928 - 2023) | B13: 0.1044903202
A14: Arithmetic Mean on Moody's A Rated Public Utility Bond Yields (1928 - 2023) | B14: 0.06430568905
A16: Source: Kroll; Bloomberg Professional

Sheet Proxy Data Lookup
C1: EPS Growth Rates | G1: Beta | I1: Annual Div. | J1: Value Line Beta Calculation | P1: Bond Ratings
A2: Ticker | B2: Company Name | C2: Zacks | D2: Yahoo | E2: Value Line | F2: Cap IQ | G2: Value Line | H2: Bloomberg | J2: Beta Adj. | K2: Beta Unadj. | L2: R Factor | M2: Std. Error | N2: Std. Dev Y | O2: Std. Dev Beta | P2: S&P | Q2: Moody's | S2: S&P | T2: Moody's | W2: S&P | X2: Moody's
A3: ATO | B3: Atmos Energy Corporation | C3: 0.07 | D3: 0.074 | E3: 0.07 | F3: 0.07 | G3: 0.85 | H3: 0.6933606863 | I3: 3.22 | J3: 0.85 | K3: 0.76 | L3: 0.5912 | M3: 2.9065 | N3: 3.5967 | O3: 0.065 | P3: A- | Q3: A1 | S3: BBB+ | T3: Baa1 | U3: Northern Indiana Public Service Company | V3: NI | W3: 8 | X3: 8
A4: NJR | B4: New Jersey Resources Corporation | C4: NA | D4: 0.06 | E4: 0.05 | F4: 0.0586667 | G4: 1 | H4: 0.6729026437 | I4: 1.68 | J4: 1 | K4: 0.93 | L4: 0.6449 | M4: 3.0807 | N4: 4.0231 | O4: 0.0689 | P4: NR | Q4: A1
A5: NI | B5: NiSource Inc. | C5: 0.06 | D5: 0.075 | E5: 0.095 | F5: 0.0716667 | G5: 0.95 | H5: 0.6621930003 | I5: 1.06 | J5: 0.95 | K5: 0.85 | L5: 0.6695 | M5: 2.6368 | N5: 3.5429 | O5: 0.059 | P5: =S3 -> BBB+ | Q5: =T3 -> Baa1 | S5: NR | T5: A1 | U5: New Jersey Natural Gas Co | V5: NJR | W5: NA | X5: 5
A6: NWN | B6: Northwest Natural Holding Company | C6: NA | D6: 0.028 | E6: 0.065 | F6: 0.044 | G6: 0.85 | H6: 0.6404913664 | I6: 1.95 | J6: 0.85 | K6: 0.73 | L6: 0.5126 | M6: 3.4283 | N6: 3.985 | O6: 0.0767 | P6: =S7 -> A+ | Q6: =T7 -> Baa1
A7: OGS | B7: ONE Gas, Inc. | C7: 0.05 | D7: 0.05 | E7: 0.035 | F7: 0.03 | G7: 0.85 | H7: 0.6023144126 | I7: 2.64 | J7: 0.85 | K7: 0.73 | L7: 0.5202 | M7: 3.3343 | N7: 3.8966 | O7: 0.0746 | P7: A- | Q7: A3 | S7: A+ | T7: Baa1 | U7: Northwest Natural Gas Company | V7: NWN | W7: 5 | X7: 8
A8: SR | B8: Spire Inc. | C8: 0.05 | D8: 0.0636 | E8: 0.045 | F8: 0.0645333 | G8: 0.85 | H8: 0.7546305656 | I8: 3.02 | J8: 0.85 | K8: 0.76 | L8: 0.5622 | M8: 3.1226 | N8: 3.7686 | O8: 0.0698 | P8: BBB+ | Q8: A1/A2
S9: BBB+ | T9: A2 | U9: Spire Alabama Inc. | V9: SR | W9: 8 | X9: 6
S10: BBB+ | T10: A1 | U10: Spire Missouri Inc. | V10: SR | W10: 8 | X10: 5
W11: =AVERAGE(W9:W10) -> 8 | X11: =AVERAGE(X9:X10) -> 5.5

Sheet Proxy Price Data
B1: Tickers | C1: ATO | D1: NJR | E1: NI | F1: NWN | G1: OGS | H1: SR
B2: PX_LAST | C2: ATO US Equity | D2: NJR US Equity | E2: NI US Equity | F2: NWN US Equity | G2: OGS US Equity | H2: SR US Equity
A3: 1 | B3: 2024-07-31 | C3: 127.88 | D3: 46.75 | E3: 31.25 | F3: 39.98 | G3: 69.63 | H3: 66.59
A4: =A3+1 -> 2 | B4: 2024-07-30 | C4: 128.22 | D4: 47.01 | E4: 31.42 | F4: 40.74 | G4: 70.54 | H4: 67.58
A5: =A4+1 -> 3 | B5: 2024-07-29 | C5: 127.04 | D5: 46.61 | E5: 31.33 | F5: 40.59 | G5: 70.07 | H5: 67.27
A6: 4 | B6: 2024-07-26 | C6: 126.16 | D6: 47 | E6: 31.33 | F6: 40.71 | G6: 70.49 | H6: 67.77
A7: 5 | B7: 2024-07-25 | C7: 124.93 | D7: 46.58 | E7: 31.08 | F7: 40.35 | G7: 69.17 | H7: 67.13
A8: 6 | B8: 2024-07-24 | C8: 125.9 | D8: 46.08 | E8: 31.01 | F8: 40.03 | G8: 69.14 | H8: 66.67
A9: 7 | B9: 2024-07-23 | C9: 124.54 | D9: 45.95 | E9: 30.56 | F9: 39.79 | G9: 68.68 | H9: 66.15
A10: 8 | B10: 2024-07-22 | C10: 123.51 | D10: 46.05 | E10: 30.8 | F10: 39.64 | G10: 68.66 | H10: 66.05
A11: 9 | B11: 2024-07-19 | C11: 122.95 | D11: 45.92 | E11: 30.49 | F11: 39.34 | G11: 68.3 | H11: 65.5
A12: 10 | B12: 2024-07-18 | C12: 123.22 | D12: 46.1 | E12: 30.67 | F12: 39.84 | G12: 68.49 | H12: 65.51
A13: 11 | B13: 2024-07-17 | C13: 124.65 | D13: 46.1 | E13: 30.69 | F13: 40.24 | G13: 69.65 | H13: 65.92
A14: 12 | B14: 2024-07-16 | C14: 122.34 | D14: 45.62 | E14: 30.03 | F14: 39.04 | G14: 68.29 | H14: 64.53
A15: 13 | B15: 2024-07-15 | C15: 120.83 | D15: 44.5 | E15: 29.73 | F15: 37.89 | G15: 66.24 | H15: 62.44
A16: 14 | B16: 2024-07-12 | C16: 120.94 | D16: 44.68 | E16: 30.07 | F16: 37.88 | G16: 65.65 | H16: 62.16
A17: 15 | B17: 2024-07-11 | C17: 119.87 | D17: 44.17 | E17: 29.7 | F17: 37.33 | G17: 64.72 | H17: 61.61
A18: 16 | B18: 2024-07-10 | C18: 117.01 | D18: 42.58 | E18: 29.21 | F18: 36.04 | G18: 63.48 | H18: 59.72
A19: 17 | B19: 2024-07-09 | C19: 114.77 | D19: 42.12 | E19: 28.91 | F19: 35.48 | G19: 62.86 | H19: 59.21
A20: 18 | B20: 2024-07-08 | C20: 114.08 | D20: 42.03 | E20: 28.57 | F20: 35.25 | G20: 62.22 | H20: 59.15
A21: 19 | B21: 2024-07-05 | C21: 114.62 | D21: 42.26 | E21: 28.54 | F21: 35.31 | G21: 62.6 | H21: 59.76
A22: 20 | B22: 2024-07-03 | C22: 115.16 | D22: 42.36 | E22: 28.64 | F22: 35.53 | G22: 63.76 | H22: 60.04
A23: 21 | B23: 2024-07-02 | C23: 116.52 | D23: 42.68 | E23: 28.57 | F23: 35.91 | G23: 64 | H23: 60.59
A24: 22 | B24: 2024-07-01 | C24: 115.98 | D24: 42.52 | E24: 28.7 | F24: 35.73 | G24: 62.78 | H24: 60.32
A25: 23 | B25: 2024-06-28 | C25: 116.65 | D25: 42.74 | E25: 28.81 | F25: 36.11 | G25: 63.85 | H25: 60.73
A26: 24 | B26: 2024-06-27 | C26: 116.55 | D26: 42.61 | E26: 29 | F26: 35.68 | G26: 62.88 | H26: 60.1
A27: 25 | B27: 2024-06-26 | C27: 116.11 | D27: 42.41 | E27: 29.02 | F27: 35.34 | G27: 61.22 | H27: 59.21
A28: 26 | B28: 2024-06-25 | C28: 116.53 | D28: 42.29 | E28: 28.83 | F28: 35.23 | G28: 60.5 | H28: 58.91
A29: 27 | B29: 2024-06-24 | C29: 118.02 | D29: 42.66 | E29: 28.88 | F29: 35.39 | G29: 61.33 | H29: 59.28
A30: 28 | B30: 2024-06-21 | C30: 116.29 | D30: 42.07 | E30: 28.32 | F30: 34.95 | G30: 60.14 | H30: 58.6
A31: 29 | B31: 2024-06-20 | C31: 117.18 | D31: 42.09 | E31: 28.34 | F31: 35.21 | G31: 60.68 | H31: 58.59
A32: 30 | B32: 2024-06-18 | C32: 117 | D32: 41.86 | E32: 28.07 | F32: 35.02 | G32: 60.23 | H32: 58.41
A33: 31 | B33: 2024-06-17 | C33: 116.29 | D33: 41.86 | E33: 28 | F33: 35.45 | G33: 60.71 | H33: 58.59
A34: 32 | B34: 2024-06-14 | C34: 116.15 | D34: 42.08 | E34: 28.17 | F34: 35.42 | G34: 60.79 | H34: 58.47
A35: 33 | B35: 2024-06-13 | C35: 116.17 | D35: 42.13 | E35: 28.29 | F35: 35.5 | G35: 60.79 | H35: 58.21
A36: 34 | B36: 2024-06-12 | C36: 116.18 | D36: 42.59 | E36: 28.17 | F36: 35.67 | G36: 61.35 | H36: 58.65
A37: 35 | B37: 2024-06-11 | C37: 115.75 | D37: 43.19 | E37: 28.32 | F37: 35.77 | G37: 60.75 | H37: 59.02
A38: 36 | B38: 2024-06-10 | C38: 115.48 | D38: 43.45 | E38: 28.43 | F38: 35.99 | G38: 60.87 | H38: 59.9
A39: 37 | B39: 2024-06-07 | C39: 114.78 | D39: 43.29 | E39: 28.28 | F39: 36.12 | G39: 60.43 | H39: 59.74
A40: 38 | B40: 2024-06-06 | C40: 115.45 | D40: 43.45 | E40: 28.54 | F40: 36.55 | G40: 60.67 | H40: 60.12
A41: 39 | B41: 2024-06-05 | C41: 115.01 | D41: 43.97 | E41: 28.73 | F41: 36.9 | G41: 61.45 | H41: 60.59
A42: 40 | B42: 2024-06-04 | C42: 115.89 | D42: 44.59 | E42: 29.11 | F42: 37.36 | G42: 63.15 | H42: 61.64
A43: 41 | B43: 2024-06-03 | C43: 115.51 | D43: 44.02 | E43: 28.61 | F43: 37.58 | G43: 62.87 | H43: 61.31
A44: 42 | B44: 2024-05-31 | C44: 115.92 | D44: 43.46 | E44: 29.06 | F44: 37.42 | G44: 61.63 | H44: 61.29
A45: 43 | B45: 2024-05-30 | C45: 112.59 | D45: 42.35 | E45: 27.98 | F45: 36.93 | G45: 59.35 | H45: 59.96
A46: 44 | B46: 2024-05-29 | C46: 111.34 | D46: 41.78 | E46: 27.77 | F46: 35.38 | G46: 58.54 | H46: 59.1
A47: 45 | B47: 2024-05-28 | C47: 112.04 | D47: 42.16 | E47: 27.9 | F47: 35.67 | G47: 59.09 | H47: 59.33
A48: 46 | B48: 2024-05-24 | C48: 112.61 | D48: 42.6 | E48: 28.04 | F48: 36.23 | G48: 60.12 | H48: 59.68
A49: 47 | B49: 2024-05-23 | C49: 113.99 | D49: 42.46 | E49: 28.08 | F49: 36.73 | G49: 60.37 | H49: 60.26
A50: 48 | B50: 2024-05-22 | C50: 117.19 | D50: 43.74 | E50: 28.87 | F50: 37.98 | G50: 62.73 | H50: 62.01
A51: 49 | B51: 2024-05-21 | C51: 118.5 | D51: 44.57 | E51: 29.21 | F51: 38.75 | G51: 64.11 | H51: 63.24
A52: 50 | B52: 2024-05-20 | C52: 118.28 | D52: 44.51 | E52: 29.12 | F52: 38.71 | G52: 63.9 | H52: 62.91
A53: 51 | B53: 2024-05-17 | C53: 118.64 | D53: 44.11 | E53: 29.23 | F53: 38.54 | G53: 63.72 | H53: 62.59
A54: 52 | B54: 2024-05-16 | C54: 118.56 | D54: 44.48 | E54: 29.15 | F54: 38.49 | G54: 64.87 | H54: 62.31
A55: 53 | B55: 2024-05-15 | C55: 117.81 | D55: 44.12 | E55: 29.13 | F55: 38.15 | G55: 64.16 | H55: 62.01
A56: 54 | B56: 2024-05-14 | C56: 117.25 | D56: 43.97 | E56: 28.87 | F56: 37.99 | G56: 63.95 | H56: 61.85
A57: 55 | B57: 2024-05-13 | C57: 116.33 | D57: 44.12 | E57: 28.8 | F57: 38.48 | G57: 63.81 | H57: 62.2
A58: 56 | B58: 2024-05-10 | C58: 117.18 | D58: 44.33 | E58: 28.68 | F58: 38.64 | G58: 64.15 | H58: 61.88
A59: 57 | B59: 2024-05-09 | C59: 119.69 | D59: 44.33 | E59: 28.9 | F59: 38.36 | G59: 64.29 | H59: 61.67
A60: 58 | B60: 2024-05-08 | C60: 120.59 | D60: 44.19 | E60: 28.72 | F60: 38.47 | G60: 64.09 | H60: 61.58
A61: 59 | B61: 2024-05-07 | C61: 120.34 | D61: 44.85 | E61: 29.05 | F61: 38.37 | G61: 64.83 | H61: 61.81
A62: 60 | B62: 2024-05-06 | C62: 119.45 | D62: 44.75 | E62: 28.76 | F62: 37.86 | G62: 65.09 | H62: 61.17

Sheet Proxy Prices
B4: ATO | C4: NJR | D4: NI | E4: NWN | F4: OGS | G4: SR
A5: =IF('Proxy Price Data'!B2="","",'Proxy Price Data'!B2) -> PX_LAST | B5: =IF('Proxy Price Data'!C2="","",'Proxy Price Data'!C2) -> ATO US Equity | C5: =IF('Proxy Price Data'!D2="","",'Proxy Price Data'!D2) -> NJR US Equity | D5: =IF('Proxy Price Data'!E2="","",'Proxy Price Data'!E2) -> NI US Equity | E5: =IF('Proxy Price Data'!F2="","",'Proxy Price Data'!F2) -> NWN US Equity | F5: =IF('Proxy Price Data'!G2="","",'Proxy Price Data'!G2) -> OGS US Equity | G5: =IF('Proxy Price Data'!H2="","",'Proxy Price Data'!H2) -> SR US Equity | H5: =IF('Proxy Price Data'!I2="","",'Proxy Price Data'!I2) -> 
A6: =IF('Proxy Price Data'!B3="","",'Proxy Price Data'!B3) -> 2024-07-31 | B6: =IF('Proxy Price Data'!C3="","",'Proxy Price Data'!C3) -> 127.88 | C6: =IF('Proxy Price Data'!D3="","",'Proxy Price Data'!D3) -> 46.75 | D6: =IF('Proxy Price Data'!E3="","",'Proxy Price Data'!E3) -> 31.25 | E6: =IF('Proxy Price Data'!F3="","",'Proxy Price Data'!F3) -> 39.98 | F6: =IF('Proxy Price Data'!G3="","",'Proxy Price Data'!G3) -> 69.63 | G6: =IF('Proxy Price Data'!H3="","",'Proxy Price Data'!H3) -> 66.59 | H6: =IF('Proxy Price Data'!I3="","",'Proxy Price Data'!I3) -> 
A7: =IF('Proxy Price Data'!B4="","",'Proxy Price Data'!B4) -> 2024-07-30 | B7: =IF('Proxy Price Data'!C4="","",'Proxy Price Data'!C4) -> 128.22 | C7: =IF('Proxy Price Data'!D4="","",'Proxy Price Data'!D4) -> 47.01 | D7: =IF('Proxy Price Data'!E4="","",'Proxy Price Data'!E4) -> 31.42 | E7: =IF('Proxy Price Data'!F4="","",'Proxy Price Data'!F4) -> 40.74 | F7: =IF('Proxy Price Data'!G4="","",'Proxy Price Data'!G4) -> 70.54 | G7: =IF('Proxy Price Data'!H4="","",'Proxy Price Data'!H4) -> 67.58 | H7: =IF('Proxy Price Data'!I4="","",'Proxy Price Data'!I4) -> 
A8: =IF('Proxy Price Data'!B5="","",'Proxy Price Data'!B5) -> 2024-07-29 | B8: =IF('Proxy Price Data'!C5="","",'Proxy Price Data'!C5) -> 127.04 | C8: =IF('Proxy Price Data'!D5="","",'Proxy Price Data'!D5) -> 46.61 | D8: =IF('Proxy Price Data'!E5="","",'Proxy Price Data'!E5) -> 31.33 | E8: =IF('Proxy Price Data'!F5="","",'Proxy Price Data'!F5) -> 40.59 | F8: =IF('Proxy Price Data'!G5="","",'Proxy Price Data'!G5) -> 70.07 | G8: =IF('Proxy Price Data'!H5="","",'Proxy Price Data'!H5) -> 67.27 | H8: =IF('Proxy Price Data'!I5="","",'Proxy Price Data'!I5) -> 
A9: =IF('Proxy Price Data'!B6="","",'Proxy Price Data'!B6) -> 2024-07-26 | B9: =IF('Proxy Price Data'!C6="","",'Proxy Price Data'!C6) -> 126.16 | C9: =IF('Proxy Price Data'!D6="","",'Proxy Price Data'!D6) -> 47 | D9: =IF('Proxy Price Data'!E6="","",'Proxy Price Data'!E6) -> 31.33 | E9: =IF('Proxy Price Data'!F6="","",'Proxy Price Data'!F6) -> 40.71 | F9: =IF('Proxy Price Data'!G6="","",'Proxy Price Data'!G6) -> 70.49 | G9: =IF('Proxy Price Data'!H6="","",'Proxy Price Data'!H6) -> 67.77 | H9: =IF('Proxy Price Data'!I6="","",'Proxy Price Data'!I6) -> 
A10: =IF('Proxy Price Data'!B7="","",'Proxy Price Data'!B7) -> 2024-07-25 | B10: =IF('Proxy Price Data'!C7="","",'Proxy Price Data'!C7) -> 124.93 | C10: =IF('Proxy Price Data'!D7="","",'Proxy Price Data'!D7) -> 46.58 | D10: =IF('Proxy Price Data'!E7="","",'Proxy Price Data'!E7) -> 31.08 | E10: =IF('Proxy Price Data'!F7="","",'Proxy Price Data'!F7) -> 40.35 | F10: =IF('Proxy Price Data'!G7="","",'Proxy Price Data'!G7) -> 69.17 | G10: =IF('Proxy Price Data'!H7="","",'Proxy Price Data'!H7) -> 67.13 | H10: =IF('Proxy Price Data'!I7="","",'Proxy Price Data'!I7) -> 
A11: =IF('Proxy Price Data'!B8="","",'Proxy Price Data'!B8) -> 2024-07-24 | B11: =IF('Proxy Price Data'!C8="","",'Proxy Price Data'!C8) -> 125.9 | C11: =IF('Proxy Price Data'!D8="","",'Proxy Price Data'!D8) -> 46.08 | D11: =IF('Proxy Price Data'!E8="","",'Proxy Price Data'!E8) -> 31.01 | E11: =IF('Proxy Price Data'!F8="","",'Proxy Price Data'!F8) -> 40.03 | F11: =IF('Proxy Price Data'!G8="","",'Proxy Price Data'!G8) -> 69.14 | G11: =IF('Proxy Price Data'!H8="","",'Proxy Price Data'!H8) -> 66.67 | H11: =IF('Proxy Price Data'!I8="","",'Proxy Price Data'!I8) -> 
A12: =IF('Proxy Price Data'!B9="","",'Proxy Price Data'!B9) -> 2024-07-23 | B12: =IF('Proxy Price Data'!C9="","",'Proxy Price Data'!C9) -> 124.54 | C12: =IF('Proxy Price Data'!D9="","",'Proxy Price Data'!D9) -> 45.95 | D12: =IF('Proxy Price Data'!E9="","",'Proxy Price Data'!E9) -> 30.56 | E12: =IF('Proxy Price Data'!F9="","",'Proxy Price Data'!F9) -> 39.79 | F12: =IF('Proxy Price Data'!G9="","",'Proxy Price Data'!G9) -> 68.68 | G12: =IF('Proxy Price Data'!H9="","",'Proxy Price Data'!H9) -> 66.15 | H12: =IF('Proxy Price Data'!I9="","",'Proxy Price Data'!I9) -> 
A13: =IF('Proxy Price Data'!B10="","",'Proxy Price Data'!B10) -> 2024-07-22 | B13: =IF('Proxy Price Data'!C10="","",'Proxy Price Data'!C10) -> 123.51 | C13: =IF('Proxy Price Data'!D10="","",'Proxy Price Data'!D10) -> 46.05 | D13: =IF('Proxy Price Data'!E10="","",'Proxy Price Data'!E10) -> 30.8 | E13: =IF('Proxy Price Data'!F10="","",'Proxy Price Data'!F10) -> 39.64 | F13: =IF('Proxy Price Data'!G10="","",'Proxy Price Data'!G10) -> 68.66 | G13: =IF('Proxy Price Data'!H10="","",'Proxy Price Data'!H10) -> 66.05 | H13: =IF('Proxy Price Data'!I10="","",'Proxy Price Data'!I10) -> 
A14: =IF('Proxy Price Data'!B11="","",'Proxy Price Data'!B11) -> 2024-07-19 | B14: =IF('Proxy Price Data'!C11="","",'Proxy Price Data'!C11) -> 122.95 | C14: =IF('Proxy Price Data'!D11="","",'Proxy Price Data'!D11) -> 45.92 | D14: =IF('Proxy Price Data'!E11="","",'Proxy Price Data'!E11) -> 30.49 | E14: =IF('Proxy Price Data'!F11="","",'Proxy Price Data'!F11) -> 39.34 | F14: =IF('Proxy Price Data'!G11="","",'Proxy Price Data'!G11) -> 68.3 | G14: =IF('Proxy Price Data'!H11="","",'Proxy Price Data'!H11) -> 65.5 | H14: =IF('Proxy Price Data'!I11="","",'Proxy Price Data'!I11) -> 
A15: =IF('Proxy Price Data'!B12="","",'Proxy Price Data'!B12) -> 2024-07-18 | B15: =IF('Proxy Price Data'!C12="","",'Proxy Price Data'!C12) -> 123.22 | C15: =IF('Proxy Price Data'!D12="","",'Proxy Price Data'!D12) -> 46.1 | D15: =IF('Proxy Price Data'!E12="","",'Proxy Price Data'!E12) -> 30.67 | E15: =IF('Proxy Price Data'!F12="","",'Proxy Price Data'!F12) -> 39.84 | F15: =IF('Proxy Price Data'!G12="","",'Proxy Price Data'!G12) -> 68.49 | G15: =IF('Proxy Price Data'!H12="","",'Proxy Price Data'!H12) -> 65.51 | H15: =IF('Proxy Price Data'!I12="","",'Proxy Price Data'!I12) -> 
A16: =IF('Proxy Price Data'!B13="","",'Proxy Price Data'!B13) -> 2024-07-17 | B16: =IF('Proxy Price Data'!C13="","",'Proxy Price Data'!C13) -> 124.65 | C16: =IF('Proxy Price Data'!D13="","",'Proxy Price Data'!D13) -> 46.1 | D16: =IF('Proxy Price Data'!E13="","",'Proxy Price Data'!E13) -> 30.69 | E16: =IF('Proxy Price Data'!F13="","",'Proxy Price Data'!F13) -> 40.24 | F16: =IF('Proxy Price Data'!G13="","",'Proxy Price Data'!G13) -> 69.65 | G16: =IF('Proxy Price Data'!H13="","",'Proxy Price Data'!H13) -> 65.92 | H16: =IF('Proxy Price Data'!I13="","",'Proxy Price Data'!I13) -> 
A17: =IF('Proxy Price Data'!B14="","",'Proxy Price Data'!B14) -> 2024-07-16 | B17: =IF('Proxy Price Data'!C14="","",'Proxy Price Data'!C14) -> 122.34 | C17: =IF('Proxy Price Data'!D14="","",'Proxy Price Data'!D14) -> 45.62 | D17: =IF('Proxy Price Data'!E14="","",'Proxy Price Data'!E14) -> 30.03 | E17: =IF('Proxy Price Data'!F14="","",'Proxy Price Data'!F14) -> 39.04 | F17: =IF('Proxy Price Data'!G14="","",'Proxy Price Data'!G14) -> 68.29 | G17: =IF('Proxy Price Data'!H14="","",'Proxy Price Data'!H14) -> 64.53 | H17: =IF('Proxy Price Data'!I14="","",'Proxy Price Data'!I14) -> 
A18: =IF('Proxy Price Data'!B15="","",'Proxy Price Data'!B15) -> 2024-07-15 | B18: =IF('Proxy Price Data'!C15="","",'Proxy Price Data'!C15) -> 120.83 | C18: =IF('Proxy Price Data'!D15="","",'Proxy Price Data'!D15) -> 44.5 | D18: =IF('Proxy Price Data'!E15="","",'Proxy Price Data'!E15) -> 29.73 | E18: =IF('Proxy Price Data'!F15="","",'Proxy Price Data'!F15) -> 37.89 | F18: =IF('Proxy Price Data'!G15="","",'Proxy Price Data'!G15) -> 66.24 | G18: =IF('Proxy Price Data'!H15="","",'Proxy Price Data'!H15) -> 62.44 | H18: =IF('Proxy Price Data'!I15="","",'Proxy Price Data'!I15) -> 
A19: =IF('Proxy Price Data'!B16="","",'Proxy Price Data'!B16) -> 2024-07-12 | B19: =IF('Proxy Price Data'!C16="","",'Proxy Price Data'!C16) -> 120.94 | C19: =IF('Proxy Price Data'!D16="","",'Proxy Price Data'!D16) -> 44.68 | D19: =IF('Proxy Price Data'!E16="","",'Proxy Price Data'!E16) -> 30.07 | E19: =IF('Proxy Price Data'!F16="","",'Proxy Price Data'!F16) -> 37.88 | F19: =IF('Proxy Price Data'!G16="","",'Proxy Price Data'!G16) -> 65.65 | G19: =IF('Proxy Price Data'!H16="","",'Proxy Price Data'!H16) -> 62.16 | H19: =IF('Proxy Price Data'!I16="","",'Proxy Price Data'!I16) -> 
A20: =IF('Proxy Price Data'!B17="","",'Proxy Price Data'!B17) -> 2024-07-11 | B20: =IF('Proxy Price Data'!C17="","",'Proxy Price Data'!C17) -> 119.87 | C20: =IF('Proxy Price Data'!D17="","",'Proxy Price Data'!D17) -> 44.17 | D20: =IF('Proxy Price Data'!E17="","",'Proxy Price Data'!E17) -> 29.7 | E20: =IF('Proxy Price Data'!F17="","",'Proxy Price Data'!F17) -> 37.33 | F20: =IF('Proxy Price Data'!G17="","",'Proxy Price Data'!G17) -> 64.72 | G20: =IF('Proxy Price Data'!H17="","",'Proxy Price Data'!H17) -> 61.61 | H20: =IF('Proxy Price Data'!I17="","",'Proxy Price Data'!I17) -> 
A21: =IF('Proxy Price Data'!B18="","",'Proxy Price Data'!B18) -> 2024-07-10 | B21: =IF('Proxy Price Data'!C18="","",'Proxy Price Data'!C18) -> 117.01 | C21: =IF('Proxy Price Data'!D18="","",'Proxy Price Data'!D18) -> 42.58 | D21: =IF('Proxy Price Data'!E18="","",'Proxy Price Data'!E18) -> 29.21 | E21: =IF('Proxy Price Data'!F18="","",'Proxy Price Data'!F18) -> 36.04 | F21: =IF('Proxy Price Data'!G18="","",'Proxy Price Data'!G18) -> 63.48 | G21: =IF('Proxy Price Data'!H18="","",'Proxy Price Data'!H18) -> 59.72 | H21: =IF('Proxy Price Data'!I18="","",'Proxy Price Data'!I18) -> 
A22: =IF('Proxy Price Data'!B19="","",'Proxy Price Data'!B19) -> 2024-07-09 | B22: =IF('Proxy Price Data'!C19="","",'Proxy Price Data'!C19) -> 114.77 | C22: =IF('Proxy Price Data'!D19="","",'Proxy Price Data'!D19) -> 42.12 | D22: =IF('Proxy Price Data'!E19="","",'Proxy Price Data'!E19) -> 28.91 | E22: =IF('Proxy Price Data'!F19="","",'Proxy Price Data'!F19) -> 35.48 | F22: =IF('Proxy Price Data'!G19="","",'Proxy Price Data'!G19) -> 62.86 | G22: =IF('Proxy Price Data'!H19="","",'Proxy Price Data'!H19) -> 59.21 | H22: =IF('Proxy Price Data'!I19="","",'Proxy Price Data'!I19) -> 
A23: =IF('Proxy Price Data'!B20="","",'Proxy Price Data'!B20) -> 2024-07-08 | B23: =IF('Proxy Price Data'!C20="","",'Proxy Price Data'!C20) -> 114.08 | C23: =IF('Proxy Price Data'!D20="","",'Proxy Price Data'!D20) -> 42.03 | D23: =IF('Proxy Price Data'!E20="","",'Proxy Price Data'!E20) -> 28.57 | E23: =IF('Proxy Price Data'!F20="","",'Proxy Price Data'!F20) -> 35.25 | F23: =IF('Proxy Price Data'!G20="","",'Proxy Price Data'!G20) -> 62.22 | G23: =IF('Proxy Price Data'!H20="","",'Proxy Price Data'!H20) -> 59.15 | H23: =IF('Proxy Price Data'!I20="","",'Proxy Price Data'!I20) -> 
A24: =IF('Proxy Price Data'!B21="","",'Proxy Price Data'!B21) -> 2024-07-05 | B24: =IF('Proxy Price Data'!C21="","",'Proxy Price Data'!C21) -> 114.62 | C24: =IF('Proxy Price Data'!D21="","",'Proxy Price Data'!D21) -> 42.26 | D24: =IF('Proxy Price Data'!E21="","",'Proxy Price Data'!E21) -> 28.54 | E24: =IF('Proxy Price Data'!F21="","",'Proxy Price Data'!F21) -> 35.31 | F24: =IF('Proxy Price Data'!G21="","",'Proxy Price Data'!G21) -> 62.6 | G24: =IF('Proxy Price Data'!H21="","",'Proxy Price Data'!H21) -> 59.76 | H24: =IF('Proxy Price Data'!I21="","",'Proxy Price Data'!I21) -> 
A25: =IF('Proxy Price Data'!B22="","",'Proxy Price Data'!B22) -> 2024-07-03 | B25: =IF('Proxy Price Data'!C22="","",'Proxy Price Data'!C22) -> 115.16 | C25: =IF('Proxy Price Data'!D22="","",'Proxy Price Data'!D22) -> 42.36 | D25: =IF('Proxy Price Data'!E22="","",'Proxy Price Data'!E22) -> 28.64 | E25: =IF('Proxy Price Data'!F22="","",'Proxy Price Data'!F22) -> 35.53 | F25: =IF('Proxy Price Data'!G22="","",'Proxy Price Data'!G22) -> 63.76 | G25: =IF('Proxy Price Data'!H22="","",'Proxy Price Data'!H22) -> 60.04 | H25: =IF('Proxy Price Data'!I22="","",'Proxy Price Data'!I22) -> 
A26: =IF('Proxy Price Data'!B23="","",'Proxy Price Data'!B23) -> 2024-07-02 | B26: =IF('Proxy Price Data'!C23="","",'Proxy Price Data'!C23) -> 116.52 | C26: =IF('Proxy Price Data'!D23="","",'Proxy Price Data'!D23) -> 42.68 | D26: =IF('Proxy Price Data'!E23="","",'Proxy Price Data'!E23) -> 28.57 | E26: =IF('Proxy Price Data'!F23="","",'Proxy Price Data'!F23) -> 35.91 | F26: =IF('Proxy Price Data'!G23="","",'Proxy Price Data'!G23) -> 64 | G26: =IF('Proxy Price Data'!H23="","",'Proxy Price Data'!H23) -> 60.59 | H26: =IF('Proxy Price Data'!I23="","",'Proxy Price Data'!I23) -> 
A27: =IF('Proxy Price Data'!B24="","",'Proxy Price Data'!B24) -> 2024-07-01 | B27: =IF('Proxy Price Data'!C24="","",'Proxy Price Data'!C24) -> 115.98 | C27: =IF('Proxy Price Data'!D24="","",'Proxy Price Data'!D24) -> 42.52 | D27: =IF('Proxy Price Data'!E24="","",'Proxy Price Data'!E24) -> 28.7 | E27: =IF('Proxy Price Data'!F24="","",'Proxy Price Data'!F24) -> 35.73 | F27: =IF('Proxy Price Data'!G24="","",'Proxy Price Data'!G24) -> 62.78 | G27: =IF('Proxy Price Data'!H24="","",'Proxy Price Data'!H24) -> 60.32 | H27: =IF('Proxy Price Data'!I24="","",'Proxy Price Data'!I24) -> 
A28: =IF('Proxy Price Data'!B25="","",'Proxy Price Data'!B25) -> 2024-06-28 | B28: =IF('Proxy Price Data'!C25="","",'Proxy Price Data'!C25) -> 116.65 | C28: =IF('Proxy Price Data'!D25="","",'Proxy Price Data'!D25) -> 42.74 | D28: =IF('Proxy Price Data'!E25="","",'Proxy Price Data'!E25) -> 28.81 | E28: =IF('Proxy Price Data'!F25="","",'Proxy Price Data'!F25) -> 36.11 | F28: =IF('Proxy Price Data'!G25="","",'Proxy Price Data'!G25) -> 63.85 | G28: =IF('Proxy Price Data'!H25="","",'Proxy Price Data'!H25) -> 60.73 | H28: =IF('Proxy Price Data'!I25="","",'Proxy Price Data'!I25) -> 
A29: =IF('Proxy Price Data'!B26="","",'Proxy Price Data'!B26) -> 2024-06-27 | B29: =IF('Proxy Price Data'!C26="","",'Proxy Price Data'!C26) -> 116.55 | C29: =IF('Proxy Price Data'!D26="","",'Proxy Price Data'!D26) -> 42.61 | D29: =IF('Proxy Price Data'!E26="","",'Proxy Price Data'!E26) -> 29 | E29: =IF('Proxy Price Data'!F26="","",'Proxy Price Data'!F26) -> 35.68 | F29: =IF('Proxy Price Data'!G26="","",'Proxy Price Data'!G26) -> 62.88 | G29: =IF('Proxy Price Data'!H26="","",'Proxy Price Data'!H26) -> 60.1 | H29: =IF('Proxy Price Data'!I26="","",'Proxy Price Data'!I26) -> 
A30: =IF('Proxy Price Data'!B27="","",'Proxy Price Data'!B27) -> 2024-06-26 | B30: =IF('Proxy Price Data'!C27="","",'Proxy Price Data'!C27) -> 116.11 | C30: =IF('Proxy Price Data'!D27="","",'Proxy Price Data'!D27) -> 42.41 | D30: =IF('Proxy Price Data'!E27="","",'Proxy Price Data'!E27) -> 29.02 | E30: =IF('Proxy Price Data'!F27="","",'Proxy Price Data'!F27) -> 35.34 | F30: =IF('Proxy Price Data'!G27="","",'Proxy Price Data'!G27) -> 61.22 | G30: =IF('Proxy Price Data'!H27="","",'Proxy Price Data'!H27) -> 59.21 | H30: =IF('Proxy Price Data'!I27="","",'Proxy Price Data'!I27) -> 
A31: =IF('Proxy Price Data'!B28="","",'Proxy Price Data'!B28) -> 2024-06-25 | B31: =IF('Proxy Price Data'!C28="","",'Proxy Price Data'!C28) -> 116.53 | C31: =IF('Proxy Price Data'!D28="","",'Proxy Price Data'!D28) -> 42.29 | D31: =IF('Proxy Price Data'!E28="","",'Proxy Price Data'!E28) -> 28.83 | E31: =IF('Proxy Price Data'!F28="","",'Proxy Price Data'!F28) -> 35.23 | F31: =IF('Proxy Price Data'!G28="","",'Proxy Price Data'!G28) -> 60.5 | G31: =IF('Proxy Price Data'!H28="","",'Proxy Price Data'!H28) -> 58.91 | H31: =IF('Proxy Price Data'!I28="","",'Proxy Price Data'!I28) -> 
A32: =IF('Proxy Price Data'!B29="","",'Proxy Price Data'!B29) -> 2024-06-24 | B32: =IF('Proxy Price Data'!C29="","",'Proxy Price Data'!C29) -> 118.02 | C32: =IF('Proxy Price Data'!D29="","",'Proxy Price Data'!D29) -> 42.66 | D32: =IF('Proxy Price Data'!E29="","",'Proxy Price Data'!E29) -> 28.88 | E32: =IF('Proxy Price Data'!F29="","",'Proxy Price Data'!F29) -> 35.39 | F32: =IF('Proxy Price Data'!G29="","",'Proxy Price Data'!G29) -> 61.33 | G32: =IF('Proxy Price Data'!H29="","",'Proxy Price Data'!H29) -> 59.28 | H32: =IF('Proxy Price Data'!I29="","",'Proxy Price Data'!I29) -> 
A33: =IF('Proxy Price Data'!B30="","",'Proxy Price Data'!B30) -> 2024-06-21 | B33: =IF('Proxy Price Data'!C30="","",'Proxy Price Data'!C30) -> 116.29 | C33: =IF('Proxy Price Data'!D30="","",'Proxy Price Data'!D30) -> 42.07 | D33: =IF('Proxy Price Data'!E30="","",'Proxy Price Data'!E30) -> 28.32 | E33: =IF('Proxy Price Data'!F30="","",'Proxy Price Data'!F30) -> 34.95 | F33: =IF('Proxy Price Data'!G30="","",'Proxy Price Data'!G30) -> 60.14 | G33: =IF('Proxy Price Data'!H30="","",'Proxy Price Data'!H30) -> 58.6 | H33: =IF('Proxy Price Data'!I30="","",'Proxy Price Data'!I30) -> 
A34: =IF('Proxy Price Data'!B31="","",'Proxy Price Data'!B31) -> 2024-06-20 | B34: =IF('Proxy Price Data'!C31="","",'Proxy Price Data'!C31) -> 117.18 | C34: =IF('Proxy Price Data'!D31="","",'Proxy Price Data'!D31) -> 42.09 | D34: =IF('Proxy Price Data'!E31="","",'Proxy Price Data'!E31) -> 28.34 | E34: =IF('Proxy Price Data'!F31="","",'Proxy Price Data'!F31) -> 35.21 | F34: =IF('Proxy Price Data'!G31="","",'Proxy Price Data'!G31) -> 60.68 | G34: =IF('Proxy Price Data'!H31="","",'Proxy Price Data'!H31) -> 58.59 | H34: =IF('Proxy Price Data'!I31="","",'Proxy Price Data'!I31) -> 
A35: =IF('Proxy Price Data'!B32="","",'Proxy Price Data'!B32) -> 2024-06-18 | B35: =IF('Proxy Price Data'!C32="","",'Proxy Price Data'!C32) -> 117 | C35: =IF('Proxy Price Data'!D32="","",'Proxy Price Data'!D32) -> 41.86 | D35: =IF('Proxy Price Data'!E32="","",'Proxy Price Data'!E32) -> 28.07 | E35: =IF('Proxy Price Data'!F32="","",'Proxy Price Data'!F32) -> 35.02 | F35: =IF('Proxy Price Data'!G32="","",'Proxy Price Data'!G32) -> 60.23 | G35: =IF('Proxy Price Data'!H32="","",'Proxy Price Data'!H32) -> 58.41 | H35: =IF('Proxy Price Data'!I32="","",'Proxy Price Data'!I32) -> 
A36: =IF('Proxy Price Data'!B33="","",'Proxy Price Data'!B33) -> 2024-06-17 | B36: =IF('Proxy Price Data'!C33="","",'Proxy Price Data'!C33) -> 116.29 | C36: =IF('Proxy Price Data'!D33="","",'Proxy Price Data'!D33) -> 41.86 | D36: =IF('Proxy Price Data'!E33="","",'Proxy Price Data'!E33) -> 28 | E36: =IF('Proxy Price Data'!F33="","",'Proxy Price Data'!F33) -> 35.45 | F36: =IF('Proxy Price Data'!G33="","",'Proxy Price Data'!G33) -> 60.71 | G36: =IF('Proxy Price Data'!H33="","",'Proxy Price Data'!H33) -> 58.59 | H36: =IF('Proxy Price Data'!I33="","",'Proxy Price Data'!I33) -> 
A37: =IF('Proxy Price Data'!B34="","",'Proxy Price Data'!B34) -> 2024-06-14 | B37: =IF('Proxy Price Data'!C34="","",'Proxy Price Data'!C34) -> 116.15 | C37: =IF('Proxy Price Data'!D34="","",'Proxy Price Data'!D34) -> 42.08 | D37: =IF('Proxy Price Data'!E34="","",'Proxy Price Data'!E34) -> 28.17 | E37: =IF('Proxy Price Data'!F34="","",'Proxy Price Data'!F34) -> 35.42 | F37: =IF('Proxy Price Data'!G34="","",'Proxy Price Data'!G34) -> 60.79 | G37: =IF('Proxy Price Data'!H34="","",'Proxy Price Data'!H34) -> 58.47 | H37: =IF('Proxy Price Data'!I34="","",'Proxy Price Data'!I34) -> 
A38: =IF('Proxy Price Data'!B35="","",'Proxy Price Data'!B35) -> 2024-06-13 | B38: =IF('Proxy Price Data'!C35="","",'Proxy Price Data'!C35) -> 116.17 | C38: =IF('Proxy Price Data'!D35="","",'Proxy Price Data'!D35) -> 42.13 | D38: =IF('Proxy Price Data'!E35="","",'Proxy Price Data'!E35) -> 28.29 | E38: =IF('Proxy Price Data'!F35="","",'Proxy Price Data'!F35) -> 35.5 | F38: =IF('Proxy Price Data'!G35="","",'Proxy Price Data'!G35) -> 60.79 | G38: =IF('Proxy Price Data'!H35="","",'Proxy Price Data'!H35) -> 58.21 | H38: =IF('Proxy Price Data'!I35="","",'Proxy Price Data'!I35) -> 
A39: =IF('Proxy Price Data'!B36="","",'Proxy Price Data'!B36) -> 2024-06-12 | B39: =IF('Proxy Price Data'!C36="","",'Proxy Price Data'!C36) -> 116.18 | C39: =IF('Proxy Price Data'!D36="","",'Proxy Price Data'!D36) -> 42.59 | D39: =IF('Proxy Price Data'!E36="","",'Proxy Price Data'!E36) -> 28.17 | E39: =IF('Proxy Price Data'!F36="","",'Proxy Price Data'!F36) -> 35.67 | F39: =IF('Proxy Price Data'!G36="","",'Proxy Price Data'!G36) -> 61.35 | G39: =IF('Proxy Price Data'!H36="","",'Proxy Price Data'!H36) -> 58.65 | H39: =IF('Proxy Price Data'!I36="","",'Proxy Price Data'!I36) -> 
A40: =IF('Proxy Price Data'!B37="","",'Proxy Price Data'!B37) -> 2024-06-11 | B40: =IF('Proxy Price Data'!C37="","",'Proxy Price Data'!C37) -> 115.75 | C40: =IF('Proxy Price Data'!D37="","",'Proxy Price Data'!D37) -> 43.19 | D40: =IF('Proxy Price Data'!E37="","",'Proxy Price Data'!E37) -> 28.32 | E40: =IF('Proxy Price Data'!F37="","",'Proxy Price Data'!F37) -> 35.77 | F40: =IF('Proxy Price Data'!G37="","",'Proxy Price Data'!G37) -> 60.75 | G40: =IF('Proxy Price Data'!H37="","",'Proxy Price Data'!H37) -> 59.02 | H40: =IF('Proxy Price Data'!I37="","",'Proxy Price Data'!I37) -> 
A41: =IF('Proxy Price Data'!B38="","",'Proxy Price Data'!B38) -> 2024-06-10 | B41: =IF('Proxy Price Data'!C38="","",'Proxy Price Data'!C38) -> 115.48 | C41: =IF('Proxy Price Data'!D38="","",'Proxy Price Data'!D38) -> 43.45 | D41: =IF('Proxy Price Data'!E38="","",'Proxy Price Data'!E38) -> 28.43 | E41: =IF('Proxy Price Data'!F38="","",'Proxy Price Data'!F38) -> 35.99 | F41: =IF('Proxy Price Data'!G38="","",'Proxy Price Data'!G38) -> 60.87 | G41: =IF('Proxy Price Data'!H38="","",'Proxy Price Data'!H38) -> 59.9 | H41: =IF('Proxy Price Data'!I38="","",'Proxy Price Data'!I38) -> 
A42: =IF('Proxy Price Data'!B39="","",'Proxy Price Data'!B39) -> 2024-06-07 | B42: =IF('Proxy Price Data'!C39="","",'Proxy Price Data'!C39) -> 114.78 | C42: =IF('Proxy Price Data'!D39="","",'Proxy Price Data'!D39) -> 43.29 | D42: =IF('Proxy Price Data'!E39="","",'Proxy Price Data'!E39) -> 28.28 | E42: =IF('Proxy Price Data'!F39="","",'Proxy Price Data'!F39) -> 36.12 | F42: =IF('Proxy Price Data'!G39="","",'Proxy Price Data'!G39) -> 60.43 | G42: =IF('Proxy Price Data'!H39="","",'Proxy Price Data'!H39) -> 59.74 | H42: =IF('Proxy Price Data'!I39="","",'Proxy Price Data'!I39) -> 
A43: =IF('Proxy Price Data'!B40="","",'Proxy Price Data'!B40) -> 2024-06-06 | B43: =IF('Proxy Price Data'!C40="","",'Proxy Price Data'!C40) -> 115.45 | C43: =IF('Proxy Price Data'!D40="","",'Proxy Price Data'!D40) -> 43.45 | D43: =IF('Proxy Price Data'!E40="","",'Proxy Price Data'!E40) -> 28.54 | E43: =IF('Proxy Price Data'!F40="","",'Proxy Price Data'!F40) -> 36.55 | F43: =IF('Proxy Price Data'!G40="","",'Proxy Price Data'!G40) -> 60.67 | G43: =IF('Proxy Price Data'!H40="","",'Proxy Price Data'!H40) -> 60.12 | H43: =IF('Proxy Price Data'!I40="","",'Proxy Price Data'!I40) -> 
A44: =IF('Proxy Price Data'!B41="","",'Proxy Price Data'!B41) -> 2024-06-05 | B44: =IF('Proxy Price Data'!C41="","",'Proxy Price Data'!C41) -> 115.01 | C44: =IF('Proxy Price Data'!D41="","",'Proxy Price Data'!D41) -> 43.97 | D44: =IF('Proxy Price Data'!E41="","",'Proxy Price Data'!E41) -> 28.73 | E44: =IF('Proxy Price Data'!F41="","",'Proxy Price Data'!F41) -> 36.9 | F44: =IF('Proxy Price Data'!G41="","",'Proxy Price Data'!G41) -> 61.45 | G44: =IF('Proxy Price Data'!H41="","",'Proxy Price Data'!H41) -> 60.59 | H44: =IF('Proxy Price Data'!I41="","",'Proxy Price Data'!I41) -> 
A45: =IF('Proxy Price Data'!B42="","",'Proxy Price Data'!B42) -> 2024-06-04 | B45: =IF('Proxy Price Data'!C42="","",'Proxy Price Data'!C42) -> 115.89 | C45: =IF('Proxy Price Data'!D42="","",'Proxy Price Data'!D42) -> 44.59 | D45: =IF('Proxy Price Data'!E42="","",'Proxy Price Data'!E42) -> 29.11 | E45: =IF('Proxy Price Data'!F42="","",'Proxy Price Data'!F42) -> 37.36 | F45: =IF('Proxy Price Data'!G42="","",'Proxy Price Data'!G42) -> 63.15 | G45: =IF('Proxy Price Data'!H42="","",'Proxy Price Data'!H42) -> 61.64 | H45: =IF('Proxy Price Data'!I42="","",'Proxy Price Data'!I42) -> 
A46: =IF('Proxy Price Data'!B43="","",'Proxy Price Data'!B43) -> 2024-06-03 | B46: =IF('Proxy Price Data'!C43="","",'Proxy Price Data'!C43) -> 115.51 | C46: =IF('Proxy Price Data'!D43="","",'Proxy Price Data'!D43) -> 44.02 | D46: =IF('Proxy Price Data'!E43="","",'Proxy Price Data'!E43) -> 28.61 | E46: =IF('Proxy Price Data'!F43="","",'Proxy Price Data'!F43) -> 37.58 | F46: =IF('Proxy Price Data'!G43="","",'Proxy Price Data'!G43) -> 62.87 | G46: =IF('Proxy Price Data'!H43="","",'Proxy Price Data'!H43) -> 61.31 | H46: =IF('Proxy Price Data'!I43="","",'Proxy Price Data'!I43) -> 
A47: =IF('Proxy Price Data'!B44="","",'Proxy Price Data'!B44) -> 2024-05-31 | B47: =IF('Proxy Price Data'!C44="","",'Proxy Price Data'!C44) -> 115.92 | C47: =IF('Proxy Price Data'!D44="","",'Proxy Price Data'!D44) -> 43.46 | D47: =IF('Proxy Price Data'!E44="","",'Proxy Price Data'!E44) -> 29.06 | E47: =IF('Proxy Price Data'!F44="","",'Proxy Price Data'!F44) -> 37.42 | F47: =IF('Proxy Price Data'!G44="","",'Proxy Price Data'!G44) -> 61.63 | G47: =IF('Proxy Price Data'!H44="","",'Proxy Price Data'!H44) -> 61.29 | H47: =IF('Proxy Price Data'!I44="","",'Proxy Price Data'!I44) -> 
A48: =IF('Proxy Price Data'!B45="","",'Proxy Price Data'!B45) -> 2024-05-30 | B48: =IF('Proxy Price Data'!C45="","",'Proxy Price Data'!C45) -> 112.59 | C48: =IF('Proxy Price Data'!D45="","",'Proxy Price Data'!D45) -> 42.35 | D48: =IF('Proxy Price Data'!E45="","",'Proxy Price Data'!E45) -> 27.98 | E48: =IF('Proxy Price Data'!F45="","",'Proxy Price Data'!F45) -> 36.93 | F48: =IF('Proxy Price Data'!G45="","",'Proxy Price Data'!G45) -> 59.35 | G48: =IF('Proxy Price Data'!H45="","",'Proxy Price Data'!H45) -> 59.96 | H48: =IF('Proxy Price Data'!I45="","",'Proxy Price Data'!I45) -> 
A49: =IF('Proxy Price Data'!B46="","",'Proxy Price Data'!B46) -> 2024-05-29 | B49: =IF('Proxy Price Data'!C46="","",'Proxy Price Data'!C46) -> 111.34 | C49: =IF('Proxy Price Data'!D46="","",'Proxy Price Data'!D46) -> 41.78 | D49: =IF('Proxy Price Data'!E46="","",'Proxy Price Data'!E46) -> 27.77 | E49: =IF('Proxy Price Data'!F46="","",'Proxy Price Data'!F46) -> 35.38 | F49: =IF('Proxy Price Data'!G46="","",'Proxy Price Data'!G46) -> 58.54 | G49: =IF('Proxy Price Data'!H46="","",'Proxy Price Data'!H46) -> 59.1 | H49: =IF('Proxy Price Data'!I46="","",'Proxy Price Data'!I46) -> 
A50: =IF('Proxy Price Data'!B47="","",'Proxy Price Data'!B47) -> 2024-05-28 | B50: =IF('Proxy Price Data'!C47="","",'Proxy Price Data'!C47) -> 112.04 | C50: =IF('Proxy Price Data'!D47="","",'Proxy Price Data'!D47) -> 42.16 | D50: =IF('Proxy Price Data'!E47="","",'Proxy Price Data'!E47) -> 27.9 | E50: =IF('Proxy Price Data'!F47="","",'Proxy Price Data'!F47) -> 35.67 | F50: =IF('Proxy Price Data'!G47="","",'Proxy Price Data'!G47) -> 59.09 | G50: =IF('Proxy Price Data'!H47="","",'Proxy Price Data'!H47) -> 59.33 | H50: =IF('Proxy Price Data'!I47="","",'Proxy Price Data'!I47) -> 
A51: =IF('Proxy Price Data'!B48="","",'Proxy Price Data'!B48) -> 2024-05-24 | B51: =IF('Proxy Price Data'!C48="","",'Proxy Price Data'!C48) -> 112.61 | C51: =IF('Proxy Price Data'!D48="","",'Proxy Price Data'!D48) -> 42.6 | D51: =IF('Proxy Price Data'!E48="","",'Proxy Price Data'!E48) -> 28.04 | E51: =IF('Proxy Price Data'!F48="","",'Proxy Price Data'!F48) -> 36.23 | F51: =IF('Proxy Price Data'!G48="","",'Proxy Price Data'!G48) -> 60.12 | G51: =IF('Proxy Price Data'!H48="","",'Proxy Price Data'!H48) -> 59.68 | H51: =IF('Proxy Price Data'!I48="","",'Proxy Price Data'!I48) -> 
A52: =IF('Proxy Price Data'!B49="","",'Proxy Price Data'!B49) -> 2024-05-23 | B52: =IF('Proxy Price Data'!C49="","",'Proxy Price Data'!C49) -> 113.99 | C52: =IF('Proxy Price Data'!D49="","",'Proxy Price Data'!D49) -> 42.46 | D52: =IF('Proxy Price Data'!E49="","",'Proxy Price Data'!E49) -> 28.08 | E52: =IF('Proxy Price Data'!F49="","",'Proxy Price Data'!F49) -> 36.73 | F52: =IF('Proxy Price Data'!G49="","",'Proxy Price Data'!G49) -> 60.37 | G52: =IF('Proxy Price Data'!H49="","",'Proxy Price Data'!H49) -> 60.26 | H52: =IF('Proxy Price Data'!I49="","",'Proxy Price Data'!I49) -> 
A53: =IF('Proxy Price Data'!B50="","",'Proxy Price Data'!B50) -> 2024-05-22 | B53: =IF('Proxy Price Data'!C50="","",'Proxy Price Data'!C50) -> 117.19 | C53: =IF('Proxy Price Data'!D50="","",'Proxy Price Data'!D50) -> 43.74 | D53: =IF('Proxy Price Data'!E50="","",'Proxy Price Data'!E50) -> 28.87 | E53: =IF('Proxy Price Data'!F50="","",'Proxy Price Data'!F50) -> 37.98 | F53: =IF('Proxy Price Data'!G50="","",'Proxy Price Data'!G50) -> 62.73 | G53: =IF('Proxy Price Data'!H50="","",'Proxy Price Data'!H50) -> 62.01 | H53: =IF('Proxy Price Data'!I50="","",'Proxy Price Data'!I50) -> 
A54: =IF('Proxy Price Data'!B51="","",'Proxy Price Data'!B51) -> 2024-05-21 | B54: =IF('Proxy Price Data'!C51="","",'Proxy Price Data'!C51) -> 118.5 | C54: =IF('Proxy Price Data'!D51="","",'Proxy Price Data'!D51) -> 44.57 | D54: =IF('Proxy Price Data'!E51="","",'Proxy Price Data'!E51) -> 29.21 | E54: =IF('Proxy Price Data'!F51="","",'Proxy Price Data'!F51) -> 38.75 | F54: =IF('Proxy Price Data'!G51="","",'Proxy Price Data'!G51) -> 64.11 | G54: =IF('Proxy Price Data'!H51="","",'Proxy Price Data'!H51) -> 63.24 | H54: =IF('Proxy Price Data'!I51="","",'Proxy Price Data'!I51) -> 
A55: =IF('Proxy Price Data'!B52="","",'Proxy Price Data'!B52) -> 2024-05-20 | B55: =IF('Proxy Price Data'!C52="","",'Proxy Price Data'!C52) -> 118.28 | C55: =IF('Proxy Price Data'!D52="","",'Proxy Price Data'!D52) -> 44.51 | D55: =IF('Proxy Price Data'!E52="","",'Proxy Price Data'!E52) -> 29.12 | E55: =IF('Proxy Price Data'!F52="","",'Proxy Price Data'!F52) -> 38.71 | F55: =IF('Proxy Price Data'!G52="","",'Proxy Price Data'!G52) -> 63.9 | G55: =IF('Proxy Price Data'!H52="","",'Proxy Price Data'!H52) -> 62.91 | H55: =IF('Proxy Price Data'!I52="","",'Proxy Price Data'!I52) -> 
A56: =IF('Proxy Price Data'!B53="","",'Proxy Price Data'!B53) -> 2024-05-17 | B56: =IF('Proxy Price Data'!C53="","",'Proxy Price Data'!C53) -> 118.64 | C56: =IF('Proxy Price Data'!D53="","",'Proxy Price Data'!D53) -> 44.11 | D56: =IF('Proxy Price Data'!E53="","",'Proxy Price Data'!E53) -> 29.23 | E56: =IF('Proxy Price Data'!F53="","",'Proxy Price Data'!F53) -> 38.54 | F56: =IF('Proxy Price Data'!G53="","",'Proxy Price Data'!G53) -> 63.72 | G56: =IF('Proxy Price Data'!H53="","",'Proxy Price Data'!H53) -> 62.59 | H56: =IF('Proxy Price Data'!I53="","",'Proxy Price Data'!I53) -> 
A57: =IF('Proxy Price Data'!B54="","",'Proxy Price Data'!B54) -> 2024-05-16 | B57: =IF('Proxy Price Data'!C54="","",'Proxy Price Data'!C54) -> 118.56 | C57: =IF('Proxy Price Data'!D54="","",'Proxy Price Data'!D54) -> 44.48 | D57: =IF('Proxy Price Data'!E54="","",'Proxy Price Data'!E54) -> 29.15 | E57: =IF('Proxy Price Data'!F54="","",'Proxy Price Data'!F54) -> 38.49 | F57: =IF('Proxy Price Data'!G54="","",'Proxy Price Data'!G54) -> 64.87 | G57: =IF('Proxy Price Data'!H54="","",'Proxy Price Data'!H54) -> 62.31 | H57: =IF('Proxy Price Data'!I54="","",'Proxy Price Data'!I54) -> 
A58: =IF('Proxy Price Data'!B55="","",'Proxy Price Data'!B55) -> 2024-05-15 | B58: =IF('Proxy Price Data'!C55="","",'Proxy Price Data'!C55) -> 117.81 | C58: =IF('Proxy Price Data'!D55="","",'Proxy Price Data'!D55) -> 44.12 | D58: =IF('Proxy Price Data'!E55="","",'Proxy Price Data'!E55) -> 29.13 | E58: =IF('Proxy Price Data'!F55="","",'Proxy Price Data'!F55) -> 38.15 | F58: =IF('Proxy Price Data'!G55="","",'Proxy Price Data'!G55) -> 64.16 | G58: =IF('Proxy Price Data'!H55="","",'Proxy Price Data'!H55) -> 62.01 | H58: =IF('Proxy Price Data'!I55="","",'Proxy Price Data'!I55) -> 
A59: =IF('Proxy Price Data'!B56="","",'Proxy Price Data'!B56) -> 2024-05-14 | B59: =IF('Proxy Price Data'!C56="","",'Proxy Price Data'!C56) -> 117.25 | C59: =IF('Proxy Price Data'!D56="","",'Proxy Price Data'!D56) -> 43.97 | D59: =IF('Proxy Price Data'!E56="","",'Proxy Price Data'!E56) -> 28.87 | E59: =IF('Proxy Price Data'!F56="","",'Proxy Price Data'!F56) -> 37.99 | F59: =IF('Proxy Price Data'!G56="","",'Proxy Price Data'!G56) -> 63.95 | G59: =IF('Proxy Price Data'!H56="","",'Proxy Price Data'!H56) -> 61.85 | H59: =IF('Proxy Price Data'!I56="","",'Proxy Price Data'!I56) -> 
A60: =IF('Proxy Price Data'!B57="","",'Proxy Price Data'!B57) -> 2024-05-13 | B60: =IF('Proxy Price Data'!C57="","",'Proxy Price Data'!C57) -> 116.33 | C60: =IF('Proxy Price Data'!D57="","",'Proxy Price Data'!D57) -> 44.12 | D60: =IF('Proxy Price Data'!E57="","",'Proxy Price Data'!E57) -> 28.8 | E60: =IF('Proxy Price Data'!F57="","",'Proxy Price Data'!F57) -> 38.48 | F60: =IF('Proxy Price Data'!G57="","",'Proxy Price Data'!G57) -> 63.81 | G60: =IF('Proxy Price Data'!H57="","",'Proxy Price Data'!H57) -> 62.2 | H60: =IF('Proxy Price Data'!I57="","",'Proxy Price Data'!I57) -> 
A61: =IF('Proxy Price Data'!B58="","",'Proxy Price Data'!B58) -> 2024-05-10 | B61: =IF('Proxy Price Data'!C58="","",'Proxy Price Data'!C58) -> 117.18 | C61: =IF('Proxy Price Data'!D58="","",'Proxy Price Data'!D58) -> 44.33 | D61: =IF('Proxy Price Data'!E58="","",'Proxy Price Data'!E58) -> 28.68 | E61: =IF('Proxy Price Data'!F58="","",'Proxy Price Data'!F58) -> 38.64 | F61: =IF('Proxy Price Data'!G58="","",'Proxy Price Data'!G58) -> 64.15 | G61: =IF('Proxy Price Data'!H58="","",'Proxy Price Data'!H58) -> 61.88 | H61: =IF('Proxy Price Data'!I58="","",'Proxy Price Data'!I58) -> 
A62: =IF('Proxy Price Data'!B59="","",'Proxy Price Data'!B59) -> 2024-05-09 | B62: =IF('Proxy Price Data'!C59="","",'Proxy Price Data'!C59) -> 119.69 | C62: =IF('Proxy Price Data'!D59="","",'Proxy Price Data'!D59) -> 44.33 | D62: =IF('Proxy Price Data'!E59="","",'Proxy Price Data'!E59) -> 28.9 | E62: =IF('Proxy Price Data'!F59="","",'Proxy Price Data'!F59) -> 38.36 | F62: =IF('Proxy Price Data'!G59="","",'Proxy Price Data'!G59) -> 64.29 | G62: =IF('Proxy Price Data'!H59="","",'Proxy Price Data'!H59) -> 61.67 | H62: =IF('Proxy Price Data'!I59="","",'Proxy Price Data'!I59) -> 
A63: =IF('Proxy Price Data'!B60="","",'Proxy Price Data'!B60) -> 2024-05-08 | B63: =IF('Proxy Price Data'!C60="","",'Proxy Price Data'!C60) -> 120.59 | C63: =IF('Proxy Price Data'!D60="","",'Proxy Price Data'!D60) -> 44.19 | D63: =IF('Proxy Price Data'!E60="","",'Proxy Price Data'!E60) -> 28.72 | E63: =IF('Proxy Price Data'!F60="","",'Proxy Price Data'!F60) -> 38.47 | F63: =IF('Proxy Price Data'!G60="","",'Proxy Price Data'!G60) -> 64.09 | G63: =IF('Proxy Price Data'!H60="","",'Proxy Price Data'!H60) -> 61.58 | H63: =IF('Proxy Price Data'!I60="","",'Proxy Price Data'!I60) -> 
A64: =IF('Proxy Price Data'!B61="","",'Proxy Price Data'!B61) -> 2024-05-07 | B64: =IF('Proxy Price Data'!C61="","",'Proxy Price Data'!C61) -> 120.34 | C64: =IF('Proxy Price Data'!D61="","",'Proxy Price Data'!D61) -> 44.85 | D64: =IF('Proxy Price Data'!E61="","",'Proxy Price Data'!E61) -> 29.05 | E64: =IF('Proxy Price Data'!F61="","",'Proxy Price Data'!F61) -> 38.37 | F64: =IF('Proxy Price Data'!G61="","",'Proxy Price Data'!G61) -> 64.83 | G64: =IF('Proxy Price Data'!H61="","",'Proxy Price Data'!H61) -> 61.81 | H64: =IF('Proxy Price Data'!I61="","",'Proxy Price Data'!I61) -> 
A65: =IF('Proxy Price Data'!B62="","",'Proxy Price Data'!B62) -> 2024-05-06 | B65: =IF('Proxy Price Data'!C62="","",'Proxy Price Data'!C62) -> 119.45 | C65: =IF('Proxy Price Data'!D62="","",'Proxy Price Data'!D62) -> 44.75 | D65: =IF('Proxy Price Data'!E62="","",'Proxy Price Data'!E62) -> 28.76 | E65: =IF('Proxy Price Data'!F62="","",'Proxy Price Data'!F62) -> 37.86 | F65: =IF('Proxy Price Data'!G62="","",'Proxy Price Data'!G62) -> 65.09 | G65: =IF('Proxy Price Data'!H62="","",'Proxy Price Data'!H62) -> 61.17 | H65: =IF('Proxy Price Data'!I62="","",'Proxy Price Data'!I62) -> 
A67: Average Price | B67: =IFERROR(ROUND(AVERAGE(B6:B65),2),0) -> 118.27 | C67: 43.83 | D67: 29.14 | E67: 37.35 | F67: 63.78 | G67: 61.64
A69: Indicated Dividend | B69: ='Proxy Data Lookup'!$I3 -> 3.22 | C69: ='Proxy Data Lookup'!$I4 -> 1.68 | D69: ='Proxy Data Lookup'!$I5 -> 1.06 | E69: ='Proxy Data Lookup'!$I6 -> 1.95 | F69: ='Proxy Data Lookup'!$I7 -> 2.64 | G69: ='Proxy Data Lookup'!$I8 -> 3.02
A71: Indicated Dividend Yield | B71: =IFERROR(ROUND(B69/B67,4),0) -> 0.0272 | C71: 0.0383 | D71: 0.0364 | E71: 0.0522 | F71: 0.0414 | G71: 0.049

Sheet CEM Data Lookup
C2: EPS Growth Rates | G2: Beta | I2: Annual Div. | J2: Bond Ratings | L2: Value Line Beta Calculation
A3: Ticker | B3: Company Name | C3: Zacks | D3: Yahoo | E3: Value Line | F3: Cap IQ | G3: VL Beta | H3: Bloomberg | J3: Moody's | K3: S&P | L3: Beta Adj. | M3: Beta Unadj. | N3: R Factor | O3: Std. Error | P3: Std. Dev Y | Q3: Std. Dev Beta
A4: =Input!C2 -> ABT | B4: Abbott Laboratories | C4: 0.086 | D4: 0.082 | E4: 0.04 | F4: 0.0844737 | G4: 0.9 | H4: 0.7949305773 | I4: 2.2 | J4: Aa3 | K4: AA- | L4: 0.9 | M4: 0.78 | N4: 0.5882 | O4: 2.9772 | P4: 3.6744 | Q4: 0.0666
A5: =Input!C3 -> A | B5: Agilent Technologies, Inc. | C5: 0.056 | D5: 0.0495 | E5: 0.08 | F5: 0.0500888 | G5: 0.95 | H5: 1.109119534 | I5: 0.944 | J5: Baa1 | K5: BBB+ | L5: 0.95 | M5: 0.87 | N5: 0.6366 | O5: 2.9277 | P5: 3.7888 | Q5: 0.0655
A6: =Input!C4 -> APD | B6: Air Products and Chemicals, Inc. | C6: 0.074 | D6: 0.0658 | E6: 0.105 | F6: 0.1043275 | G6: 0.9 | H6: 0.7995934486 | I6: 7.08 | J6: A2 | K6: A | L6: 0.9 | M6: 0.84 | N6: 0.5858 | O6: 3.2408 | P6: 3.9912 | Q6: 0.0725
A7: =Input!C5 -> ALL | B7: Allstate Corporation (The) | C7: 0.07 | D7: 1.076 | E7: 0.3 | F7: 1.63 | G7: 1 | H7: 0.5221353173 | I7: 3.68 | J7: A3 | K7: BBB+ | L7: 1 | M7: 0.93 | N7: 0.6726 | O7: 2.8557 | P7: 3.8517 | Q7: 0.0639
A8: =Input!C6 -> GOOG | B8: Alphabet Inc. | C8: 0.177 | D8: 0.205 | E8: 0.13 | F8: 0.1742151 | G8: 0.9 | H8: 1.173546076 | I8: 0.8 | J8: Aa2 | K8: AA+ | L8: 0.9 | M8: 0.8 | N8: 0.5747 | O8: 3.1933 | P8: 3.8945 | Q8: 0.0714
A9: =Input!C7 -> MO | B9: Altria Group, Inc. | C9: 0.032 | D9: 0.0373 | E9: 0.06 | F9: 0.0394966 | G9: 0.85 | H9: 0.559874773 | I9: 3.92 | J9: A3 | K9: BBB | L9: 0.85 | M9: 0.76 | N9: 0.5978 | O9: 2.8345 | P9: 3.5291 | Q9: 0.0634
A10: =Input!C8 -> ADI | B10: Analog Devices, Inc. | C10: 0.095 | D10: -0.0141 | E10: 0.075 | F10: 0.0419731 | G10: 1 | H10: 1.155067563 | I10: 3.68 | J10: A2 | K10: A- | L10: 1 | M10: 0.93 | N10: 0.6654 | O10: 2.9113 | P10: 3.8922 | Q10: 0.0651
A11: =Input!C9 -> AAPL | B11: Apple Inc. | C11: 0.127 | D11: 0.111 | E11: 0.08 | F11: 0.1115412 | G11: 0.95 | H11: 1.137511253 | I11: 1 | J11: Aaa | K11: AA+ | L11: 0.95 | M11: 0.87 | N11: 0.6071 | O11: 3.1798 | P11: 3.9937 | Q11: 0.0711
A12: =Input!C10 -> ADM | B12: Archer Daniels-Midlan Company | C12: NA | D12: -0.042 | E12: 0.03 | F12: -0.0361528 | G12: 0.95 | H12: 0.6751753688 | I12: 2 | J12: A2 | K12: A | L12: 0.95 | M12: 0.9 | N12: 0.6011 | O12: 3.3342 | P12: 4.1641 | Q12: 0.0746
A13: =Input!C11 -> AIZ | B13: Assurant Inc. | C13: 0.063 | D13: 0.063 | E13: 0.095 | F13: 0.0628872 | G13: 0.9 | H13: 0.7801808715 | I13: 2.88 | J13: Baa2 | K13: BBB | L13: 0.9 | M13: 0.8 | N13: 0.5958 | O13: 3.0102 | P13: 3.7407 | Q13: 0.0673
A14: =Input!C12 -> AZO | B14: AutoZone Inc. | C14: 0.132 | D14: 0.1165 | E14: 0.125 | F14: 0.1483031 | G14: 0.95 | H14: 0.6867181659 | I14: NA | J14: Baa1 | K14: BBB | L14: 0.95 | M14: 0.88 | N14: 0.5941 | O14: 3.3134 | P14: 4.1112 | Q14: 0.0741
A15: =Input!C13 -> BAH | B15: Booz Allen Hamilton Corporation | C15: 0.116 | D15: 0.116 | E15: 0.085 | F15: 0.1131312 | G15: 0.85 | H15: 0.8280857801 | I15: 2.04 | J15: NA | K15: NA | L15: 0.85 | M15: 0.75 | N15: 0.5344 | O15: 3.3171 | P15: 3.9167 | Q15: 0.0742
A16: =Input!C14 -> BRC | B16: Brady Corporation | C16: 0.077 | D16: 0.077 | E16: 0.13 | F16: 0.0936086 | G16: 0.95 | H16: 0.7024881244 | I16: 0.94 | J16: NA | K16: NA | L16: 0.95 | M16: 0.89 | N16: 0.6317 | O16: 3.0413 | P16: 3.9155 | Q16: 0.068
A17: =Input!C15 -> BFB | B17: Brown-Forman Corporation 'B' | C17: NA | D17: -0.012 | E17: 0.15 | F17: -0.0125602 | G17: 0.9 | H17: 0.8686777949 | I17: 0.8712 | J17: A1 | K17: A- | L17: 0.9 | M17: 0.79 | N17: 0.6153 | O17: 2.8192 | P17: 3.5693 | Q17: 0.063
A18: =Input!C16 -> CACI | B18: CACI International | C18: 0.104 | D18: 0.067 | E18: 0.07 | F18: 0.1034604 | G18: 0.9 | H18: 0.7897487879 | I18: NA | J18: NA | K18: BB+ | L18: 0.9 | M18: 0.8 | N18: 0.5937 | O18: 3.0193 | P18: 3.7448 | Q18: 0.0675
A19: =Input!C17 -> CWST | B19: Casella Waste Systems, Inc. | C19: 0.201 | D19: 0.149 | E19: 0.045 | F19: 0.2013971 | G19: 0.85 | H19: 0.7079681158 | I19: NA | J19: NA | K19: BB | L19: 0.85 | M19: 0.74 | N19: 0.5261 | O19: 3.3204 | P19: 3.8968 | Q19: 0.0742
A20: =Input!C18 -> CASY | B20: Casey's General Stores, Inc. | C20: 0.098 | D20: 0.1095 | E20: 0.11 | F20: 0.1471667 | G20: 0.85 | H20: 0.6584035754 | I20: 2 | J20: NA | K20: NA | L20: 0.9 | M20: 0.78 | N20: 0.5637 | O20: 3.1783 | P20: 3.8404 | Q20: 0.0711
A21: =Input!C19 -> CTVA | B21: Corteva, Inc. | C21: 0.133 | D21: 0.135 | E21: 0.09 | F21: 0.12154 | G21: 0.95 | H21: 0.7852247357 | I21: 0.68 | J21: NA | K21: A- | L21: 0.95 | M21: 0.89 | N21: 0.6016 | O21: 3.3083 | P21: 4.1335 | Q21: 0.074
A22: =Input!C20 -> CSWI | B22: CSW Industrials | C22: 0.15 | D22: 0.12 | E22: 0.1 | F22: 0.15 | G22: 0.85 | H22: 0.8410357237 | I22: 0.84 | J22: NA | K22: NA | L22: 0.85 | M22: 0.77 | N22: 0.5478 | O22: 3.2789 | P22: 3.9117 | Q22: 0.0733
A23: =Input!C21 -> DHR | B23: Danaher Corporation | C23: 0.08 | D23: 0.0698 | E23: 0.065 | F23: 0.0733343 | G23: 0.9 | H23: 0.9941122532 | I23: 1.08 | J23: A3 | K23: A- | L23: 0.9 | M23: 0.81 | N23: 0.6019 | O23: 3.0031 | P23: 3.7531 | Q23: 0.0672
A24: =Input!C22 -> DLB | B24: Dolby Laboratories | C24: NA | D24: 0.16 | E24: 0.095 | F24: NA | G24: 0.95 | H24: 0.8785974383 | I24: 1.2 | J24: NA | K24: NA | L24: 0.95 | M24: 0.88 | N24: 0.6356 | O24: 2.9736 | P24: 3.8441 | Q24: 0.0665
A25: =Input!C23 -> FAST | B25: Fastenal Company | C25: 0.09 | D25: 0.0633 | E25: 0.09 | F25: NA | G25: 0.9 | H25: 0.9218179584 | I25: 1.56 | J25: NA | K25: NA | L25: 0.9 | M25: 0.78 | N25: 0.5955 | O25: 2.9421 | P25: 3.6551 | Q25: 0.0658
A26: =Input!C24 -> GATX | B26: GATX Corporation | C26: NA | D26: 0.12 | E26: 0.115 | F26: NA | G26: 0.95 | H26: 0.9301026464 | I26: 2.32 | J26: Baa2 | K26: BBB | L26: 0.95 | M26: 0.9 | N26: 0.6418 | O26: 3.0102 | P26: 3.9176 | Q26: 0.0673
A27: =Input!C25 -> IOSP | B27: Innospec Inc. | C27: NA | D27: 0.075 | E27: 0.13 | F27: 0.075 | G27: 1 | H27: 0.8875972629 | I27: 1.52 | J27: NA | K27: NR | L27: 1 | M27: 0.93 | N27: 0.6612 | O27: 2.9548 | P27: 3.9309 | Q27: 0.0661
A28: =Input!C26 -> JBHT | B28: J. B. Hunt Transport Services | C28: 0.104 | D28: 0.076 | E28: 0.075 | F28: 0.1114836 | G28: 0.95 | H28: 0.9957460165 | I28: 1.72 | J28: Baa1 | K28: BBB+ | L28: 0.95 | M28: 0.9 | N28: 0.6066 | O28: 3.2833 | P28: 4.122 | Q28: 0.0734
A29: =Input!C27 -> JKHY | B29: Jack Henry & Associates, Inc. | C29: 0.075 | D29: 0.075 | E29: 0.065 | F29: 0.082318 | G29: 0.85 | H29: 0.8471081257 | I29: 2.2 | J29: NA | K29: NA | L29: 0.85 | M29: 0.73 | N29: 0.5397 | O29: 3.1916 | P29: 3.7838 | Q29: 0.0714
A30: =Input!C28 -> JNPR | B30: Juniper Networks, Inc. | C30: 0.036 | D30: 0.11 | E30: 0.075 | F30: 0.1318638 | G30: 0.95 | H30: 0.7947871089 | I30: 0.88 | J30: Baa2 | K30: BBB | L30: 0.95 | M30: 0.91 | N30: 0.6361 | O30: 3.0796 | P30: 3.9835 | Q30: 0.0689
A31: =Input!C29 -> LHX | B31: L3Harris Technologies, Inc. | C31: 0.093 | D31: 0.0924 | E31: 0.095 | F31: 0.0916903 | G31: 0.9 | H31: 0.9033795595 | I31: 4.64 | J31: Baa2 | K31: BBB | L31: 0.9 | M31: 0.83 | N31: 0.6055 | O31: 3.0313 | P31: 3.8016 | Q31: 0.0678
A32: =Input!C30 -> LMT | B32: Lockheed Martin Corporation | C32: 0.044 | D32: 0.048 | E32: 0.095 | F32: 0.0300678 | G32: 0.85 | H32: 0.5478506684 | I32: 12.6 | J32: A2 | K32: A- | L32: 0.85 | M32: 0.74 | N32: 0.5837 | O32: 2.8607 | P32: 3.5162 | Q32: 0.064
A33: =Input!C31 -> MCK | B33: McKesson Corporation | C33: 0.136 | D33: 0.1176 | E33: 0.08 | F33: 0.1240491 | G33: 0.8 | H33: 0.4659645557 | I33: 2.48 | J33: A3 | K33: BBB+ | L33: 0.85 | M33: 0.7 | N33: 0.5402 | O33: 3.0267 | P33: 3.5897 | Q33: 0.0677
A34: =Input!C32 -> MSFT | B34: Microsoft Corporation | C34: 0.16 | D34: 0.1619 | E34: 0.14 | F34: 0.134825 | G34: 0.85 | H34: 1.08978641 | I34: 3 | J34: Aaa | K34: AAA | L34: 0.9 | M34: 0.77 | N34: 0.603 | O34: 2.8505 | P34: 3.5663 | Q34: 0.0637
A35: =Input!C33 -> MSA | B35: MSA Safety Incorporated | C35: NA | D35: 0.18 | E35: 0.085 | F35: NA | G35: 0.95 | H35: 0.9358501434 | I35: 2.04 | J35: NA | K35: NA | L35: 1 | M35: 0.92 | N35: 0.6398 | O35: 3.0981 | P35: 4.0233 | Q35: 0.0693
A36: =Input!C34 -> MSM | B36: MSC Industrial Direct Co., Inc. | C36: NA | D36: 0.0912 | E36: 0.05 | F36: NA | G36: 0.9 | H36: 0.8211763501 | I36: 3.32 | J36: NA | K36: NA | L36: 0.9 | M36: 0.83 | N36: 0.6116 | O36: 2.9811 | P36: 3.7607 | Q36: 0.0667
A37: =Input!C35 -> ORCL | B37: Oracle Corporation | C37: 0.11 | D37: 0.1061 | E37: 0.1 | F37: 0.1181683 | G37: 0.8 | H37: 1.142013907 | I37: 1.6 | J37: Baa2 | K37: BBB | L37: 0.8 | M37: 0.69 | N37: 0.5145 | O37: 3.2292 | P37: 3.7587 | Q37: 0.0722
A38: =Input!C36 -> ORLY | B38: O'Reilly Automotive, Inc. | C38: 0.128 | D38: 0.111 | E38: 0.105 | F38: 0.128022 | G38: 0.9 | H38: 0.6279187202 | I38: NA | J38: Baa1 | K38: BBB | L38: 0.9 | M38: 0.83 | N38: 0.6035 | O38: 3.0602 | P38: 3.8306 | Q38: 0.0684
A39: =Input!C37 -> OSIS | B39: OSI Systems, Inc. | C39: 0.11 | D39: 0.08 | E39: 0.105 | F39: 0.1225 | G39: 0.9 | H39: 0.998925209 | I39: NA | J39: NA | K39: NA | L39: 0.9 | M39: 0.83 | N39: 0.6157 | O39: 2.9498 | P39: 3.7364 | Q39: 0.066
A40: =Input!C38 -> PKG | B40: Packaging Corporation of America | C40: 0.044 | D40: -0.1429 | E40: 0.09 | F40: 0.0841464 | G40: 0.95 | H40: 0.8645604253 | I40: 5 | J40: Baa2 | K40: BBB | L40: 0.95 | M40: 0.85 | N40: 0.6382 | O40: 2.8727 | P40: 3.7242 | Q40: 0.0642
A41: =Input!C39 -> PFE | B41: Pfizer, Inc. | C41: 0.107 | D41: 0.1502 | E41: 0.025 | F41: 0.0899301 | G41: 0.8 | H41: 0.6042047739 | I41: 1.68 | J41: A2 | K41: A | L41: 0.8 | M41: 0.68 | N41: 0.4975 | O41: 3.2942 | P41: 3.7901 | Q41: 0.0737
A42: =Input!C40 -> PM | B42: Philip Morris International Inc. | C42: 0.078 | D42: 0.0936 | E42: 0.05 | F42: 0.0939135 | G42: 0.95 | H42: 0.7340859175 | I42: 5.2 | J42: A2 | K42: A- | L42: 0.95 | M42: 0.86 | N42: 0.6415 | O42: 2.865 | P42: 3.7276 | Q42: 0.0641
A43: =Input!C41 -> PBH | B43: Prestige Consumer Healthcare Inc. | C43: 0.08 | D43: 0.08 | E43: 0.07 | F43: 0.085 | G43: 0.85 | H43: 0.6508042812 | I43: NA | J43: NA | K43: BB | L43: 0.85 | M43: 0.76 | N43: 0.5396 | O43: 3.3107 | P43: 3.9247 | Q43: 0.074
A44: =Input!C42 -> SIGI | B44: Selective Insurance Group, Inc. | C44: 0.16 | D44: 0.1655 | E44: 0.165 | F44: 0.165633 | G44: 0.85 | H44: 0.5991579294 | I44: 1.4 | J44: Baa2 | K44: BBB | L44: 0.85 | M44: 0.74 | N44: 0.5652 | O44: 3.0074 | P44: 3.6386 | Q44: 0.0672
A45: =Input!C43 -> SXT | B45: Sensient Technologies Corporation | C45: NA | D45: 0.038 | E45: 0.025 | F45: 0.15 | G45: 0.95 | H45: 0.9290005565 | I45: 1.64 | J45: WR | K45: NR | L45: 0.95 | M45: 0.85 | N45: 0.6415 | O45: 2.8317 | P45: 3.6843 | Q45: 0.0633
A46: =Input!C44 -> SCI | B46: Service Corporation International | C46: 0.101 | D46: 0.12 | E46: 0.055 | F46: 0.1011833 | G46: 0.95 | H46: 0.7724724412 | I46: 1.2 | J46: Ba3 | K46: BB+ | L46: 0.95 | M46: 0.85 | N46: 0.5927 | O46: 3.2188 | P46: 3.9885 | Q46: 0.072
A47: =Input!C45 -> SHW | B47: Sherwin-Williams Company | C47: 0.111 | D47: 0.1132 | E47: 0.11 | F47: 0.103234 | G47: 0.95 | H47: 1.152613878 | I47: 2.86 | J47: Baa2 | K47: BBB | L47: 0.95 | M47: 0.89 | N47: 0.6502 | O47: 2.9082 | P47: 3.8205 | Q47: 0.065
A48: =Input!C46 -> AOS | B48: Smith (A.O.) Corporation | C48: 0.09 | D48: 0.1 | E48: 0.09 | F48: 0.1 | G48: 0.9 | H48: 1.033479333 | I48: 1.28 | J48: NA | K48: NA | L48: 0.9 | M48: 0.78 | N48: 0.5843 | O48: 3.0334 | P48: 3.7307 | Q48: 0.0678
A49: =Input!C47 -> TXN | B49: Texas Instruments Incorporated | C49: 0.09 | D49: -0.028 | E49: 0.03 | F49: 0.0363437 | G49: 0.85 | H49: 1.100414753 | I49: 5.2 | J49: Aa3 | K49: A+ | L49: 0.85 | M49: 0.76 | N49: 0.5984 | O49: 2.8501 | P49: 3.5502 | Q49: 0.0637
A50: =Input!C48 -> TMO | B50: Thermo Fisher Scientific Inc. | C50: 0.099 | D50: 0.0677 | E50: 0.06 | F50: 0.0932144 | G50: 0.85 | H50: 0.9714167714 | I50: 1.56 | J50: A3 | K50: A- | L50: 0.85 | M50: 0.76 | N50: 0.5997 | O50: 2.8431 | P50: 3.5461 | Q50: 0.0636
A51: =Input!C49 -> UNF | B51: UniFirst Corporation | C51: NA | D51: 0.078 | E51: 0.095 | F51: NA | G51: 0.9 | H51: 0.785345912 | I51: 1.32 | J51: NA | K51: NA | L51: 0.9 | M51: 0.8 | N51: 0.6063 | O51: 2.92 | P51: 3.6647 | Q51: 0.0653
A52: =Input!C50 -> UNH | B52: UnitedHealth Group Incorporated | C52: 0.13 | D52: 0.1238 | E52: 0.12 | F52: 0.1084438 | G52: 0.95 | H52: 0.3351097405 | I52: 8.4 | J52: A2 | K52: A+ | L52: 0.95 | M52: 0.9 | N52: 0.6347 | O52: 3.0706 | P52: 3.9659 | Q52: 0.0687
A53: =Input!C51 -> VRSN | B53: VeriSign Inc. | C53: NA | D53: 0.08 | E53: 0.12 | F53: NA | G53: 0.9 | H53: 0.9674180746 | I53: NA | J53: Baa3 | K53: BBB | L53: 0.9 | M53: 0.78 | N53: 0.5963 | O53: 2.9246 | P53: 3.636 | Q53: 0.0654
A54: =Input!C52 -> VRSK | B54: Verisk Analytics, Inc. | C54: 0.123 | D54: 0.1258 | E54: 0.085 | F54: 0.1202403 | G54: 0.9 | H54: 0.9424043298 | I54: =0.39*4 -> 1.56 | J54: Baa2 | K54: BBB | L54: 0.9 | M54: 0.78 | N54: 0.6088 | O54: 2.8196 | P54: 3.5474 | Q54: 0.063
A55: =Input!C53 -> WAT | B55: Waters Corporation | C55: 0.053 | D55: 0.0554 | E55: 0.065 | F55: 0.057597 | G55: 0.95 | H55: 1.133283615 | I55: NA | J55: NA | K55: NA | L55: 0.95 | M55: 0.88 | N55: 0.607 | O55: 3.1969 | P55: 4.0149 | Q55: 0.0715
A56: =Input!C54 -> WSO | B56: Watsco, Inc. | C56: NA | D56: 0.0442 | E56: 0.09 | F56: NA | G56: 0.9 | H56: 1.253461242 | I56: 10.8 | J56: NA | K56: NA | L56: 0.9 | M56: 0.78 | N56: 0.5601 | O56: 3.2257 | P56: 3.8861 | Q56: 0.0721

Sheet CEM Price Data
A1: Lookup Reference | B1: Tickers | C1: ABT | D1: A | E1: APD | F1: ALL | G1: GOOG | H1: MO | I1: ADI | J1: AAPL | K1: ADM | L1: AIZ | M1: AZO | N1: BAH | O1: BRC | P1: BFB | Q1: CACI | R1: CWST | S1: CASY | T1: CTVA | U1: CSWI | V1: DHR | W1: DLB | X1: FAST | Y1: GATX | Z1: JKHY | AA1: JBHT | AB1: IOSP | AC1: JNPR | AD1: LHX | AE1: LMT | AF1: MCK | AG1: MSFT | AH1: MSA | AI1: MSM | AJ1: ORCL | AK1: ORLY | AL1: OSIS | AM1: PKG | AN1: PFE | AO1: PM | AP1: PBH | AQ1: SIGI | AR1: SXT | AS1: SCI | AT1: SHW | AU1: AOS | AV1: TXN | AW1: TMO | AX1: UNF | AY1: UNH | AZ1: VRSN | BA1: VRSK | BB1: WAT | BC1: WSO
B2: PX_LAST | C2: =C1&" US Equity" -> ABT US Equity | D2: =D1&" US Equity" -> A US Equity | E2: APD US Equity | F2: ALL US Equity | G2: GOOG US Equity | H2: MO US Equity | I2: ADI US Equity | J2: AAPL US Equity | K2: ADM US Equity | L2: AIZ US Equity | M2: AZO US Equity | N2: BAH US Equity | O2: BRC US Equity | P2: BF/B US Equity | Q2: CACI US Equity | R2: CWST US Equity | S2: CASY US Equity | T2: CTVA US Equity | U2: CSWI US Equity | V2: DHR US Equity | W2: DLB US Equity | X2: FAST US Equity | Y2: GATX US Equity | Z2: JKHY US Equity | AA2: JBHT US Equity | AB2: IOSP US Equity | AC2: JNPR US Equity | AD2: LHX US Equity | AE2: LMT US Equity | AF2: MCK US Equity | AG2: MSFT US Equity | AH2: MSA US Equity | AI2: MSM US Equity | AJ2: ORCL US Equity | AK2: ORLY US Equity | AL2: OSIS US Equity | AM2: PKG US Equity | AN2: PFE US Equity | AO2: PM US Equity | AP2: PBH US Equity | AQ2: SIGI US Equity | AR2: SXT US Equity | AS2: SCI US Equity | AT2: SHW US Equity | AU2: AOS US Equity | AV2: TXN US Equity | AW2: TMO US Equity | AX2: UNF US Equity | AY2: UNH US Equity | AZ2: VRSN US Equity | BA2: VRSK US Equity | BB2: WAT US Equity | BC2: WSO US Equity
A3: 1 | B3: 2024-07-31 | C3: 105.94 | D3: 141.4 | E3: 263.85 | F3: 171.12 | G3: 173.15 | H3: 49.01 | I3: 231.38 | J3: 222.08 | K3: 62.01 | L3: 174.87 | M3: 3133.69 | N3: 143.31 | O3: 71.61 | P3: 45.16 | Q3: 461.48 | R3: 103.56 | S3: 387.84 | T3: 56.1 | U3: 324.42 | V3: 277.08 | W3: 78.76 | X3: 70.75 | Y3: 139.5 | Z3: 171.48 | AA3: 173.15 | AB3: 131.14 | AC3: 37.69 | AD3: 226.89 | AE3: 541.92 | AF3: 617.02 | AG3: 418.35 | AH3: 188.65 | AI3: 88.95 | AJ3: 139.45 | AK3: 1126.34 | AL3: 147.98 | AM3: 199.87 | AN3: 30.54 | AO3: 115.16 | AP3: 70.81 | AQ3: 90.32 | AR3: 78.05 | AS3: 79.91 | AT3: 350.8 | AU3: 85.04 | AV3: 203.81 | AW3: 613.34 | AX3: 194.54 | AY3: 576.16 | AZ3: 187.01 | BA3: 261.75 | BB3: 336.28 | BC3: 489.49
A4: =A3+1 -> 2 | B4: 2024-07-30 | C4: 105.32 | D4: 139.49 | E4: 264.23 | F4: 173.59 | G4: 171.86 | H4: 50.55 | I4: 224.58 | J4: 218.8 | K4: 62.5 | L4: 175.84 | M4: 3108.4 | N4: 138.82 | O4: 71.77 | P4: 44.46 | Q4: 452.63 | R4: 102.64 | S4: 387.54 | T4: 55.53 | U4: 299.65 | V4: 275.19 | W4: 78.48 | X4: 70.89 | Y4: 138.51 | Z4: 172.41 | AA4: 172.16 | AB4: 131.24 | AC4: 37.96 | AD4: 227.74 | AE4: 537.66 | AF4: 609.72 | AG4: 422.92 | AH4: 187.46 | AI4: 89.13 | AJ4: 135.67 | AK4: 1140.9 | AL4: 147.76 | AM4: 197.74 | AN4: 31.39 | AO4: 114.7 | AP4: 70.5 | AQ4: 91.07 | AR4: 77.7 | AS4: 80.01 | AT4: 351.84 | AU4: 85.45 | AV4: 200.99 | AW4: 615.06 | AX4: 194.32 | AY4: 576.33 | AZ4: 186.96 | BA4: 285.99 | BB4: 327.66 | BC4: 481.14
A5: =A4+1 -> 3 | B5: 2024-07-29 | C5: 104.77 | D5: 137.38 | E5: 265.74 | F5: 169.23 | G5: 171.13 | H5: 50.53 | I5: 227.4 | J5: 218.24 | K5: 63.3 | L5: 172.65 | M5: 3072.66 | N5: 144.49 | O5: 71.95 | P5: 45.24 | Q5: 451.62 | R5: 102.4 | S5: 388.02 | T5: 55.46 | U5: 299.74 | V5: 271.65 | W5: 78.68 | X5: 70.79 | Y5: 136.92 | Z5: 170.17 | AA5: 170.52 | AB5: 129.4 | AC5: 37.64 | AD5: 224.78 | AE5: 527.64 | AF5: 606.71 | AG5: 426.73 | AH5: 188.5 | AI5: 88.16 | AJ5: 138.31 | AK5: 1118.19 | AL5: 148.87 | AM5: 198.4 | AN5: 30.72 | AO5: 114.4 | AP5: 70.43 | AQ5: 88.95 | AR5: 78.3 | AS5: 78.2 | AT5: 352.55 | AU5: 84.5 | AV5: 201.88 | AW5: 604.12 | AX5: 192.47 | AY5: 566.75 | AZ5: 186.65 | BA5: 283.78 | BB5: 321.54 | BC5: 503.67
A6: 4 | B6: 2024-07-26 | C6: 105.24 | D6: 137.32 | E6: 260.98 | F6: 169.17 | G6: 168.68 | H6: 50.43 | I6: 226.43 | J6: 217.96 | K6: 63.98 | L6: 173.05 | M6: 3090.31 | N6: 139.84 | O6: 71.51 | P6: 45.77 | Q6: 449.03 | R6: 101.92 | S6: 391.16 | T6: 55.39 | U6: 300.87 | V6: 273.91 | W6: 78.37 | X6: 70.37 | Y6: 139.92 | Z6: 170.33 | AA6: 171.54 | AB6: 130.22 | AC6: 37.25 | AD6: 229.41 | AE6: 524.8 | AF6: 600.16 | AG6: 425.27 | AH6: 189.58 | AI6: 87.63 | AJ6: 139.01 | AK6: 1110.31 | AL6: 150.33 | AM6: 199 | AN6: 30.77 | AO6: 113.36 | AP6: 70.68 | AQ6: 91.12 | AR6: 76.64 | AS6: 77.4 | AT6: 349.22 | AU6: 84.5 | AV6: 201.99 | AW6: 607.14 | AX6: 191.25 | AY6: 569.72 | AZ6: 184.1 | BA6: 279.97 | BB6: 317.96 | BC6: 510.55
A7: 5 | B7: 2024-07-25 | C7: 105.96 | D7: 134.98 | E7: 258.64 | F7: 165.4 | G7: 169.16 | H7: 49.8 | I7: 220.92 | J7: 217.49 | K7: 63.32 | L7: 169.59 | M7: 3030.97 | N7: 153.58 | O7: 71.81 | P7: 45.07 | Q7: 453.58 | R7: 101.77 | S7: 372.78 | T7: 55.28 | U7: 291.71 | V7: 270.09 | W7: 77.8 | X7: 69.06 | Y7: 135.96 | Z7: 167.48 | AA7: 170.78 | AB7: 128.1 | AC7: 37.49 | AD7: 243.27 | AE7: 521.4 | AF7: 595.73 | AG7: 418.4 | AH7: 191.78 | AI7: 85.66 | AJ7: 137.82 | AK7: 1092.91 | AL7: 147.42 | AM7: 194.24 | AN7: 30.18 | AO7: 113.2 | AP7: 70.4 | AQ7: 88.85 | AR7: 80.58 | AS7: 75.01 | AT7: 342.74 | AU7: 82.18 | AV7: 197.15 | AW7: 594.5 | AX7: 192.28 | AY7: 559.68 | AZ7: 176.74 | BA7: 275.9 | BB7: 310.29 | BC7: 490.64
A8: 6 | B8: 2024-07-24 | C8: 107.26 | D8: 134.16 | E8: 260.2 | F8: 172.34 | G8: 174.37 | H8: 49.42 | I8: 224.62 | J8: 218.54 | K8: 62.65 | L8: 169.88 | M8: 2941.73 | N8: 154.09 | O8: 70.87 | P8: 43.72 | Q8: 447.51 | R8: 105.47 | S8: 374.13 | T8: 53.82 | U8: 289.46 | V8: 265.76 | W8: 77.74 | X8: 67.31 | Y8: 134.75 | Z8: 167.93 | AA8: 163.8 | AB8: 128.08 | AC8: 36.77 | AD8: 237.15 | AE8: 515.2 | AF8: 589.99 | AG8: 428.9 | AH8: 192.02 | AI8: 81.93 | AJ8: 138.77 | AK8: 1050.71 | AL8: 147.25 | AM8: 193.28 | AN8: 29.98 | AO8: 111.44 | AP8: 70.38 | AQ8: 87.66 | AR8: 80.87 | AS8: 74.53 | AT8: 332.02 | AU8: 80.76 | AV8: 198.28 | AW8: 574.73 | AX8: 185.83 | AY8: 559.75 | AZ8: 174.97 | BA8: 276.55 | BB8: 305.31 | BC8: 480.44
A9: 7 | B9: 2024-07-23 | C9: 103.92 | D9: 130.65 | E9: 256 | F9: 173.6 | G9: 183.6 | H9: 49.12 | I9: 230.32 | J9: 225.01 | K9: 62.22 | L9: 172.45 | M9: 2921.53 | N9: 160.29 | O9: 70.93 | P9: 43.5 | Q9: 459.32 | R9: 105.73 | S9: 376.69 | T9: 54.39 | U9: 298.81 | V9: 264.18 | W9: 78.58 | X9: 67.9 | Y9: 134.23 | Z9: 167.07 | AA9: 165.13 | AB9: 131.4 | AC9: 37.18 | AD9: 240.02 | AE9: 501.29 | AF9: 585.74 | AG9: 444.85 | AH9: 195.13 | AI9: 83.37 | AJ9: 143.11 | AK9: 1049.01 | AL9: 149.9 | AM9: 192.82 | AN9: 29.5 | AO9: 109.56 | AP9: 70.91 | AQ9: 86.36 | AR9: 81.68 | AS9: 75.01 | AT9: 344.5 | AU9: 80.47 | AV9: 198.29 | AW9: 552.24 | AX9: 189.14 | AY9: 554.7 | AZ9: 176.26 | BA9: 278.12 | BB9: 300.83 | BC9: 504.1
A10: 8 | B10: 2024-07-22 | C10: 103.72 | D10: 133.42 | E10: 248.55 | F10: 174.83 | G10: 183.35 | H10: 49.4 | I10: 240.04 | J10: 223.96 | K10: 64.15 | L10: 169.41 | M10: 2957.73 | N10: 158.17 | O10: 71.12 | P10: 43.52 | Q10: 452.24 | R10: 107.72 | S10: 378.96 | T10: 54.77 | U10: 293.5 | V10: 250.89 | W10: 80.33 | X10: 68.28 | Y10: 145.35 | Z10: 168.94 | AA10: 164.71 | AB10: 128.4 | AC10: 37.25 | AD10: 238.14 | AE10: 474.59 | AF10: 583 | AG10: 442.94 | AH10: 194.99 | AI10: 84.23 | AJ10: 140.17 | AK10: 1057.1 | AL10: 148.57 | AM10: 193.44 | AN10: 29.6 | AO10: 107.22 | AP10: 71.69 | AQ10: 83.49 | AR10: 80.79 | AS10: 75.21 | AT10: 322.35 | AU10: 88.81 | AV10: 205.88 | AW10: 546.42 | AX10: 187.39 | AY10: 558.53 | AZ10: 177.46 | BA10: 278.61 | BB10: 307.22 | BC10: 499.89
A11: 9 | B11: 2024-07-19 | C11: 102.03 | D11: 131.78 | E11: 262.91 | F11: 174.38 | G11: 179.39 | H11: 49.45 | I11: 231.22 | J11: 224.31 | K11: 64.19 | L11: 169.79 | M11: 2950.4 | N11: 156.06 | O11: 69.77 | P11: 43.48 | Q11: 445.5 | R11: 106.19 | S11: 376.65 | T11: 54.78 | U11: 284.34 | V11: 243.54 | W11: 78.9 | X11: 67.89 | Y11: 143.26 | Z11: 166.1 | AA11: 164.18 | AB11: 126.38 | AC11: 37.29 | AD11: 234.77 | AE11: 474.92 | AF11: 580.13 | AG11: 437.11 | AH11: 190.34 | AI11: 82.94 | AJ11: 138.56 | AK11: 1042.86 | AL11: 145.32 | AM11: 191.21 | AN11: 29.97 | AO11: 107.12 | AP11: 71.24 | AQ11: 82.08 | AR11: 79.25 | AS11: 74.38 | AT11: 321.85 | AU11: 87.99 | AV11: 199.1 | AW11: 534.35 | AX11: 185.3 | AY11: 565.33 | AZ11: 177.18 | BA11: 276.83 | BB11: 302.72 | BC11: 494.38
A12: 10 | B12: 2024-07-18 | C12: 100.07 | D12: 131.97 | E12: 266.59 | F12: 176.69 | G12: 179.22 | H12: 49.33 | I12: 238.99 | J12: 224.18 | K12: 64.79 | L12: 172.32 | M12: 2926.35 | N12: 156.7 | O12: 69.56 | P12: 43.74 | Q12: 446.37 | R12: 106.38 | S12: 376.42 | T12: 55.2 | U12: 287.51 | V12: 244.79 | W12: 80.8 | X12: 68.83 | Y12: 144.6 | Z12: 168.05 | AA12: 160.81 | AB12: 128.82 | AC12: 37.32 | AD12: 237.76 | AE12: 476 | AF12: 578.43 | AG12: 440.37 | AH12: 190.81 | AI12: 84.14 | AJ12: 138.03 | AK12: 1028.09 | AL12: 146.8 | AM12: 192.56 | AN12: 29.71 | AO12: 107.46 | AP12: 71.57 | AQ12: 100.32 | AR12: 79.9 | AS12: 74.56 | AT12: 325.46 | AU12: 89.02 | AV12: 205.87 | AW12: 540.62 | AX12: 181.19 | AY12: 564.34 | AZ12: 177.63 | BA12: 280.92 | BB12: 308.98 | BC12: 494.87
A13: 11 | B13: 2024-07-17 | C13: 104.68 | D13: 133.5 | E13: 270.47 | F13: 170.7 | G13: 182.62 | H13: 49.39 | I13: 235.61 | J13: 228.88 | K13: 65.72 | L13: 171.9 | M13: 2984.11 | N13: 156.26 | O13: 69.86 | P13: 44.63 | Q13: 446.53 | R13: 106.76 | S13: 379.11 | T13: 55.54 | U13: 292.28 | V13: 251.25 | W13: 81.27 | X13: 69.99 | Y13: 148.17 | Z13: 169.74 | AA13: 163.9 | AB13: 129.63 | AC13: 37.2 | AD13: 238.25 | AE13: 476.07 | AF13: 582.06 | AG13: 443.52 | AH13: 194.92 | AI13: 85.02 | AJ13: 139.26 | AK13: 1043.63 | AL13: 149.19 | AM13: 191.56 | AN13: 30.03 | AO13: 108.31 | AP13: 71.81 | AQ13: 101.2 | AR13: 80.24 | AS13: 75.08 | AT13: 325.8 | AU13: 90.14 | AV13: 204.26 | AW13: 555.06 | AX13: 184.88 | AY13: 573.28 | AZ13: 179.34 | BA13: 279.16 | BB13: 314.38 | BC13: 502.47
A14: 12 | B14: 2024-07-16 | C14: 102.72 | D14: 136.06 | E14: 267.53 | F14: 167.81 | G14: 185.5 | H14: 48.03 | I14: 243.33 | J14: 234.82 | K14: 64.56 | L14: 170.24 | M14: 2985.33 | N14: 158.19 | O14: 69.05 | P14: 43.76 | Q14: 443.15 | R14: 105.38 | S14: 383.3 | T14: 54.2 | U14: 301.28 | V14: 252.14 | W14: 80.44 | X14: 69.03 | Y14: 150.26 | Z14: 169.74 | AA14: 176 | AB14: 130.25 | AC14: 37.28 | AD14: 240.42 | AE14: 468.58 | AF14: 583.95 | AG14: 449.52 | AH14: 199.9 | AI14: 84.26 | AJ14: 142.61 | AK14: 1043.52 | AL14: 150.57 | AM14: 190.98 | AN14: 29.5 | AO14: 106.1 | AP14: 71.8 | AQ14: 100.23 | AR14: 80.57 | AS14: 74.91 | AT14: 326.4 | AU14: 91.98 | AV14: 206.62 | AW14: 555.42 | AX14: 182.53 | AY14: 548.87 | AZ14: 179.8 | BA14: 281.14 | BB14: 316.73 | BC14: 519.89
A15: 13 | B15: 2024-07-15 | C15: 102.96 | D15: 131.01 | E15: 259.84 | F15: 166.91 | G15: 188.19 | H15: 47.72 | I15: 237.72 | J15: 234.4 | K15: 63.4 | L15: 171.11 | M15: 2941.46 | N15: 157.22 | O15: 66.79 | P15: 43.92 | Q15: 439.83 | R15: 105.26 | S15: 379.79 | T15: 52.9 | U15: 288.1 | V15: 246.23 | W15: 79.62 | X15: 67.83 | Y15: 146.3 | Z15: 167.37 | AA15: 169.62 | AB15: 125.51 | AC15: 37.16 | AD15: 234.54 | AE15: 463.88 | AF15: 578.26 | AG15: 453.96 | AH15: 193.39 | AI15: 80.84 | AJ15: 143.07 | AK15: 1042.41 | AL15: 145.95 | AM15: 185.76 | AN15: 29.1 | AO15: 105.07 | AP15: 70.65 | AQ15: 98.07 | AR15: 79.31 | AS15: 72.32 | AT15: 318.47 | AU15: 87.8 | AV15: 201.76 | AW15: 544.68 | AX15: 174.11 | AY15: 515.37 | AZ15: 176.9 | BA15: 277.5 | BB15: 302.93 | BC15: 501.5
A16: 14 | B16: 2024-07-12 | C16: 104.22 | D16: 132.23 | E16: 261.31 | F16: 163.69 | G16: 186.78 | H16: 47.73 | I16: 238.56 | J16: 230.54 | K16: 64.28 | L16: 168.15 | M16: 2920.83 | N16: 158.16 | O16: 65.61 | P16: 44.17 | Q16: 439.23 | R16: 102.99 | S16: 376.44 | T16: 53.1 | U16: 278.74 | V16: 246.7 | W16: 79.81 | X16: 65.44 | Y16: 144.04 | Z16: 166.28 | AA16: 166.16 | AB16: 124.71 | AC16: 37.13 | AD16: 231.04 | AE16: 463.73 | AF16: 576.66 | AG16: 453.55 | AH16: 193.06 | AI16: 79.32 | AJ16: 144.77 | AK16: 1040.11 | AL16: 143.35 | AM16: 185.44 | AN16: 28.92 | AO16: 105.95 | AP16: 70.34 | AQ16: 96.34 | AR16: 78.33 | AS16: 71.77 | AT16: 318.37 | AU16: 87.83 | AV16: 201.87 | AW16: 548.09 | AX16: 171.08 | AY16: 511.53 | AZ16: 177.76 | BA16: 277.38 | BB16: 302.4 | BC16: 492.6
A17: 15 | B17: 2024-07-11 | C17: 104.18 | D17: 130.82 | E17: 258 | F17: 162.04 | G17: 187.3 | H17: 47.08 | I17: 233.74 | J17: 227.57 | K17: 64.25 | L17: 166.54 | M17: 2881.9 | N17: 156.98 | O17: 64.91 | P17: 43.43 | Q17: 434.11 | R17: 101.65 | S17: 376.04 | T17: 52.27 | U17: 278.09 | V17: 246.27 | W17: 79.62 | X17: 64.17 | Y17: 142.53 | Z17: 164.14 | AA17: 163.31 | AB17: 124.09 | AC17: 37.16 | AD17: 230.34 | AE17: 460.38 | AF17: 575.23 | AG17: 454.7 | AH17: 191.77 | AI17: 78.05 | AJ17: 142.76 | AK17: 1032.99 | AL17: 142.36 | AM17: 182.77 | AN17: 28.66 | AO17: 105 | AP17: 70.21 | AQ17: 94.89 | AR17: 77.81 | AS17: 71.54 | AT17: 313.97 | AU17: 86.08 | AV17: 199.99 | AW17: 542.69 | AX17: 170.62 | AY17: 504.36 | AZ17: 174.85 | BA17: 275.09 | BB17: 301.48 | BC17: 489.65
A18: 16 | B18: 2024-07-10 | C18: 103.05 | D18: 127.07 | E18: 255.66 | F18: 159.97 | G18: 192.66 | H18: 46.93 | I18: 238.33 | J18: 232.98 | K18: 64.23 | L18: 164.8 | M18: 2856.35 | N18: 155.65 | O18: 64.54 | P18: 42.66 | Q18: 429.04 | R18: 101.64 | S18: 363.56 | T18: 51.02 | U18: 273.95 | V18: 242.2 | W18: 79.01 | X18: 63.51 | Y18: 136.34 | Z18: 160.87 | AA18: 159.78 | AB18: 120.58 | AC18: 36.94 | AD18: 227.27 | AE18: 461.01 | AF18: 586.82 | AG18: 466.25 | AH18: 187.46 | AI18: 76.04 | AJ18: 142.07 | AK18: 1028.19 | AL18: 139.12 | AM18: 179.67 | AN18: 28.35 | AO18: 102.76 | AP18: 68.22 | AQ18: 93.14 | AR18: 75.54 | AS18: 69.75 | AT18: 305.37 | AU18: 82.99 | AV18: 203.62 | AW18: 536.87 | AX18: 166.2 | AY18: 500.93 | AZ18: 174.62 | BA18: 277.52 | BB18: 288.31 | BC18: 485.9
A19: 17 | B19: 2024-07-09 | C19: 101.64 | D19: 125.42 | E19: 254.7 | F19: 158.72 | G19: 190.44 | H19: 46.7 | I19: 232.01 | J19: 228.68 | K19: 63.13 | L19: 161.61 | M19: 2817.06 | N19: 154.39 | O19: 65.1 | P19: 41.5 | Q19: 425.08 | R19: 100.29 | S19: 360.62 | T19: 50.72 | U19: 270.91 | V19: 239.79 | W19: 78.88 | X19: 62.56 | Y19: 135.46 | Z19: 162.88 | AA19: 155.54 | AB19: 120 | AC19: 36.92 | AD19: 225.96 | AE19: 460.3 | AF19: 586.81 | AG19: 459.54 | AH19: 185.87 | AI19: 75.8 | AJ19: 140.68 | AK19: 1015.62 | AL19: 135.6 | AM19: 176.32 | AN19: 27.72 | AO19: 101.67 | AP19: 68.25 | AQ19: 91.41 | AR19: 73.93 | AS19: 69.55 | AT19: 298.91 | AU19: 80.73 | AV19: 200.16 | AW19: 531.86 | AX19: 164.34 | AY19: 492.11 | AZ19: 174.18 | BA19: 275.38 | BB19: 282.97 | BC19: 476.9
A20: 18 | B20: 2024-07-08 | C20: 102.12 | D20: 126.07 | E20: 254.9 | F20: 159.54 | G20: 190.48 | H20: 46.02 | I20: 233.34 | J20: 227.82 | K20: 63.38 | L20: 161.4 | M20: 2836.4 | N20: 153.7 | O20: 66.01 | P20: 42.06 | Q20: 427.31 | R20: 100.06 | S20: 367.57 | T20: 51.72 | U20: 272.98 | V20: 240.65 | W20: 79.54 | X20: 62.83 | Y20: 135.68 | Z20: 164.34 | AA20: 158.04 | AB20: 122.63 | AC20: 36.93 | AD20: 226 | AE20: 461.76 | AF20: 589.53 | AG20: 466.24 | AH20: 185.5 | AI20: 77.29 | AJ20: 145.03 | AK20: 1022.79 | AL20: 137.94 | AM20: 179.55 | AN20: 27.93 | AO20: 102.59 | AP20: 68.23 | AQ20: 91.49 | AR20: 74.36 | AS20: 69.88 | AT20: 300.25 | AU20: 81.06 | AV20: 201.47 | AW20: 536.29 | AX20: 169.15 | AY20: 489.34 | AZ20: 175.84 | BA20: 273.2 | BB20: 285.57 | BC20: 481.82
A21: 19 | B21: 2024-07-05 | C21: 104.02 | D21: 126.37 | E21: 252.67 | F21: 158.43 | G21: 191.96 | H21: 46.1 | I21: 230.89 | J21: 226.34 | K21: 61.36 | L21: 161.28 | M21: 2815 | N21: 152.79 | O21: 65.14 | P21: 42.39 | Q21: 422.97 | R21: 97.93 | S21: 369.36 | T21: 52.44 | U21: 271.93 | V21: 239.25 | W21: 79.83 | X21: 63.16 | Y21: 133.44 | Z21: 163.06 | AA21: 158.29 | AB21: 120.89 | AC21: 36.72 | AD21: 224.07 | AE21: 462.16 | AF21: 587.76 | AG21: 467.56 | AH21: 184.23 | AI21: 77.37 | AJ21: 144.83 | AK21: 1026.82 | AL21: 137.62 | AM21: 177.57 | AN21: 28.05 | AO21: 102.12 | AP21: 68.32 | AQ21: 91.58 | AR21: 74.03 | AS21: 69.71 | AT21: 295.7 | AU21: 80.48 | AV21: 198.79 | AW21: 540.1 | AX21: 167.58 | AY21: 488.01 | AZ21: 176.8 | BA21: 274.45 | BB21: 286.21 | BC21: 481.34
A22: 20 | B22: 2024-07-03 | C22: 102.33 | D22: 126.13 | E22: 253 | F22: 159.44 | G22: 187.39 | H22: 45.95 | I22: 230.02 | J22: 221.55 | K22: 62.69 | L22: 163.93 | M22: 2844.88 | N22: 154.51 | O22: 65.3 | P22: 41.85 | Q22: 426.95 | R22: 97.99 | S22: 370.26 | T22: 52.48 | U22: 268.69 | V22: 240 | W22: 80 | X22: 62.69 | Y22: 132.66 | Z22: 163.65 | AA22: 158.71 | AB22: 122.68 | AC22: 36.35 | AD22: 224.58 | AE22: 466.03 | AF22: 583.35 | AG22: 460.77 | AH22: 185 | AI22: 78.51 | AJ22: 144.38 | AK22: 1020.54 | AL22: 137.19 | AM22: 179.58 | AN22: 27.7 | AO22: 101.42 | AP22: 67.32 | AQ22: 91.81 | AR22: 73.93 | AS22: 70.08 | AT22: 297.22 | AU22: 81.04 | AV22: 198.94 | AW22: 535.61 | AX22: 168.83 | AY22: 489.89 | AZ22: 175.45 | BA22: 273.28 | BB22: 287.5 | BC22: 480.56
A23: 21 | B23: 2024-07-02 | C23: 103.2 | D23: 125.78 | E23: 251 | F23: 160.18 | G23: 186.61 | H23: 46.05 | I23: 228.24 | J23: 220.27 | K23: 62.13 | L23: 165.85 | M23: 2870 | N23: 152.78 | O23: 64.84 | P23: 42.48 | Q23: 428.27 | R23: 96.86 | S23: 373.9 | T23: 52.77 | U23: 267.36 | V23: 240.41 | W23: 80.35 | X23: 62.76 | Y23: 132.72 | Z23: 163.76 | AA23: 159.42 | AB23: 122.42 | AC23: 36.57 | AD23: 223.6 | AE23: 465.7 | AF23: 584.83 | AG23: 459.28 | AH23: 184.69 | AI23: 80.02 | AJ23: 143.28 | AK23: 1037.06 | AL23: 137.16 | AM23: 177.51 | AN23: 27.83 | AO23: 101.64 | AP23: 68.28 | AQ23: 93.49 | AR23: 73.43 | AS23: 70.4 | AT23: 294.65 | AU23: 80.89 | AV23: 198.42 | AW23: 533.93 | AX23: 171.09 | AY23: 498.24 | AZ23: 175.98 | BA23: 272.36 | BB23: 284.49 | BC23: 475.9
A24: 22 | B24: 2024-07-01 | C24: 103.2 | D24: 127.4 | E24: 247.34 | F24: 160.54 | G24: 184.49 | H24: 46.03 | I24: 225.18 | J24: 216.75 | K24: 60.64 | L24: 166.89 | M24: 2832.79 | N24: 151 | O24: 65.16 | P24: 42.11 | Q24: 427.76 | R24: 96.59 | S24: 377.19 | T24: 53.07 | U24: 263.55 | V24: 244.51 | W24: 80.24 | X24: 62.09 | Y24: 130.67 | Z24: 163.49 | AA24: 158.68 | AB24: 121.43 | AC24: 36.75 | AD24: 221.96 | AE24: 466.44 | AF24: 586.34 | AG24: 456.73 | AH24: 185.11 | AI24: 78.23 | AJ24: 143.09 | AK24: 1016.32 | AL24: 136.88 | AM24: 180.06 | AN24: 28.22 | AO24: 101.25 | AP24: 67.75 | AQ24: 94.32 | AR24: 73.66 | AS24: 70.37 | AT24: 295.79 | AU24: 80.18 | AV24: 194.6 | AW24: 541.72 | AX24: 171.67 | AY24: 494.65 | AZ24: 175.71 | BA24: 268.11 | BB24: 282.7 | BC24: 461.95
A25: 23 | B25: 2024-06-28 | C25: 103.91 | D25: 129.63 | E25: 258.05 | F25: 159.66 | G25: 183.42 | H25: 45.55 | I25: 228.26 | J25: 210.62 | K25: 60.45 | L25: 166.25 | M25: 2964.1 | N25: 153.9 | O25: 66.02 | P25: 43.19 | Q25: 430.13 | R25: 99.22 | S25: 381.56 | T25: 53.94 | U25: 265.31 | V25: 249.85 | W25: 79.23 | X25: 62.84 | Y25: 132.36 | Z25: 166.02 | AA25: 160 | AB25: 123.59 | AC25: 36.46 | AD25: 224.58 | AE25: 467.1 | AF25: 584.04 | AG25: 446.95 | AH25: 187.69 | AI25: 79.31 | AJ25: 141.2 | AK25: 1056.06 | AL25: 137.52 | AM25: 182.56 | AN25: 27.98 | AO25: 101.33 | AP25: 68.85 | AQ25: 93.83 | AR25: 74.19 | AS25: 71.13 | AT25: 298.43 | AU25: 81.78 | AV25: 194.53 | AW25: 553 | AX25: 171.53 | AY25: 509.26 | AZ25: 177.8 | BA25: 269.55 | BB25: 290.12 | BC25: 463.24
A26: 24 | B26: 2024-06-27 | C26: 104.65 | D26: 130.8 | E26: 263.07 | F26: 160.01 | G26: 186.86 | H26: 45.46 | I26: 226.68 | J26: 214.1 | K26: 60.61 | L26: 167.26 | M26: 2955.4 | N26: 156.25 | O26: 65.5 | P26: 43.36 | Q26: 434.56 | R26: 99.79 | S26: 382.87 | T26: 53.65 | U26: 264.46 | V26: 251.76 | W26: 79.26 | X26: 63.33 | Y26: 131.71 | Z26: 166.72 | AA26: 157.12 | AB26: 122.89 | AC26: 36.01 | AD26: 223.18 | AE26: 467.13 | AF26: 593.2 | AG26: 452.85 | AH26: 187.74 | AI26: 78.01 | AJ26: 140.18 | AK26: 1057.42 | AL26: 140.17 | AM26: 183.19 | AN26: 27.8 | AO26: 101.57 | AP26: 69.62 | AQ26: 92.76 | AR26: 74.27 | AS26: 71.75 | AT26: 297 | AU26: 82.02 | AV26: 193.43 | AW26: 550.78 | AX26: 171.42 | AY26: 486.44 | AZ26: 178.23 | BA26: 270.85 | BB26: 286.47 | BC26: 461.81
A27: 25 | B27: 2024-06-26 | C27: 104.88 | D27: 133.09 | E27: 263.7 | F27: 158.36 | G27: 185.37 | H27: 46.36 | I27: 227.84 | J27: 213.25 | K27: 60.67 | L27: 164.81 | M27: 2929.7 | N27: 156.23 | O27: 66.21 | P27: 43.43 | Q27: 437.13 | R27: 98.44 | S27: 381.69 | T27: 53.64 | U27: 265.03 | V27: 253.59 | W27: 78.63 | X27: 63.41 | Y27: 130.64 | Z27: 167.11 | AA27: 157.13 | AB27: 123.51 | AC27: 35.69 | AD27: 223.48 | AE27: 466.99 | AF27: 599.56 | AG27: 452.16 | AH27: 187.73 | AI27: 78.87 | AJ27: 138.23 | AK27: 1050.85 | AL27: 136.62 | AM27: 186.61 | AN27: 27.42 | AO27: 101.96 | AP27: 68.9 | AQ27: 91.1 | AR27: 73.44 | AS27: 72.51 | AT27: 296.86 | AU27: 82.38 | AV27: 193.1 | AW27: 558.17 | AX27: 176.04 | AY27: 484.04 | AZ27: 179.1 | BA27: 269.86 | BB27: 290.3 | BC27: 467.66
